Workbook

Sheet Kold
B2: Bruger: | C2: =Makro!D20 -> 0 | K2: Hele vægelementer | O2: Betonelement-Foreningen Feb 2019 | AL2: Tværvæg 1 | AN2: x = | AO2: 3000
B3: Sagsnavn: | C3: Betonelementhuset | H3: Sag nr.: | I3: 23 - 4545 | K3: =IF(AN145=1,AM145,AM115&AM116&AM117&AM118&AM119&AM120&AM121&AM122&AM123&AM124&AM125&AM126&AM127&AM128&AM129&AM130&AM131&AM132&AM133&AM134&AM135&AM136&AM137&AM138&AM139&AM140&AM141&AM142&AM143&AM144&AM145) -> For ny bruger: Klik på knappen 'angiv nyt brugernavn' for ibrugtagning. | AL3: Tværvæg 2 | AN3: x = | AO3: 6750
B4: Bygningsdel: | C4: Væg i modul B-C/3 | H4: Dato: | I4: 2007-01-02
B5: Emne: | C5: Normale lastkombinationer | H5: Init: | I5: JFJ | AN5: -1 | AO5: 1 | AP5: -1
C7: =IF(Makro!A1=1,"Resultater for felt #1",IF(Makro!A1=2,"Resultater for felt #2",IF(Makro!A1=3,"Resultater for felt #3",IF(Makro!A1=4,"Resultater for felt #4","Vælg et felt og ikke alle felter i nedfaldsmenu")))) -> Resultater for felt #1 | K7: Materialer | M7: Armering | O7: Krybetal | R7: Søjlebæreevne | AL7: HOVEDGEOMETRI | AR7: ELEMENTGRAFIK | AZ7: VÆGFELTER | CM7: Venstre | CQ7: Midt | CU7: Højre
C8: nEd | D8: m0Ed | E8: m0Rd | F8: u | G8: e0 / (1+f) | H8: ssc | I8: sst | J8: x | K8: fck = | L8: 20 | M8: Trykarmering | O8: RH | P8: 55 | Q8: % | R8: for central last | U8: Kommentar | AS8: Elementrand | AU8: Vindue 2 | AW8: Vindue 1 | BA8: Felt 1 | BC8: Felt 2 | BE8: Felt 3 | BG8: Felt 4 | BL8: NcR | BM8: t | BN8: Ls | BO8: B | BP8: b1 | BQ8: b2 | BR8: h1 | BS8: h2 | BT8: Nabo | BU8: L1 | BV8: L2 | BW8: Tilf | BX8: b_v/H | BY8: b_h/H | BZ8: s1' | CA8: s2' | CB8: n | CC8: en | CD8: N1 | CE8: eN1 | CF8: N2 | CG8: eN2 | CH8: w | CI8: mw | CJ8: s1 | CK8: s0 | CL8: s2 | CM8: n-s1 | CN8: m-s1 | CO8: sMIN | CP8: sMAX | CQ8: n-s0 | CR8: m-s0 | CS8: sMIN | CT8: sMAX | CU8: n-s2 | CV8: m-s2 | CW8: sMIN | CX8: sMAX
B9: Lasttilfælde | C9: (KN/m) | D9: (kNm/m) | E9: (kNm/m) | F9: (mm) | G9: (0/00) | H9: (MPa) | I9: (MPa) | J9: (mm) | K9: fyk = | L9: 550 | M9: da | N9: 8 | O9: to | P9: 28 | Q9: døgn | R9: scrd = | S9: =L8/L10*AC12 -> 10.78460516 | U9: Brudmåde 1 angiver den udbøjningsretning, hvor nv er den drivende normalkraft og omvendt for brudmåde 2. Linielast fra vind på døre/vinduer samt last fra bjælker fordeles elastisk i nabovægfelt | AM9: H | AN9: B | AS9: x | AT9: y | AU9: x | AV9: y | AW9: x | AX9: y | BA9: x | BB9: y | BC9: x | BD9: y | BE9: x | BF9: y | BG9: x | BH9: y | BJ9: Felt 1 | BL9: =$AC$13/1000 -> 0 | BM9: =$M$18/1000 -> 0.15 | BN9: =$BA$107/1000 -> 3 | BO9: =($BA$11-$BA$10)/1000 -> 1 | BP9: =($BA$16-$BA$17)/1000 -> 0.15 | BQ9: =($BA$12-$BA$13)/1000 -> 0 | BR9: =$BB$16/1000 -> 2.5 | BS9: =$BB$13/1000 -> 2.5 | BT9: =IF($BC$10=1000000,FALSE,TRUE) -> TRUE | BU9: =IF(AND(Makro!$D$1,Makro!$A$3=1),$AU$80,0) -> 0 | BV9: =IF(BT9,0.5*$BB$21/1000,IF(AND(Makro!$D$5,Makro!$A$4=1),$BC$80,0)) -> 0.75 | BW9: =BA105 -> 0 | BX9: =BA110/M16 -> 0.3333333333 | BY9: =BA112/M16 -> 0.3333333333 | BZ9: =BP9+BR9/6 -> 0.5666666667 | CA9: =BQ9+BS9/6 -> 0.4166666667
B10: =K31 -> A | C10: =IF(Makro!A1=5,"#",Sheet3!Y87*1000) -> 445.2 | D10: =IF(Makro!$A$1=1,DF55,IF(Makro!$A$1=2,DF65,IF(Makro!$A$1=3,DF75,IF(Makro!$A$1=4,DF85,"#")))) -> 8.7983625 | E10: =IF(Makro!A1=5,"#",Sheet3!AO87*1000) -> 13.16392034 | F10: =IF(Makro!A1=5,"#",Sheet3!AM87*1000) -> 29.00746803 | G10: =IF(Makro!A1=5,"#",Sheet3!AA87*1000) -> 0.6811434537 | H10: =IF(Makro!A$1=5,"#",Sheet3!$O$31*Sheet3!$O$30*G10/1000-(G10/1000)^2)*($L$8/$L$10)/(Sheet3!$O$30^2+(Sheet3!$O$31-2)*Sheet3!$O$30*G10/1000) -> 9.858745388 | I10: =IF(Makro!A1=5,"#",Sheet3!AJ87) -> 213.9975603 | J10: =IF(Makro!A1=5,"#",Sheet3!Z87*1000) -> 76.80203111 | K10: gc = | L10: 1.4 | M10: Antal | N10: 6.67 | O10: fo | P10: =AM160 -> 2.926820153 | R10: fc | S10: =PI()/4*N9^2*N10/(M18*1000) -> 0.002235138453 | AM10: =M16 -> 3000 | AN10: =M17 -> 7000 | AS10: 0 | AT10: 0 | AU10: =AO16 -> 5500 | AV10: =AP16 -> 1000 | AW10: =AO14 -> 1000 | AX10: =AP14 -> 1000 | AZ10: 1 | BA10: =INDEX(Felt1,AZ10,1+($AV$26-1)*2) -> 0 | BB10: =INDEX(Felt1,AZ10,2+($AV$26-1)*2) -> 0 | BC10: =INDEX(Felt2,AZ10,1+($AV$26-1)*2) -> 2500 | BD10: =INDEX(Felt2,AZ10,2+($AV$26-1)*2) -> 0 | BE10: =INDEX(Felt3,AZ10,1+($AV$26-1)*2) -> 4500 | BF10: =INDEX(Felt3,AZ10,2+($AV$26-1)*2) -> 0 | BG10: =INDEX(Felt4,AZ10,1+($AV$26-1)*2) -> 6200 | BH10: =INDEX(Felt4,AZ10,2+($AV$26-1)*2) -> 0 | BJ10: Lasttilfælde | BK10: =K31 -> A | BL10: =BL9 -> 0 | BM10: =BM9 -> 0.15 | BN10: =BN9 -> 3 | BO10: =BO9 -> 1 | BP10: =BP9 -> 0.15 | BQ10: =BQ9 -> 0 | BR10: =BR9 -> 2.5 | BS10: =BS9 -> 2.5 | BT10: =BT9 -> TRUE | BU10: =BU9 -> 0 | BV10: 0.75 | BW10: =BW9 -> 0 | BX10: =BX9 -> 0.3333333333 | BY10: =BY9 -> 0.3333333333 | BZ10: =BZ9 -> 0.5666666667 | CA10: =CA9 -> 0.4166666667 | CB10: =SUM(N31:P31)/1000 -> 0.159 | CC10: =IF(CB10=0,0,(N31*$N$41+O31*$O$41-P31*$P$41)/(1000000*CB10)) -> 0.01534591195 | CD10: =AU84/1000 -> 0 | CE10: =AV84/1000 -> 0 | CF10: =IF(BT10,BV10*CB10,$BC$84/1000) -> 0.11925 | CG10: =IF(BT10,CC10,$BD$84/1000) -> 0.01534591195 | CH10: =S31/1000 -> 0.00094 | CI10: =0.125*CH10*BN10^2 -> 0.0010575 | CJ10: =IF(BZ10+CA10<=BO10,BZ10,MIN(IF(CD10=0,0,BO10*CD10/(CD10+CF10)),BZ10)) -> 0.5666666667 | CK10: =BO10-CJ10-CL10 -> 0.01666666667 | CL10: =IF(BZ10+CA10<=BO10,CA10,MIN(IF(CF10=0,0,BO10*CF10/(CD10+CF10)),CA10)) -> 0.4166666667 | CM10: =IF(CJ10=0,0,CB10+CD10/CJ10) -> 0.159 | CN10: =IF(CJ10=0,CC10*CB10,CC10*CB10+CE10*CD10/CJ10)+CI10+IF(BW10=0,CH10*BU10*BN10*IF(BX10>1,0.27,BX10^-1/8-29*BX10^2/800+141*BX10/800)+CH10*BV10*BN10*IF(BY10>1.5,0,BY10^-1/8+2*BY10^2/27-BY10/6),IF(BX10<0.2,CH10*BU10*BN10*0.6*BX10,CH10*BU10*BN10*IF(BX10<1,(1125*BX10^3-3225*BX10^2+3075*BX10-111)/3200,0.27))) -> 0.004190532407 | CO10: =CM10/($BM10)-6*($BL10/($BL10-CM10))*(CN10/$BM10^2) -> 1.06 | CP10: =CM10/($BM10)+6*($BL10/($BL10-CM10))*(CN10/$BM10^2) -> 1.06 | CQ10: =IF(CK10=0,CM10,CB10) -> 0.159 | CR10: =IF(CK10=0,CN10,CC10*CB10+CI10+IF(BW10=0,CH10*(BU10+BV10)/BO10,0)) -> 0.0042025 | CS10: =CQ10/($BM10)-6*($BL10/($BL10-CQ10))*(CR10/$BM10^2) -> 1.06 | CT10: =CQ10/($BM10)+6*($BL10/($BL10-CQ10))*(CR10/$BM10^2) -> 1.06 | CU10: =IF(CL10=0,0,CB10+CF10/CL10) -> 0.4452 | CV10: =IF(CL10=0,CC10*CB10,CC10*CB10+CF10*CG10/CL10)+CI10+IF(BW10=0,CH10*BV10*BN10*IF(BY10>1,0.27,BY10^-1/8-29*BY10^2/800+141*BY10/800)+CH10*BU10*BN10*IF(BX10>1.5,0,BX10^-1/8+2*BX10^2/27-BX10/6),IF(BY10<0.2,CH10*BV10*BN10*0.6*BY10,CH10*BV10*BN10*IF(BY10<1,(1125*BY10^3-3225*BY10^2+3075*BY10-111)/3200,0.27))) -> 0.0087983625 | CW10: =CU10/($BM10)-6*($BL10/($BL10-CU10))*(CV10/$BM10^2) -> 2.968 | CX10: =CU10/($BM10)+6*($BL10/($BL10-CU10))*(CV10/$BM10^2) -> 2.968
B11: B | C11: =IF(Makro!A1=5,"#",Sheet3!Y92*1000) -> 453.6 | D11: =IF(Makro!$A$1=1,DF56,IF(Makro!$A$1=2,DF66,IF(Makro!$A$1=3,DF76,IF(Makro!$A$1=4,DF86,"#")))) -> 9.1203625 | E11: =IF(Makro!A1=5,"#",Sheet3!AO92*1000) -> 13.10637677 | F11: =IF(Makro!A1=5,"#",Sheet3!AM92*1000) -> 25.42662618 | G11: =IF(Makro!A1=5,"#",Sheet3!AA92*1000) -> 0.6270652892 | H11: =IF(Makro!A$1=5,"#",Sheet3!$O$31*Sheet3!$O$30*G11/1000-(G11/1000)^2)*($L$8/$L$10)/(Sheet3!$O$30^2+(Sheet3!$O$31-2)*Sheet3!$O$30*G11/1000) -> 9.37125447 | I11: =IF(Makro!A1=5,"#",Sheet3!AJ92) -> 165.7713744 | J11: =IF(Makro!A1=5,"#",Sheet3!Z92*1000) -> 80.66181019 | K11: gs = | L11: 1.2 | M11: Trækarmering | O11: M0Eqp/M0Ed | P11: 0.9 | R11: ft | S11: =PI()/4*N12^2*N13/(M18*1000) -> 0.002235138453 | AS11: =AO15 -> 3500 | AT11: 0 | AU11: =AU10+AN16 -> 6200 | AV11: =AV10 -> 1000 | AW11: =AW10+AN14 -> 2500 | AX11: =AX10 -> 1000 | AZ11: 2 | BA11: 1000 | BB11: 0 | BC11: 3500 | BD11: 0 | BE11: 5500 | BF11: 0 | BG11: 7000 | BH11: 0 | BK11: B | BL11: =BL10 -> 0 | BM11: 0.15 | BN11: =BN10 -> 3 | BO11: =BO10 -> 1 | BP11: 0.15 | BQ11: 0 | BR11: 2.5 | BS11: 2.5 | BT11: TRUE | BU11: 0 | BV11: 0.75 | BW11: =BW10 -> 0 | BX11: 0.3333333333 | BY11: 0.3333333333 | BZ11: 0.5666666667 | CA11: 0.4166666667 | CB11: 0.162 | CC11: 0.01577160494 | CD11: =AU85/1000 -> 0 | CE11: =AV85/1000 -> 0 | CF11: 0.1215 | CG11: =IF(BT11,CC11,BD85/1000) -> 0.01577160494 | CH11: 0.00094 | CI11: 0.0010575 | CJ11: =IF(BZ11+CA11<=BO11,BZ11,MIN(IF(CD11=0,0,BO11*CD11/(CD11+CF11)),BZ11)) -> 0.5666666667 | CK11: =BO11-CJ11-CL11 -> 0.01666666667 | CL11: =IF(BZ11+CA11<=BO11,CA11,MIN(IF(CF11=0,0,BO11*CF11/(CD11+CF11)),CA11)) -> 0.4166666667 | CM11: =IF(CJ11=0,0,CB11+CD11/CJ11) -> 0.162 | CN11: =IF(CJ11=0,CC11*CB11,CC11*CB11+CE11*CD11/CJ11)+CI11+IF(BW11=0,CH11*BU11*BN11*IF(BX11>1,0.27,BX11^-1/8-29*BX11^2/800+141*BX11/800)+CH11*BV11*BN11*IF(BY11>1.5,0,BY11^-1/8+2*BY11^2/27-BY11/6),IF(BX11<0.2,CH11*BU11*BN11*0.6*BX11,CH11*BU11*BN11*IF(BX11<1,(1125*BX11^3-3225*BX11^2+3075*BX11-111)/3200,0.27))) -> 0.004305532407 | CO11: =CM11/($BM11)-6*($BL11/($BL11-CM11))*(CN11/$BM11^2) -> 1.08 | CP11: =CM11/($BM11)+6*($BL11/($BL11-CM11))*(CN11/$BM11^2) -> 1.08 | CQ11: =IF(CK11=0,CM11,CB11) -> 0.162 | CR11: =IF(CK11=0,CN11,CC11*CB11+CI11+IF(BW11=0,CH11*(BU11+BV11)/BO11,0)) -> 0.0043175 | CS11: =CQ11/($BM11)-6*($BL11/($BL11-CQ11))*(CR11/$BM11^2) -> 1.08 | CT11: =CQ11/($BM11)+6*($BL11/($BL11-CQ11))*(CR11/$BM11^2) -> 1.08 | CU11: =IF(CL11=0,0,CB11+CF11/CL11) -> 0.4536 | CV11: =IF(CL11=0,CC11*CB11,CC11*CB11+CF11*CG11/CL11)+CI11+IF(BW11=0,CH11*BV11*BN11*IF(BY11>1,0.27,BY11^-1/8-29*BY11^2/800+141*BY11/800)+CH11*BU11*BN11*IF(BX11>1.5,0,BX11^-1/8+2*BX11^2/27-BX11/6),IF(BY11<0.2,CH11*BV11*BN11*0.6*BY11,CH11*BV11*BN11*IF(BY11<1,(1125*BY11^3-3225*BY11^2+3075*BY11-111)/3200,0.27))) -> 0.0091203625 | CW11: =CU11/($BM11)-6*($BL11/($BL11-CU11))*(CV11/$BM11^2) -> 3.024 | CX11: =CU11/($BM11)+6*($BL11/($BL11-CU11))*(CV11/$BM11^2) -> 3.024
B12: C | C12: =IF(Makro!A1=5,"#",Sheet3!Y97*1000) -> 565.6 | D12: =IF(Makro!$A$1=1,DF57,IF(Makro!$A$1=2,DF67,IF(Makro!$A$1=3,DF77,IF(Makro!$A$1=4,DF87,"#")))) -> 10.8003625 | E12: =IF(Makro!A1=5,"#",Sheet3!AO97*1000) -> 12.56793918 | F12: =IF(Makro!A1=5,"#",Sheet3!AM97*1000) -> 19.11271649 | G12: =IF(Makro!A1=5,"#",Sheet3!AA97*1000) -> 0.5776024067 | H12: =IF(Makro!A$1=5,"#",Sheet3!$O$31*Sheet3!$O$30*G12/1000-(G12/1000)^2)*($L$8/$L$10)/(Sheet3!$O$30^2+(Sheet3!$O$31-2)*Sheet3!$O$30*G12/1000) -> 8.891619558 | I12: =IF(Makro!A1=5,"#",Sheet3!AJ97) -> 47.38234959 | J12: =IF(Makro!A1=5,"#",Sheet3!Z97*1000) -> 98.84404667 | K12: Ecd = | L12: =1000*22*((L8+8)/10)^0.3/L10 -> 21401.39361 | M12: da | N12: 8 | O12: fef | P12: =P10*P11 -> 2.634138138 | R12: Ncr | S12: =MIN(M18*1000*S9*(1+(200000/L12)*2*MIN(S10,S11)),M18*1000*S9*(1+(L9/L11/S9)*2*MIN(S10,S11)))/1000 -> 1685.270726 | AC12: =1/(1+12*($L$8/($L$13*PI()^2))*(M16/$M$18)^2) -> 0.7549223614 | AM12: h | AN12: b | AO12: x | AP12: y | AS12: =AS11 -> 3500 | AT12: =AM15 -> 2500 | AU12: =AU11 -> 6200 | AV12: =AV11+AM16 -> 2500 | AW12: =AW11 -> 2500 | AX12: =AX11+AM14 -> 2500 | AZ12: 3 | BA12: 1000 | BB12: 2500 | BC12: 3500 | BD12: 2500 | BE12: 5500 | BF12: 2500 | BG12: 7000 | BH12: 3000 | BK12: C | BL12: 0 | BM12: 0.15 | BN12: 3 | BO12: 1 | BP12: 0.15 | BQ12: 0 | BR12: 2.5 | BS12: 2.5 | BT12: TRUE | BU12: 0 | BV12: 0.75 | BW12: 0 | BX12: 0.3333333333 | BY12: 0.3333333333 | BZ12: 0.5666666667 | CA12: 0.4166666667 | CB12: 0.202 | CC12: 0.01561881188 | CD12: 0 | CE12: 0 | CF12: 0.1515 | CG12: 0.01561881188 | CH12: 0.00094 | CI12: 0.0010575 | CJ12: 0.5666666667 | CK12: 0.01666666667 | CL12: 0.4166666667 | CM12: 0.202 | CN12: 0.004905532407 | CO12: 1.346666667 | CP12: 1.346666667 | CQ12: 0.202 | CR12: 0.0049175 | CS12: 1.346666667 | CT12: 1.346666667 | CU12: 0.5656 | CV12: 0.0108003625 | CW12: 3.770666667 | CX12: 3.770666667
B13: D | C13: =IF(Makro!A1=5,"#",Sheet3!Y102*1000) -> 585.2 | D13: =IF(Makro!$A$1=1,DF58,IF(Makro!$A$1=2,DF68,IF(Makro!$A$1=3,DF78,IF(Makro!$A$1=4,DF88,"#")))) -> 10.53902917 | E13: =IF(Makro!A1=5,"#",Sheet3!AO102*1000) -> 12.46260546 | F13: =IF(Makro!A1=5,"#",Sheet3!AM102*1000) -> 18.83645082 | G13: =IF(Makro!A1=5,"#",Sheet3!AA102*1000) -> 0.582129224 | H13: =IF(Makro!A$1=5,"#",Sheet3!$O$31*Sheet3!$O$30*G13/1000-(G13/1000)^2)*($L$8/$L$10)/(Sheet3!$O$30^2+(Sheet3!$O$31-2)*Sheet3!$O$30*G13/1000) -> 8.936911707 | I13: =IF(Makro!A1=5,"#",Sheet3!AJ102) -> 37.33897265 | J13: =IF(Makro!A1=5,"#",Sheet3!Z102*1000) -> 101.0797751 | K13: Ecm = | L13: =L12*L10 -> 29961.95105 | M13: Antal | N13: 6.67 | AM13: =P15 -> 500 | AN13: 150 | AS13: =AS12+AN15 -> 4500 | AT13: =AT12 -> 2500 | AU13: =AU10 -> 5500 | AV13: =AV12 -> 2500 | AW13: =AW10 -> 1000 | AX13: =AX12 -> 2500 | AZ13: 4 | BA13: 1000 | BB13: 2500 | BC13: 3500 | BD13: 2500 | BE13: 5500 | BF13: 2500 | BG13: 7000 | BH13: 3000 | BK13: D | BL13: 0 | BM13: 0.15 | BN13: 3 | BO13: 1 | BP13: 0.15 | BQ13: 0 | BR13: 2.5 | BS13: 2.5 | BT13: TRUE | BU13: 0 | BV13: 0.75 | BW13: 0 | BX13: 0.3333333333 | BY13: 0.3333333333 | BZ13: 0.5666666667 | CA13: 0.4166666667 | CB13: 0.209 | CC13: 0.01464912281 | CD13: 0 | CE13: 0 | CF13: 0.15675 | CG13: 0.01464912281 | CH13: 0.00094 | CI13: 0.0010575 | CJ13: 0.5666666667 | CK13: 0.01666666667 | CL13: 0.4166666667 | CM13: 0.209 | CN13: 0.004812199074 | CO13: 1.393333333 | CP13: 1.393333333 | CQ13: 0.209 | CR13: 0.004824166667 | CS13: 1.393333333 | CT13: 1.393333333 | CU13: 0.5852 | CV13: 0.01053902917 | CW13: 3.901333333 | CX13: 3.901333333
B14: E | C14: =IF(Makro!A1=5,"#",Sheet3!Y107*1000) -> 464.8 | D14: =IF(Makro!$A$1=1,DF59,IF(Makro!$A$1=2,DF69,IF(Makro!$A$1=3,DF79,IF(Makro!$A$1=4,DF89,"#")))) -> 8.566514583 | E14: =IF(Makro!A1=5,"#",Sheet3!AO107*1000) -> 13.04184558 | F14: =IF(Makro!A1=5,"#",Sheet3!AM107*1000) -> 24.09303374 | G14: =IF(Makro!A1=5,"#",Sheet3!AA107*1000) -> 0.6112314271 | H14: =IF(Makro!A$1=5,"#",Sheet3!$O$31*Sheet3!$O$30*G14/1000-(G14/1000)^2)*($L$8/$L$10)/(Sheet3!$O$30^2+(Sheet3!$O$31-2)*Sheet3!$O$30*G14/1000) -> 9.221326306 | I14: =IF(Makro!A1=5,"#",Sheet3!AJ107) -> 144.6809366 | J14: =IF(Makro!A1=5,"#",Sheet3!Z107*1000) -> 82.97707621 | K14: Geometri - alle mål i mm | N14: Udsparinger | P14: h | Q14: b | R14: x | S14: y | AM14: 1500 | AN14: 1500 | AO14: =R16 -> 1000 | AP14: =S16 -> 1000 | AS14: =AS13 -> 4500 | AT14: =0 -> 0 | AU14: =AU10 -> 5500 | AV14: =AV10 -> 1000 | AW14: =AW10 -> 1000 | AX14: =AX10 -> 1000 | AZ14: 5 | BA14: 1000 | BB14: 3000 | BC14: 3500 | BD14: 3000 | BE14: 5500 | BF14: 3000 | BG14: 7000 | BH14: 3000 | BK14: E | BL14: 0 | BM14: 0.15 | BN14: 3 | BO14: 1 | BP14: 0.15 | BQ14: 0 | BR14: 2.5 | BS14: 2.5 | BT14: TRUE | BU14: 0 | BV14: 0.75 | BW14: 0 | BX14: 0.3333333333 | BY14: 0.3333333333 | BZ14: 0.5666666667 | CA14: 0.4166666667 | CB14: 0.166 | CC14: 0.01631526104 | CD14: 0 | CE14: 0 | CF14: 0.1245 | CG14: 0.01631526104 | CH14: 0.00047 | CI14: 0.00052875 | CJ14: 0.5666666667 | CK14: 0.01666666667 | CL14: 0.4166666667 | CM14: 0.166 | CN14: 0.003583599537 | CO14: 1.106666667 | CP14: 1.106666667 | CQ14: 0.166 | CR14: 0.003589583333 | CS14: 1.106666667 | CT14: 1.106666667 | CU14: 0.4648 | CV14: 0.008566514583 | CW14: 3.098666667 | CX14: 3.098666667
B15: F | C15: =IF(Makro!A1=5,"#",Sheet3!Y112*1000) -> 576.8 | D15: =IF(Makro!$A$1=1,DF60,IF(Makro!$A$1=2,DF70,IF(Makro!$A$1=3,DF80,IF(Makro!$A$1=4,DF90,"#")))) -> 10.24651458 | E15: =IF(Makro!A1=5,"#",Sheet3!AO112*1000) -> 12.50927045 | F15: =IF(Makro!A1=5,"#",Sheet3!AM112*1000) -> 18.95336499 | G15: =IF(Makro!A1=5,"#",Sheet3!AA112*1000) -> 0.5801887421 | H15: =IF(Makro!A$1=5,"#",Sheet3!$O$31*Sheet3!$O$30*G15/1000-(G15/1000)^2)*($L$8/$L$10)/(Sheet3!$O$30^2+(Sheet3!$O$31-2)*Sheet3!$O$30*G15/1000) -> 8.917531736 | I15: =IF(Makro!A1=5,"#",Sheet3!AJ112) -> 41.60727059 | J15: =IF(Makro!A1=5,"#",Sheet3!Z112*1000) -> 100.1213997 | K15: Centerafstand, c = | M15: 40 | N15: Bjælke A | P15: 500 | Q15: 150 | AM15: 2500 | AN15: 1000 | AO15: =R17 -> 3500 | AS15: =AN10 -> 7000 | AT15: 0 | AZ15: 6 | BA15: 150 | BB15: 3000 | BC15: 2500 | BD15: 3000 | BE15: 4500 | BF15: 3000 | BG15: 6200 | BH15: 3000 | BK15: F | BL15: 0 | BM15: 0.15 | BN15: 3 | BO15: 1 | BP15: 0.15 | BQ15: 0 | BR15: 2.5 | BS15: 2.5 | BT15: TRUE | BU15: 0 | BV15: 0.75 | BW15: 0 | BX15: 0.3333333333 | BY15: 0.3333333333 | BZ15: 0.5666666667 | CA15: 0.4166666667 | CB15: 0.206 | CC15: 0.01605987055 | CD15: 0 | CE15: 0 | CF15: 0.1545 | CG15: 0.01605987055 | CH15: 0.00047 | CI15: 0.00052875 | CJ15: 0.5666666667 | CK15: 0.01666666667 | CL15: 0.4166666667 | CM15: 0.206 | CN15: 0.004183599537 | CO15: 1.373333333 | CP15: 1.373333333 | CQ15: 0.206 | CR15: 0.004189583333 | CS15: 1.373333333 | CT15: 1.373333333 | CU15: 0.5768 | CV15: 0.01024651458 | CW15: 3.845333333 | CX15: 3.845333333
B16: G | C16: =IF(Makro!A1=5,"#",Sheet3!Y117*1000) -> 644 | D16: =IF(Makro!$A$1=1,DF61,IF(Makro!$A$1=2,DF71,IF(Makro!$A$1=3,DF81,IF(Makro!$A$1=4,DF91,"#")))) -> 9.350514583 | E16: =IF(Makro!A1=5,"#",Sheet3!AO117*1000) -> 12.06492356 | F16: =IF(Makro!A1=5,"#",Sheet3!AM117*1000) -> 18.03448071 | G16: =IF(Makro!A1=5,"#",Sheet3!AA117*1000) -> 0.5948999981 | H16: =IF(Makro!A$1=5,"#",Sheet3!$O$31*Sheet3!$O$30*G16/1000-(G16/1000)^2)*($L$8/$L$10)/(Sheet3!$O$30^2+(Sheet3!$O$31-2)*Sheet3!$O$30*G16/1000) -> 9.063150477 | I16: =IF(Makro!A1=5,"#",Sheet3!AJ117) -> 8.453107424 | J16: =IF(Makro!A1=5,"#",Sheet3!Z117*1000) -> 107.8907636 | K16: Væghøjde, H = Ls = | M16: 3000 | N16: Vindue 1 | P16: 1500 | Q16: 1500 | R16: 1000 | S16: 1000 | AM16: 1500 | AN16: 700 | AO16: =R18 -> 5500 | AP16: =S18 -> 1000 | AS16: =AS15 -> 7000 | AT16: =AM10-AM17 -> 3000 | AZ16: 7 | BA16: 150 | BB16: 2500 | BC16: 2500 | BD16: 2500 | BE16: 4500 | BF16: 2500 | BG16: 6200 | BH16: 2500 | BK16: G | BL16: 0 | BM16: 0.15 | BN16: 3 | BO16: 1 | BP16: 0.15 | BQ16: 0 | BR16: 2.5 | BS16: 2.5 | BT16: TRUE | BU16: 0 | BV16: 0.75 | BW16: 0 | BX16: 0.3333333333 | BY16: 0.3333333333 | BZ16: 0.5666666667 | CA16: 0.4166666667 | CB16: 0.23 | CC16: 0.01299275362 | CD16: 0 | CE16: 0 | CF16: 0.1725 | CG16: 0.01299275362 | CH16: 0.00047 | CI16: 0.00052875 | CJ16: 0.5666666667 | CK16: 0.01666666667 | CL16: 0.4166666667 | CM16: 0.23 | CN16: 0.003863599537 | CO16: 1.533333333 | CP16: 1.533333333 | CQ16: 0.23 | CR16: 0.003869583333 | CS16: 1.533333333 | CT16: 1.533333333 | CU16: 0.644 | CV16: 0.009350514583 | CW16: 4.293333333 | CX16: 4.293333333
B17: H | C17: =IF(Makro!A1=5,"#",Sheet3!Y122*1000) -> 604.8 | D17: =IF(Makro!$A$1=1,DF62,IF(Makro!$A$1=2,DF72,IF(Makro!$A$1=3,DF82,IF(Makro!$A$1=4,DF92,"#")))) -> 10.66651458 | E17: =IF(Makro!A1=5,"#",Sheet3!AO122*1000) -> 12.34438013 | F17: =IF(Makro!A1=5,"#",Sheet3!AM122*1000) -> 18.57034649 | G17: =IF(Makro!A1=5,"#",Sheet3!AA122*1000) -> 0.5866269909 | H17: =IF(Makro!A$1=5,"#",Sheet3!$O$31*Sheet3!$O$30*G17/1000-(G17/1000)^2)*($L$8/$L$10)/(Sheet3!$O$30^2+(Sheet3!$O$31-2)*Sheet3!$O$30*G17/1000) -> 8.98162987 | I17: =IF(Makro!A1=5,"#",Sheet3!AJ122) -> 27.56509898 | J17: =IF(Makro!A1=5,"#",Sheet3!Z122*1000) -> 103.3203753 | K17: Vægbredde, B | M17: 7000 | N17: Dør | P17: 2500 | Q17: 1000 | R17: 3500 | AM17: 0 | AN17: 0 | AS17: =AS16-AN17 -> 7000 | AT17: =AT16 -> 3000 | AZ17: 8 | BA17: 0 | BB17: 2500 | BC17: 2500 | BD17: 2500 | BE17: 4500 | BF17: 2500 | BG17: 6200 | BH17: 2500 | BK17: H | BL17: 0 | BM17: 0.15 | BN17: 3 | BO17: 1 | BP17: 0.15 | BQ17: 0 | BR17: 2.5 | BS17: 2.5 | BT17: TRUE | BU17: 0 | BV17: 0.75 | BW17: 0 | BX17: 0.3333333333 | BY17: 0.3333333333 | BZ17: 0.5666666667 | CA17: 0.4166666667 | CB17: 0.216 | CC17: 0.01601080247 | CD17: 0 | CE17: 0 | CF17: 0.162 | CG17: 0.01601080247 | CH17: 0.00047 | CI17: 0.00052875 | CJ17: 0.5666666667 | CK17: 0.01666666667 | CL17: 0.4166666667 | CM17: 0.216 | CN17: 0.004333599537 | CO17: 1.44 | CP17: 1.44 | CQ17: 0.216 | CR17: 0.004339583333 | CS17: 1.44 | CT17: 1.44 | CU17: 0.6048 | CV17: 0.01066651458 | CW17: 4.032 | CX17: 4.032
B18: I | C18: =IF(Makro!A1=5,"#",Sheet3!Y127*1000) -> 672 | D18: =IF(Makro!$A$1=1,DF63,IF(Makro!$A$1=2,DF73,IF(Makro!$A$1=3,DF83,IF(Makro!$A$1=4,DF93,"#")))) -> 9.770514583 | E18: =IF(Makro!A1=5,"#",Sheet3!AO127*1000) -> 11.82804404 | F18: =IF(Makro!A1=5,"#",Sheet3!AM127*1000) -> 17.67842505 | G18: =IF(Makro!A1=5,"#",Sheet3!AA127*1000) -> 0.600813976 | H18: =IF(Makro!A$1=5,"#",Sheet3!$O$31*Sheet3!$O$30*G18/1000-(G18/1000)^2)*($L$8/$L$10)/(Sheet3!$O$30^2+(Sheet3!$O$31-2)*Sheet3!$O$30*G18/1000) -> 9.120848782 | I18: =IF(Makro!A1=5,"#",Sheet3!AJ127) -> -4.548917928 | J18: =IF(Makro!A1=5,"#",Sheet3!Z127*1000) -> 111.157916 | K18: Vægtykkelse, t | M18: 150 | N18: Vindue 2 | P18: 1500 | Q18: 700 | R18: 5500 | S18: 1000 | AS18: =AS17 -> 7000 | AT18: =AM10 -> 3000 | AU18: NA | AW18: NB | AZ18: 9 | BA18: 0 | BB18: 0 | BC18: 2500 | BD18: 0 | BE18: 4500 | BF18: 0 | BG18: 6200 | BH18: 0 | BK18: I | BL18: 0 | BM18: 0.15 | BN18: 3 | BO18: 1 | BP18: 0.15 | BQ18: 0 | BR18: 2.5 | BS18: 2.5 | BT18: TRUE | BU18: 0 | BV18: 0.75 | BW18: 0 | BX18: 0.3333333333 | BY18: 0.3333333333 | BZ18: 0.5666666667 | CA18: 0.4166666667 | CB18: 0.24 | CC18: 0.01307638889 | CD18: 0 | CE18: 0 | CF18: 0.18 | CG18: 0.01307638889 | CH18: 0.00047 | CI18: 0.00052875 | CJ18: 0.5666666667 | CK18: 0.01666666667 | CL18: 0.4166666667 | CM18: =IF(CJ18=0,0,CB18+CD18/CJ18) -> 0.24 | CN18: 0.004013599537 | CO18: =CM18/($BM18)-6*($BL18/($BL18-CM18))*(CN18/$BM18^2) -> 1.6 | CP18: =CM18/($BM18)+6*($BL18/($BL18-CM18))*(CN18/$BM18^2) -> 1.6 | CQ18: 0.24 | CR18: 0.004019583333 | CS18: =CQ18/($BM18)-6*($BL18/($BL18-CQ18))*(CR18/$BM18^2) -> 1.6 | CT18: =CQ18/($BM18)+6*($BL18/($BL18-CQ18))*(CR18/$BM18^2) -> 1.6 | CU18: =IF(CL18=0,0,CB18+CF18/CL18) -> 0.672 | CV18: 0.009770514583 | CW18: =CU18/($BM18)-6*($BL18/($BL18-CU18))*(CV18/$BM18^2) -> 4.48 | CX18: 4.48
I19: Vælg et felt nr. | N19: Bjælke B | AS19: =AN13 -> 150 | AT19: =AT18 -> 3000 | AU19: x | AV19: y | AW19: x | AX19: y | BJ19: Felt 2 | BL19: =$AC$13/1000 -> 0 | BM19: =$M$18/1000 -> 0.15 | BN19: =$BC$107/1000 -> 3 | BO19: =($BC$11-$BC$10)/1000 -> 1 | BP19: =($BC$16-$BC$17)/1000 -> 0 | BQ19: =($BC$12-$BC$13)/1000 -> 0 | BR19: =$BD$16/1000 -> 2.5 | BS19: =$BD$13/1000 -> 2.5 | BT19: =IF($BE$10=1000000,FALSE,TRUE) -> TRUE | BU19: =BV9 -> 0.75 | BV19: =IF(BT19,0.5*$BD$21/1000,IF(AND(Makro!$D$5,Makro!$A$4=1),$BC$80,0)) -> 0.5 | BW19: =BC105 -> 0 | BX19: =BC110/M16 -> 0.3333333333 | BY19: =BC112/M16 -> 0.3333333333 | BZ19: =BP19+BR19/6 -> 0.4166666667 | CA19: =BQ19+BS19/6 -> 0.4166666667
K20: h og b er hhv højde og bredde af hullet i væggen. x og y angiver koordinaten til det nederste venstre hjørne. | AM20: Vederlagsdybder | AP20: =X15 -> 0 | AS20: =AS19 -> 150 | AT20: =AT19-AM13 -> 2500 | AU20: =IF(Makro!D1,0.5*(AS21+AS20),1000000) -> 75 | AV20: =IF(Makro!D1,AT20,1000000) -> 2500 | AW20: =IF(Makro!D5,0.5*(AS16+AS17),1000000) -> 7000 | AX20: =IF(Makro!D5,AT16,1000000) -> 3000 | AZ20: OVERLIGGERE | BJ20: Lasttilfælde | BK20: =K31 -> A | BL20: =BL19 -> 0 | BM20: =BM19 -> 0.15 | BN20: =BN19 -> 3 | BO20: =BO19 -> 1 | BP20: =BP19 -> 0 | BQ20: =BQ19 -> 0 | BR20: =BR19 -> 2.5 | BS20: =BS19 -> 2.5 | BT20: =BT19 -> TRUE | BU20: =BU19 -> 0.75 | BV20: 0.5 | BW20: =BW19 -> 0 | BX20: =BX19 -> 0.3333333333 | BY20: =BY19 -> 0.3333333333 | BZ20: =BZ19 -> 0.4166666667 | CA20: =CA19 -> 0.4166666667 | CB20: =CB10 -> 0.159 | CC20: =CC10 -> 0.01534591195 | CD20: =CF10 -> 0.11925 | CE20: =CG10 -> 0.01534591195 | CF20: =IF(BT20,BV20*CB20,BC84/1000) -> 0.0795 | CG20: =IF(BT20,CC20,BD84/1000) -> 0.01534591195 | CH20: =CH10 -> 0.00094 | CI20: =0.125*CH20*BN20^2 -> 0.0010575 | CJ20: =IF(BZ20+CA20<=BO20,BZ20,MIN(IF(CD20=0,0,BO20*CD20/(CD20+CF20)),BZ20)) -> 0.4166666667 | CK20: =BO20-CJ20-CL20 -> 0.1666666667 | CL20: =IF(BZ20+CA20<=BO20,CA20,MIN(IF(CF20=0,0,BO20*CF20/(CD20+CF20)),CA20)) -> 0.4166666667 | CM20: =IF(CJ20=0,0,CB20+CD20/CJ20) -> 0.4452 | CN20: =IF(BT10,IF(CJ20=0,CC20*CB20,CC20*CB20+CE20*CD20/CJ20)+CI20+IF(BW20=0,CH20*BU20*BN20*IF(BX20>1,0.27,BX20^-1/8-29*BX20^2/800+141*BX20/800)+CH20*BV20*BN20*IF(BY20>1.5,0,BY20^-1/8+2*BY20^2/27-BY20/6),IF(BX20<0.2,CH20*BU20*BN20*0.6*BX20,CH20*BU20*BN20*IF(BX20<1,(1125*BX20^3-3225*BX20^2+3075*BX20-111)/3200,0.27))),0) -> 0.009260384105 | CO20: =CM20/($BM20)-6*($BL20/($BL20-CM20))*(CN20/$BM20^2) -> 2.968 | CP20: =CM20/($BM20)+6*($BL20/($BL20-CM20))*(CN20/$BM20^2) -> 2.968 | CQ20: =IF(CK20=0,CM20,CB20) -> 0.159 | CR20: =IF(CK20=0,CN20,CC20*CB20+CI20+IF(BW20=0,CH20*(BU20+BV20)/BO20,0)) -> 0.0046725 | CS20: =CQ20/($BM20)-6*($BL20/($BL20-CQ20))*(CR20/$BM20^2) -> 1.06 | CT20: =CQ20/($BM20)+6*($BL20/($BL20-CQ20))*(CR20/$BM20^2) -> 1.06 | CU20: =IF(CL20=0,0,CB20+CF20/CL20) -> 0.3498 | CV20: =IF(BT10,IF(CL20=0,CC20*CB20,CC20*CB20+CF20*CG20/CL20)+CI20+IF(BW20=0,CH20*BV20*BN20*IF(BY20>1,0.27,BY20^-1/8-29*BY20^2/800+141*BY20/800)+CH20*BU20*BN20*IF(BX20>1.5,0,BX20^-1/8+2*BX20^2/27-BX20/6),IF(BY20<0.2,CH20*BV20*BN20*0.6*BY20,CH20*BV20*BN20*IF(BY20<1,(1125*BY20^3-3225*BY20^2+3075*BY20-111)/3200,0.27))),0) -> 0.007724440741 | CW20: =CU20/($BM20)-6*($BL20/($BL20-CU20))*(CV20/$BM20^2) -> 2.332 | CX20: =CU20/($BM20)+6*($BL20/($BL20-CU20))*(CV20/$BM20^2) -> 2.332
I21: =IF(Makro!A1=5,"Alle felter","Felt #" &TEXT(Makro!A1,"0")) -> Felt #1 | K21: Hvis væggen forsynes med kun ét lag armering skal dette være træklaget aht. beregningerne | AS21: 0 | AT21: =AT20 -> 2500 | AU21: =AU20 -> 75 | AV21: =AV20+400 -> 2900 | AW21: =AW20 -> 7000 | AX21: =AX20+400 -> 3400 | BB21: =IF(BC10=1000000,0,BC15-BA13-2*AP20) -> 1500 | BD21: =IF(BE10=1000000,0,BE15-BC13-2*AP20) -> 1000 | BF21: =IF(BG10=1000000,0,BG15-BE13-2*AP20) -> 700 | BK21: B | BL21: =BL20 -> 0 | BM21: 0.15 | BN21: =BN20 -> 3 | BO21: =BO20 -> 1 | BP21: 0 | BQ21: 0 | BR21: 2.5 | BS21: 2.5 | BT21: TRUE | BU21: 0.75 | BV21: 0.5 | BW21: 0 | BX21: 0.3333333333 | BY21: 0.3333333333 | BZ21: 0.4166666667 | CA21: 0.4166666667 | CB21: 0.162 | CC21: 0.01577160494 | CD21: =CF11 -> 0.1215 | CE21: =CG11 -> 0.01577160494 | CF21: 0.081 | CG21: 0.01577160494 | CH21: 0.00094 | CI21: 0.0010575 | CJ21: =IF(BZ21+CA21<=BO21,BZ21,MIN(IF(CD21=0,0,BO21*CD21/(CD21+CF21)),BZ21)) -> 0.4166666667 | CK21: 0.1666666667 | CL21: =IF(BZ21+CA21<=BO21,CA21,MIN(IF(CF21=0,0,BO21*CF21/(CD21+CF21)),CA21)) -> 0.4166666667 | CM21: =IF(CJ21=0,0,CB21+CD21/CJ21) -> 0.4536 | CN21: =IF(BT11,IF(CJ21=0,CC21*CB21,CC21*CB21+CE21*CD21/CJ21)+CI21+IF(BW21=0,CH21*BU21*BN21*IF(BX21>1,0.27,BX21^-1/8-29*BX21^2/800+141*BX21/800)+CH21*BV21*BN21*IF(BY21>1.5,0,BY21^-1/8+2*BY21^2/27-BY21/6),IF(BX21<0.2,CH21*BU21*BN21*0.6*BX21,CH21*BU21*BN21*IF(BX21<1,(1125*BX21^3-3225*BX21^2+3075*BX21-111)/3200,0.27))),0) -> 0.009582384105 | CO21: =CM21/($BM21)-6*($BL21/($BL21-CM21))*(CN21/$BM21^2) -> 3.024 | CP21: =CM21/($BM21)+6*($BL21/($BL21-CM21))*(CN21/$BM21^2) -> 3.024 | CQ21: =IF(CK21=0,CM21,CB21) -> 0.162 | CR21: =IF(CK21=0,CN21,CC21*CB21+CI21+IF(BW21=0,CH21*(BU21+BV21)/BO21,0)) -> 0.0047875 | CS21: =CQ21/($BM21)-6*($BL21/($BL21-CQ21))*(CR21/$BM21^2) -> 1.08 | CT21: =CQ21/($BM21)+6*($BL21/($BL21-CQ21))*(CR21/$BM21^2) -> 1.08 | CU21: =IF(CL21=0,0,CB21+CF21/CL21) -> 0.3564 | CV21: =IF(BT11,IF(CL21=0,CC21*CB21,CC21*CB21+CF21*CG21/CL21)+CI21+IF(BW21=0,CH21*BV21*BN21*IF(BY21>1,0.27,BY21^-1/8-29*BY21^2/800+141*BY21/800)+CH21*BU21*BN21*IF(BX21>1.5,0,BX21^-1/8+2*BX21^2/27-BX21/6),IF(BY21<0.2,CH21*BV21*BN21*0.6*BY21,CH21*BV21*BN21*IF(BY21<1,(1125*BY21^3-3225*BY21^2+3075*BY21-111)/3200,0.27))),0) -> 0.007977440741 | CW21: =CU21/($BM21)-6*($BL21/($BL21-CU21))*(CV21/$BM21^2) -> 2.376 | CX21: =CU21/($BM21)+6*($BL21/($BL21-CU21))*(CV21/$BM21^2) -> 2.376
K22: Jævnt fordelte laste på vægoverside | AS22: 0 | AT22: 0 | BK22: C | BL22: 0 | BM22: 0.15 | BN22: 3 | BO22: 1 | BP22: 0 | BQ22: 0 | BR22: 2.5 | BS22: 2.5 | BT22: TRUE | BU22: 0.75 | BV22: 0.5 | BW22: 0 | BX22: 0.3333333333 | BY22: 0.3333333333 | BZ22: 0.4166666667 | CA22: 0.4166666667 | CB22: 0.202 | CC22: 0.01561881188 | CD22: 0.1515 | CE22: 0.01561881188 | CF22: 0.101 | CG22: 0.01561881188 | CH22: 0.00094 | CI22: 0.0010575 | CJ22: 0.4166666667 | CK22: 0.1666666667 | CL22: 0.4166666667 | CM22: 0.5656 | CN22: 0.0112623841 | CO22: 3.770666667 | CP22: 3.770666667 | CQ22: 0.202 | CR22: 0.0053875 | CS22: 1.346666667 | CT22: 1.346666667 | CU22: 0.4444 | CV22: 0.009297440741 | CW22: 2.962666667 | CX22: 2.962666667
K23: Maksimallaste (kN/m) | N23: Reducerede laste (kN/m) | Q23: Minimallaste (kN/m) | BK23: D | BL23: 0 | BM23: 0.15 | BN23: 3 | BO23: 1 | BP23: 0 | BQ23: 0 | BR23: 2.5 | BS23: 2.5 | BT23: TRUE | BU23: 0.75 | BV23: 0.5 | BW23: 0 | BX23: 0.3333333333 | BY23: 0.3333333333 | BZ23: 0.4166666667 | CA23: 0.4166666667 | CB23: 0.209 | CC23: 0.01464912281 | CD23: 0.15675 | CE23: 0.01464912281 | CF23: 0.1045 | CG23: 0.01464912281 | CH23: 0.00094 | CI23: 0.0010575 | CJ23: 0.4166666667 | CK23: 0.1666666667 | CL23: 0.4166666667 | CM23: 0.5852 | CN23: 0.01100105077 | CO23: 3.901333333 | CP23: 3.901333333 | CQ23: 0.209 | CR23: 0.005294166667 | CS23: 1.393333333 | CT23: 1.393333333 | CU23: 0.4598 | CV23: 0.009092107407 | CW23: 3.065333333 | CX23: 3.065333333
K24: nv | L24: no | M24: nh | N24: nv | O24: no | P24: nh | Q24: nv | R24: no | S24: nh | BK24: E | BL24: 0 | BM24: 0.15 | BN24: 3 | BO24: 1 | BP24: 0 | BQ24: 0 | BR24: 2.5 | BS24: 2.5 | BT24: TRUE | BU24: 0.75 | BV24: 0.5 | BW24: 0 | BX24: 0.3333333333 | BY24: 0.3333333333 | BZ24: 0.4166666667 | CA24: 0.4166666667 | CB24: 0.166 | CC24: 0.01631526104 | CD24: 0.1245 | CE24: 0.01631526104 | CF24: 0.083 | CG24: 0.01631526104 | CH24: 0.00047 | CI24: 0.00052875 | CJ24: 0.4166666667 | CK24: 0.1666666667 | CL24: 0.4166666667 | CM24: 0.4648 | CN24: 0.008797525386 | CO24: 3.098666667 | CP24: 3.098666667 | CQ24: 0.166 | CR24: 0.003824583333 | CS24: 1.106666667 | CT24: 1.106666667 | CU24: 0.3652 | CV24: 0.007136553704 | CW24: =CU24/($BM24)-6*($BL24/($BL24-CU24))*(CV24/$BM24^2) -> 2.434666667 | CX24: 2.434666667
K25: 13 | L25: 200 | M25: 27 | N25: 9 | O25: 190 | P25: 10 | Q25: 6 | R25: 150 | S25: 3 | BK25: F | BL25: 0 | BM25: 0.15 | BN25: 3 | BO25: 1 | BP25: 0 | BQ25: 0 | BR25: 2.5 | BS25: 2.5 | BT25: TRUE | BU25: 0.75 | BV25: 0.5 | BW25: 0 | BX25: 0.3333333333 | BY25: 0.3333333333 | BZ25: 0.4166666667 | CA25: 0.4166666667 | CB25: 0.206 | CC25: 0.01605987055 | CD25: 0.1545 | CE25: 0.01605987055 | CF25: 0.103 | CG25: 0.01605987055 | CH25: 0.00047 | CI25: 0.00052875 | CJ25: 0.4166666667 | CK25: 0.1666666667 | CL25: 0.4166666667 | CM25: 0.5768 | CN25: 0.01047752539 | CO25: 3.845333333 | CP25: 3.845333333 | CQ25: 0.206 | CR25: 0.004424583333 | CS25: 1.373333333 | CT25: 1.373333333 | CU25: 0.4532 | CV25: 0.008456553704 | CW25: 3.021333333 | CX25: 3.021333333
K26: Belastning fra bjælke A (venstre side) som: | O26: =INDEX(AQ76:AQ77,Makro!A3,1) -> Vægoverligger | AL26: INDDATAFORMATER | AR26: BASISTILFÆLDE: | AV26: =MIN(AR32:BF32) -> 4 | BK26: G | BL26: 0 | BM26: 0.15 | BN26: 3 | BO26: 1 | BP26: 0 | BQ26: 0 | BR26: 2.5 | BS26: 2.5 | BT26: TRUE | BU26: 0.75 | BV26: 0.5 | BW26: 0 | BX26: 0.3333333333 | BY26: 0.3333333333 | BZ26: 0.4166666667 | CA26: 0.4166666667 | CB26: 0.23 | CC26: 0.01299275362 | CD26: 0.1725 | CE26: 0.01299275362 | CF26: 0.115 | CG26: 0.01299275362 | CH26: 0.00047 | CI26: 0.00052875 | CJ26: 0.4166666667 | CK26: 0.1666666667 | CL26: 0.4166666667 | CM26: 0.644 | CN26: 0.009581525386 | CO26: 4.293333333 | CP26: 4.293333333 | CQ26: 0.23 | CR26: 0.004104583333 | CS26: 1.533333333 | CT26: 1.533333333 | CU26: 0.506 | CV26: 0.007752553704 | CW26: 3.373333333 | CX26: 3.373333333
K27: Belastning fra bjælke B (højre side) som: | O27: =INDEX(AQ76:AQ77,Makro!A4,1) -> Vægoverligger | BK27: H | BL27: 0 | BM27: 0.15 | BN27: 3 | BO27: 1 | BP27: 0 | BQ27: 0 | BR27: 2.5 | BS27: 2.5 | BT27: TRUE | BU27: 0.75 | BV27: 0.5 | BW27: 0 | BX27: 0.3333333333 | BY27: 0.3333333333 | BZ27: 0.4166666667 | CA27: 0.4166666667 | CB27: 0.216 | CC27: 0.01601080247 | CD27: 0.162 | CE27: 0.01601080247 | CF27: 0.108 | CG27: 0.01601080247 | CH27: 0.00047 | CI27: 0.00052875 | CJ27: 0.4166666667 | CK27: 0.1666666667 | CL27: 0.4166666667 | CM27: 0.6048 | CN27: 0.01089752539 | CO27: 4.032 | CP27: 4.032 | CQ27: 0.216 | CR27: 0.004574583333 | CS27: 1.44 | CT27: 1.44 | CU27: 0.4752 | CV27: 0.008786553704 | CW27: 3.168 | CX27: 3.168
K28: Brudmåde : | N28: Jævnt fordelt last, overside | Q28: Bjælkereaktioner | S28: Vind | AQ28: =Makro!D1 -> TRUE | AR28: 1 | AT28: 2 | AV28: 3 | AX28: 4 | AZ28: 5 | BB28: 6 | BD28: 7 | BF28: 8 | BK28: I | BL28: 0 | BM28: 0.15 | BN28: 3 | BO28: 1 | BP28: 0 | BQ28: 0 | BR28: 2.5 | BS28: 2.5 | BT28: TRUE | BU28: 0.75 | BV28: 0.5 | BW28: 0 | BX28: 0.3333333333 | BY28: 0.3333333333 | BZ28: 0.4166666667 | CA28: 0.4166666667 | CB28: 0.24 | CC28: 0.01307638889 | CD28: 0.18 | CE28: 0.01307638889 | CF28: 0.12 | CG28: 0.01307638889 | CH28: 0.00047 | CI28: 0.00052875 | CJ28: 0.4166666667 | CK28: 0.1666666667 | CL28: 0.4166666667 | CM28: 0.672 | CN28: 0.01000152539 | CO28: 4.48 | CP28: 4.48 | CQ28: 0.24 | CR28: 0.004254583333 | CS28: 1.6 | CT28: 1.6 | CU28: 0.528 | CV28: 0.008082553704 | CW28: 3.52 | CX28: 3.52
N29: n1 | O29: n0 | P29: n2 | Q29: NA | R29: NB | S29: w | AQ29: =Makro!D2 -> TRUE | AR29: FALSE | AT29: TRUE | AV29: TRUE | AX29: TRUE | AZ29: TRUE | BB29: FALSE | BD29: FALSE | BF29: FALSE | BJ29: Felt 3 | BL29: =$AC$13/1000 -> 0 | BM29: =$M$18/1000 -> 0.15 | BN29: =$BE$107/1000 -> 3 | BO29: =($BE$11-$BE$10)/1000 -> 1 | BP29: =($BE$16-$BE$17)/1000 -> 0 | BQ29: =($BE$12-$BE$13)/1000 -> 0 | BR29: =$BF$16/1000 -> 2.5 | BS29: =$BF$13/1000 -> 2.5 | BT29: =IF($BG$10=1000000,FALSE,TRUE) -> TRUE | BU29: =BV19 -> 0.5 | BV29: =IF(BT29,0.5*$BF$21/1000,IF(AND(Makro!$D$5,Makro!$A$4=1),$BC$80,0)) -> 0.35 | BW29: =BE105 -> 0 | BX29: =BE110/M16 -> 0.3333333333 | BY29: =BE112/M16 -> 0.3333333333 | BZ29: =BP29+BR29/6 -> 0.4166666667 | CA29: =BQ29+BS29/6 -> 0.4166666667
N30: (kN/m) | O30: (kN/m) | P30: (kN/m) | Q30: (kN) | R30: (kN) | S30: (kN/m2) | AQ30: =Makro!D3 -> TRUE | AR30: FALSE | AT30: FALSE | AV30: TRUE | AX30: TRUE | AZ30: FALSE | BB30: TRUE | BD30: TRUE | BF30: FALSE | BJ30: Lasttilfælde | BK30: =K31 -> A | BL30: =BL29 -> 0 | BM30: =BM29 -> 0.15 | BN30: =BN29 -> 3 | BO30: =BO29 -> 1 | BP30: =BP29 -> 0 | BQ30: =BQ29 -> 0 | BR30: =BR29 -> 2.5 | BS30: =BS29 -> 2.5 | BT30: =BT29 -> TRUE | BU30: =BU29 -> 0.5 | BV30: 0.35 | BW30: =BW29 -> 0 | BX30: =BX29 -> 0.3333333333 | BY30: =BY29 -> 0.3333333333 | BZ30: =BZ29 -> 0.4166666667 | CA30: =CA29 -> 0.4166666667 | CB30: =CB20 -> 0.159 | CC30: =CC20 -> 0.01534591195 | CD30: =CF20 -> 0.0795 | CE30: =CG20 -> 0.01534591195 | CF30: =IF(BT30,BV30*CB30,BC84/1000) -> 0.05565 | CG30: =IF(BT30,CC30,BD84/1000) -> 0.01534591195 | CH30: =CH20 -> 0.00094 | CI30: =0.125*CH30*BN30^2 -> 0.0010575 | CJ30: =IF(BZ30+CA30<=BO30,BZ30,MIN(IF(CD30=0,0,BO30*CD30/(CD30+CF30)),BZ30)) -> 0.4166666667 | CK30: =BO30-CJ30-CL30 -> 0.1666666667 | CL30: =IF(BZ30+CA30<=BO30,CA30,MIN(IF(CF30=0,0,BO30*CF30/(CD30+CF30)),CA30)) -> 0.4166666667 | CM30: =IF(CJ30=0,0,CB30+CD30/CJ30) -> 0.3498 | CN30: =IF(BT20,IF(CJ30=0,CC30*CB30,CC30*CB30+CE30*CD30/CJ30)+CI30+IF(BW30=0,CH30*BU30*BN30*IF(BX30>1,0.27,BX30^-1/8-29*BX30^2/800+141*BX30/800)+CH30*BV30*BN30*IF(BY30>1.5,0,BY30^-1/8+2*BY30^2/27-BY30/6),IF(BX30<0.2,CH30*BU30*BN30*0.6*BX30,CH30*BU30*BN30*IF(BX30<1,(1125*BX30^3-3225*BX30^2+3075*BX30-111)/3200,0.27))),0) -> 0.007354823457 | CO30: =CM30/($BM30)-6*($BL30/($BL30-CM30))*(CN30/$BM30^2) -> 2.332 | CP30: =CM30/($BM30)+6*($BL30/($BL30-CM30))*(CN30/$BM30^2) -> 2.332 | CQ30: =IF(CK30=0,CM30,CB30) -> 0.159 | CR30: =IF(CK30=0,CN30,CC30*CB30+CI30+IF(BW30=0,CH30*(BU30+BV30)/BO30,0)) -> 0.0042965 | CS30: =CQ30/($BM30)-6*($BL30/($BL30-CQ30))*(CR30/$BM30^2) -> 1.06 | CT30: =CQ30/($BM30)+6*($BL30/($BL30-CQ30))*(CR30/$BM30^2) -> 1.06 | CU30: =IF(CL30=0,0,CB30+CF30/CL30) -> 0.29256 | CV30: =IF(BT20,IF(CL30=0,CC30*CB30,CC30*CB30+CF30*CG30/CL30)+CI30+IF(BW30=0,CH30*BV30*BN30*IF(BY30>1,0.27,BY30^-1/8-29*BY30^2/800+141*BY30/800)+CH30*BU30*BN30*IF(BX30>1.5,0,BX30^-1/8+2*BX30^2/27-BX30/6),IF(BY30<0.2,CH30*BV30*BN30*0.6*BY30,CH30*BV30*BN30*IF(BY30<1,(1125*BY30^3-3225*BY30^2+3075*BY30-111)/3200,0.27))),0) -> 0.006433257438 | CW30: =CU30/($BM30)-6*($BL30/($BL30-CU30))*(CV30/$BM30^2) -> 1.9504 | CX30: =CU30/($BM30)+6*($BL30/($BL30-CU30))*(CV30/$BM30^2) -> 1.9504
K31: A | L31: Med maksimal vind | N31: =INDEX(Laste,ROW()-30+9*(2-Makro!$A$2),1) -> 6 | O31: =INDEX(Laste,ROW()-30+9*(2-Makro!$A$2),2) -> 150 | P31: =INDEX(Laste,ROW()-30+9*(2-Makro!$A$2),3) -> 3 | Q31: 12 | R31: 15 | S31: 0.94 | AQ31: =Makro!D4 -> TRUE | AR31: FALSE | AT31: FALSE | AV31: FALSE | AX31: TRUE | AZ31: TRUE | BB31: FALSE | BD31: TRUE | BF31: TRUE | BK31: B | BL31: =BL30 -> 0 | BM31: 0.15 | BN31: =BN30 -> 3 | BO31: =BO30 -> 1 | BP31: 0 | BQ31: 0 | BR31: 2.5 | BS31: 2.5 | BT31: TRUE | BU31: 0.5 | BV31: 0.35 | BW31: 0 | BX31: 0.3333333333 | BY31: 0.3333333333 | BZ31: 0.4166666667 | CA31: 0.4166666667 | CB31: 0.162 | CC31: 0.01577160494 | CD31: =CF21 -> 0.081 | CE31: =CG21 -> 0.01577160494 | CF31: 0.0567 | CG31: 0.01577160494 | CH31: 0.00094 | CI31: 0.0010575 | CJ31: =IF(BZ31+CA31<=BO31,BZ31,MIN(IF(CD31=0,0,BO31*CD31/(CD31+CF31)),BZ31)) -> 0.4166666667 | CK31: 0.1666666667 | CL31: =IF(BZ31+CA31<=BO31,CA31,MIN(IF(CF31=0,0,BO31*CF31/(CD31+CF31)),CA31)) -> 0.4166666667 | CM31: =IF(CJ31=0,0,CB31+CD31/CJ31) -> 0.3564 | CN31: =IF(BT21,IF(CJ31=0,CC31*CB31,CC31*CB31+CE31*CD31/CJ31)+CI31+IF(BW31=0,CH31*BU31*BN31*IF(BX31>1,0.27,BX31^-1/8-29*BX31^2/800+141*BX31/800)+CH31*BV31*BN31*IF(BY31>1.5,0,BY31^-1/8+2*BY31^2/27-BY31/6),IF(BX31<0.2,CH31*BU31*BN31*0.6*BX31,CH31*BU31*BN31*IF(BX31<1,(1125*BX31^3-3225*BX31^2+3075*BX31-111)/3200,0.27))),0) -> 0.007607823457 | CO31: =CM31/($BM31)-6*($BL31/($BL31-CM31))*(CN31/$BM31^2) -> 2.376 | CP31: =CM31/($BM31)+6*($BL31/($BL31-CM31))*(CN31/$BM31^2) -> 2.376 | CQ31: =IF(CK31=0,CM31,CB31) -> 0.162 | CR31: =IF(CK31=0,CN31,CC31*CB31+CI31+IF(BW31=0,CH31*(BU31+BV31)/BO31,0)) -> 0.0044115 | CS31: =CQ31/($BM31)-6*($BL31/($BL31-CQ31))*(CR31/$BM31^2) -> 1.08 | CT31: =CQ31/($BM31)+6*($BL31/($BL31-CQ31))*(CR31/$BM31^2) -> 1.08 | CU31: =IF(CL31=0,0,CB31+CF31/CL31) -> 0.29808 | CV31: =IF(BT21,IF(CL31=0,CC31*CB31,CC31*CB31+CF31*CG31/CL31)+CI31+IF(BW31=0,CH31*BV31*BN31*IF(BY31>1,0.27,BY31^-1/8-29*BY31^2/800+141*BY31/800)+CH31*BU31*BN31*IF(BX31>1.5,0,BX31^-1/8+2*BX31^2/27-BX31/6),IF(BY31<0.2,CH31*BV31*BN31*0.6*BY31,CH31*BV31*BN31*IF(BY31<1,(1125*BY31^3-3225*BY31^2+3075*BY31-111)/3200,0.27))),0) -> 0.006644857438 | CW31: =CU31/($BM31)-6*($BL31/($BL31-CU31))*(CV31/$BM31^2) -> 1.9872 | CX31: =CU31/($BM31)+6*($BL31/($BL31-CU31))*(CV31/$BM31^2) -> 1.9872
K32: B | N32: =INDEX(Laste,ROW()-30+9*(2-Makro!$A$2),1) -> 9 | O32: =INDEX(Laste,ROW()-30+9*(2-Makro!$A$2),2) -> 150 | P32: =INDEX(Laste,ROW()-30+9*(2-Makro!$A$2),3) -> 3 | Q32: 13 | R32: 16 | S32: =S31 -> 0.94 | AQ32: =Makro!D5 -> TRUE | AR32: =IF(AND(AR29=$AQ29,AR30=$AQ30,AR31=$AQ31),AR28,1000) -> 1000 | AT32: =IF(AND(AT29=$AQ29,AT30=$AQ30,AT31=$AQ31),AT28,1000) -> 1000 | AV32: 1000 | AX32: 4 | AZ32: 1000 | BB32: 1000 | BD32: 1000 | BF32: 1000 | BK32: C | BL32: 0 | BM32: 0.15 | BN32: 3 | BO32: 1 | BP32: 0 | BQ32: 0 | BR32: 2.5 | BS32: 2.5 | BT32: TRUE | BU32: 0.5 | BV32: 0.35 | BW32: 0 | BX32: 0.3333333333 | BY32: 0.3333333333 | BZ32: 0.4166666667 | CA32: 0.4166666667 | CB32: 0.202 | CC32: 0.01561881188 | CD32: 0.101 | CE32: 0.01561881188 | CF32: 0.0707 | CG32: 0.01561881188 | CH32: 0.00094 | CI32: 0.0010575 | CJ32: 0.4166666667 | CK32: 0.1666666667 | CL32: 0.4166666667 | CM32: 0.4444 | CN32: 0.008927823457 | CO32: 2.962666667 | CP32: 2.962666667 | CQ32: 0.202 | CR32: 0.0050115 | CS32: 1.346666667 | CT32: 1.346666667 | CU32: 0.37168 | CV32: 0.007748857438 | CW32: 2.477866667 | CX32: 2.477866667
K33: C | N33: =INDEX(Laste,ROW()-30+9*(2-Makro!$A$2),1) -> 9 | O33: =INDEX(Laste,ROW()-30+9*(2-Makro!$A$2),2) -> 190 | P33: =INDEX(Laste,ROW()-30+9*(2-Makro!$A$2),3) -> 3 | Q33: 13 | R33: 16 | S33: =S32 -> 0.94 | BK33: D | BL33: 0 | BM33: 0.15 | BN33: 3 | BO33: 1 | BP33: 0 | BQ33: 0 | BR33: 2.5 | BS33: 2.5 | BT33: TRUE | BU33: 0.5 | BV33: 0.35 | BW33: 0 | BX33: 0.3333333333 | BY33: 0.3333333333 | BZ33: 0.4166666667 | CA33: 0.4166666667 | CB33: 0.209 | CC33: 0.01464912281 | CD33: 0.1045 | CE33: 0.01464912281 | CF33: 0.07315 | CG33: 0.01464912281 | CH33: 0.00094 | CI33: 0.0010575 | CJ33: 0.4166666667 | CK33: 0.1666666667 | CL33: 0.4166666667 | CM33: 0.4598 | CN33: 0.008722490123 | CO33: 3.065333333 | CP33: 3.065333333 | CQ33: 0.209 | CR33: 0.004918166667 | CS33: 1.393333333 | CT33: 1.393333333 | CU33: 0.38456 | CV33: 0.007577124105 | CW33: 2.563733333 | CX33: 2.563733333
K34: D | N34: =INDEX(Laste,ROW()-30+9*(2-Makro!$A$2),1) -> 9 | O34: =INDEX(Laste,ROW()-30+9*(2-Makro!$A$2),2) -> 190 | P34: =INDEX(Laste,ROW()-30+9*(2-Makro!$A$2),3) -> 10 | Q34: 13 | R34: 16 | S34: =S33 -> 0.94 | BK34: E | BL34: 0 | BM34: 0.15 | BN34: 3 | BO34: 1 | BP34: 0 | BQ34: 0 | BR34: 2.5 | BS34: 2.5 | BT34: TRUE | BU34: 0.5 | BV34: 0.35 | BW34: 0 | BX34: 0.3333333333 | BY34: 0.3333333333 | BZ34: 0.4166666667 | CA34: 0.4166666667 | CB34: 0.166 | CC34: 0.01631526104 | CD34: 0.083 | CE34: 0.01631526104 | CF34: 0.0581 | CG34: 0.01631526104 | CH34: 0.00047 | CI34: 0.00052875 | CJ34: 0.4166666667 | CK34: 0.1666666667 | CL34: 0.4166666667 | CM34: 0.3652 | CN34: 0.006951745062 | CO34: 2.434666667 | CP34: 2.434666667 | CQ34: 0.166 | CR34: 0.003636583333 | CS34: 1.106666667 | CT34: 1.106666667 | CU34: 0.30544 | CV34: 0.005955162052 | CW34: 2.036266667 | CX34: 2.036266667
K35: E | L35: Med reduceret vind | N35: =INDEX(Laste,ROW()-30+9*(2-Makro!$A$2),1) -> 13 | O35: =INDEX(Laste,ROW()-30+9*(2-Makro!$A$2),2) -> 150 | P35: =INDEX(Laste,ROW()-30+9*(2-Makro!$A$2),3) -> 3 | Q35: 13 | R35: 16 | S35: 0.47 | BK35: F | BL35: 0 | BM35: 0.15 | BN35: 3 | BO35: 1 | BP35: 0 | BQ35: 0 | BR35: 2.5 | BS35: 2.5 | BT35: TRUE | BU35: 0.5 | BV35: 0.35 | BW35: 0 | BX35: 0.3333333333 | BY35: 0.3333333333 | BZ35: 0.4166666667 | CA35: 0.4166666667 | CB35: 0.206 | CC35: 0.01605987055 | CD35: 0.103 | CE35: 0.01605987055 | CF35: 0.0721 | CG35: 0.01605987055 | CH35: 0.00047 | CI35: 0.00052875 | CJ35: 0.4166666667 | CK35: 0.1666666667 | CL35: 0.4166666667 | CM35: 0.4532 | CN35: 0.008271745062 | CO35: 3.021333333 | CP35: 3.021333333 | CQ35: 0.206 | CR35: 0.004236583333 | CS35: 1.373333333 | CT35: 1.373333333 | CU35: 0.37904 | CV35: 0.007059162052 | CW35: 2.526933333 | CX35: 2.526933333
K36: F | N36: =INDEX(Laste,ROW()-30+9*(2-Makro!$A$2),1) -> 13 | O36: =INDEX(Laste,ROW()-30+9*(2-Makro!$A$2),2) -> 190 | P36: =INDEX(Laste,ROW()-30+9*(2-Makro!$A$2),3) -> 3 | Q36: 13 | R36: 16 | S36: =S35 -> 0.47 | BK36: G | BL36: 0 | BM36: 0.15 | BN36: 3 | BO36: 1 | BP36: 0 | BQ36: 0 | BR36: 2.5 | BS36: 2.5 | BT36: TRUE | BU36: 0.5 | BV36: 0.35 | BW36: 0 | BX36: 0.3333333333 | BY36: 0.3333333333 | BZ36: 0.4166666667 | CA36: 0.4166666667 | CB36: 0.23 | CC36: 0.01299275362 | CD36: 0.115 | CE36: 0.01299275362 | CF36: 0.0805 | CG36: 0.01299275362 | CH36: 0.00047 | CI36: 0.00052875 | CJ36: 0.4166666667 | CK36: 0.1666666667 | CL36: 0.4166666667 | CM36: 0.506 | CN36: 0.007567745062 | CO36: 3.373333333 | CP36: 3.373333333 | CQ36: 0.23 | CR36: 0.003916583333 | CS36: 1.533333333 | CT36: 1.533333333 | CU36: 0.4232 | CV36: 0.006470362052 | CW36: 2.821333333 | CX36: 2.821333333
K37: G | N37: =INDEX(Laste,ROW()-30+9*(2-Makro!$A$2),1) -> 13 | O37: =INDEX(Laste,ROW()-30+9*(2-Makro!$A$2),2) -> 190 | P37: =INDEX(Laste,ROW()-30+9*(2-Makro!$A$2),3) -> 27 | Q37: 13 | R37: 16 | S37: =S36 -> 0.47 | AR37: x | AS37: y | AT37: x | AU37: y | AV37: x | AW37: y | AX37: x | AY37: y | AZ37: x | BA37: y | BB37: x | BC37: y | BD37: x | BE37: y | BF37: x | BG37: y | BK37: H | BL37: 0 | BM37: 0.15 | BN37: 3 | BO37: 1 | BP37: 0 | BQ37: 0 | BR37: 2.5 | BS37: 2.5 | BT37: TRUE | BU37: 0.5 | BV37: 0.35 | BW37: 0 | BX37: 0.3333333333 | BY37: 0.3333333333 | BZ37: 0.4166666667 | CA37: 0.4166666667 | CB37: 0.216 | CC37: 0.01601080247 | CD37: 0.108 | CE37: 0.01601080247 | CF37: 0.0756 | CG37: 0.01601080247 | CH37: 0.00047 | CI37: 0.00052875 | CJ37: 0.4166666667 | CK37: 0.1666666667 | CL37: 0.4166666667 | CM37: 0.4752 | CN37: 0.008601745062 | CO37: 3.168 | CP37: 3.168 | CQ37: 0.216 | CR37: 0.004386583333 | CS37: 1.44 | CT37: 1.44 | CU37: 0.39744 | CV37: 0.007335162052 | CW37: 2.6496 | CX37: 2.6496
K38: H | N38: =INDEX(Laste,ROW()-30+9*(2-Makro!$A$2),1) -> 13 | O38: =INDEX(Laste,ROW()-30+9*(2-Makro!$A$2),2) -> 200 | P38: =INDEX(Laste,ROW()-30+9*(2-Makro!$A$2),3) -> 3 | Q38: 13 | R38: 16 | S38: =S37 -> 0.47 | U38: NB: Resultaterne skal altid kontrolleres af ansvarlig statiker | AL38: VÆGFELT: | AM38: 1 | AR38: =AS10 -> 0 | AS38: =AT10 -> 0 | AT38: =AS10 -> 0 | AU38: =AT10 -> 0 | AV38: =AT38 -> 0 | AW38: =AU38 -> 0 | AX38: =AT38 -> 0 | AY38: =AU38 -> 0 | AZ38: =AT38 -> 0 | BA38: =AU38 -> 0 | BB38: =AT38 -> 0 | BC38: =AU38 -> 0 | BD38: =BB38 -> 0 | BE38: =BC38 -> 0 | BF38: =BD38 -> 0 | BG38: =BE38 -> 0 | BK38: I | BL38: 0 | BM38: 0.15 | BN38: 3 | BO38: 1 | BP38: 0 | BQ38: 0 | BR38: 2.5 | BS38: 2.5 | BT38: TRUE | BU38: 0.5 | BV38: 0.35 | BW38: 0 | BX38: 0.3333333333 | BY38: 0.3333333333 | BZ38: 0.4166666667 | CA38: 0.4166666667 | CB38: 0.24 | CC38: 0.01307638889 | CD38: 0.12 | CE38: 0.01307638889 | CF38: 0.084 | CG38: 0.01307638889 | CH38: 0.00047 | CI38: 0.00052875 | CJ38: 0.4166666667 | CK38: 0.1666666667 | CL38: 0.4166666667 | CM38: 0.528 | CN38: 0.007897745062 | CO38: 3.52 | CP38: 3.52 | CQ38: 0.24 | CR38: 0.004066583333 | CS38: 1.6 | CT38: 1.6 | CU38: 0.4416 | CV38: 0.006746362052 | CW38: 2.944 | CX38: 2.944
K39: I | N39: =INDEX(Laste,ROW()-30+9*(2-Makro!$A$2),1) -> 13 | O39: =INDEX(Laste,ROW()-30+9*(2-Makro!$A$2),2) -> 200 | P39: =INDEX(Laste,ROW()-30+9*(2-Makro!$A$2),3) -> 27 | Q39: 13 | R39: 16 | S39: =S38 -> 0.47 | AR39: =AS15 -> 7000 | AS39: 0 | AT39: =AW10 -> 1000 | AU39: =AU38 -> 0 | AV39: 1000 | AW39: 0 | AX39: 1000 | AY39: 0 | AZ39: 1000 | BA39: 0 | BB39: =AS11 -> 3500 | BC39: =AU39 -> 0 | BD39: 3500 | BE39: 0 | BF39: =AU10 -> 5500 | BG39: 0 | BJ39: Felt 4 | BL39: =$AC$13/1000 -> 0 | BM39: =$M$18/1000 -> 0.15 | BN39: =$BG$107/1000 -> 3 | BO39: =($BG$11-$BG$10)/1000 -> 0.8 | BP39: =($BG$16-$BG$17)/1000 -> 0 | BQ39: =($BG$12-$BG$13)/1000 -> 0 | BR39: =$BH$16/1000 -> 2.5 | BS39: =$BH$13/1000 -> 3 | BT39: FALSE | BU39: =BV29 -> 0.35 | BV39: =IF(AND(Makro!$D$5,Makro!$A$4=1),$BC$80,0) -> 0 | BW39: =BG105 -> 0 | BX39: =BG110/M16 -> 0.2666666667 | BY39: =BG112/M16 -> 0.2666666667 | BZ39: =BP39+BR39/6 -> 0.4166666667 | CA39: =BQ39+BS39/6 -> 0.5
K40: Excentricitet, top (mm): | N40: 50 | O40: 15 | P40: 40 | Q40: 40 | R40: 40 | AR40: 7000 | AS40: 3000 | AT40: =AT39 -> 1000 | AU40: =AX13 -> 2500 | AV40: 1000 | AW40: 2500 | AX40: 1000 | AY40: 2500 | AZ40: 1000 | BA40: 2500 | BB40: =BB39 -> 3500 | BC40: =AT12 -> 2500 | BD40: 3500 | BE40: 2500 | BF40: =BF39 -> 5500 | BG40: =AV13 -> 2500 | BJ40: Lasttilfælde | BK40: =K31 -> A | BL40: =BL39 -> 0 | BM40: =BM39 -> 0.15 | BN40: =BN39 -> 3 | BO40: =BO39 -> 0.8 | BP40: =BP39 -> 0 | BQ40: =BQ39 -> 0 | BR40: =BR39 -> 2.5 | BS40: =BS39 -> 3 | BT40: =BT39 -> FALSE | BU40: =BU39 -> 0.35 | BV40: =BV39 -> 0 | BW40: =BW39 -> 0 | BX40: =BX39 -> 0.2666666667 | BY40: =BY39 -> 0.2666666667 | BZ40: =BZ39 -> 0.4166666667 | CA40: =CA39 -> 0.5 | CB40: =CB30 -> 0.159 | CC40: =CC30 -> 0.01534591195 | CD40: =CF30 -> 0.05565 | CE40: =CG30 -> 0.01534591195 | CF40: =BC84/1000 -> 0 | CG40: =BD84/1000 ->  | CH40: =CH30 -> 0.00094 | CI40: =0.125*CH40*BN40^2 -> 0.0010575 | CJ40: =IF(BZ40+CA40<=BO40,BZ40,MIN(IF(CD40=0,0,BO40*CD40/(CD40+CF40)),BZ40)) -> 0.4166666667 | CK40: =BO40-CJ40-CL40 -> 0.3833333333 | CL40: =IF(BZ40+CA40<=BO40,CA40,MIN(IF(CF40=0,0,BO40*CF40/(CD40+CF40)),CA40)) -> 0 | CM40: =IF(CJ40=0,0,CB40+CD40/CJ40) -> 0.29256 | CN40: =IF(BT30,IF(CJ40=0,CC40*CB40,CC40*CB40+CE40*CD40/CJ40)+CI40+IF(BW40=0,CH40*BU40*BN40*IF(BX40>1,0.27,BX40^-1/8-29*BX40^2/800+141*BX40/800)+CH40*BV40*BN40*IF(BY40>1.5,0,BY40^-1/8+2*BY40^2/27-BY40/6),IF(BX40<0.2,CH40*BU40*BN40*0.6*BX40,CH40*BU40*BN40*IF(BX40<1,(1125*BX40^3-3225*BX40^2+3075*BX40-111)/3200,0.27))),0) -> 0.006053600983 | CO40: =CM40/($BM40)-6*($BL40/($BL40-CM40))*(CN40/$BM40^2) -> 1.9504 | CP40: =CM40/($BM40)+6*($BL40/($BL40-CM40))*(CN40/$BM40^2) -> 1.9504 | CQ40: =IF(CK40=0,CM40,CB40) -> 0.159 | CR40: =IF(CK40=0,CN40,CC40*CB40+CI40+IF(BW40=0,CH40*(BU40+BV40)/BO40,0)) -> 0.00390875 | CS40: =CQ40/($BM40)-6*($BL40/($BL40-CQ40))*(CR40/$BM40^2) -> 1.06 | CT40: =CQ40/($BM40)+6*($BL40/($BL40-CQ40))*(CR40/$BM40^2) -> 1.06 | CU40: =IF(CL40=0,0,CB40+CF40/CL40) -> 0 | CV40: =IF(BT30,IF(CL40=0,CC40*CB40,CC40*CB40+CF40*CG40/CL40)+CI40+IF(BW40=0,CH40*BV40*BN40*IF(BY40>1,0.27,BY40^-1/8-29*BY40^2/800+141*BY40/800)+CH40*BU40*BN40*IF(BX40>1.5,0,BX40^-1/8+2*BX40^2/27-BX40/6),IF(BY40<0.2,CH40*BV40*BN40*0.6*BY40,CH40*BV40*BN40*IF(BY40<1,(1125*BY40^3-3225*BY40^2+3075*BY40-111)/3200,0.27))),0) -> 0.003921488596 | CW40: =CU40/($BM40)-6*($BL40/($BL40-CU40))*(CV40/$BM40^2) ->  | CX40: =CU40/($BM40)+6*($BL40/($BL40-CU40))*(CV40/$BM40^2) -> 
K41: Excentricitet, eff. (mm) : | N41: =2*N40/3+$O$40/3 -> 38.33333333 | O41: =2*O40/3+$O$40/3 -> 15 | P41: =2*P40/3-$P$40/3 -> 13.33333333 | R41: =2*R40/3+$AC$11 -> 26.66666667 | U41: Vejledning: | V41: Betonelementbyggeriers statik | AR41: 7000 | AS41: 3000 | AT41: =AT40-$AP$20 -> 1000 | AU41: =AU40 -> 2500 | AV41: 1000 | AW41: 2500 | AX41: 1000 | AY41: 2500 | AZ41: 1000 | BA41: 2500 | BB41: =BB40-$AP$20 -> 3500 | BC41: =BC40 -> 2500 | BD41: 3500 | BE41: 2500 | BF41: =BF40-$AP$20 -> 5500 | BG41: =BG40 -> 2500 | BK41: B | BL41: =BL40 -> 0 | BM41: 0.15 | BN41: =BN40 -> 3 | BO41: =BO40 -> 0.8 | BP41: 0 | BQ41: 0 | BR41: 2.5 | BS41: 3 | BT41: FALSE | BU41: 0.35 | BV41: 0 | BW41: 0 | BX41: 0.2666666667 | BY41: 0.2666666667 | BZ41: 0.4166666667 | CA41: 0.5 | CB41: 0.162 | CC41: 0.01577160494 | CD41: =CF31 -> 0.0567 | CE41: =CG31 -> 0.01577160494 | CF41: =BC85/1000 -> 0 | CG41: =BD85/1000 ->  | CH41: 0.00094 | CI41: 0.0010575 | CJ41: =IF(BZ41+CA41<=BO41,BZ41,MIN(IF(CD41=0,0,BO41*CD41/(CD41+CF41)),BZ41)) -> 0.4166666667 | CK41: 0.3833333333 | CL41: =IF(BZ41+CA41<=BO41,CA41,MIN(IF(CF41=0,0,BO41*CF41/(CD41+CF41)),CA41)) -> 0 | CM41: =IF(CJ41=0,0,CB41+CD41/CJ41) -> 0.29808 | CN41: =IF(BT31,IF(CJ41=0,CC41*CB41,CC41*CB41+CE41*CD41/CJ41)+CI41+IF(BW41=0,CH41*BU41*BN41*IF(BX41>1,0.27,BX41^-1/8-29*BX41^2/800+141*BX41/800)+CH41*BV41*BN41*IF(BY41>1.5,0,BY41^-1/8+2*BY41^2/27-BY41/6),IF(BX41<0.2,CH41*BU41*BN41*0.6*BX41,CH41*BU41*BN41*IF(BX41<1,(1125*BX41^3-3225*BX41^2+3075*BX41-111)/3200,0.27))),0) -> 0.006265200983 | CO41: =CM41/($BM41)-6*($BL41/($BL41-CM41))*(CN41/$BM41^2) -> 1.9872 | CP41: =CM41/($BM41)+6*($BL41/($BL41-CM41))*(CN41/$BM41^2) -> 1.9872 | CQ41: =IF(CK41=0,CM41,CB41) -> 0.162 | CR41: =IF(CK41=0,CN41,CC41*CB41+CI41+IF(BW41=0,CH41*(BU41+BV41)/BO41,0)) -> 0.00402375 | CS41: =CQ41/($BM41)-6*($BL41/($BL41-CQ41))*(CR41/$BM41^2) -> 1.08 | CT41: =CQ41/($BM41)+6*($BL41/($BL41-CQ41))*(CR41/$BM41^2) -> 1.08 | CU41: =IF(CL41=0,0,CB41+CF41/CL41) -> 0 | CV41: =IF(BT31,IF(CL41=0,CC41*CB41,CC41*CB41+CF41*CG41/CL41)+CI41+IF(BW41=0,CH41*BV41*BN41*IF(BY41>1,0.27,BY41^-1/8-29*BY41^2/800+141*BY41/800)+CH41*BU41*BN41*IF(BX41>1.5,0,BX41^-1/8+2*BX41^2/27-BX41/6),IF(BY41<0.2,CH41*BV41*BN41*0.6*BY41,CH41*BV41*BN41*IF(BY41<1,(1125*BY41^3-3225*BY41^2+3075*BY41-111)/3200,0.27))),0) -> 0.004036488596 | CW41: =CU41/($BM41)-6*($BL41/($BL41-CU41))*(CV41/$BM41^2) ->  | CX41: =CU41/($BM41)+6*($BL41/($BL41-CU41))*(CV41/$BM41^2) -> 
AR42: 7000 | AS42: 3000 | AT42: =AT41 -> 1000 | AU42: =AS42 -> 3000 | AV42: 1000 | AW42: 3000 | AX42: 1000 | AY42: 3000 | AZ42: 1000 | BA42: 3000 | BB42: =BB41 -> 3500 | BC42: =AU42 -> 3000 | BD42: 3500 | BE42: 3000 | BF42: =BF41 -> 5500 | BG42: 3000 | BK42: C | BL42: 0 | BM42: 0.15 | BN42: 3 | BO42: 0.8 | BP42: 0 | BQ42: 0 | BR42: 2.5 | BS42: 3 | BT42: FALSE | BU42: 0.35 | BV42: 0 | BW42: 0 | BX42: 0.2666666667 | BY42: 0.2666666667 | BZ42: 0.4166666667 | CA42: 0.5 | CB42: 0.202 | CC42: 0.01561881188 | CD42: 0.0707 | CE42: 0.01561881188 | CF42: 0 | CH42: 0.00094 | CI42: 0.0010575 | CJ42: 0.4166666667 | CK42: 0.3833333333 | CL42: 0 | CM42: 0.37168 | CN42: 0.007369200983 | CO42: 2.477866667 | CP42: 2.477866667 | CQ42: 0.202 | CR42: 0.00462375 | CS42: 1.346666667 | CT42: 1.346666667 | CU42: 0 | CV42: 0.004636488596
AR43: 150 | AS43: 3000 | AT43: =AR43 -> 150 | AU43: =AS43 -> 3000 | AV43: 150 | AW43: 3000 | AX43: 150 | AY43: 3000 | AZ43: 150 | BA43: 3000 | BB43: =AT43 -> 150 | BC43: 3000 | BD43: 150 | BE43: 3000 | BF43: =BD43 -> 150 | BG43: 3000 | BK43: D | BL43: 0 | BM43: 0.15 | BN43: 3 | BO43: 0.8 | BP43: 0 | BQ43: 0 | BR43: 2.5 | BS43: 3 | BT43: FALSE | BU43: 0.35 | BV43: 0 | BW43: 0 | BX43: 0.2666666667 | BY43: 0.2666666667 | BZ43: 0.4166666667 | CA43: 0.5 | CB43: 0.209 | CC43: 0.01464912281 | CD43: 0.07315 | CE43: 0.01464912281 | CF43: 0 | CH43: 0.00094 | CI43: 0.0010575 | CJ43: 0.4166666667 | CK43: 0.3833333333 | CL43: 0 | CM43: 0.38456 | CN43: 0.00719746765 | CO43: 2.563733333 | CP43: 2.563733333 | CQ43: 0.209 | CR43: 0.004530416667 | CS43: 1.393333333 | CT43: 1.393333333 | CU43: 0 | CV43: 0.004543155262
AR44: 150 | AS44: 2500 | AT44: =AR44 -> 150 | AU44: =AS44 -> 2500 | AV44: 150 | AW44: 2500 | AX44: 150 | AY44: 2500 | AZ44: 150 | BA44: 2500 | BB44: =AT44 -> 150 | BC44: 2500 | BD44: 150 | BE44: 2500 | BF44: =BD44 -> 150 | BG44: 2500 | BK44: E | BL44: 0 | BM44: 0.15 | BN44: 3 | BO44: 0.8 | BP44: 0 | BQ44: 0 | BR44: 2.5 | BS44: 3 | BT44: FALSE | BU44: 0.35 | BV44: 0 | BW44: 0 | BX44: 0.2666666667 | BY44: 0.2666666667 | BZ44: 0.4166666667 | CA44: 0.5 | CB44: 0.166 | CC44: 0.01631526104 | CD44: 0.0581 | CE44: 0.01631526104 | CF44: 0 | CH44: 0.00047 | CI44: 0.00052875 | CJ44: 0.4166666667 | CK44: 0.3833333333 | CL44: 0 | CM44: 0.30544 | CN44: 0.005765333825 | CO44: 2.036266667 | CP44: 2.036266667 | CQ44: 0.166 | CR44: 0.003442708333 | CS44: 1.106666667 | CT44: 1.106666667 | CU44: 0 | CV44: 0.003449077631
AR45: 0 | AS45: 2500 | AT45: =AR45 -> 0 | AU45: =AS45 -> 2500 | AV45: 0 | AW45: 2500 | AX45: 0 | AY45: 2500 | AZ45: 0 | BA45: 2500 | BB45: =AT45 -> 0 | BC45: 2500 | BD45: 0 | BE45: 2500 | BF45: =BD45 -> 0 | BG45: 2500 | BK45: F | BL45: 0 | BM45: 0.15 | BN45: 3 | BO45: 0.8 | BP45: 0 | BQ45: 0 | BR45: 2.5 | BS45: 3 | BT45: FALSE | BU45: 0.35 | BV45: 0 | BW45: 0 | BX45: 0.2666666667 | BY45: 0.2666666667 | BZ45: 0.4166666667 | CA45: 0.5 | CB45: 0.206 | CC45: 0.01605987055 | CD45: 0.0721 | CE45: 0.01605987055 | CF45: 0 | CH45: 0.00047 | CI45: 0.00052875 | CJ45: =IF(BZ45+CA45<=BO45,BZ45,MIN(IF(CD45=0,0,BO45*CD45/(CD45+CF45)),BZ45)) -> 0.4166666667 | CK45: 0.3833333333 | CL45: 0 | CM45: 0.37904 | CN45: 0.006869333825 | CO45: 2.526933333 | CP45: 2.526933333 | CQ45: 0.206 | CR45: 0.004042708333 | CS45: 1.373333333 | CT45: 1.373333333 | CU45: 0 | CV45: 0.004049077631
AR46: 0 | AS46: 0 | AT46: =AR46 -> 0 | AU46: =AS46 -> 0 | AV46: 0 | AW46: 0 | AX46: 0 | AY46: 0 | AZ46: 0 | BA46: 0 | BB46: =AT46 -> 0 | BC46: 0 | BD46: 0 | BE46: 0 | BF46: =BD46 -> 0 | BG46: 0 | BK46: G | BL46: 0 | BM46: 0.15 | BN46: 3 | BO46: 0.8 | BP46: 0 | BQ46: 0 | BR46: 2.5 | BS46: 3 | BT46: FALSE | BU46: 0.35 | BV46: 0 | BW46: 0 | BX46: 0.2666666667 | BY46: 0.2666666667 | BZ46: 0.4166666667 | CA46: 0.5 | CB46: 0.23 | CC46: 0.01299275362 | CD46: 0.0805 | CE46: 0.01299275362 | CF46: 0 | CH46: 0.00047 | CI46: 0.00052875 | CJ46: 0.4166666667 | CK46: 0.3833333333 | CL46: 0 | CM46: 0.4232 | CN46: 0.006280533825 | CO46: 2.821333333 | CP46: 2.821333333 | CQ46: 0.23 | CR46: 0.003722708333 | CS46: 1.533333333 | CT46: 1.533333333 | CU46: 0 | CV46: 0.003729077631
AL47: VÆGFELT: | AM47: 2 | AR47: 1000000 | AS47: 1000000 | AT47: =AW11 -> 2500 | AU47: 0 | AV47: =AW11 -> 2500 | AW47: 0 | AX47: =AV47 -> 2500 | AY47: =AW47 -> 0 | AZ47: =AW11 -> 2500 | BA47: 0 | BB47: =AS14 -> 4500 | BC47: 0 | BD47: 4500 | BE47: 0 | BF47: =AU11 -> 6200 | BG47: 0 | BK47: H | BL47: 0 | BM47: 0.15 | BN47: 3 | BO47: 0.8 | BP47: 0 | BQ47: 0 | BR47: 2.5 | BS47: 3 | BT47: FALSE | BU47: 0.35 | BV47: 0 | BW47: 0 | BX47: 0.2666666667 | BY47: 0.2666666667 | BZ47: 0.4166666667 | CA47: 0.5 | CB47: 0.216 | CC47: 0.01601080247 | CD47: 0.0756 | CE47: 0.01601080247 | CF47: 0 | CH47: 0.00047 | CI47: 0.00052875 | CJ47: 0.4166666667 | CK47: 0.3833333333 | CL47: 0 | CM47: 0.39744 | CN47: 0.007145333825 | CO47: 2.6496 | CP47: 2.6496 | CQ47: 0.216 | CR47: 0.004192708333 | CS47: 1.44 | CT47: 1.44 | CU47: 0 | CV47: 0.004199077631
AR48: 1000000 | AS48: 1000000 | AT48: =AS15 -> 7000 | AU48: 0 | AV48: =AS11 -> 3500 | AW48: =AT11 -> 0 | AX48: 3500 | AY48: 0 | AZ48: =AU10 -> 5500 | BA48: 0 | BB48: =AT48 -> 7000 | BC48: 0 | BD48: =AZ48 -> 5500 | BE48: 0 | BF48: =AT48 -> 7000 | BG48: 0 | BK48: I | BL48: 0 | BM48: 0.15 | BN48: 3 | BO48: 0.8 | BP48: 0 | BQ48: 0 | BR48: 2.5 | BS48: 3 | BT48: FALSE | BU48: 0.35 | BV48: 0 | BW48: 0 | BX48: 0.2666666667 | BY48: 0.2666666667 | BZ48: 0.4166666667 | CA48: 0.5 | CB48: 0.24 | CC48: 0.01307638889 | CD48: 0.084 | CE48: 0.01307638889 | CF48: 0 | CH48: 0.00047 | CI48: 0.00052875 | CJ48: 0.4166666667 | CK48: 0.3833333333 | CL48: 0 | CM48: 0.4416 | CN48: 0.006556533825 | CO48: 2.944 | CP48: 2.944 | CQ48: 0.24 | CR48: 0.003872708333 | CS48: 1.6 | CT48: 1.6 | CU48: 0 | CV48: 0.003879077631
AR49: 1000000 | AS49: 1000000 | AT49: 7000 | AU49: 3000 | AV49: =AV48 -> 3500 | AW49: =AT12 -> 2500 | AX49: 3500 | AY49: 2500 | AZ49: =AZ48 -> 5500 | BA49: =AV13 -> 2500 | BB49: 7000 | BC49: 3000 | BD49: 5500 | BE49: 2500 | BF49: 7000 | BG49: 3000
AR50: 1000000 | AS50: 1000000 | AT50: 7000 | AU50: 3000 | AV50: =AV49-$AP$20 -> 3500 | AW50: =AW49 -> 2500 | AX50: 3500 | AY50: 2500 | AZ50: =AZ49-$AP$20 -> 5500 | BA50: =BA49 -> 2500 | BB50: 7000 | BC50: 3000 | BD50: 5500 | BE50: 2500 | BF50: 7000 | BG50: 3000
AR51: 1000000 | AS51: 1000000 | AT51: 7000 | AU51: 3000 | AV51: =AV50 -> 3500 | AW51: =AU51 -> 3000 | AX51: 3500 | AY51: 3000 | AZ51: =AZ50 -> 5500 | BA51: =AY51 -> 3000 | BB51: 7000 | BC51: 3000 | BD51: 5500 | BE51: 3000 | BF51: 7000 | BG51: 3000
AR52: 1000000 | AS52: 1000000 | AT52: =AT47+$AP$20 -> 2500 | AU52: =AU51 -> 3000 | AV52: =AT52 -> 2500 | AW52: =AU52 -> 3000 | AX52: 2500 | AY52: 3000 | AZ52: =AT52 -> 2500 | BA52: 3000 | BB52: =AS13+$AP$20 -> 4500 | BC52: =BC51 -> 3000 | BD52: =BB52 -> 4500 | BE52: 3000 | BF52: =BF47+$AP$20 -> 6200 | BG52: =BG51 -> 3000 | CO52: Venstre | CS52: Midt | CW52: Højre | DG52: Momentbæreevne (n) | DI52: Momentbæreevne (n) | DK52: Momentbæreevne (n) | DM52: Brud
AR53: 1000000 | AS53: 1000000 | AT53: =AT52 -> 2500 | AU53: =AX12 -> 2500 | AV53: =AT53 -> 2500 | AW53: =AU53 -> 2500 | AX53: 2500 | AY53: 2500 | AZ53: 2500 | BA53: 2500 | BB53: =BB52 -> 4500 | BC53: =AT13 -> 2500 | BD53: 4500 | BE53: 2500 | BF53: =BF52 -> 6200 | BG53: =AV12 -> 2500 | CO53: n-s1 | CP53: m-s1 | CQ53: n (kN/m) | CR53: m (kNm/m) | CS53: n-s0 | CT53: m-s0 | CU53: n (kN/m) | CV53: m (kNm/m) | CW53: n-s2 | CX53: m-s2 | CY53: n (kN/m) | CZ53: m (kNm/m) | DG53: Opslagsværdi | DH53: bæreevne | DI53: Opslagsværdi | DJ53: bæreevne | DK53: Opslagsværdi | DL53: bæreevne | DM53: 1 = ja
AR54: 1000000 | AS54: 1000000 | AT54: =AT53-$AP$20 -> 2500 | AU54: =AU53 -> 2500 | AV54: =AT54 -> 2500 | AW54: =AU54 -> 2500 | AX54: 2500 | AY54: 2500 | AZ54: 2500 | BA54: 2500 | BB54: =BB53-$AP$20 -> 4500 | BC54: =BC53 -> 2500 | BD54: 4500 | BE54: 2500 | BF54: =BF53-$AP$20 -> 6200 | BG54: =BG53 -> 2500 | CM54: FELT #1: | DM54: =MAX(DM55:DM63) ->  | DN54: =IF(MAX(DM55:DM63)=0,"",CM54&"Last "&DN55&DN56&DN57&DN58&DN59&DN60&DN61&DN62&DN63) -> 
AR55: 1000000 | AS55: 1000000 | AT55: =AT47 -> 2500 | AU55: =AU47 -> 0 | AV55: =AT55 -> 2500 | AW55: =AU55 -> 0 | AX55: 2500 | AY55: 0 | AZ55: 2500 | BA55: 0 | BB55: =BB47 -> 4500 | BC55: =BC47 -> 0 | BD55: 4500 | BE55: 0 | BF55: =BF47 -> 6200 | BG55: =BG47 -> 0 | CL55: TRUE | CM55: Lasttilfælde | CN55: A, | CO55: =CM10*1000 -> 159 | CP55: =CN10 -> 0.004190532407 | CQ55: =IF($CM$56=TRUE,IF($CL55=TRUE,CO55,-10),-10) -> 159 | CR55: =IF($CM$56=TRUE,IF($CL55=TRUE,CP55*1000,-10),-10) -> 4.190532407 | CS55: =CQ10*1000 -> 159 | CT55: =CR10 -> 0.0042025 | CU55: =IF($CM$56=TRUE,IF($CL55=TRUE,CS55,-10),-10) -> 159 | CV55: =IF($CM$56=TRUE,IF($CL55=TRUE,CT55*1000,-10),-10) -> 4.2025 | CW55: =CU10*1000 -> 445.2 | CX55: =CV10 -> 0.0087983625 | CY55: =IF($CM$56=TRUE,IF($CL55=TRUE,CW55,-10),-10) -> 445.2 | CZ55: =IF($CM$56=TRUE,IF($CL55=TRUE,CX55*1000,-10),-10) -> 8.7983625 | DB55: =MAX(CQ55,CU55,CY55) -> 445.2 | DC55: =DB55-CQ55 -> 286.2 | DD55: =CU55-DB55 -> -286.2 | DE55: =CY55-DB55 -> 0 | DF55: =IF(DC55=0,CR55,IF(DD55=0,CV55,IF(DE55=0,CZ55,"FEJL"))) -> 8.7983625 | DG55: =MATCH(VLOOKUP(CO55,$B$109:$C$130,1),$B$109:$B$130,0) -> 5 | DH55: =INDEX($B$109:$C$130,DG55,2,1) +(INDEX($B$109:$C$130,DG55+1,2,1)-INDEX($B$109:$C$130,DG55,2,1)) *(CO55-INDEX($B$109:$C$130,DG55,1,1)) /(INDEX($B$109:$C$130,DG55+1,1,1)-INDEX($B$109:$C$130,DG55,1,1)) ->  | DI55: =MATCH(VLOOKUP(CS55,$B$109:$C$130,1),$B$109:$B$130,0) -> 5 | DJ55: =INDEX($B$109:$C$130,DI55,2,1) +(INDEX($B$109:$C$130,DI55+1,2,1)-INDEX($B$109:$C$130,DI55,2,1)) *(CS55-INDEX($B$109:$C$130,DI55,1,1)) /(INDEX($B$109:$C$130,DI55+1,1,1)-INDEX($B$109:$C$130,DI55,1,1)) ->  | DK55: =MATCH(VLOOKUP(CW55,$B$109:$C$130,1),$B$109:$B$130,0) -> 11 | DL55: =INDEX($B$109:$C$130,DK55,2,1) +(INDEX($B$109:$C$130,DK55+1,2,1)-INDEX($B$109:$C$130,DK55,2,1)) *(CW55-INDEX($B$109:$C$130,DK55,1,1)) /(INDEX($B$109:$C$130,DK55+1,1,1)-INDEX($B$109:$C$130,DK55,1,1)) ->  | DM55: =IF(DH55<CP55*1000,1,IF(DJ55<CT55*1000,1,IF(DL55<CX55*1000,1,0))) ->  | DN55: =IF(DM55=0,"",CN55) -> 
AL56: VÆGFELT: | AM56: 3 | AR56: 1000000 | AS56: 1000000 | AT56: 1000000 | AU56: 1000000 | AV56: =BB47 -> 4500 | AW56: =BC47 -> 0 | AX56: =BD47 -> 4500 | AY56: =BE47 -> 0 | AZ56: =BF47 -> 6200 | BA56: =BG47 -> 0 | BB56: 1000000 | BC56: 1000000 | BD56: =AZ56 -> 6200 | BE56: =BA56 -> 0 | BF56: 1000000 | BG56: 1000000 | CL56: TRUE | CM56: =IF(Makro!A1=1,TRUE,IF(Makro!A1=5,TRUE,FALSE)) -> TRUE | CN56: B, | CO56: =CM11*1000 -> 162 | CP56: 0.004305532407 | CQ56: =IF($CM$56=TRUE,IF($CL56=TRUE,CO56,-10),-10) -> 162 | CR56: 4.305532407 | CS56: =CQ11*1000 -> 162 | CT56: 0.0043175 | CU56: =IF($CM$56=TRUE,IF($CL56=TRUE,CS56,-10),-10) -> 162 | CV56: 4.3175 | CW56: =CU11*1000 -> 453.6 | CX56: 0.0091203625 | CY56: =IF($CM$56=TRUE,IF($CL56=TRUE,CW56,-10),-10) -> 453.6 | CZ56: 9.1203625 | DB56: =MAX(CQ56,CU56,CY56) -> 453.6 | DC56: =DB56-CQ56 -> 291.6 | DD56: =CU56-DB56 -> -291.6 | DE56: =CY56-DB56 -> 0 | DF56: =IF(DC56=0,CR56,IF(DD56=0,CV56,IF(DE56=0,CZ56,"FEJL"))) -> 9.1203625 | DG56: 6 | DI56: 6 | DK56: 11 | DM56: =IF(DH56<CP56*1000,1,IF(DJ56<CT56*1000,1,IF(DL56<CX56*1000,1,0))) -> 
AR57: 1000000 | AS57: 1000000 | AT57: 1000000 | AU57: 1000000 | AV57: 7000 | AW57: 0 | AX57: 5500 | AY57: 0 | AZ57: 7000 | BA57: 0 | BB57: 1000000 | BC57: 1000000 | BD57: =AZ57 -> 7000 | BE57: 0 | BF57: 1000000 | BG57: 1000000 | CL57: TRUE | CN57: C, | CO57: 202 | CP57: 0.004905532407 | CQ57: 202 | CR57: 4.905532407 | CS57: 202 | CT57: 0.0049175 | CU57: 202 | CV57: 4.9175 | CW57: =CU12*1000 -> 565.6 | CX57: 0.0108003625 | CY57: 565.6 | CZ57: 10.8003625 | DB57: 565.6 | DC57: 363.6 | DD57: -363.6 | DE57: 0 | DF57: 10.8003625 | DG57: 6 | DI57: 6 | DK57: 14
AR58: 1000000 | AS58: 1000000 | AT58: 1000000 | AU58: 1000000 | AV58: 7000 | AW58: 3000 | AX58: 5500 | AY58: 2500 | AZ58: 7000 | BA58: 3000 | BB58: 1000000 | BC58: 1000000 | BD58: 7000 | BE58: 3000 | BF58: 1000000 | BG58: 1000000 | CL58: TRUE | CN58: D, | CO58: 209 | CP58: 0.004812199074 | CQ58: 209 | CR58: 4.812199074 | CS58: 209 | CT58: 0.004824166667 | CU58: 209 | CV58: 4.824166667 | CW58: 585.2 | CX58: 0.01053902917 | CY58: 585.2 | CZ58: 10.53902917 | DB58: 585.2 | DC58: 376.2 | DD58: -376.2 | DE58: 0 | DF58: 10.53902917 | DG58: 6 | DI58: 6 | DK58: 14
AR59: 1000000 | AS59: 1000000 | AT59: 1000000 | AU59: 1000000 | AV59: 7000 | AW59: 3000 | AX59: 5500 | AY59: 2500 | AZ59: 7000 | BA59: 3000 | BB59: 1000000 | BC59: 1000000 | BD59: 7000 | BE59: 3000 | BF59: 1000000 | BG59: 1000000 | CL59: TRUE | CN59: E, | CO59: 166 | CP59: 0.003583599537 | CQ59: 166 | CR59: 3.583599537 | CS59: 166 | CT59: 0.003589583333 | CU59: 166 | CV59: 3.589583333 | CW59: 464.8 | CX59: 0.008566514583 | CY59: 464.8 | CZ59: 8.566514583 | DB59: 464.8 | DC59: 298.8 | DD59: -298.8 | DE59: 0 | DF59: 8.566514583 | DG59: 6 | DI59: 6 | DK59: 12 | DO59: 1
AR60: 1000000 | AS60: 1000000 | AT60: 1000000 | AU60: 1000000 | AV60: 7000 | AW60: 3000 | AX60: 5500 | AY60: 3000 | AZ60: 7000 | BA60: 3000 | BB60: 1000000 | BC60: 1000000 | BD60: 7000 | BE60: 3000 | BF60: 1000000 | BG60: 1000000 | CL60: TRUE | CN60: F, | CO60: 206 | CP60: 0.004183599537 | CQ60: 206 | CR60: 4.183599537 | CS60: 206 | CT60: 0.004189583333 | CU60: 206 | CV60: 4.189583333 | CW60: 576.8 | CX60: 0.01024651458 | CY60: 576.8 | CZ60: 10.24651458 | DB60: 576.8 | DC60: 370.8 | DD60: -370.8 | DE60: 0 | DF60: 10.24651458 | DG60: 6 | DI60: 6 | DK60: 14
AR61: 1000000 | AS61: 1000000 | AT61: 1000000 | AU61: 1000000 | AV61: 4500 | AW61: 3000 | AX61: 4500 | AY61: 3000 | AZ61: 6200 | BA61: 3000 | BB61: 1000000 | BC61: 1000000 | BD61: 6200 | BE61: 3000 | BF61: 1000000 | BG61: 1000000 | CL61: TRUE | CN61: G, | CO61: 230 | CP61: 0.003863599537 | CQ61: 230 | CR61: 3.863599537 | CS61: 230 | CT61: 0.003869583333 | CU61: 230 | CV61: 3.869583333 | CW61: 644 | CX61: 0.009350514583 | CY61: 644 | CZ61: 9.350514583 | DB61: 644 | DC61: 414 | DD61: -414 | DE61: 0 | DF61: 9.350514583 | DG61: 7 | DI61: 7 | DK61: 15
AR62: 1000000 | AS62: 1000000 | AT62: 1000000 | AU62: 1000000 | AV62: 4500 | AW62: 2500 | AX62: 4500 | AY62: 2500 | AZ62: 6200 | BA62: 2500 | BB62: 1000000 | BC62: 1000000 | BD62: 6200 | BE62: 2500 | BF62: 1000000 | BG62: 1000000 | CL62: TRUE | CN62: H, | CO62: 216 | CP62: 0.004333599537 | CQ62: 216 | CR62: 4.333599537 | CS62: 216 | CT62: 0.004339583333 | CU62: 216 | CV62: 4.339583333 | CW62: 604.8 | CX62: 0.01066651458 | CY62: 604.8 | CZ62: 10.66651458 | DB62: 604.8 | DC62: 388.8 | DD62: -388.8 | DE62: 0 | DF62: 10.66651458 | DG62: 6 | DI62: 6 | DK62: 15
AR63: 1000000 | AS63: 1000000 | AT63: 1000000 | AU63: 1000000 | AV63: 4500 | AW63: 2500 | AX63: 4500 | AY63: 2500 | AZ63: 6200 | BA63: 2500 | BB63: 1000000 | BC63: 1000000 | BD63: 6200 | BE63: 2500 | BF63: 1000000 | BG63: 1000000 | CL63: TRUE | CN63: I, | CO63: 240 | CP63: 0.004013599537 | CQ63: 240 | CR63: 4.013599537 | CS63: 240 | CT63: 0.004019583333 | CU63: 240 | CV63: 4.019583333 | CW63: 672 | CX63: 0.009770514583 | CY63: 672 | CZ63: 9.770514583 | DB63: 672 | DC63: 432 | DD63: -432 | DE63: 0 | DF63: 9.770514583 | DG63: 7 | DI63: 7 | DK63: 15
AR64: 1000000 | AS64: 1000000 | AT64: 1000000 | AU64: 1000000 | AV64: 4500 | AW64: 0 | AX64: 4500 | AY64: 0 | AZ64: 6200 | BA64: 0 | BB64: 1000000 | BC64: 1000000 | BD64: 6200 | BE64: 0 | BF64: 1000000 | BG64: 1000000 | CM64: FELT #2: | DM64: =MAX(DM65:DM73) ->  | DN64: =IF(MAX(DM65:DM73)=0,"",CM64&"Last "&DN65&DN66&DN67&DN68&DN69&DN70&DN71&DN72&DN73) -> 
AL65: VÆGFELT: | AM65: 4 | AR65: 1000000 | AS65: 1000000 | AT65: 1000000 | AU65: 1000000 | AV65: 1000000 | AW65: 1000000 | AX65: =AZ56 -> 6200 | AY65: =BA56 -> 0 | AZ65: 1000000 | BA65: 1000000 | BB65: 1000000 | BC65: 1000000 | BD65: 1000000 | BE65: 1000000 | BF65: 1000000 | BG65: 1000000 | CL65: =CL55 -> TRUE | CM65: Lasttilfælde | CN65: A, | CO65: =CM20*1000 -> 445.2 | CP65: =CN20 -> 0.009260384105 | CQ65: =IF($CM$66=TRUE,IF($CL65=TRUE,CO65,-10),-10) -> -10 | CR65: =IF($CM$66=TRUE,IF(CL65=TRUE,CP65*1000,-10),-10) -> -10 | CS65: =CQ20*1000 -> 159 | CT65: =CR20 -> 0.0046725 | CU65: =IF($CM$66=TRUE,IF($CL65=TRUE,CS65,-10),-10) -> -10 | CV65: =IF($CM$66=TRUE,IF($CL65=TRUE,CT65*1000,-10),-10) -> -10 | CW65: =CU20*1000 -> 349.8 | CX65: =CV20 -> 0.007724440741 | CY65: =IF($CM$66=TRUE,IF($CL65=TRUE,CW65,-10),-10) -> -10 | CZ65: =IF($CM$66=TRUE,IF($CL65=TRUE,CX65*1000,-10),-10) -> -10 | DB65: -10 | DC65: =DB65-CQ65 -> 0 | DD65: =CU65-DB65 -> 0 | DE65: =CY65-DB65 -> 0 | DF65: =IF(DC65=0,CR65,IF(DD65=0,CV65,IF(DE65=0,CZ65,"FEJL"))) -> -10 | DG65: =MATCH(VLOOKUP(CO65,$B$109:$C$130,1),$B$109:$B$130,0) -> 11 | DH65: =INDEX($B$109:$C$130,DG65,2,1) +(INDEX($B$109:$C$130,DG65+1,2,1)-INDEX($B$109:$C$130,DG65,2,1)) *(CO65-INDEX($B$109:$C$130,DG65,1,1)) /(INDEX($B$109:$C$130,DG65+1,1,1)-INDEX($B$109:$C$130,DG65,1,1)) ->  | DI65: =MATCH(VLOOKUP(CS65,$B$109:$C$130,1),$B$109:$B$130,0) -> 5 | DJ65: =INDEX($B$109:$C$130,DI65,2,1) +(INDEX($B$109:$C$130,DI65+1,2,1)-INDEX($B$109:$C$130,DI65,2,1)) *(CS65-INDEX($B$109:$C$130,DI65,1,1)) /(INDEX($B$109:$C$130,DI65+1,1,1)-INDEX($B$109:$C$130,DI65,1,1)) ->  | DK65: =MATCH(VLOOKUP(CW65,$B$109:$C$130,1),$B$109:$B$130,0) -> 8 | DL65: =INDEX($B$109:$C$130,DK65,2,1) +(INDEX($B$109:$C$130,DK65+1,2,1)-INDEX($B$109:$C$130,DK65,2,1)) *(CW65-INDEX($B$109:$C$130,DK65,1,1)) /(INDEX($B$109:$C$130,DK65+1,1,1)-INDEX($B$109:$C$130,DK65,1,1)) ->  | DM65: =IF(DH65<CP65*1000,1,IF(DJ65<CT65*1000,1,IF(DL65<CX65*1000,1,0))) ->  | DN65: =IF(DM65=0,"",CN65) -> 
AR66: 1000000 | AS66: 1000000 | AT66: 1000000 | AU66: 1000000 | AV66: 1000000 | AW66: 1000000 | AX66: 7000 | AY66: 0 | AZ66: 1000000 | BA66: 1000000 | BB66: 1000000 | BC66: 1000000 | BD66: 1000000 | BE66: 1000000 | BF66: 1000000 | BG66: 1000000 | CL66: =CL56 -> TRUE | CM66: =IF(Makro!A1=2,TRUE,IF(Makro!A1=5,TRUE,FALSE)) -> FALSE | CN66: B, | CO66: =CM21*1000 -> 453.6 | CP66: 0.009582384105 | CQ66: =IF($CM$66=TRUE,IF($CL66=TRUE,CO66,-10),-10) -> -10 | CR66: -10 | CS66: =CQ21*1000 -> 162 | CT66: 0.0047875 | CU66: =IF($CM$66=TRUE,IF($CL66=TRUE,CS66,-10),-10) -> -10 | CV66: -10 | CW66: =CU21*1000 -> 356.4 | CX66: 0.007977440741 | CY66: =IF($CM$66=TRUE,IF($CL66=TRUE,CW66,-10),-10) -> -10 | CZ66: -10 | DB66: -10 | DC66: 0 | DD66: 0 | DE66: 0 | DF66: -10 | DG66: 11 | DI66: 6 | DK66: 8 | DM66: =IF(DH66<CP66*1000,1,IF(DJ66<CT66*1000,1,IF(DL66<CX66*1000,1,0))) -> 
AR67: 1000000 | AS67: 1000000 | AT67: 1000000 | AU67: 1000000 | AV67: 1000000 | AW67: 1000000 | AX67: 7000 | AY67: 3000 | AZ67: 1000000 | BA67: 1000000 | BB67: 1000000 | BC67: 1000000 | BD67: 1000000 | BE67: 1000000 | BF67: 1000000 | BG67: 1000000 | CL67: TRUE | CN67: C, | CO67: 565.6 | CP67: 0.0112623841 | CQ67: -10 | CR67: -10 | CS67: 202 | CT67: 0.0053875 | CU67: -10 | CV67: -10 | CW67: =CU22*1000 -> 444.4 | CX67: 0.009297440741 | CY67: -10 | CZ67: -10 | DB67: -10 | DC67: 0 | DD67: 0 | DE67: 0 | DF67: -10 | DG67: 14 | DI67: 6 | DK67: 11
AR68: 1000000 | AS68: 1000000 | AT68: 1000000 | AU68: 1000000 | AV68: 1000000 | AW68: 1000000 | AX68: 7000 | AY68: 3000 | AZ68: 1000000 | BA68: 1000000 | BB68: 1000000 | BC68: 1000000 | BD68: 1000000 | BE68: 1000000 | BF68: 1000000 | BG68: 1000000 | CL68: TRUE | CN68: D, | CO68: 585.2 | CP68: 0.01100105077 | CQ68: -10 | CR68: -10 | CS68: 209 | CT68: 0.005294166667 | CU68: -10 | CV68: -10 | CW68: 459.8 | CX68: 0.009092107407 | CY68: -10 | CZ68: -10 | DB68: -10 | DC68: 0 | DD68: 0 | DE68: 0 | DF68: -10 | DG68: 14 | DI68: 6 | DK68: 12
AR69: 1000000 | AS69: 1000000 | AT69: 1000000 | AU69: 1000000 | AV69: 1000000 | AW69: 1000000 | AX69: 7000 | AY69: 3000 | AZ69: 1000000 | BA69: 1000000 | BB69: 1000000 | BC69: 1000000 | BD69: 1000000 | BE69: 1000000 | BF69: 1000000 | BG69: 1000000 | CL69: TRUE | CN69: E, | CO69: 464.8 | CP69: 0.008797525386 | CQ69: -10 | CR69: -10 | CS69: 166 | CT69: 0.003824583333 | CU69: -10 | CV69: -10 | CW69: 365.2 | CX69: 0.007136553704 | CY69: -10 | CZ69: -10 | DB69: -10 | DC69: 0 | DD69: 0 | DE69: 0 | DF69: -10 | DG69: 12 | DI69: 6 | DK69: 8
AR70: 1000000 | AS70: 1000000 | AT70: 1000000 | AU70: 1000000 | AV70: 1000000 | AW70: 1000000 | AX70: 6200 | AY70: 3000 | AZ70: 1000000 | BA70: 1000000 | BB70: 1000000 | BC70: 1000000 | BD70: 1000000 | BE70: 1000000 | BF70: 1000000 | BG70: 1000000 | CL70: TRUE | CN70: F, | CO70: 576.8 | CP70: 0.01047752539 | CQ70: -10 | CR70: -10 | CS70: 206 | CT70: 0.004424583333 | CU70: -10 | CV70: -10 | CW70: 453.2 | CX70: 0.008456553704 | CY70: -10 | CZ70: -10 | DB70: -10 | DC70: 0 | DD70: 0 | DE70: 0 | DF70: -10 | DG70: 14 | DI70: 6 | DK70: 11
AR71: 1000000 | AS71: 1000000 | AT71: 1000000 | AU71: 1000000 | AV71: 1000000 | AW71: 1000000 | AX71: 6200 | AY71: 2500 | AZ71: 1000000 | BA71: 1000000 | BB71: 1000000 | BC71: 1000000 | BD71: 1000000 | BE71: 1000000 | BF71: 1000000 | BG71: 1000000 | CL71: TRUE | CN71: G, | CO71: 644 | CP71: 0.009581525386 | CQ71: -10 | CR71: -10 | CS71: 230 | CT71: 0.004104583333 | CU71: -10 | CV71: -10 | CW71: 506 | CX71: 0.007752553704 | CY71: -10 | CZ71: -10 | DB71: -10 | DC71: 0 | DD71: 0 | DE71: 0 | DF71: -10 | DG71: 15 | DI71: 7 | DK71: 13
AR72: 1000000 | AS72: 1000000 | AT72: 1000000 | AU72: 1000000 | AV72: 1000000 | AW72: 1000000 | AX72: 6200 | AY72: 2500 | AZ72: 1000000 | BA72: 1000000 | BB72: 1000000 | BC72: 1000000 | BD72: 1000000 | BE72: 1000000 | BF72: 1000000 | BG72: 1000000 | CL72: TRUE | CN72: H, | CO72: 604.8 | CP72: 0.01089752539 | CQ72: -10 | CR72: -10 | CS72: 216 | CT72: 0.004574583333 | CU72: -10 | CV72: -10 | CW72: 475.2 | CX72: 0.008786553704 | CY72: -10 | CZ72: -10 | DB72: -10 | DC72: 0 | DD72: 0 | DE72: 0 | DF72: -10 | DG72: 15 | DI72: 6 | DK72: 12
AR73: 1000000 | AS73: 1000000 | AT73: 1000000 | AU73: 1000000 | AV73: 1000000 | AW73: 1000000 | AX73: 6200 | AY73: 0 | AZ73: 1000000 | BA73: 1000000 | BB73: 1000000 | BC73: 1000000 | BD73: 1000000 | BE73: 1000000 | BF73: 1000000 | BG73: 1000000 | CL73: TRUE | CN73: I, | CO73: 672 | CP73: 0.01000152539 | CQ73: -10 | CR73: -10 | CS73: 240 | CT73: 0.004254583333 | CU73: -10 | CV73: -10 | CW73: 528 | CX73: 0.008082553704 | CY73: -10 | CZ73: -10 | DB73: -10 | DC73: 0 | DD73: 0 | DE73: 0 | DF73: -10 | DG73: 15 | DI73: 7 | DK73: 13
CM74: FELT #3: | DM74: =MAX(DM75:DM83) ->  | DN74: =IF(MAX(DM75:DM83)=0,"",CM74&"Last "&DN75&DN76&DN77&DN78&DN79&DN80&DN81&DN82&DN83) -> 
CL75: TRUE | CM75: Lasttilfælde | CN75: A, | CO75: =CM30*1000 -> 349.8 | CP75: =CN30 -> 0.007354823457 | CQ75: =IF($CM$76=TRUE,IF($CL75=TRUE,CO75,-10),-10) -> -10 | CR75: =IF($CM$76=TRUE,IF(CL75=TRUE,CP75*1000,-10),-10) -> -10 | CS75: =CQ30*1000 -> 159 | CT75: =CR30 -> 0.0042965 | CU75: =IF($CM$76=TRUE,IF($CL75=TRUE,CS75,-10),-10) -> -10 | CV75: =IF($CM$76=TRUE,IF($CL75=TRUE,CT75*1000,-10),-10) -> -10 | CW75: =CU30*1000 -> 292.56 | CX75: =CV30 -> 0.006433257438 | CY75: =IF($CM$76=TRUE,IF($CL75=TRUE,CW75,-10),-10) -> -10 | CZ75: =IF($CM$76=TRUE,IF($CL75=TRUE,CX75*1000,-10),-10) -> -10 | DB75: -10 | DC75: =DB75-CQ75 -> 0 | DD75: =CU75-DB75 -> 0 | DE75: =CY75-DB75 -> 0 | DF75: =IF(DC75=0,CR75,IF(DD75=0,CV75,IF(DE75=0,CZ75,"FEJL"))) -> -10 | DG75: =MATCH(VLOOKUP(CO75,$B$109:$C$130,1),$B$109:$B$130,0) -> 8 | DH75: =INDEX($B$109:$C$130,DG75,2,1) +(INDEX($B$109:$C$130,DG75+1,2,1)-INDEX($B$109:$C$130,DG75,2,1)) *(CO75-INDEX($B$109:$C$130,DG75,1,1)) /(INDEX($B$109:$C$130,DG75+1,1,1)-INDEX($B$109:$C$130,DG75,1,1)) ->  | DI75: =MATCH(VLOOKUP(CS75,$B$109:$C$130,1),$B$109:$B$130,0) -> 5 | DJ75: =INDEX($B$109:$C$130,DI75,2,1) +(INDEX($B$109:$C$130,DI75+1,2,1)-INDEX($B$109:$C$130,DI75,2,1)) *(CS75-INDEX($B$109:$C$130,DI75,1,1)) /(INDEX($B$109:$C$130,DI75+1,1,1)-INDEX($B$109:$C$130,DI75,1,1)) ->  | DK75: =MATCH(VLOOKUP(CW75,$B$109:$C$130,1),$B$109:$B$130,0) -> 8 | DL75: =INDEX($B$109:$C$130,DK75,2,1) +(INDEX($B$109:$C$130,DK75+1,2,1)-INDEX($B$109:$C$130,DK75,2,1)) *(CW75-INDEX($B$109:$C$130,DK75,1,1)) /(INDEX($B$109:$C$130,DK75+1,1,1)-INDEX($B$109:$C$130,DK75,1,1)) ->  | DM75: =IF(DH75<CP75*1000,1,IF(DJ75<CT75*1000,1,IF(DL75<CX75*1000,1,0))) ->  | DN75: =IF(DM75=0,"",CN75) -> 
AL76: B = | AM76: 1 | AQ76: Vægoverligger | AS76: Bjælke A | AT76: 1 | BI76: Interne overliggere | BO76: Afskalningsbrud | BS76: Vederlagstryk | CL76: TRUE | CM76: =IF(Makro!A1=3,TRUE,IF(Makro!A1=5,TRUE,FALSE)) -> FALSE | CN76: B, | CO76: =CM31*1000 -> 356.4 | CP76: 0.007607823457 | CQ76: =IF($CM$76=TRUE,IF($CL76=TRUE,CO76,-10),-10) -> -10 | CR76: -10 | CS76: =CQ31*1000 -> 162 | CT76: 0.0044115 | CU76: =IF($CM$76=TRUE,IF($CL76=TRUE,CS76,-10),-10) -> -10 | CV76: -10 | CW76: =CU31*1000 -> 298.08 | CX76: 0.006644857438 | CY76: =IF($CM$76=TRUE,IF($CL76=TRUE,CW76,-10),-10) -> -10 | CZ76: -10 | DB76: -10 | DC76: 0 | DD76: 0 | DE76: 0 | DF76: -10 | DG76: 8 | DI76: 6 | DK76: 8 | DM76: =IF(DH76<CP76*1000,1,IF(DJ76<CT76*1000,1,IF(DL76<CX76*1000,1,0))) -> 
AL77: N1 (kN) | AM77: N0 (kN) | AN77: N2 (kN) | AQ77: Separat bjælke | AS77: Bjælke B | AT77: 2 | BI77: Vægtykkelse, t [mm] | BK77: =M18 -> 150 | BL77: Væg 1-2 | BM77: Væg 2-3 | BN77: Væg 3-4 | CL77: TRUE | CN77: C, | CO77: 444.4 | CP77: 0.008927823457 | CQ77: -10 | CR77: -10 | CS77: 202 | CT77: 0.0050115 | CU77: -10 | CV77: -10 | CW77: =CU32*1000 -> 371.68 | CX77: 0.007748857438 | CY77: -10 | CZ77: -10 | DB77: -10 | DC77: 0 | DD77: 0 | DE77: 0 | DF77: -10 | DG77: 11 | DI77: 6 | DK77: 8
AL78: =AM76*S25 -> 3 | AM78: =AM76*R25 -> 150 | AN78: =AM76*Q25 -> 6 | BI78: Vederlagsdybder [mm] | BK78: =X15 -> 0 | CL78: TRUE | CN78: D, | CO78: 459.8 | CP78: 0.008722490123 | CQ78: -10 | CR78: -10 | CS78: 209 | CT78: 0.004918166667 | CU78: -10 | CV78: -10 | CW78: 384.56 | CX78: 0.007577124105 | CY78: -10 | CZ78: -10 | DB78: -10 | DC78: 0 | DD78: 0 | DE78: 0 | DF78: -10 | DG78: 12 | DI78: 6 | DK78: 9
AL79: =AM76*P25 -> 10 | AM79: =AM76*R25 -> 150 | AN79: =AM76*Q25 -> 6 | AU79: LA (m) | BC79: LB (m) | BL79: L (m) | BM79: L (m) | BN79: L (m) | CL79: TRUE | CN79: E, | CO79: 365.2 | CP79: 0.006951745062 | CQ79: -10 | CR79: -10 | CS79: 166 | CT79: 0.003636583333 | CU79: -10 | CV79: -10 | CW79: 305.44 | CX79: 0.005955162052 | CY79: -10 | CZ79: -10 | DB79: -10 | DC79: 0 | DD79: 0 | DE79: 0 | DF79: -10 | DG79: 8 | DI79: 6 | DK79: 8
AL80: =AM76*P25 -> 10 | AM80: =AM76*(O25+MAX(AO47,AP47)) -> 190 | AN80: =AM76*Q25 -> 6 | AU80: =$Q$27/2 -> 0 | BC80: =$R$27/2 -> 0 | BI80: ftld | BJ80: =AC9 -> 0 | BK80: MPa | BL80: =(Q16+2*X15)/1000 -> 1.5 | BM80: =(Q17+2*X15)/1000 -> 1 | BN80: =(Q18+2*X15)/1000 -> 0.7 | CL80: TRUE | CN80: F, | CO80: 453.2 | CP80: 0.008271745062 | CQ80: -10 | CR80: -10 | CS80: 206 | CT80: 0.004236583333 | CU80: -10 | CV80: -10 | CW80: 379.04 | CX80: 0.007059162052 | CY80: -10 | CZ80: -10 | DB80: -10 | DC80: 0 | DD80: 0 | DE80: 0 | DF80: -10 | DG80: 11 | DI80: 6 | DK80: 9
AL81: =AM76*P25 -> 10 | AM81: =AM76*(O25+MAX(AO47,AP47)) -> 190 | AN81: =AM76*N25 -> 9 | BI81: fcd | BJ81: =AC8 -> 0 | BK81: MPa | CL81: TRUE | CN81: G, | CO81: 506 | CP81: 0.007567745062 | CQ81: -10 | CR81: -10 | CS81: 230 | CT81: 0.003916583333 | CU81: -10 | CV81: -10 | CW81: 423.2 | CX81: 0.006470362052 | CY81: -10 | CZ81: -10 | DB81: -10 | DC81: 0 | DD81: 0 | DE81: 0 | DF81: -10 | DG81: 13 | DI81: 7 | DK81: 10
AL82: =AM76*M25 -> 27 | AM82: =AM76*R25 -> 150 | AN82: =AM76*Q25 -> 6 | AU82: NA | AV82: exc | AW82: NA-o | BC82: NB | BD82: exc | BE82: NB-o | BI82: NB | BJ82: exc | BK82: beff | BL82: NB | BM82: NB | BN82: NB | BO82: bæreevne | BS82: bæreevne | CL82: TRUE | CN82: H, | CO82: 475.2 | CP82: 0.008601745062 | CQ82: -10 | CR82: -10 | CS82: 216 | CT82: 0.004386583333 | CU82: -10 | CV82: -10 | CW82: 397.44 | CX82: 0.007335162052 | CY82: -10 | CZ82: -10 | DB82: -10 | DC82: 0 | DD82: 0 | DE82: 0 | DF82: -10 | DG82: 12 | DI82: 6 | DK82: 9
AL83: =AM76*M25 -> 27 | AM83: =AM76*(O25+MAX(AO47,AP47)) -> 190 | AN83: =AM76*Q25 -> 6 | AU83: (kN) | AV83: (mm) | BC83: (kN) | BD83: (mm) | BI83: (kN/m) | BJ83: (mm) | BK83: (mm) | BL83: kN | BM83: kN | BN83: kN | BO83: kN | BS83: kN | CL83: TRUE | CN83: I, | CO83: 528 | CP83: 0.007897745062 | CQ83: -10 | CR83: -10 | CS83: 240 | CT83: 0.004066583333 | CU83: -10 | CV83: -10 | CW83: 441.6 | CX83: 0.006746362052 | CY83: -10 | CZ83: -10 | DB83: -10 | DC83: 0 | DD83: 0 | DE83: 0 | DF83: -10 | DG83: 13 | DI83: 7 | DK83: 11
AL84: =AM76*M25 -> 27 | AM84: =AM76*(O25+MAX(AO47,AP47)) -> 190 | AN84: =AM76*K25 -> 13 | AU84: =IF(Makro!$D$1,IF(Makro!$A$3=1,($N31+$O31+$P31)*AU$80,$Q31),0) -> 0 | AV84: =IF(Makro!$A$3=1,IF(Makro!$D$1,IF(AU84=0,0,($N$41*$N31+$O$41*$O31-$P$41*$P31)/($AU84/$AU$80)),0),$Q$41) -> 0 | AW84: =IF(Makro!$D$1,($N31+$O31+$P31)*AU$80,0) -> 0 | BC84: =IF(Makro!$D$5,IF(Makro!$A$4=1,($N31+$O31+$P31)*BC$80,$R31)) -> 0 | BD84: =IF(Makro!$A$4=1,IF(Makro!$D$5,($N$41*$N31+$O$41*$O31-$P$41*$P31)/(BC84/$BC$80),0),$R$41) ->  | BE84: =IF(Makro!$D$5,($N31+$O31+$P31)*BC$80,0) -> 0 | BI84: =N31+O31+P31 -> 159 | BJ84: =(N31*$N$40+O31*$O$40+P31*$P$40)/BI84 -> 16.79245283 | BK84: =$BK$77-2*BJ84 -> 116.4150943 | BL84: =$BI84*BL$80*0.5 -> 119.25 | BM84: =$BI84*BM$80*0.5 -> 79.5 | BN84: =$BI84*BN$80*0.5 -> 55.65 | BO84: =5/4*$BK$78*BK84*$BJ$80*10^-3 -> 0 | BP84: =IF(BL84>$BO84,"Brud","OK") -> Brud | BQ84: =IF(BM84>$BO84,"Brud","OK") -> Brud | BR84: Brud | BS84: =0.8*BK84*$BK$78*$BJ$81*10^-3 -> 0 | BT84: =IF(BL84>$BS84,"Brud","OK") -> Brud | BU84: =IF(BM84>$BS84,"Brud","OK") -> Brud | BV84: Brud | CM84: FELT #4: | DM84: =MAX(DM85:DM93) ->  | DN84: =IF(MAX(DM85:DM93)=0,"",CM84&"Last "&DN85&DN86&DN87&DN88&DN89&DN90&DN91&DN92&DN93) -> 
AL85: =AM76*M25 -> 27 | AM85: =AM76*(L25+MAX(AN47,AQ47)) -> 200 | AN85: =AM76*Q25 -> 6 | AU85: =IF(Makro!$D$1,IF(Makro!$A$3=1,($N32+$O32+$P32)*AU$80,$Q32),0) -> 0 | AV85: =IF(Makro!$A$3=1,IF(Makro!$D$1,IF(AU85=0,0,($N$41*$N32+$O$41*$O32-$P$41*$P32)/($AU85/$AU$80)),0),$Q$41) -> 0 | AW85: =IF(Makro!$D$1,($N32+$O32+$P32)*AU$80,0) -> 0 | BC85: =IF(Makro!$D$5,IF(Makro!$A$4=1,($N32+$O32+$P32)*BC$80,$R32)) -> 0 | BD85: =IF(Makro!$A$4=1,IF(Makro!$D$5,($N$41*$N32+$O$41*$O32-$P$41*$P32)/(BC85/$BC$80),0),$R$41) ->  | BE85: =IF(Makro!$D$5,($N32+$O32+$P32)*BC$80,0) -> 0 | BI85: 162 | BJ85: 17.40740741 | BK85: =$BK$77-2*BJ85 -> 115.1851852 | BL85: =$BI85*BL$80*0.5 -> 121.5 | BM85: 81 | BN85: 56.7 | BO85: =5/4*$BK$78*BK85*$BJ$80*10^-3 -> 0 | BP85: =IF(BL85>$BO85,"Brud","OK") -> Brud | BQ85: Brud | BR85: Brud | BS85: =0.8*BK85*$BK$78*$BJ$81*10^-3 -> 0 | BT85: =IF(BL85>$BS85,"Brud","OK") -> Brud | BU85: Brud | BV85: Brud | CL85: TRUE | CM85: Lasttilfælde | CN85: A, | CO85: =CM40*1000 -> 292.56 | CP85: =CN40 -> 0.006053600983 | CQ85: =IF($CM$86=TRUE,IF($CL85=TRUE,CO85,-10),-10) -> -10 | CR85: =IF($CM$86=TRUE,IF(CL85=TRUE,CP85*1000,-10),-10) -> -10 | CS85: =CQ40*1000 -> 159 | CT85: =CR40 -> 0.00390875 | CU85: =IF($CM$86=TRUE,IF($CL85=TRUE,CS85,-10),-10) -> -10 | CV85: =IF($CM$86=TRUE,IF($CL85=TRUE,CT85*1000,-10),-10) -> -10 | CW85: =CU40*1000 -> 0 | CX85: =CV40 -> 0.003921488596 | CY85: =IF($CM$86=TRUE,IF($CL85=TRUE,CW85,-10),-10) -> -10 | CZ85: =IF($CM$86=TRUE,IF($CL85=TRUE,CX85*1000,-10),-10) -> -10 | DB85: -10 | DC85: =DB85-CQ85 -> 0 | DD85: =CU85-DB85 -> 0 | DE85: =CY85-DB85 -> 0 | DF85: =IF(DC85=0,CR85,IF(DD85=0,CV85,IF(DE85=0,CZ85,"FEJL"))) -> -10 | DG85: =MATCH(VLOOKUP(CO85,$B$109:$C$130,1),$B$109:$B$130,0) -> 8 | DH85: =INDEX($B$109:$C$130,DG85,2,1) +(INDEX($B$109:$C$130,DG85+1,2,1)-INDEX($B$109:$C$130,DG85,2,1)) *(CO85-INDEX($B$109:$C$130,DG85,1,1)) /(INDEX($B$109:$C$130,DG85+1,1,1)-INDEX($B$109:$C$130,DG85,1,1)) ->  | DI85: =MATCH(VLOOKUP(CS85,$B$109:$C$130,1),$B$109:$B$130,0) -> 5 | DJ85: =INDEX($B$109:$C$130,DI85,2,1) +(INDEX($B$109:$C$130,DI85+1,2,1)-INDEX($B$109:$C$130,DI85,2,1)) *(CS85-INDEX($B$109:$C$130,DI85,1,1)) /(INDEX($B$109:$C$130,DI85+1,1,1)-INDEX($B$109:$C$130,DI85,1,1)) ->  | DK85: =MATCH(VLOOKUP(CW85,$B$109:$C$130,1),$B$109:$B$130,0) -> 1 | DL85: =INDEX($B$109:$C$130,DK85,2,1) +(INDEX($B$109:$C$130,DK85+1,2,1)-INDEX($B$109:$C$130,DK85,2,1)) *(CW85-INDEX($B$109:$C$130,DK85,1,1)) /(INDEX($B$109:$C$130,DK85+1,1,1)-INDEX($B$109:$C$130,DK85,1,1)) ->  | DM85: =IF(DH85<CP85*1000,1,IF(DJ85<CT85*1000,1,IF(DL85<CX85*1000,1,0))) ->  | DN85: =IF(DM85=0,"",CN85) -> 
AL86: =AM76*M25 -> 27 | AM86: =AM76*(L25+MAX(AN47,AQ47)) -> 200 | AN86: =AM76*K25 -> 13 | AU86: =IF(Makro!$D$1,IF(Makro!$A$3=1,($N33+$O33+$P33)*AU$80,$Q33),0) -> 0 | AV86: =IF(Makro!$A$3=1,IF(Makro!$D$1,IF(AU86=0,0,($N$41*$N33+$O$41*$O33-$P$41*$P33)/($AU86/$AU$80)),0),$Q$41) -> 0 | AW86: =IF(Makro!$D$1,($N33+$O33+$P33)*AU$80,0) -> 0 | BC86: =IF(Makro!$D$5,IF(Makro!$A$4=1,($N33+$O33+$P33)*BC$80,$R33)) -> 0 | BD86: =IF(Makro!$A$4=1,IF(Makro!$D$5,($N$41*$N33+$O$41*$O33-$P$41*$P33)/(BC86/$BC$80),0),$R$41) ->  | BE86: =IF(Makro!$D$5,($N33+$O33+$P33)*BC$80,0) -> 0 | BI86: 202 | BJ86: 16.93069307 | BK86: 116.1386139 | BL86: 151.5 | BM86: 101 | BN86: 70.7 | BO86: 0 | BP86: Brud | BQ86: Brud | BR86: Brud | BS86: 0 | BT86: Brud | BU86: Brud | BV86: Brud | CL86: TRUE | CM86: =IF(Makro!A1=4,TRUE,IF(Makro!A1=5,TRUE,FALSE)) -> FALSE | CN86: B, | CO86: =CM41*1000 -> 298.08 | CP86: 0.006265200983 | CQ86: =IF($CM$86=TRUE,IF($CL86=TRUE,CO86,-10),-10) -> -10 | CR86: -10 | CS86: =CQ41*1000 -> 162 | CT86: 0.00402375 | CU86: =IF($CM$86=TRUE,IF($CL86=TRUE,CS86,-10),-10) -> -10 | CV86: -10 | CW86: =CU41*1000 -> 0 | CX86: 0.004036488596 | CY86: =IF($CM$86=TRUE,IF($CL86=TRUE,CW86,-10),-10) -> -10 | CZ86: -10 | DB86: -10 | DC86: 0 | DD86: 0 | DE86: 0 | DF86: -10 | DG86: 8 | DI86: 6 | DK86: 1 | DM86: =IF(DH86<CP86*1000,1,IF(DJ86<CT86*1000,1,IF(DL86<CX86*1000,1,0))) -> 
AL87: =AM76*Q25 -> 6 | AM87: =AM76*R25 -> 150 | AN87: =AM76*S25 -> 3 | AU87: =IF(Makro!$D$1,IF(Makro!$A$3=1,($N34+$O34+$P34)*AU$80,$Q34),0) -> 0 | AV87: =IF(Makro!$A$3=1,IF(Makro!$D$1,IF(AU87=0,0,($N$41*$N34+$O$41*$O34-$P$41*$P34)/($AU87/$AU$80)),0),$Q$41) -> 0 | AW87: =IF(Makro!$D$1,($N34+$O34+$P34)*AU$80,0) -> 0 | BC87: =IF(Makro!$D$5,IF(Makro!$A$4=1,($N34+$O34+$P34)*BC$80,$R34)) -> 0 | BD87: =IF(Makro!$A$4=1,IF(Makro!$D$5,($N$41*$N34+$O$41*$O34-$P$41*$P34)/(BC87/$BC$80),0),$R$41) ->  | BE87: =IF(Makro!$D$5,($N34+$O34+$P34)*BC$80,0) -> 0 | BI87: 209 | BJ87: 17.70334928 | BK87: 114.5933014 | BL87: 156.75 | BM87: 104.5 | BN87: 73.15 | BO87: 0 | BP87: Brud | BQ87: Brud | BR87: Brud | BS87: 0 | BT87: Brud | BU87: Brud | BV87: Brud | CL87: TRUE | CN87: C, | CO87: 371.68 | CP87: 0.007369200983 | CQ87: -10 | CR87: -10 | CS87: 202 | CT87: 0.00462375 | CU87: -10 | CV87: -10 | CW87: =CU42*1000 -> 0 | CX87: 0.004636488596 | CY87: -10 | CZ87: -10 | DB87: -10 | DC87: 0 | DD87: 0 | DE87: 0 | DF87: -10 | DG87: 8 | DI87: 6 | DK87: 1
AL88: =AM76*N25 -> 9 | AM88: =AM76*R25 -> 150 | AN88: =AM76*S25 -> 3 | AU88: =IF(Makro!$D$1,IF(Makro!$A$3=1,($N35+$O35+$P35)*AU$80,$Q35),0) -> 0 | AV88: =IF(Makro!$A$3=1,IF(Makro!$D$1,IF(AU88=0,0,($N$41*$N35+$O$41*$O35-$P$41*$P35)/($AU88/$AU$80)),0),$Q$41) -> 0 | AW88: =IF(Makro!$D$1,($N35+$O35+$P35)*AU$80,0) -> 0 | BC88: =IF(Makro!$D$5,IF(Makro!$A$4=1,($N35+$O35+$P35)*BC$80,$R35)) -> 0 | BD88: =IF(Makro!$A$4=1,IF(Makro!$D$5,($N$41*$N35+$O$41*$O35-$P$41*$P35)/(BC88/$BC$80),0),$R$41) ->  | BE88: =IF(Makro!$D$5,($N35+$O35+$P35)*BC$80,0) -> 0 | BI88: 166 | BJ88: 18.19277108 | BK88: 113.6144578 | BL88: 124.5 | BM88: 83 | BN88: 58.1 | BO88: 0 | BP88: Brud | BQ88: Brud | BR88: Brud | BS88: 0 | BT88: Brud | BU88: Brud | BV88: Brud | CL88: TRUE | CN88: D, | CO88: 384.56 | CP88: 0.00719746765 | CQ88: -10 | CR88: -10 | CS88: 209 | CT88: 0.004530416667 | CU88: -10 | CV88: -10 | CW88: 0 | CX88: 0.004543155262 | CY88: -10 | CZ88: -10 | DB88: -10 | DC88: 0 | DD88: 0 | DE88: 0 | DF88: -10 | DG88: 9 | DI88: 6 | DK88: 1
AL89: =AM76*N25 -> 9 | AM89: =AM76*(O25+MAX(AO47,AP47)) -> 190 | AN89: =AM76*S25 -> 3 | AU89: =IF(Makro!$D$1,IF(Makro!$A$3=1,($N36+$O36+$P36)*AU$80,$Q36),0) -> 0 | AV89: =IF(Makro!$A$3=1,IF(Makro!$D$1,IF(AU89=0,0,($N$41*$N36+$O$41*$O36-$P$41*$P36)/($AU89/$AU$80)),0),$Q$41) -> 0 | AW89: =IF(Makro!$D$1,($N36+$O36+$P36)*AU$80,0) -> 0 | BC89: =IF(Makro!$D$5,IF(Makro!$A$4=1,($N36+$O36+$P36)*BC$80,$R36)) -> 0 | BD89: =IF(Makro!$A$4=1,IF(Makro!$D$5,($N$41*$N36+$O$41*$O36-$P$41*$P36)/(BC89/$BC$80),0),$R$41) ->  | BE89: =IF(Makro!$D$5,($N36+$O36+$P36)*BC$80,0) -> 0 | BI89: 206 | BJ89: 17.57281553 | BK89: 114.8543689 | BL89: 154.5 | BM89: 103 | BN89: 72.1 | BO89: 0 | BP89: Brud | BQ89: Brud | BR89: Brud | BS89: 0 | BT89: Brud | BU89: Brud | BV89: Brud | CL89: TRUE | CN89: E, | CO89: 305.44 | CP89: 0.005765333825 | CQ89: -10 | CR89: -10 | CS89: 166 | CT89: 0.003442708333 | CU89: -10 | CV89: -10 | CW89: 0 | CX89: 0.003449077631 | CY89: -10 | CZ89: -10 | DB89: -10 | DC89: 0 | DD89: 0 | DE89: 0 | DF89: -10 | DG89: 8 | DI89: 6 | DK89: 1
AL90: =AM76*N25 -> 9 | AM90: =AM76*(O25+MAX(AO47,AP47)) -> 190 | AN90: =AM76*P25 -> 10 | AU90: =IF(Makro!$D$1,IF(Makro!$A$3=1,($N37+$O37+$P37)*AU$80,$Q37),0) -> 0 | AV90: =IF(Makro!$A$3=1,IF(Makro!$D$1,IF(AU90=0,0,($N$41*$N37+$O$41*$O37-$P$41*$P37)/($AU90/$AU$80)),0),$Q$41) -> 0 | AW90: =IF(Makro!$D$1,($N37+$O37+$P37)*AU$80,0) -> 0 | BC90: =IF(Makro!$D$5,IF(Makro!$A$4=1,($N37+$O37+$P37)*BC$80,$R37)) -> 0 | BD90: =IF(Makro!$A$4=1,IF(Makro!$D$5,($N$41*$N37+$O$41*$O37-$P$41*$P37)/(BC90/$BC$80),0),$R$41) ->  | BE90: =IF(Makro!$D$5,($N37+$O37+$P37)*BC$80,0) -> 0 | BI90: 230 | BJ90: 19.91304348 | BK90: 110.173913 | BL90: 172.5 | BM90: 115 | BN90: 80.5 | BO90: 0 | BP90: Brud | BQ90: Brud | BR90: Brud | BS90: 0 | BT90: Brud | BU90: Brud | BV90: Brud | CL90: TRUE | CN90: F, | CO90: 379.04 | CP90: 0.006869333825 | CQ90: -10 | CR90: -10 | CS90: 206 | CT90: 0.004042708333 | CU90: -10 | CV90: -10 | CW90: 0 | CX90: 0.004049077631 | CY90: -10 | CZ90: -10 | DB90: -10 | DC90: 0 | DD90: 0 | DE90: 0 | DF90: -10 | DG90: 9 | DI90: 6 | DK90: 1
AL91: =AM76*K25 -> 13 | AM91: =AM76*R25 -> 150 | AN91: =AM76*S25 -> 3 | AU91: =IF(Makro!$D$1,IF(Makro!$A$3=1,($N38+$O38+$P38)*AU$80,$Q38),0) -> 0 | AV91: =IF(Makro!$A$3=1,IF(Makro!$D$1,IF(AU91=0,0,($N$41*$N38+$O$41*$O38-$P$41*$P38)/($AU91/$AU$80)),0),$Q$41) -> 0 | AW91: =IF(Makro!$D$1,($N38+$O38+$P38)*AU$80,0) -> 0 | BC91: =IF(Makro!$D$5,IF(Makro!$A$4=1,($N38+$O38+$P38)*BC$80,$R38)) -> 0 | BD91: =IF(Makro!$A$4=1,IF(Makro!$D$5,($N$41*$N38+$O$41*$O38-$P$41*$P38)/(BC91/$BC$80),0),$R$41) ->  | BE91: =IF(Makro!$D$5,($N38+$O38+$P38)*BC$80,0) -> 0 | BI91: 216 | BJ91: 17.4537037 | BK91: 115.0925926 | BL91: 162 | BM91: 108 | BN91: 75.6 | BO91: 0 | BP91: Brud | BQ91: Brud | BR91: Brud | BS91: 0 | BT91: Brud | BU91: Brud | BV91: Brud | CL91: TRUE | CN91: G, | CO91: 423.2 | CP91: 0.006280533825 | CQ91: -10 | CR91: -10 | CS91: 230 | CT91: 0.003722708333 | CU91: -10 | CV91: -10 | CW91: 0 | CX91: 0.003729077631 | CY91: -10 | CZ91: -10 | DB91: -10 | DC91: 0 | DD91: 0 | DE91: 0 | DF91: -10 | DG91: 10 | DI91: 7 | DK91: 1
AL92: =AM76*K25 -> 13 | AM92: =AM76*(O25+MAX(AO47,AP47)) -> 190 | AN92: =AM76*S25 -> 3 | AU92: =IF(Makro!$D$1,IF(Makro!$A$3=1,($N39+$O39+$P39)*AU$80,$Q39),0) -> 0 | AV92: =IF(Makro!$A$3=1,IF(Makro!$D$1,IF(AU92=0,0,($N$41*$N39+$O$41*$O39-$P$41*$P39)/($AU92/$AU$80)),0),$Q$41) -> 0 | AW92: =IF(Makro!$D$1,($N39+$O39+$P39)*AU$80,0) -> 0 | BC92: =IF(Makro!$D$5,IF(Makro!$A$4=1,($N39+$O39+$P39)*BC$80,$R39)) -> 0 | BD92: =IF(Makro!$A$4=1,IF(Makro!$D$5,($N$41*$N39+$O$41*$O39-$P$41*$P39)/(BC92/$BC$80),0),$R$41) ->  | BE92: =IF(Makro!$D$5,($N39+$O39+$P39)*BC$80,0) -> 0 | BI92: 240 | BJ92: 19.70833333 | BK92: 110.5833333 | BL92: 180 | BM92: 120 | BN92: 84 | BO92: 0 | BP92: Brud | BQ92: Brud | BR92: Brud | BS92: 0 | BT92: Brud | BU92: Brud | BV92: Brud | CL92: TRUE | CN92: H, | CO92: 397.44 | CP92: 0.007145333825 | CQ92: -10 | CR92: -10 | CS92: 216 | CT92: 0.004192708333 | CU92: -10 | CV92: -10 | CW92: 0 | CX92: 0.004199077631 | CY92: -10 | CZ92: -10 | DB92: -10 | DC92: 0 | DD92: 0 | DE92: 0 | DF92: -10 | DG92: 9 | DI92: 6 | DK92: 1
AL93: =AM76*K25 -> 13 | AM93: =AM76*(O25+MAX(AO47,AP47)) -> 190 | AN93: =AM76*M25 -> 27 | BO93: Brud | BP93: =COUNTIF(BP84:BP92,"Brud") -> 9 | BQ93: =COUNTIF(BQ84:BQ92,"Brud") -> 9 | BR93: =COUNTIF(BR84:BR92,"Brud") -> 9 | BS93: Brud | BT93: =COUNTIF(BT84:BT92,"Brud") -> 9 | BU93: =COUNTIF(BU84:BU92,"Brud") -> 9 | BV93: =COUNTIF(BV84:BV92,"Brud") -> 9 | CL93: TRUE | CN93: I, | CO93: 441.6 | CP93: 0.006556533825 | CQ93: -10 | CR93: -10 | CS93: 240 | CT93: 0.003872708333 | CU93: -10 | CV93: -10 | CW93: 0 | CX93: 0.003879077631 | CY93: -10 | CZ93: -10 | DB93: -10 | DC93: 0 | DD93: 0 | DE93: 0 | DF93: -10 | DG93: 11 | DI93: 7 | DK93: 1
AL94: =AM76*K25 -> 13 | AM94: =AM76*(L25+MAX(AN47,AQ47)) -> 200 | AN94: =AM76*S25 -> 3 | AR94: =2*Makro!I15/3+$AC$11 -> 26.66666667 | BO94: Eksist. | BP94: =Makro!D2 -> TRUE | BQ94: =Makro!D3 -> TRUE | BR94: =Makro!D4 -> TRUE | BS94: Eksist. | BT94: =Makro!D2 -> TRUE | BU94: =Makro!D3 -> TRUE | BV94: =Makro!D4 -> TRUE
AL95: =AM76*K25 -> 13 | AM95: =AM76*(L25+MAX(AN47,AQ47)) -> 200 | AN95: =AM76*M25 -> 27 | BO95: Besked: | BP95: =IF(OR(AND(BP94,BP93>0),AND(BQ94,BQ93>0),AND(BR94,BR93>0)),"(intern overligger)","") -> (intern overligger) | BS95: Besked: | BT95: =IF(OR(AND(BT94,BT93>0),AND(BU94,BU93>0),AND(BV94,BV93>0)),"(intern overligger)","") -> (intern overligger)
BI97: Eksterne overliggere | BO97: Afskalningsbrud | BS97: Vederlagstryk
AL98: Brudlasttilfælde | AV98: Tværvæg | AX98: Tværvæg | AZ98: Felt 1 | BB98: Felt 2 | BD98: Felt 3 | BF98: Felt 4 | BI98: Vægtykkelse, t [mm] | BK98: =M18 -> 150 | BL98: Bjælke A | BM98: Bjælke B | BO98: Bjælke A | BQ98: Bjælke B | BS98: Bjælke A | BU98: Bjælke B
AM99: 1 | AV99: 1 | AX99: 2 | AZ99: tv 1 | BA99: =IF(AND($AV$101>=BA10,$AV$101<=BA11),TRUE,FALSE) -> FALSE | BB99: tv 1 | BC99: =IF(AND($AV$101>=BC10,$AV$101<=BC11),TRUE,FALSE) -> FALSE | BD99: tv 1 | BE99: =IF(AND($AV$101>=BE10,$AV$101<=BE11),TRUE,FALSE) -> FALSE | BF99: tv 1 | BG99: =IF(AND($AV$101>=BG10,$AV$101<=BG11),TRUE,FALSE) -> FALSE | BI99: Vederlagsdybder [mm] | BK99: =Q15 -> 150
AM100: 2 | AV100: x | AW100: y | AX100: x | AY100: y | AZ100: tv2 | BA100: =IF(AND($AX$101>=BA10,$AX$101<=BA11),TRUE,FALSE) -> FALSE | BB100: tv2 | BC100: =IF(AND($AX$101>=BC10,$AX$101<=BC11),TRUE,FALSE) -> FALSE | BD100: tv2 | BE100: =IF(AND($AX$101>=BE10,$AX$101<=BE11),TRUE,FALSE) -> FALSE | BF100: tv2 | BG100: =IF(AND($AX$101>=BG10,$AX$101<=BG11),TRUE,FALSE) -> FALSE | BI100: Vederlagsdybder [mm] | BK100: =Q19 -> 0 | BL100: L (m) | BM100: L (m)
AV101: =IF(AV103,AO2,1000000) -> 1000000 | AW101: 0 | AX101: =IF(AX103,AO3,1000000) -> 1000000 | AY101: 0 | AZ101: b-tv1 | BA101: =IF(BA99,MAX($AV$101-BA10,IF(BA100,$AX$101,BA11)-$AV$101),IF(BA100,0,BA11-BA10)) -> 1000 | BB101: b-tv1 | BC101: =IF(BC99,MAX($AV$101-BC10,IF(BC100,$AX$101,BC11)-$AV$101),IF(BC100,0,BC11-BC10)) -> 1000 | BD101: b-tv1 | BE101: =IF(BE99,MAX($AV$101-BE10,IF(BE100,$AX$101,BE11)-$AV$101),IF(BE100,0,BE11-BE10)) -> 1000 | BF101: b-tv1 | BG101: =IF(BG99,MAX($AV$101-BG10,IF(BG100,$AX$101,BG11)-$AV$101),IF(BG100,0,BG11-BG10)) -> 800 | BI101: ftld | BJ101: =AC9 -> 0 | BK101: MPa | BL101: =Q27 -> 0 | BM101: =R27 -> 0
AV102: =AV101 -> 1000000 | AW102: =$AM$10 -> 3000 | AX102: =AX101 -> 1000000 | AY102: =$AM$10 -> 3000 | AZ102: b-tv2 | BA102: =IF(BA100,MAX($AX$101-IF(BA99,$AV$101,BA10),BA11-$AX$101),IF(BA99,0,BA11-BA10)) -> 1000 | BB102: b-tv2 | BC102: =IF(BC100,MAX($AX$101-IF(BC99,$AV$101,BC10),BC11-$AX$101),IF(BC99,0,BC11-BC10)) -> 1000 | BD102: b-tv2 | BE102: =IF(BE100,MAX($AX$101-IF(BE99,$AV$101,BE10),BE11-$AX$101),IF(BE99,0,BE11-BE10)) -> 1000 | BF102: b-tv2 | BG102: =IF(BG100,MAX($AX$101-IF(BG99,$AV$101,BG10),BG11-$AX$101),IF(BG99,0,BG11-BG10)) -> 800 | BI102: fcd | BJ102: =AC8 -> 0 | BK102: MPa
AL103: Grafvisning | AM103: 5 | AV103: FALSE | AX103: FALSE | AZ103: beff | BA103: =MAX(BA101:BA102,0.5*BA111,0.01) -> 1000 | BB103: beff | BC103: =MAX(BC101:BC102,0.5*BC111,0.01) -> 1000 | BD103: beff | BE103: =MAX(BE101:BE102,0.5*BE111,0.01) -> 1000 | BF103: beff | BG103: =MAX(BG101:BG102,0.5*BG111,0.01) -> 800 | BI103: NB | BJ103: exc | BK103: beff | BL103: NB | BM103: NB | BO103: bæreevne | BQ103: bæreevne | BS103: bæreevne | BU103: bæreevne
AL104: Felt #1 | AM104: 1 | AZ104: H | BA104: =$AM$10 -> 3000 | BB104: H | BC104: =$AM$10 -> 3000 | BD104: H | BE104: =$AM$10 -> 3000 | BF104: H | BG104: =$AM$10 -> 3000 | BI104: (kN/m) | BJ104: (mm) | BK104: (mm) | BL104: kN | BM104: kN | BO104: kN | BQ104: kN | BS104: kN | BU104: kN
AL105: Felt #2 | AM105: 2 | AP105: Minimumsarmering | AZ105: Tilf. | BA105: =IF(BA99<>BA100,1,IF(AND(BA99,BA100),2,0)) -> 0 | BB105: Tilf. | BC105: =IF(BC99<>BC100,1,IF(AND(BC99,BC100),2,0)) -> 0 | BD105: Tilf. | BE105: =IF(BE99<>BE100,1,IF(AND(BE99,BE100),2,0)) -> 0 | BF105: Tilf. | BG105: =IF(BG99<>BG100,1,IF(AND(BG99,BG100),2,0)) -> 0 | BI105: =N31+O31+P31 -> 159 | BJ105: =(N31*$N$40+O31*$O$40+P31*$P$40)/BI84 -> 16.79245283 | BK105: =$BK$98-2*BJ105 -> 116.4150943 | BL105: =IF(BL$101=0,Q31,$BI105*BL$101*0.5) -> 12 | BM105: 15 | BO105: =5/4*$BK$99*BK105*$BJ$101*10^-3 -> 0 | BP105: =IF(BL105>$BO105,"Brud","OK") -> Brud | BQ105: =5/4*$BK$100*BK105*$BJ$101*10^-3 -> 0 | BR105: =IF(BM105>$BQ105,"Brud","OK") -> Brud | BS105: =0.8*BK105*$BK$99*$BJ$102*10^-3 -> 0 | BT105: =IF(BL105>$BS105,"Brud","OK") -> Brud | BU105: =0.8*BK105*$BK$100*$BJ$102*10^-3 -> 0 | BV105: =IF(BN105>$BS105,"Brud","OK") -> OK
E106: =IF(Makro!A1=AM104,AL104,IF(Makro!A1=AM105,AL105,IF(Makro!A1=AM106,AL106,IF(Makro!A1=AM107,AL107,"")))) -> Felt #1 | AL106: Felt #3 | AM106: 3 | AQ106: Maks N | AR106: =MAX(AQ120:AQ128)*1000 -> 225000 | AS106: N | BA106: =IF(BA105=0,1,IF(BA105=1,1/(1+(BA104/(3*BA103))^2),IF(BA103>=BA104,1/(1+(BA104/BA103)^2),BA103/(2*BA104)))) -> 1 | BC106: =IF(BC105=0,1,IF(BC105=1,1/(1+(BC104/(3*BC103))^2),IF(BC103>=BC104,1/(1+(BC104/BC103)^2),BC103/(2*BC104)))) -> 1 | BE106: =IF(BE105=0,1,IF(BE105=1,1/(1+(BE104/(3*BE103))^2),IF(BE103>=BE104,1/(1+(BE104/BE103)^2),BE103/(2*BE104)))) -> 1 | BG106: =IF(BG105=0,1,IF(BG105=1,1/(1+(BG104/(3*BG103))^2),IF(BG103>=BG104,1/(1+(BG104/BG103)^2),BG103/(2*BG104)))) -> 1 | BI106: =N32+O32+P32 -> 162 | BJ106: =(N32*$N$40+O32*$O$40+P32*$P$40)/BI85 -> 17.40740741 | BK106: =$BK$98-2*BJ106 -> 115.1851852 | BL106: 13 | BM106: 16 | BO106: =5/4*$BK$99*BK106*$BJ$101*10^-3 -> 0 | BP106: =IF(BL106>$BO106,"Brud","OK") -> Brud | BQ106: =5/4*$BK$100*BK106*$BJ$101*10^-3 -> 0 | BR106: =IF(BM106>$BQ106,"Brud","OK") -> Brud | BS106: 0 | BT106: =IF(BL106>$BS106,"Brud","OK") -> Brud | BU106: =0.8*BK106*$BK$100*$BJ$102*10^-3 -> 0 | BV106: OK
B107: Bæreevnekurve | AL107: Felt #4 | AM107: 4 | AQ107: Ac | AR107: =$M$18*1000 -> 150000 | AS107: mm2 | AZ107: Ls | BA107: =BA106*BA104 -> 3000 | BC107: =BC106*BC104 -> 3000 | BE107: =BE106*BE104 -> 3000 | BG107: =BG106*BG104 -> 3000 | BI107: =N33+O33+P33 -> 202 | BJ107: =(N33*$N$40+O33*$O$40+P33*$P$40)/BI86 -> 16.93069307 | BK107: 116.1386139 | BL107: 13 | BM107: 16 | BO107: 0 | BP107: Brud | BQ107: 0 | BR107: Brud | BS107: 0 | BT107: Brud | BU107: 0 | BV107: OK
B108: n | C108: m | AL108: Alle Felter | AM108: 5 | AQ108: Asmin | AR108: =ROUND(0.002*AR107,0) -> 300 | AS108: mm2 | AT108: Asmax | AU108: =ROUND(MAX(0.04*AR107,0.1*AR106/(L9/L11)),0) -> 6000 | AZ108: B | BA108: =BA11-BA10 -> 1000 | BC108: =BC11-BC10 -> 1000 | BE108: =BE11-BE10 -> 1000 | BG108: =BG11-BG10 -> 800 | BI108: =N34+O34+P34 -> 209 | BJ108: =(N34*$N$40+O34*$O$40+P34*$P$40)/BI87 -> 17.70334928 | BK108: 114.5933014 | BL108: 13 | BM108: 16 | BO108: 0 | BP108: Brud | BQ108: 0 | BR108: Brud | BS108: 0 | BT108: Brud | BU108: 0 | BV108: OK
B109: 0 | C109: =IF(Makro!$E$20=1,"-",D109) -> - | D109: =C110 -> - | AQ109: ½ Asmin | AR109: =ROUND(AR108/2,0) -> 150 | AS109: mm2 | AT109: ½ Asmax | AU109: =AU108*0.5 -> 3000
B110: =IF($AO$5=1,Sheet3!M10*1000,0) -> 0.1 | C110: =IF(Makro!$E$20=1,"-",D110) -> - | D110: =IF($AO$5=1,Sheet3!N10*1000,0) -> 14.5926303 | E110: 0.1 | F110: 13.85561895 | H110: =F110-C110 ->  | AL110: Trykarmering | AM110: =N9^2*N10*PI()/4 -> 335.270768 | AN110: mm^2 | AZ110: b_v | BA110: =MAX(IF(BA99,MIN($AV$101,IF(BA100,$AX$101,1000000))-BA10,0),IF(BA100,MIN(IF(BA99,$AV$101,1000000),$AX$101)-BA10,0),IF(OR(BA99,BA100),0,BA108)) -> 1000 | BC110: =MAX(IF(BC99,MIN($AV$101,IF(BC100,$AX$101,1000000))-BC10,0),IF(BC100,MIN(IF(BC99,$AV$101,1000000),$AX$101)-BC10,0),IF(OR(BC99,BC100),0,BC108)) -> 1000 | BE110: =MAX(IF(BE99,MIN($AV$101,IF(BE100,$AX$101,1000000))-BE10,0),IF(BE100,MIN(IF(BE99,$AV$101,1000000),$AX$101)-BE10,0),IF(OR(BE99,BE100),0,BE108)) -> 1000 | BG110: =MAX(IF(BG99,MIN($AV$101,IF(BG100,$AX$101,1000000))-BG10,0),IF(BG100,MIN(IF(BG99,$AV$101,1000000),$AX$101)-BG10,0),IF(OR(BG99,BG100),0,BG108)) -> 800 | BI110: =N35+O35+P35 -> 166 | BJ110: =(N35*$N$40+O35*$O$40+P35*$P$40)/BI88 -> 18.19277108 | BK110: 113.6144578 | BL110: =IF(BL$101=0,Q35,$BI110*BL$101*0.5) -> 13 | BM110: 16 | BO110: 0 | BP110: Brud | BQ110: 0 | BR110: Brud | BS110: 0 | BT110: Brud | BU110: 0 | BV110: OK
B111: =IF($AO$5=1,Sheet3!M11*1000,0) -> 32.62937956 | C111: =IF(Makro!$E$20=1,"-",D111) -> - | D111: =IF($AO$5=1,Sheet3!N11*1000,0) -> 15.18375326 | E111: 32.42329787 | F111: 14.23725777 | H111: =F111-C111 ->  | AL111: Trækarmering | AM111: =N12^2*N13*PI()/4 -> 335.270768 | AN111: mm^2 | AZ111: b_m | BA111: =IF(BA110+BA112<BA108,BA108-BA110-BA112,BA108) -> 1000 | BC111: =IF(BC110+BC112<BC108,BC108-BC110-BC112,BC108) -> 1000 | BE111: =IF(BE110+BE112<BE108,BE108-BE110-BE112,BE108) -> 1000 | BG111: =IF(BG110+BG112<BG108,BG108-BG110-BG112,BG108) -> 800 | BI111: =N36+O36+P36 -> 206 | BJ111: =(N36*$N$40+O36*$O$40+P36*$P$40)/BI89 -> 17.57281553 | BK111: 114.8543689 | BL111: 13 | BM111: 16 | BO111: 0 | BP111: Brud | BQ111: 0 | BR111: Brud | BS111: 0 | BT111: Brud | BU111: 0 | BV111: OK
B112: =IF($AO$5=1,Sheet3!M12*1000,0) -> 66.43809279 | C112: =IF(Makro!$E$20=1,"-",D112) -> - | D112: =IF($AO$5=1,Sheet3!N12*1000,0) -> 15.65272056 | E112: 60.26498718 | F112: 14.40169142 | AZ112: b_h | BA112: =MAX(IF(BA99,BA11-MAX($AV$101,IF(BA100,$AX$101,0)),0),IF(BA100,BA11-MAX(IF(BA99,$AV$101,0),$AX$101),0),IF(OR(BA99,BA100),0,BA108)) -> 1000 | BC112: =MAX(IF(BC99,BC11-MAX($AV$101,IF(BC100,$AX$101,0)),0),IF(BC100,BC11-MAX(IF(BC99,$AV$101,0),$AX$101),0),IF(OR(BC99,BC100),0,BC108)) -> 1000 | BE112: =MAX(IF(BE99,BE11-MAX($AV$101,IF(BE100,$AX$101,0)),0),IF(BE100,BE11-MAX(IF(BE99,$AV$101,0),$AX$101),0),IF(OR(BE99,BE100),0,BE108)) -> 1000 | BG112: =MAX(IF(BG99,BG11-MAX($AV$101,IF(BG100,$AX$101,0)),0),IF(BG100,BG11-MAX(IF(BG99,$AV$101,0),$AX$101),0),IF(OR(BG99,BG100),0,BG108)) -> 800 | BI112: =N37+O37+P37 -> 230 | BJ112: =(N37*$N$40+O37*$O$40+P37*$P$40)/BI90 -> 19.91304348 | BK112: 110.173913 | BL112: 13 | BM112: 16 | BO112: 0 | BP112: Brud | BQ112: 0 | BR112: Brud | BS112: 0 | BT112: Brud | BU112: 0 | BV112: OK
B113: =IF($AO$5=1,Sheet3!M13*1000,0) -> 94.83469136 | C113: =IF(Makro!$E$20=1,"-",D113) -> - | D113: =IF($AO$5=1,Sheet3!N13*1000,0) -> 15.95872396 | E113: 102.3531333 | F113: 14.40085566 | AZ113: ks | BA113: =1/(1+12*($L$8/($L$13*PI()^2))*(BA107/($M$18))^2) -> 0.7549223614 | BC113: =1/(1+12*($L$8/($L$13*PI()^2))*(BC107/($M$18))^2) -> 0.7549223614 | BE113: =1/(1+12*($L$8/($L$13*PI()^2))*(BE107/($M$18))^2) -> 0.7549223614 | BG113: =1/(1+12*($L$8/($L$13*PI()^2))*(BG107/($M$18))^2) -> 0.7549223614 | BI113: =N38+O38+P38 -> 216 | BJ113: =(N38*$N$40+O38*$O$40+P38*$P$40)/BI91 -> 17.4537037 | BK113: 115.0925926 | BL113: 13 | BM113: 16 | BO113: 0 | BP113: Brud | BQ113: 0 | BR113: Brud | BS113: 0 | BT113: Brud | BU113: 0 | BV113: OK
B114: =IF($AO$5=1,Sheet3!M14*1000,0) -> 160.4364834 | C114: =IF(Makro!$E$20=1,"-",D114) -> - | D114: =IF($AO$5=1,Sheet3!N14*1000,0) -> 16.137343 | E114: 142.9797552 | F114: 14.34827093 | AL114: Fejltabel | AN114: =IF(AN145=1,AM145,IF(MAX(AN115:AN145)=0,TRUE,FALSE)) -> For ny bruger: Klik på knappen 'angiv nyt brugernavn' for ibrugtagning. | AP114: Bredder | AZ114: NCR | BA114: =BA113*$AC$8*($M$18-2*$AC$11) -> 0 | BC114: =BC113*$AC$8*($M$18-2*$AC$11) -> 0 | BE114: =BE113*$AC$8*($M$18-2*$AC$11) -> 0 | BG114: =BG113*$AC$8*($M$18-2*$AC$11) -> 0 | BI114: =N39+O39+P39 -> 240 | BJ114: =(N39*$N$40+O39*$O$40+P39*$P$40)/BI92 -> 19.70833333 | BK114: 110.5833333 | BL114: 13 | BM114: 16 | BO114: 0 | BP114: Brud | BQ114: 0 | BR114: Brud | BS114: 0 | BT114: Brud | BU114: 0 | BV114: OK
B115: =IF($AO$5=1,Sheet3!M15*1000,0) -> 222.960043 | C115: =IF(Makro!$E$20=1,"-",D115) -> - | D115: =IF($AO$5=1,Sheet3!N15*1000,0) -> 15.95681576 | E115: 212.6696042 | F115: 13.60860177 | AL115: Programmet modtager ikke negative inddata. | AM115: =IF(AN115=0,"",AL115) ->  | AN115: =IF(MIN(L8:L11,N12:N13,N9:N10,M15:M18,P15:S19,P11,P8:P9,K25:S25,Q27:R27,Q31:R40,N40:P40,S31,S35)<0,1,0) -> 0 | AP115: b1 = | AQ115: =BA11-BA10 -> 1000 | BO115: Brud | BP115: =COUNTIF(BP105:BP114,"Brud") -> 9 | BR115: =COUNTIF(BR105:BR114,"Brud") -> 9 | BS115: Brud | BT115: =COUNTIF(BT105:BT114,"Brud") -> 9 | BV115: =COUNTIF(BV105:BV114,"Brud") -> 0
B116: =IF($AO$5=1,Sheet3!M16*1000,0) -> 281.2639561 | C116: =IF(Makro!$E$20=1,"-",D116) -> - | D116: =IF($AO$5=1,Sheet3!N16*1000,0) -> 15.72626606 | E116: 290.2392525 | F116: 11.99154122 | AP116: b2 = | AQ116: =BC11-BC10 -> 1000 | BO116: Eksist. | BP116: =Makro!D1 -> TRUE | BR116: =Makro!D5 -> TRUE | BS116: Eksist. | BT116: =Makro!D1 -> TRUE | BV116: =Makro!D5 -> TRUE
B117: =IF($AO$5=1,Sheet3!M17*1000,0) -> 372.5521106 | C117: =IF(Makro!$E$20=1,"-",D117) -> - | D117: =IF($AO$5=1,Sheet3!N17*1000,0) -> 14.2157876 | E117: 320.4213551 | F117: 11.40558328 | AL117: Partialkoefficienter skal være mellem 1 og 2. | AM117: =IF(AN117=0,"",AL117) ->  | AN117: =IF(OR(L10<1,L11<1,L10>2,L11>2),1,0) -> 0 | AP117: b3 = | AQ117: =BE11-BE10 -> 1000 | BO117: Besked: | BP117: =IF(AND(BP116,BP115>0),"(Bjælke A)","") -> (Bjælke A) | BR117: =IF(AND(BR116,BR115>0),"(Bjælke B)","") -> (Bjælke B) | BS117: Besked: | BT117: =IF(AND(BT116,BT115>0),"(Bjælke A)","") -> (Bjælke A) | BV117: =IF(AND(BV116,BV115>0),"(Bjælke B)","") -> 
B118: =IF($AO$5=1,Sheet3!M18*1000,0) -> 409.2976295 | C118: =IF(Makro!$E$20=1,"-",D118) -> - | D118: =IF($AO$5=1,Sheet3!N18*1000,0) -> 13.51197142 | E118: 340.9753361 | F118: 11.22458842 | AL118: Geometrikonflikt. | AM118: =IF(AN118=0,"",AL118) ->  | AN118: =IF(OR(BA14<BA15,BC14<BC15,BE14<BE15,BG14<BG15),1,0) -> 0 | AP118: b4 = | AQ118: =BG11-BG10 -> 800
B119: =IF($AO$5=1,Sheet3!M19*1000,0) -> 438.7233756 | C119: =IF(Makro!$E$20=1,"-",D119) -> - | D119: =IF($AO$5=1,Sheet3!N19*1000,0) -> 13.20641488 | E119: 360.4200111 | F119: 11.14783362 | AL119: Geometrikonflikt. | AM119: =IF(AN119=0,"",AL119) ->  | AN119: =IF(OR(BC10<BA14,BE10<BC14,BG10<BE14),1,0) -> 0
B120: =IF($AO$5=1,Sheet3!M20*1000,0) -> 454.0122298 | C120: =IF(Makro!$E$20=1,"-",D120) -> - | D120: =IF($AO$5=1,Sheet3!N20*1000,0) -> 13.10182252 | E120: 397.1975764 | F120: 11.12939376 | AL120: Overligger under 200 mm. | AM120: =IF(AN120=0,"",AL120) ->  | AN120: =IF(MAX(AT12,AV12,AX12)>AM10-200,1,0) -> 0 | AP120: A | AQ120: 159 | AR120: kN
B121: =IF($AO$5=1,Sheet3!M21*1000,0) -> 486.1526216 | C121: =IF(Makro!$E$20=1,"-",D121) -> - | D121: =IF($AO$5=1,Sheet3!N21*1000,0) -> 12.92826928 | E121: 431.6400893 | F121: 11.14308 | AL121: Lodret bæreevne overskredet: | AM121: =IF(AN121=0,"",AL121) ->  | AN121: =IF(MAX(AN122:AN125)=0,0,1) ->  | AP121: B | AQ121: 162 | AR121: kN
B122: =IF($AO$5=1,Sheet3!M22*1000,0) -> 531.3069496 | C122: =IF(Makro!$E$20=1,"-",D122) -> - | D122: =IF($AO$5=1,Sheet3!N22*1000,0) -> 12.72411884 | E122: 458.7471952 | F122: 11.10781345 | AL122: Vægfeltet skal beregnes som søjle. | AM122: =IF(AN122=0,"",DN54&AL122) ->  | AN122: =IF(DM54=0,0,1) ->  | AP122: C | AQ122: 202 | AR122: kN
B123: =IF($AO$5=1,Sheet3!M23*1000,0) -> 603.2434369 | C123: =IF(Makro!$E$20=1,"-",D123) -> - | D123: =IF($AO$5=1,Sheet3!N23*1000,0) -> 12.354297 | E123: 548.8977151 | F123: 10.99383594 | AL123: Vægfeltet skal beregnes som søjle. | AM123: =IF(AN123=0,"",DN64&AL123) ->  | AN123: =IF(DM64=0,0,1) ->  | AP123: D | AQ123: 209 | AR123: kN
B124: =IF($AO$5=1,Sheet3!M24*1000,0) -> 681.8928326 | C124: =IF(Makro!$E$20=1,"-",D124) -> - | D124: =IF($AO$5=1,Sheet3!N24*1000,0) -> 11.73645973 | E124: 644.960126 | F124: 10.4849065 | AL124: Vægfeltet skal beregnes som søjle. | AM124: =IF(AN124=0,"",DN74&AL124) ->  | AN124: =IF(DM74=0,0,1) ->  | AP124: E | AQ124: 163 | AR124: kN
B125: =IF($AO$5=1,Sheet3!M25*1000,0) -> 802.6271635 | C125: =IF(Makro!$E$20=1,"-",D125) -> - | D125: =IF($AO$5=1,Sheet3!N25*1000,0) -> 10.35308304 | E125: 784.9984993 | F125: 9.047333052 | AL125: Vægfeltet skal beregnes som søjle. | AM125: =IF(AN125=0,"",DN84&AL125) ->  | AN125: =IF(DM84=0,0,1) ->  | AP125: F | AQ125: 203 | AR125: kN
B126: =IF($AO$5=1,Sheet3!M26*1000,0) -> 998.5254317 | C126: =IF(Makro!$E$20=1,"-",D126) -> - | D126: =IF($AO$5=1,Sheet3!N26*1000,0) -> 6.871440403 | E126: 1019.649725 | F126: 4.736929185 | AM126: =IF(AN126=0,"",AL126) ->  | AP126: G | AQ126: 215 | AR126: kN
B127: =IF($AO$5=1,Sheet3!M27*1000,0) -> 998.5254317 | C127: =IF(Makro!$E$20=1,"-",D127) -> - | D127: =IF($AO$5=1,Sheet3!N27*1000,0) -> 6.871440403 | E127: 1019.649725 | F127: 4.736929185 | AL127: f_yk højst 600 MPa. | AM127: =IF(AN127=1,AL127&" ! ","") ->  | AN127: =IF(L9>600,1,0) -> 0 | AP127: H | AQ127: 213 | AR127: kN
B128: =IF($AO$5=1,Sheet3!M28*1000,0) -> 998.5254317 | C128: =IF(Makro!$E$20=1,"-",D128) -> - | D128: =IF($AO$5=1,Sheet3!N28*1000,0) -> 6.871440403 | E128: 1019.649725 | F128: 4.736929185 | AL128: Søjlelængde må højst være 60 h. | AM128: =IF(AN128=1,AL128&" ! ","") ->  | AN128: =IF(M16>60*M18,1,0) -> 0 | AP128: I | AQ128: 225 | AR128: kN
B129: =B128 -> 998.5254317 | C129: =IF(Makro!$E$20=1,"-",D129) -> - | D129: =IF($AO$5=1,0.1,0) -> 0.1
B130: =IF($AO$5=1,S12,0) -> 1685.270726 | C130: =IF(Makro!$E$20=1,"-",D130) -> - | D130: 0 | AL130: f_ck højst 50 MPa. | AM130: =IF(AN130=1,AL130&" ! ","") ->  | AN130: =IF(L8>50,1,0) -> 0
AL131: f_ck mindst 20 MPa. | AN131: =IF(L8<20,1,0) -> 0
AL132: t mindst 90 mm. | AN132: =IF(M18<90,1,0) -> 0
AL133: ="A_c og A_t må højst være "&AU109&" mm^2. " -> A_c og A_t må højst være 3000 mm^2. | AN133: =IF(OR(AM110>AU109,AM111>AU109),1,0) -> 0
AL134: c højst h/3 ved to lag armering. | AN134: =IF(AND(M15>M18/3,AM110>0),1,0) -> 0
AL135: ="A_eff > "&TEXT(0.65*M18*1000/L9,0)&" mm^2/m symmetrisk om vægmidte ikke opfyldt. " -> A_eff > 177 mm^2/m symmetrisk om vægmidte ikke opfyldt. | AN135: =IF(MIN(AM110,AM111)*2<0.65*M18*1000/L9,IF(AND(AM111>0.65*M18*1000/L9,M15>=M18/2-20,M15<=M18/2+20),0,1),0) -> 0
AL136: Reduceret laste skal være mindre end maskimallaste. | AN136: =IF(K25<N25,1,IF(L25<O25,1,IF(M25<P25,1,0))) -> 0
AL137: Minimallaste skal være mindre end reduceret last laste. | AN137: =IF(N25<Q25,1,IF(O25<R25,1,IF(P25<S25,1,0))) -> 0
AL139: Vægfelt 1 skal beregnes som søjle, da b er mindre end 4 t. | AM139: =IF(AN139=1,AL139&" ! ","") ->  | AN139: =IF(AQ115=0,0,IF($M$18>AQ115/4,1,0)) -> 0
AL140: Vægfelt 2 skal beregnes som søjle, da b er mindre end 4 t. | AM140: =IF(AN140=1,AL140&" ! ","") ->  | AN140: =IF(AQ116=0,0,IF($M$18>AQ116/4,1,0)) -> 0
AL141: Vægfelt 3 skal beregnes som søjle, da b er mindre end 4 t. | AM141: =IF(AN141=1,AL141&" ! ","") ->  | AN141: =IF(AQ117=0,0,IF($M$18>AQ117/4,1,0)) -> 0
AL142: Vægfelt 4 skal beregnes som søjle, da b er mindre end 4 t. | AM142: =IF(AN142=1,AL142&" ! ","") ->  | AN142: =IF(AQ118=0,0,IF($M$18>AQ118/4,1,0)) -> 0
AM143: =IF(AN143=0,"",AL143) -> 
AM144: =IF(AN144=0,"",AL144) -> 
AL145: For ny bruger: Klik på knappen 'angiv nyt brugernavn' for ibrugtagning. | AM145: =IF(AN145=1,AL145,"") -> For ny bruger: Klik på knappen 'angiv nyt brugernavn' for ibrugtagning. | AN145: =Makro!E20 -> 1
AL150: Beregning af krybetal
AL151: to | AM151: =P9 -> 28
AL152: RH | AM152: =P8 -> 55
AL153: h | AM153: =M18 -> 150
AL154: b | AM154: 1000
AL155: ho | AM155: =2*AM153*AM154/(2*(AM153+AM154)) -> 130.4347826
AL156: fck | AM156: =L8 -> 20
AL157: fcm | AM157: =AM156+8 -> 28
AL158: a1 | AM158: =IF(AM157<35,1,(35/AM157)^0.7) -> 1
AL159: a2 | AM159: =IF(AM157<35,1,(35/AM157)^0.2) -> 1
AL160: f | AM160: =(1/(0.1+AM151^0.2))*(16.8/AM157^0.5)*(1+10*AM158*(1-AM152/100)/AM155^(1/3))*AM159 -> 2.926820153

Sheet BRAND
B2: Bruger: | C2: =Kold!C2 -> 0 | K2: =Kold!K2 -> Hele vægelementer | O2: =Kold!O2 -> Betonelement-Foreningen Feb 2019 | AJ2: Tværvæg 1 | AL2: x = | AM2: 3000
B3: Sagsnavn: | C3: =Kold!C3 -> Betonelementhuset | H3: Sag nr.: | I3: =Kold!I3 -> 23 - 4545 | AJ3: Tværvæg 2 | AL3: x = | AM3: 6750
B4: Bygningsdel: | C4: =Kold!C4 -> Væg i modul B-C/3 | H4: Dato: | I4: =Kold!I4 -> 2007-01-02 | K4: =AK115&AK116&AK117&AK118&AK119&AK120&AK121&AK122&AK123&AK124&AK125&AK126&AK127&AK128&AK129&AK130&AK131&AK132&AK133&AK134&AK135&AK136&AK137&AK138&AK139&AK140&AK141&AK142&AK143&AK144&AK145 -> 
B5: Emne: | C5: Brandlastkombinationer | H5: Init: | I5: =Kold!I5 -> JFJ | T5: Kommentar
C7: =IF(Makro!B1=1,"Resultater for felt #1",IF(Makro!B1=2,"Resultater for felt #2",IF(Makro!B1=3,"Resultater for felt #3",IF(Makro!B1=4,"Resultater for felt #4","Vælg et felt og ikke alle felter i nedfaldsmenu")))) -> Vælg et felt og ikke alle felter i nedfaldsmenu | K7: Materialer | M7: Armering | O7: Brandpåvirkning | Q7: Reduktionsparametre | T7: Brudmåde 1 angiver den udbøjningsretning, hvor nv er den drivende normalkraft og omvendt for brudmåde 2 Linielast fra vind på døre/vinduer samt last fra bjælker fordeles elastisk i nabovægfelt. | AJ7: HOVEDGEOMETRI | AP7: ELEMENTGRAFIK | AX7: VÆGFELTER | CK7: Venstre | CO7: Midt | CS7: Højre
C8: nEd | D8: m0Ed | E8: m0Rd | F8: u | G8: e0 / (1+f) | H8: ssc | I8: sst | J8: x | K8: fck = | L8: =Kold!L8 -> 20 | M8: Trykarmering | O8: Tid : | P8: 60 | Q8: Randzone: | R8: a | S8: =Firsidig!E24*1000 -> 17.99100033 | AQ8: Elementrand | AS8: Vindue 2 | AU8: Vindue 1 | AY8: Felt 1 | BA8: Felt 2 | BC8: Felt 3 | BE8: Felt 4 | BJ8: NcR | BK8: t | BL8: Ls | BM8: B | BN8: b1 | BO8: b2 | BP8: h1 | BQ8: h2 | BR8: Nabo | BS8: L1 | BT8: L2 | BU8: Tilf | BV8: b_v/H | BW8: b_h/H | BX8: s1' | BY8: s2' | BZ8: n | CA8: en | CB8: N1 | CC8: eN1 | CD8: N2 | CE8: eN2 | CF8: w | CG8: mw | CH8: s1 | CI8: s0 | CJ8: s2 | CK8: n-s1 | CL8: m-s1 | CM8: sMIN | CN8: sMAX | CO8: n-s0 | CP8: m-s0 | CQ8: sMIN | CR8: sMAX | CS8: n-s2 | CT8: m-s2 | CU8: sMIN | CV8: sMAX
B9: Lasttilfælde | C9: (KN/m) | D9: (kNm/m) | E9: (kNm/m) | F9: (mm) | G9: (0/00) | H9: (MPa) | I9: (MPa) | J9: (mm) | K9: fyk = | L9: =Kold!L9 -> 550 | M9: da | N9: =Kold!N9 -> 8 | O9: Brand | Q9: Beton: | R9: kc,M | S9: =Firsidig!E21 -> 1 | AF9: Krybning | AK9: H | AL9: B | AQ9: x | AR9: y | AS9: x | AT9: y | AU9: x | AV9: y | AY9: x | AZ9: y | BA9: x | BB9: y | BC9: x | BD9: y | BE9: x | BF9: y | BH9: Felt 1 | BJ9: =$AA$13/1000 -> 0 | BK9: =$M$18/1000 -> 0.15 | BL9: =$AY$107/1000 -> 3 | BM9: =($AY$11-$AY$10)/1000 -> 1 | BN9: =($AY$16-$AY$17)/1000 -> 0.15 | BO9: =($AY$12-$AY$13)/1000 -> 0 | BP9: =$AZ$16/1000 -> 2.5 | BQ9: =$AZ$13/1000 -> 2.5 | BR9: =IF($BA$10=1000000,FALSE,TRUE) -> TRUE | BS9: =IF(AND($AO$13,$AR$76=1),$AS$80,0) -> 0 | BT9: =IF(BR9,0.5*$AZ$21/1000,IF(AND($AO$17,$AR$77=1),$BA$80,0)) -> 0.75 | BU9: =AY105 -> 0 | BV9: =AY110/M16 -> 0.3333333333 | BW9: =AY112/M16 -> 0.3333333333 | BX9: =BN9+BP9/6 -> 0.5666666667 | BY9: =BO9+BQ9/6 -> 0.4166666667 | HC9: Bruger skal registreres | HD9: 1
B10: =K31 -> A | C10: =IF(Makro!B1=5,"#",Sheet3!Y87*1000) -> # | D10: =IF(Makro!$B$1=1,DD55,IF(Makro!$B$1=2,DD65,IF(Makro!$B$1=3,DD75,IF(Makro!$B$1=4,DD85,"#")))) -> # | E10: =IF(Makro!B1=5,"#",Sheet3!AO87*1000) -> # | F10: =IF(Makro!B1=5,"#",Sheet3!AM87*1000) -> # | G10: =IF(Makro!B1=5,"#",Sheet3!AA87*1000) -> # | H10: =IF(Makro!$B$1=5,"#",3*(G10/1000)*($L$8/$L$10*$S$9)/(Firsidig!$F$21*(2+((G10/1000)/Firsidig!$F$21)^3))) -> # | I10: =IF(Makro!B1=5,"#",Sheet3!AJ87) -> # | J10: =IF(Makro!B1=5,"#",Sheet3!AL87*1000) -> # | K10: gc = | L10: 1 | M10: Antal | N10: =Kold!N10 -> 6.67 | O10: Trykside | P10: =IF(Makro!B5=2,"JA","NEJ") -> JA | Q10: Trykarm: | R10: fsy,q / fyk | S10: =Firsidig!E35 -> 0.9252913199 | AG10: fo | AH10: =Kold!P10 -> 2.926820153 | AK10: =M16 -> 3000 | AL10: =M17 -> 7000 | AQ10: 0 | AR10: 0 | AS10: =AM16 -> 5500 | AT10: =AN16 -> 1000 | AU10: =AM14 -> 1000 | AV10: =AN14 -> 1000 | AX10: 1 | AY10: =INDEX(Felt1,AX10,1+($AT$26-1)*2) -> 0 | AZ10: =INDEX(Felt1,AX10,2+($AT$26-1)*2) -> 0 | BA10: =INDEX(Felt2,AX10,1+($AT$26-1)*2) -> 2500 | BB10: =INDEX(Felt2,AX10,2+($AT$26-1)*2) -> 0 | BC10: =INDEX(Felt3,AX10,1+($AT$26-1)*2) -> 4500 | BD10: =INDEX(Felt3,AX10,2+($AT$26-1)*2) -> 0 | BE10: =INDEX(Felt4,AX10,1+($AT$26-1)*2) -> 6200 | BF10: =INDEX(Felt4,AX10,2+($AT$26-1)*2) -> 0 | BH10: Lasttilfælde | BI10: =K31 -> A | BJ10: =BJ9 -> 0 | BK10: =BK9 -> 0.15 | BL10: =BL9 -> 3 | BM10: =BM9 -> 1 | BN10: =BN9 -> 0.15 | BO10: =BO9 -> 0 | BP10: =BP9 -> 2.5 | BQ10: =BQ9 -> 2.5 | BR10: =BR9 -> TRUE | BS10: =BS9 -> 0 | BT10: =BT9 -> 0.75 | BU10: =BU9 -> 0 | BV10: =BV9 -> 0.3333333333 | BW10: =BW9 -> 0.3333333333 | BX10: =BX9 -> 0.5666666667 | BY10: =BY9 -> 0.4166666667 | BZ10: =SUM(N31:P31)/1000 -> 0.159 | CA10: =IF(BZ10=0,0,(N31*$N$41+O31*$O$41-P31*$P$41)/(1000000*BZ10)) -> 0.01518867925 | CB10: =AS84/1000 -> 0 | CC10: =AT84/1000 -> 0 | CD10: =IF(BR10,BT10*BZ10,$BA$84/1000) -> 0.11925 | CE10: =IF(BR10,CA10,$BB$84/1000) -> 0.01518867925 | CF10: =S31/1000 -> 0.00094 | CG10: =0.125*CF10*BL10^2 -> 0.0010575 | CH10: =IF(BX10+BY10<=BM10,BX10,MIN(IF(CB10=0,0,BM10*CB10/(CB10+CD10)),BX10)) -> 0.5666666667 | CI10: =BM10-CH10-CJ10 -> 0.01666666667 | CJ10: =IF(BX10+BY10<=BM10,BY10,MIN(IF(CD10=0,0,BM10*CD10/(CB10+CD10)),BY10)) -> 0.4166666667 | CK10: =IF(CH10=0,0,BZ10+CB10/CH10) -> 0.159 | CL10: =IF(CH10=0,CA10*BZ10,CA10*BZ10+CC10*CB10/CH10)+CG10+IF(BU10=0,CF10*BS10*BL10*IF(BV10>1,0.27,BV10^-1/8-29*BV10^2/800+141*BV10/800)+CF10*BT10*BL10*IF(BW10>1.5,0,BW10^-1/8+2*BW10^2/27-BW10/6),IF(BV10<0.2,CF10*BS10*BL10*0.6*BV10,CF10*BS10*BL10*IF(BV10<1,(1125*BV10^3-3225*BV10^2+3075*BV10-111)/3200,0.27))) -> 0.004165532407 | CM10: =CK10/($BK10)-6*($BJ10/($BJ10-CK10))*(CL10/$BK10^2) -> 1.06 | CN10: =CK10/($BK10)+6*($BJ10/($BJ10-CK10))*(CL10/$BK10^2) -> 1.06 | CO10: =IF(CI10=0,CK10,BZ10) -> 0.159 | CP10: =IF(CI10=0,CL10,CA10*BZ10+CG10+IF(BU10=0,CF10*(BS10+BT10)/BM10,0)) -> 0.0041775 | CQ10: =CO10/($BK10)-6*($BJ10/($BJ10-CO10))*(CP10/$BK10^2) -> 1.06 | CR10: =CO10/($BK10)+6*($BJ10/($BJ10-CO10))*(CP10/$BK10^2) -> 1.06 | CS10: =IF(CJ10=0,0,BZ10+CD10/CJ10) -> 0.4452 | CT10: =IF(CJ10=0,CA10*BZ10,CA10*BZ10+CD10*CE10/CJ10)+CG10+IF(BU10=0,CF10*BT10*BL10*IF(BW10>1,0.27,BW10^-1/8-29*BW10^2/800+141*BW10/800)+CF10*BS10*BL10*IF(BV10>1.5,0,BV10^-1/8+2*BV10^2/27-BV10/6),IF(BW10<0.2,CF10*BT10*BL10*0.6*BW10,CF10*BT10*BL10*IF(BW10<1,(1125*BW10^3-3225*BW10^2+3075*BW10-111)/3200,0.27))) -> 0.0087283625 | CU10: =CS10/($BK10)-6*($BJ10/($BJ10-CS10))*(CT10/$BK10^2) -> 2.968 | CV10: =CS10/($BK10)+6*($BJ10/($BJ10-CS10))*(CT10/$BK10^2) -> 2.968
B11: B | C11: =IF(Makro!B1=5,"#",Sheet3!Y92*1000) -> # | D11: =IF(Makro!$B$1=1,DD56,IF(Makro!$B$1=2,DD66,IF(Makro!$B$1=3,DD76,IF(Makro!$B$1=4,DD86,"#")))) -> # | E11: =IF(Makro!B1=5,"#",Sheet3!AO92*1000) -> # | F11: =IF(Makro!B1=5,"#",Sheet3!AM92*1000) -> # | G11: =IF(Makro!B1=5,"#",Sheet3!AA92*1000) -> # | H11: =IF(Makro!$B$1=5,"#",3*(G11/1000)*($L$8/$L$10*$S$9)/(Firsidig!$F$21*(2+((G11/1000)/Firsidig!$F$21)^3))) -> # | I11: =IF(Makro!B1=5,"#",Sheet3!AJ92) -> # | J11: =IF(Makro!B1=5,"#",Sheet3!AL92*1000) -> # | K11: gs = | L11: 1 | M11: Trækarmering | O11: Trækside | P11: =IF(Makro!B6=2,"JA","NEJ") -> NEJ | R11: Es,q / Es | S11: =Firsidig!E34 -> 0.997058264 | AG11: M0Eqp/M0Ed | AH11: 1 | AQ11: =AM15 -> 3500 | AR11: 0 | AS11: =AS10+AL16 -> 6200 | AT11: =AT10 -> 1000 | AU11: =AU10+AL14 -> 2500 | AV11: =AV10 -> 1000 | AX11: 2 | AY11: 1000 | AZ11: 0 | BA11: 3500 | BB11: 0 | BC11: 5500 | BD11: 0 | BE11: 7000 | BF11: 0 | BI11: B | BJ11: 0 | BK11: 0.15 | BL11: 3 | BM11: 1 | BN11: 0.15 | BO11: 0 | BP11: 2.5 | BQ11: 2.5 | BR11: TRUE | BS11: 0 | BT11: 0.75 | BU11: 0 | BV11: 0.3333333333 | BW11: 0.3333333333 | BX11: 0.5666666667 | BY11: 0.4166666667 | BZ11: 0.162 | CA11: 0.01561728395 | CB11: 0 | CC11: 0 | CD11: 0.1215 | CE11: =IF(BR11,CA11,BB85/1000) -> 0.01561728395 | CF11: 0.00094 | CG11: 0.0010575 | CH11: 0.5666666667 | CI11: 0.01666666667 | CJ11: 0.4166666667 | CK11: 0.162 | CL11: 0.004280532407 | CM11: 1.08 | CN11: 1.08 | CO11: 0.162 | CP11: 0.0042925 | CQ11: 1.08 | CR11: 1.08 | CS11: 0.4536 | CT11: 0.0090503625 | CU11: 3.024 | CV11: 3.024
B12: C | C12: =IF(Makro!B1=5,"#",Sheet3!Y97*1000) -> # | D12: =IF(Makro!$B$1=1,DD57,IF(Makro!$B$1=2,DD67,IF(Makro!$B$1=3,DD77,IF(Makro!$B$1=4,DD87,"#")))) -> # | E12: =IF(Makro!B1=5,"#",Sheet3!AO97*1000) -> # | F12: =IF(Makro!B1=5,"#",Sheet3!AM97*1000) -> # | G12: =IF(Makro!B1=5,"#",Sheet3!AA97*1000) -> # | H12: =IF(Makro!$B$1=5,"#",3*(G12/1000)*($L$8/$L$10*$S$9)/(Firsidig!$F$21*(2+((G12/1000)/Firsidig!$F$21)^3))) -> # | I12: =IF(Makro!B1=5,"#",Sheet3!AJ97) -> # | J12: =IF(Makro!B1=5,"#",Sheet3!AL97*1000) -> # | K12: Ecd = | L12: =1000*22*((L8+8)/10)^0.3/L10 -> 29961.95105 | M12: da | N12: =Kold!N12 -> 8 | O12: =INDEX($AN$141:$AN$142,Makro!$B$7,1) -> Tilslag: Søsand / granit | Q12: Trækarm: | R12: fsy,q / fyk | S12: =Firsidig!E41 -> 1 | AG12: fef | AH12: =AH10*AH11 -> 2.926820153 | AK12: h | AL12: b | AM12: x | AN12: y | AQ12: =AQ11 -> 3500 | AR12: =AK15 -> 2500 | AS12: =AS11 -> 6200 | AT12: =AT11+AK16 -> 2500 | AU12: =AU11 -> 2500 | AV12: =AV11+AK14 -> 2500 | AX12: 3 | AY12: 1000 | AZ12: 2500 | BA12: 3500 | BB12: 2500 | BC12: 5500 | BD12: 2500 | BE12: 7000 | BF12: 3000 | BI12: C | BJ12: 0 | BK12: 0.15 | BL12: 3 | BM12: 1 | BN12: 0.15 | BO12: 0 | BP12: 2.5 | BQ12: 2.5 | BR12: TRUE | BS12: 0 | BT12: 0.75 | BU12: 0 | BV12: 0.3333333333 | BW12: 0.3333333333 | BX12: 0.5666666667 | BY12: 0.4166666667 | BZ12: 0.202 | CA12: 0.0154950495 | CB12: 0 | CC12: 0 | CD12: 0.1515 | CE12: 0.0154950495 | CF12: 0.00094 | CG12: 0.0010575 | CH12: 0.5666666667 | CI12: 0.01666666667 | CJ12: 0.4166666667 | CK12: 0.202 | CL12: 0.004880532407 | CM12: 1.346666667 | CN12: 1.346666667 | CO12: 0.202 | CP12: 0.0048925 | CQ12: 1.346666667 | CR12: 1.346666667 | CS12: 0.5656 | CT12: 0.0107303625 | CU12: 3.770666667 | CV12: 3.770666667
B13: D | C13: =IF(Makro!B1=5,"#",Sheet3!Y102*1000) -> # | D13: =IF(Makro!$B$1=1,DD58,IF(Makro!$B$1=2,DD68,IF(Makro!$B$1=3,DD78,IF(Makro!$B$1=4,DD88,"#")))) -> # | E13: =IF(Makro!B1=5,"#",Sheet3!AO102*1000) -> # | F13: =IF(Makro!B1=5,"#",Sheet3!AM102*1000) -> # | G13: =IF(Makro!B1=5,"#",Sheet3!AA102*1000) -> # | H13: =IF(Makro!$B$1=5,"#",3*(G13/1000)*($L$8/$L$10*$S$9)/(Firsidig!$F$21*(2+((G13/1000)/Firsidig!$F$21)^3))) -> # | I13: =IF(Makro!B1=5,"#",Sheet3!AJ102) -> # | J13: =IF(Makro!B1=5,"#",Sheet3!AL102*1000) -> # | K13: Ecm = | L13: =L12*L10 -> 29961.95105 | M13: Antal | N13: =Kold!N13 -> 6.67 | O13: =INDEX($AN$150:$AN$152,Makro!$B$8,1) -> Stål: Bratkølet | R13: Es,q / Es | S13: =Firsidig!E40 -> 1 | AG13: =IF(OR(Makro!B3=10,AN178=1),"Der regnes med fuld krybning","Udbøjningstillæg fra krybning:") -> Udbøjningstillæg fra krybning: | AK13: =P15 -> 500 | AL13: 150 | AO13: =Makro!D1 -> TRUE | AQ13: =AQ12+AL15 -> 4500 | AR13: =AR12 -> 2500 | AS13: =AS10 -> 5500 | AT13: =AT12 -> 2500 | AU13: =AU10 -> 1000 | AV13: =AV12 -> 2500 | AX13: 4 | AY13: 1000 | AZ13: 2500 | BA13: 3500 | BB13: 2500 | BC13: 5500 | BD13: 2500 | BE13: 7000 | BF13: 3000 | BI13: D | BJ13: 0 | BK13: 0.15 | BL13: 3 | BM13: 1 | BN13: 0.15 | BO13: 0 | BP13: 2.5 | BQ13: 2.5 | BR13: TRUE | BS13: 0 | BT13: 0.75 | BU13: 0 | BV13: 0.3333333333 | BW13: 0.3333333333 | BX13: 0.5666666667 | BY13: 0.4166666667 | BZ13: 0.209 | CA13: 0.01425039872 | CB13: 0 | CC13: 0 | CD13: 0.15675 | CE13: 0.01425039872 | CF13: 0.00094 | CG13: 0.0010575 | CH13: 0.5666666667 | CI13: 0.01666666667 | CJ13: 0.4166666667 | CK13: 0.209 | CL13: 0.004728865741 | CM13: 1.393333333 | CN13: 1.393333333 | CO13: 0.209 | CP13: 0.004740833333 | CQ13: 1.393333333 | CR13: 1.393333333 | CS13: 0.5852 | CT13: 0.01030569583 | CU13: 3.901333333 | CV13: 3.901333333
B14: E | C14: =IF(Makro!B1=5,"#",Sheet3!Y107*1000) -> # | D14: =IF(Makro!$B$1=1,DD59,IF(Makro!$B$1=2,DD69,IF(Makro!$B$1=3,DD79,IF(Makro!$B$1=4,DD89,"#")))) -> # | E14: =IF(Makro!B1=5,"#",Sheet3!AO107*1000) -> # | F14: =IF(Makro!B1=5,"#",Sheet3!AM107*1000) -> # | G14: =IF(Makro!B1=5,"#",Sheet3!AA107*1000) -> # | H14: =IF(Makro!$B$1=5,"#",3*(G14/1000)*($L$8/$L$10*$S$9)/(Firsidig!$F$21*(2+((G14/1000)/Firsidig!$F$21)^3))) -> # | I14: =IF(Makro!B1=5,"#",Sheet3!AJ107) -> # | J14: =IF(Makro!B1=5,"#",Sheet3!AL107*1000) -> # | K14: Geometri - alle mål i mm | N14: Udsparinger | P14: h | Q14: b | R14: x | S14: y | AG14: Dukrybning | AH14: =IF(OR(Makro!B3=10,AN178=1),"- ",AO185*1000) -> 1.011473951 | AK14: 1500 | AL14: 1500 | AM14: =R16 -> 1000 | AN14: =S16 -> 1000 | AO14: =Makro!D2 -> TRUE | AQ14: =AQ13 -> 4500 | AR14: =0 -> 0 | AS14: =AS10 -> 5500 | AT14: =AT10 -> 1000 | AU14: =AU10 -> 1000 | AV14: =AV10 -> 1000 | AX14: 5 | AY14: 1000 | AZ14: 3000 | BA14: 3500 | BB14: 3000 | BC14: 5500 | BD14: 3000 | BE14: 7000 | BF14: 3000 | BI14: E | BJ14: 0 | BK14: 0.15 | BL14: 3 | BM14: 1 | BN14: 0.15 | BO14: 0 | BP14: 2.5 | BQ14: 2.5 | BR14: TRUE | BS14: 0 | BT14: 0.75 | BU14: 0 | BV14: 0.3333333333 | BW14: 0.3333333333 | BX14: 0.5666666667 | BY14: 0.4166666667 | BZ14: 0.166 | CA14: 0.01616465863 | CB14: 0 | CC14: 0 | CD14: 0.1245 | CE14: 0.01616465863 | CF14: 0.00047 | CG14: 0.00052875 | CH14: 0.5666666667 | CI14: 0.01666666667 | CJ14: 0.4166666667 | CK14: 0.166 | CL14: 0.003558599537 | CM14: 1.106666667 | CN14: 1.106666667 | CO14: 0.166 | CP14: 0.003564583333 | CQ14: 1.106666667 | CR14: 1.106666667 | CS14: 0.4648 | CT14: 0.008496514583 | CU14: 3.098666667 | CV14: 3.098666667
B15: F | C15: =IF(Makro!B1=5,"#",Sheet3!Y112*1000) -> # | D15: =IF(Makro!$B$1=1,DD60,IF(Makro!$B$1=2,DD70,IF(Makro!$B$1=3,DD80,IF(Makro!$B$1=4,DD90,"#")))) -> # | E15: =IF(Makro!B1=5,"#",Sheet3!AO112*1000) -> # | F15: =IF(Makro!B1=5,"#",Sheet3!AM112*1000) -> # | G15: =IF(Makro!B1=5,"#",Sheet3!AA112*1000) -> # | H15: =IF(Makro!$B$1=5,"#",3*(G15/1000)*($L$8/$L$10*$S$9)/(Firsidig!$F$21*(2+((G15/1000)/Firsidig!$F$21)^3))) -> # | I15: =IF(Makro!B1=5,"#",Sheet3!AJ112) -> # | J15: =IF(Makro!B1=5,"#",Sheet3!AL112*1000) -> # | K15: Dæklag, c = | M15: =Kold!M15 -> 40 | N15: Bjælke A | P15: 500 | Q15: 150 | AK15: 2500 | AL15: 1000 | AM15: =R17 -> 3500 | AO15: =Makro!D3 -> TRUE | AQ15: =AL10 -> 7000 | AR15: 0 | AX15: 6 | AY15: 150 | AZ15: 3000 | BA15: 2500 | BB15: 3000 | BC15: 4500 | BD15: 3000 | BE15: 6200 | BF15: 3000 | BI15: F | BJ15: 0 | BK15: 0.15 | BL15: 3 | BM15: 1 | BN15: 0.15 | BO15: 0 | BP15: 2.5 | BQ15: 2.5 | BR15: TRUE | BS15: 0 | BT15: 0.75 | BU15: 0 | BV15: 0.3333333333 | BW15: 0.3333333333 | BX15: 0.5666666667 | BY15: 0.4166666667 | BZ15: 0.206 | CA15: 0.01593851133 | CB15: 0 | CC15: 0 | CD15: 0.1545 | CE15: 0.01593851133 | CF15: 0.00047 | CG15: 0.00052875 | CH15: 0.5666666667 | CI15: 0.01666666667 | CJ15: 0.4166666667 | CK15: 0.206 | CL15: 0.004158599537 | CM15: 1.373333333 | CN15: 1.373333333 | CO15: 0.206 | CP15: 0.004164583333 | CQ15: 1.373333333 | CR15: 1.373333333 | CS15: 0.5768 | CT15: 0.01017651458 | CU15: 3.845333333 | CV15: 3.845333333
B16: G | C16: =IF(Makro!B1=5,"#",Sheet3!Y117*1000) -> # | D16: =IF(Makro!$B$1=1,DD61,IF(Makro!$B$1=2,DD71,IF(Makro!$B$1=3,DD81,IF(Makro!$B$1=4,DD91,"#")))) -> # | E16: =IF(Makro!B1=5,"#",Sheet3!AO117*1000) -> # | F16: =IF(Makro!B1=5,"#",Sheet3!AM117*1000) -> # | G16: =IF(Makro!B1=5,"#",Sheet3!AA117*1000) -> # | H16: =IF(Makro!$B$1=5,"#",3*(G16/1000)*($L$8/$L$10*$S$9)/(Firsidig!$F$21*(2+((G16/1000)/Firsidig!$F$21)^3))) -> # | I16: =IF(Makro!B1=5,"#",Sheet3!AJ117) -> # | J16: =IF(Makro!B1=5,"#",Sheet3!AL117*1000) -> # | K16: Væghøjde, H = | M16: =Kold!M16 -> 3000 | N16: Vindue 1 | P16: 1500 | Q16: 1500 | R16: 1000 | S16: 1000 | AG16: Søjlebæreevne | AK16: 1500 | AL16: 700 | AM16: =R18 -> 5500 | AN16: =S18 -> 1000 | AO16: =Makro!D4 -> TRUE | AQ16: =AQ15 -> 7000 | AR16: =AK10-AK17 -> 3000 | AX16: 7 | AY16: 150 | AZ16: 2500 | BA16: 2500 | BB16: 2500 | BC16: 4500 | BD16: 2500 | BE16: 6200 | BF16: 2500 | BI16: G | BJ16: 0 | BK16: 0.15 | BL16: 3 | BM16: 1 | BN16: 0.15 | BO16: 0 | BP16: 2.5 | BQ16: 2.5 | BR16: TRUE | BS16: 0 | BT16: 0.75 | BU16: 0 | BV16: 0.3333333333 | BW16: 0.3333333333 | BX16: 0.5666666667 | BY16: 0.4166666667 | BZ16: 0.23 | CA16: 0.01201449275 | CB16: 0 | CC16: 0 | CD16: 0.1725 | CE16: 0.01201449275 | CF16: 0.00047 | CG16: 0.00052875 | CH16: 0.5666666667 | CI16: 0.01666666667 | CJ16: 0.4166666667 | CK16: 0.23 | CL16: 0.003638599537 | CM16: 1.533333333 | CN16: 1.533333333 | CO16: 0.23 | CP16: 0.003644583333 | CQ16: 1.533333333 | CR16: 1.533333333 | CS16: 0.644 | CT16: 0.008720514583 | CU16: 4.293333333 | CV16: 4.293333333
B17: H | C17: =IF(Makro!B1=5,"#",Sheet3!Y122*1000) -> # | D17: =IF(Makro!$B$1=1,DD62,IF(Makro!$B$1=2,DD72,IF(Makro!$B$1=3,DD82,IF(Makro!$B$1=4,DD92,"#")))) -> # | E17: =IF(Makro!B1=5,"#",Sheet3!AO122*1000) -> # | F17: =IF(Makro!B1=5,"#",Sheet3!AM122*1000) -> # | G17: =IF(Makro!B1=5,"#",Sheet3!AA122*1000) -> # | H17: =IF(Makro!$B$1=5,"#",3*(G17/1000)*($L$8/$L$10*$S$9)/(Firsidig!$F$21*(2+((G17/1000)/Firsidig!$F$21)^3))) -> # | I17: =IF(Makro!B1=5,"#",Sheet3!AJ122) -> # | J17: =IF(Makro!B1=5,"#",Sheet3!AL122*1000) -> # | K17: Vægbredde, B | M17: =Kold!M17 -> 7000 | N17: Dør | P17: 2500 | Q17: 1000 | R17: 3500 | AG17: for e = 0 mm | AK17: 0 | AL17: 0 | AO17: =Makro!D5 -> TRUE | AQ17: =AQ16-AL17 -> 7000 | AR17: =AR16 -> 3000 | AX17: 8 | AY17: 0 | AZ17: 2500 | BA17: 2500 | BB17: 2500 | BC17: 4500 | BD17: 2500 | BE17: 6200 | BF17: 2500 | BI17: H | BJ17: 0 | BK17: 0.15 | BL17: 3 | BM17: 1 | BN17: 0.15 | BO17: 0 | BP17: 2.5 | BQ17: 2.5 | BR17: TRUE | BS17: 0 | BT17: 0.75 | BU17: 0 | BV17: 0.3333333333 | BW17: 0.3333333333 | BX17: 0.5666666667 | BY17: 0.4166666667 | BZ17: 0.216 | CA17: 0.01589506173 | CB17: 0 | CC17: 0 | CD17: 0.162 | CE17: 0.01589506173 | CF17: 0.00047 | CG17: 0.00052875 | CH17: 0.5666666667 | CI17: 0.01666666667 | CJ17: 0.4166666667 | CK17: 0.216 | CL17: 0.004308599537 | CM17: 1.44 | CN17: 1.44 | CO17: 0.216 | CP17: 0.004314583333 | CQ17: 1.44 | CR17: 1.44 | CS17: 0.6048 | CT17: 0.01059651458 | CU17: 4.032 | CV17: 4.032
B18: I | C18: =IF(Makro!B1=5,"#",Sheet3!Y127*1000) -> # | D18: =IF(Makro!$B$1=1,DD63,IF(Makro!$B$1=2,DD73,IF(Makro!$B$1=3,DD83,IF(Makro!$B$1=4,DD93,"#")))) -> # | E18: =IF(Makro!B1=5,"#",Sheet3!AO127*1000) -> # | F18: =IF(Makro!B1=5,"#",Sheet3!AM127*1000) -> # | G18: =IF(Makro!B1=5,"#",Sheet3!AA127*1000) -> # | H18: =IF(Makro!$B$1=5,"#",3*(G18/1000)*($L$8/$L$10*$S$9)/(Firsidig!$F$21*(2+((G18/1000)/Firsidig!$F$21)^3))) -> # | I18: =IF(Makro!B1=5,"#",Sheet3!AJ127) -> # | J18: =IF(Makro!B1=5,"#",Sheet3!AL127*1000) -> # | K18: Vægtykkelse, t | M18: =Kold!M18 -> 150 | N18: Vindue 2 | P18: 1500 | Q18: 700 | R18: 5500 | S18: 1000 | AG18: fcd | AH18: =L8/L10*S9 -> 20 | AQ18: =AQ17 -> 7000 | AR18: =AK10 -> 3000 | AS18: NA | AU18: NB | AX18: 9 | AY18: 0 | AZ18: 0 | BA18: 2500 | BB18: 0 | BC18: 4500 | BD18: 0 | BE18: 6200 | BF18: 0 | BI18: I | BJ18: 0 | BK18: 0.15 | BL18: 3 | BM18: 1 | BN18: 0.15 | BO18: 0 | BP18: 2.5 | BQ18: 2.5 | BR18: TRUE | BS18: 0 | BT18: 0.75 | BU18: 0 | BV18: 0.3333333333 | BW18: 0.3333333333 | BX18: 0.5666666667 | BY18: 0.4166666667 | BZ18: 0.24 | CA18: 0.01213888889 | CB18: 0 | CC18: 0 | CD18: 0.18 | CE18: 0.01213888889 | CF18: 0.00047 | CG18: 0.00052875 | CH18: 0.5666666667 | CI18: 0.01666666667 | CJ18: 0.4166666667 | CK18: 0.24 | CL18: 0.003788599537 | CM18: 1.6 | CN18: 1.6 | CO18: 0.24 | CP18: 0.003794583333 | CQ18: 1.6 | CR18: 1.6 | CS18: 0.672 | CT18: 0.009140514583 | CU18: 4.48 | CV18: 4.48
I19: Vælg et felt nr. | K19: Søjlelængde, Ls = | M19: =AN131 -> 0,7·H | N19: Bjælke B | AG19: E0 | AH19: =2*AH18/Firsidig!F21 -> 13270.53458 | AQ19: =AL13 -> 150 | AR19: =AR18 -> 3000 | AS19: x | AT19: y | AU19: x | AV19: y | BH19: Felt 2 | BJ19: =$AA$13/1000 -> 0 | BK19: =$M$18/1000 -> 0.15 | BL19: =$BA$107/1000 -> 3 | BM19: =($BA$11-$BA$10)/1000 -> 1 | BN19: =($BA$16-$BA$17)/1000 -> 0 | BO19: =($BA$12-$BA$13)/1000 -> 0 | BP19: =$BB$16/1000 -> 2.5 | BQ19: =$BB$13/1000 -> 2.5 | BR19: =IF($BC$10=1000000,FALSE,TRUE) -> TRUE | BS19: =BT9 -> 0.75 | BT19: =IF(BR19,0.5*$BB$21/1000,IF(AND($AO$17,$AR$77=1),$BA$80,0)) -> 0.5 | BU19: =BA105 -> 0 | BV19: =BA110/M16 -> 0.3333333333 | BW19: =BA112/M16 -> 0.3333333333 | BX19: =BN19+BP19/6 -> 0.4166666667 | BY19: =BO19+BQ19/6 -> 0.4166666667
K20: h og b er hhv højde og bredde af hullet i væggen. x og y angiver koordinaten til det nederste venstre hjørne. | AK20: Vederlagsdybder | AN20: =AH20 -> 0 | AQ20: =AQ19 -> 150 | AR20: =AR19-AK13 -> 2500 | AS20: 2 | AT20: =IF(AO13,AR20,1000000) -> 2500 | AU20: =IF(AO17,0.5*(AQ16+AQ17),1000000) -> 7000 | AV20: =IF(AO17,AR16,1000000) -> 3000 | AX20: OVERLIGGERE | BH20: Lasttilfælde | BI20: =K31 -> A | BJ20: =BJ19 -> 0 | BK20: =BK19 -> 0.15 | BL20: =BL19 -> 3 | BM20: =BM19 -> 1 | BN20: =BN19 -> 0 | BO20: =BO19 -> 0 | BP20: =BP19 -> 2.5 | BQ20: =BQ19 -> 2.5 | BR20: =BR19 -> TRUE | BS20: =BS19 -> 0.75 | BT20: =BT19 -> 0.5 | BU20: =BU19 -> 0 | BV20: =BV19 -> 0.3333333333 | BW20: =BW19 -> 0.3333333333 | BX20: =BX19 -> 0.4166666667 | BY20: =BY19 -> 0.4166666667 | BZ20: =BZ10 -> 0.159 | CA20: 0.01518867925 | CB20: =CD10 -> 0.11925 | CC20: =CE10 -> 0.01518867925 | CD20: =IF(BR20,BT20*BZ20,BA84/1000) -> 0.0795 | CE20: =IF(BR20,CA20,BB84/1000) -> 0.01518867925 | CF20: =CF10 -> 0.00094 | CG20: =0.125*CF20*BL20^2 -> 0.0010575 | CH20: =IF(BX20+BY20<=BM20,BX20,MIN(IF(CB20=0,0,BM20*CB20/(CB20+CD20)),BX20)) -> 0.4166666667 | CI20: =BM20-CH20-CJ20 -> 0.1666666667 | CJ20: =IF(BX20+BY20<=BM20,BY20,MIN(IF(CD20=0,0,BM20*CD20/(CB20+CD20)),BY20)) -> 0.4166666667 | CK20: =IF(CH20=0,0,BZ20+CB20/CH20) -> 0.4452 | CL20: =IF(BR10,IF(CH20=0,CA20*BZ20,CA20*BZ20+CC20*CB20/CH20)+CG20+IF(BU20=0,CF20*BS20*BL20*IF(BV20>1,0.27,BV20^-1/8-29*BV20^2/800+141*BV20/800)+CF20*BT20*BL20*IF(BW20>1.5,0,BW20^-1/8+2*BW20^2/27-BW20/6),IF(BV20<0.2,CF20*BS20*BL20*0.6*BV20,CF20*BS20*BL20*IF(BV20<1,(1125*BV20^3-3225*BV20^2+3075*BV20-111)/3200,0.27))),0) -> 0.009190384105 | CM20: =CK20/($BK20)-6*($BJ20/($BJ20-CK20))*(CL20/$BK20^2) -> 2.968 | CN20: =CK20/($BK20)+6*($BJ20/($BJ20-CK20))*(CL20/$BK20^2) -> 2.968 | CO20: =IF(CI20=0,CK20,BZ20) -> 0.159 | CP20: =IF(CI20=0,CL20,CA20*BZ20+CG20+IF(BU20=0,CF20*(BS20+BT20)/BM20,0)) -> 0.0046475 | CQ20: =CO20/($BK20)-6*($BJ20/($BJ20-CO20))*(CP20/$BK20^2) -> 1.06 | CR20: =CO20/($BK20)+6*($BJ20/($BJ20-CO20))*(CP20/$BK20^2) -> 1.06 | CS20: =IF(CJ20=0,0,BZ20+CD20/CJ20) -> 0.3498 | CT20: =IF(BR10,IF(CJ20=0,CA20*BZ20,CA20*BZ20+CD20*CE20/CJ20)+CG20+IF(BU20=0,CF20*BT20*BL20*IF(BW20>1,0.27,BW20^-1/8-29*BW20^2/800+141*BW20/800)+CF20*BS20*BL20*IF(BV20>1.5,0,BV20^-1/8+2*BV20^2/27-BV20/6),IF(BW20<0.2,CF20*BT20*BL20*0.6*BW20,CF20*BT20*BL20*IF(BW20<1,(1125*BW20^3-3225*BW20^2+3075*BW20-111)/3200,0.27))),0) -> 0.007669440741 | CU20: =CS20/($BK20)-6*($BJ20/($BJ20-CS20))*(CT20/$BK20^2) -> 2.332 | CV20: =CS20/($BK20)+6*($BJ20/($BJ20-CS20))*(CT20/$BK20^2) -> 2.332
I21: =IF(Makro!B1=5,"Alle felter","Felt #" & TEXT(Makro!$B$1,"0")) -> Alle felter | K21: Hvis væggen forsynes med kun ét lag armering skal dette være træklaget aht. beregningerne | AG21: H | AH21: =AN135 -> 2100 | AQ21: 0 | AR21: =AR20 -> 2500 | AS21: 2 | AT21: =AT20+400 -> 2900 | AU21: =AU20 -> 7000 | AV21: =AV20+400 -> 3400 | AZ21: =IF(BA10=1000000,0,BA15-AY13-2*AN20) -> 1500 | BB21: =IF(BC10=1000000,0,BC15-BA13-2*AN20) -> 1000 | BD21: =IF(BE10=1000000,0,BE15-BC13-2*AN20) -> 700 | BI21: B | BJ21: 0 | BK21: 0.15 | BL21: 3 | BM21: 1 | BN21: 0 | BO21: 0 | BP21: 2.5 | BQ21: 2.5 | BR21: TRUE | BS21: 0.75 | BT21: 0.5 | BU21: 0 | BV21: 0.3333333333 | BW21: 0.3333333333 | BX21: 0.4166666667 | BY21: 0.4166666667 | BZ21: 0.162 | CA21: 0.01561728395 | CB21: 0.1215 | CC21: 0.01561728395 | CD21: 0.081 | CE21: 0.01561728395 | CF21: 0.00094 | CG21: 0.0010575 | CH21: 0.4166666667 | CI21: 0.1666666667 | CJ21: 0.4166666667 | CK21: 0.4536 | CL21: 0.009512384105 | CM21: 3.024 | CN21: 3.024 | CO21: 0.162 | CP21: 0.0047625 | CQ21: 1.08 | CR21: 1.08 | CS21: 0.3564 | CT21: 0.007922440741 | CU21: 2.376 | CV21: 2.376
K22: Jævnt fordelte laste på vægoverside | AG22: t | AH22: =AS149 -> 132.0089997 | AQ22: 0 | AR22: 0 | BI22: C | BJ22: 0 | BK22: 0.15 | BL22: 3 | BM22: 1 | BN22: 0 | BO22: 0 | BP22: 2.5 | BQ22: 2.5 | BR22: TRUE | BS22: 0.75 | BT22: 0.5 | BU22: 0 | BV22: 0.3333333333 | BW22: 0.3333333333 | BX22: 0.4166666667 | BY22: 0.4166666667 | BZ22: 0.202 | CA22: 0.0154950495 | CB22: 0.1515 | CC22: 0.0154950495 | CD22: 0.101 | CE22: 0.0154950495 | CF22: 0.00094 | CG22: 0.0010575 | CH22: 0.4166666667 | CI22: 0.1666666667 | CJ22: 0.4166666667 | CK22: 0.5656 | CL22: 0.0111923841 | CM22: 3.770666667 | CN22: 3.770666667 | CO22: 0.202 | CP22: 0.0053625 | CQ22: 1.346666667 | CR22: 1.346666667 | CS22: 0.4444 | CT22: 0.009242440741 | CU22: 2.962666667 | CV22: 2.962666667
K23: Maksimallaste (kN/m) | N23: Reducerede laste (kN/m) | Q23: Minimallaste (kN/m) | AG23: scrd = | AH23: =AH18/(1+12*(AH18*AH21^2)/(PI()^2*AH19*AH22^2)) -> 13.66382784 | BI23: D | BJ23: 0 | BK23: 0.15 | BL23: 3 | BM23: 1 | BN23: 0 | BO23: 0 | BP23: 2.5 | BQ23: 2.5 | BR23: TRUE | BS23: 0.75 | BT23: 0.5 | BU23: 0 | BV23: 0.3333333333 | BW23: 0.3333333333 | BX23: 0.4166666667 | BY23: 0.4166666667 | BZ23: 0.209 | CA23: 0.01425039872 | CB23: 0.15675 | CC23: 0.01425039872 | CD23: 0.1045 | CE23: 0.01425039872 | CF23: 0.00094 | CG23: 0.0010575 | CH23: 0.4166666667 | CI23: 0.1666666667 | CJ23: 0.4166666667 | CK23: 0.5852 | CL23: 0.01076771744 | CM23: 3.901333333 | CN23: 3.901333333 | CO23: 0.209 | CP23: 0.005210833333 | CQ23: 1.393333333 | CR23: 1.393333333 | CS23: 0.4598 | CT23: 0.008908774074 | CU23: 3.065333333 | CV23: 3.065333333
K24: nv | L24: no | M24: nh | N24: nv | O24: no | P24: nh | Q24: nv | R24: no | S24: nh | AG24: Ncr | AH24: =AH23*AH22 -> 1803.748245 | BI24: E | BJ24: 0 | BK24: 0.15 | BL24: 3 | BM24: 1 | BN24: 0 | BO24: 0 | BP24: 2.5 | BQ24: 2.5 | BR24: TRUE | BS24: 0.75 | BT24: 0.5 | BU24: 0 | BV24: 0.3333333333 | BW24: 0.3333333333 | BX24: 0.4166666667 | BY24: 0.4166666667 | BZ24: 0.166 | CA24: 0.01616465863 | CB24: 0.1245 | CC24: 0.01616465863 | CD24: 0.083 | CE24: 0.01616465863 | CF24: 0.00047 | CG24: 0.00052875 | CH24: 0.4166666667 | CI24: 0.1666666667 | CJ24: 0.4166666667 | CK24: 0.4648 | CL24: 0.008727525386 | CM24: 3.098666667 | CN24: 3.098666667 | CO24: 0.166 | CP24: 0.003799583333 | CQ24: 1.106666667 | CR24: 1.106666667 | CS24: 0.3652 | CT24: 0.007081553704 | CU24: 2.434666667 | CV24: 2.434666667
K25: 13 | L25: 200 | M25: 27 | N25: 9 | O25: 190 | P25: 10 | Q25: 6 | R25: 150 | S25: 3 | BI25: F | BJ25: 0 | BK25: 0.15 | BL25: 3 | BM25: 1 | BN25: 0 | BO25: 0 | BP25: 2.5 | BQ25: 2.5 | BR25: TRUE | BS25: 0.75 | BT25: 0.5 | BU25: 0 | BV25: 0.3333333333 | BW25: 0.3333333333 | BX25: 0.4166666667 | BY25: 0.4166666667 | BZ25: 0.206 | CA25: 0.01593851133 | CB25: 0.1545 | CC25: 0.01593851133 | CD25: 0.103 | CE25: 0.01593851133 | CF25: 0.00047 | CG25: 0.00052875 | CH25: 0.4166666667 | CI25: 0.1666666667 | CJ25: 0.4166666667 | CK25: 0.5768 | CL25: 0.01040752539 | CM25: 3.845333333 | CN25: 3.845333333 | CO25: 0.206 | CP25: 0.004399583333 | CQ25: 1.373333333 | CR25: 1.373333333 | CS25: 0.4532 | CT25: 0.008401553704 | CU25: 3.021333333 | CV25: 3.021333333
K26: Belastning fra bjælke A (venstre side) som: | O26: =INDEX(AO76:AO77,AR76,1) -> Vægoverligger | AJ26: INDDATAFORMATER | AP26: BASISTILFÆLDE: | AT26: =MIN(AP32:BD32) -> 4 | BI26: G | BJ26: 0 | BK26: 0.15 | BL26: 3 | BM26: 1 | BN26: 0 | BO26: 0 | BP26: 2.5 | BQ26: 2.5 | BR26: TRUE | BS26: 0.75 | BT26: 0.5 | BU26: 0 | BV26: 0.3333333333 | BW26: 0.3333333333 | BX26: 0.4166666667 | BY26: 0.4166666667 | BZ26: 0.23 | CA26: 0.01201449275 | CB26: 0.1725 | CC26: 0.01201449275 | CD26: 0.115 | CE26: 0.01201449275 | CF26: 0.00047 | CG26: 0.00052875 | CH26: 0.4166666667 | CI26: 0.1666666667 | CJ26: 0.4166666667 | CK26: 0.644 | CL26: 0.008951525386 | CM26: 4.293333333 | CN26: 4.293333333 | CO26: 0.23 | CP26: 0.003879583333 | CQ26: 1.533333333 | CR26: 1.533333333 | CS26: 0.506 | CT26: 0.007257553704 | CU26: 3.373333333 | CV26: 3.373333333
K27: Belastning fra bjælke B (højre side) som: | O27: =INDEX(AO76:AO77,AR77,1) -> Vægoverligger | AK27: h | AL27: b | AM27: x | AN27: y | BI27: H | BJ27: 0 | BK27: 0.15 | BL27: 3 | BM27: 1 | BN27: 0 | BO27: 0 | BP27: 2.5 | BQ27: 2.5 | BR27: TRUE | BS27: 0.75 | BT27: 0.5 | BU27: 0 | BV27: 0.3333333333 | BW27: 0.3333333333 | BX27: 0.4166666667 | BY27: 0.4166666667 | BZ27: 0.216 | CA27: 0.01589506173 | CB27: 0.162 | CC27: 0.01589506173 | CD27: 0.108 | CE27: 0.01589506173 | CF27: 0.00047 | CG27: 0.00052875 | CH27: 0.4166666667 | CI27: 0.1666666667 | CJ27: 0.4166666667 | CK27: 0.6048 | CL27: 0.01082752539 | CM27: 4.032 | CN27: 4.032 | CO27: 0.216 | CP27: 0.004549583333 | CQ27: 1.44 | CR27: 1.44 | CS27: 0.4752 | CT27: 0.008731553704 | CU27: 3.168 | CV27: 3.168
K28: Brudmåde: | N28: Jævnt fordelt last, overside | Q28: Bjælkereaktioner | S28: Vind | AK28: 500 | AL28: 150 | AO28: =AO13 -> TRUE | AP28: 1 | AR28: 2 | AT28: 3 | AV28: 4 | AX28: 5 | AZ28: 6 | BB28: 7 | BD28: 8 | BI28: I | BJ28: 0 | BK28: 0.15 | BL28: 3 | BM28: 1 | BN28: 0 | BO28: 0 | BP28: 2.5 | BQ28: 2.5 | BR28: TRUE | BS28: 0.75 | BT28: 0.5 | BU28: 0 | BV28: 0.3333333333 | BW28: 0.3333333333 | BX28: 0.4166666667 | BY28: 0.4166666667 | BZ28: 0.24 | CA28: 0.01213888889 | CB28: 0.18 | CC28: 0.01213888889 | CD28: 0.12 | CE28: 0.01213888889 | CF28: 0.00047 | CG28: 0.00052875 | CH28: 0.4166666667 | CI28: 0.1666666667 | CJ28: 0.4166666667 | CK28: 0.672 | CL28: 0.009371525386 | CM28: 4.48 | CN28: 4.48 | CO28: 0.24 | CP28: 0.004029583333 | CQ28: 1.6 | CR28: 1.6 | CS28: 0.528 | CT28: 0.007587553704 | CU28: 3.52 | CV28: 3.52
K29: Referencelast: | M29: =IF(Makro!B3=10,"INGEN",CHAR(64+Makro!B3)) -> B | N29: n1 | O29: n0 | P29: n2 | Q29: NA | R29: NB | S29: w | AK29: 1500 | AL29: 1500 | AM29: 1000 | AN29: 1000 | AO29: =AO14 -> TRUE | AP29: FALSE | AR29: TRUE | AT29: TRUE | AV29: TRUE | AX29: TRUE | AZ29: FALSE | BB29: FALSE | BD29: FALSE | BH29: Felt 3 | BJ29: =$AA$13/1000 -> 0 | BK29: =$M$18/1000 -> 0.15 | BL29: =$BC$107/1000 -> 3 | BM29: =($BC$11-$BC$10)/1000 -> 1 | BN29: =($BC$16-$BC$17)/1000 -> 0 | BO29: =($BC$12-$BC$13)/1000 -> 0 | BP29: =$BD$16/1000 -> 2.5 | BQ29: =$BD$13/1000 -> 2.5 | BR29: =IF($BE$10=1000000,FALSE,TRUE) -> TRUE | BS29: =BT19 -> 0.5 | BT29: =IF(BR29,0.5*$BD$21/1000,IF(AND($AO$17,$AR$77=1),$BA$80,0)) -> 0.35 | BU29: =BC105 -> 0 | BV29: =BC110/M16 -> 0.3333333333 | BW29: =BC112/M16 -> 0.3333333333 | BX29: =BN29+BP29/6 -> 0.4166666667 | BY29: =BO29+BQ29/6 -> 0.4166666667
N30: (kN/m) | O30: (kN/m) | P30: (kN/m) | Q30: (kN) | R30: (kN) | S30: (kN/m2) | AK30: 2500 | AL30: 1000 | AM30: 3500 | AO30: =AO15 -> TRUE | AP30: FALSE | AR30: FALSE | AT30: TRUE | AV30: TRUE | AX30: FALSE | AZ30: TRUE | BB30: TRUE | BD30: FALSE | BH30: Lasttilfælde | BI30: =K31 -> A | BJ30: =BJ29 -> 0 | BK30: =BK29 -> 0.15 | BL30: =BL29 -> 3 | BM30: =BM29 -> 1 | BN30: =BN29 -> 0 | BO30: =BO29 -> 0 | BP30: =BP29 -> 2.5 | BQ30: =BQ29 -> 2.5 | BR30: =BR29 -> TRUE | BS30: =BS29 -> 0.5 | BT30: =BT29 -> 0.35 | BU30: =BU29 -> 0 | BV30: =BV29 -> 0.3333333333 | BW30: =BW29 -> 0.3333333333 | BX30: =BX29 -> 0.4166666667 | BY30: =BY29 -> 0.4166666667 | BZ30: =BZ20 -> 0.159 | CA30: 0.01518867925 | CB30: =CD20 -> 0.0795 | CC30: =CE20 -> 0.01518867925 | CD30: =IF(BR30,BT30*BZ30,BA84/1000) -> 0.05565 | CE30: =IF(BR30,CA30,BB84/1000) -> 0.01518867925 | CF30: =CF20 -> 0.00094 | CG30: =0.125*CF30*BL30^2 -> 0.0010575 | CH30: =IF(BX30+BY30<=BM30,BX30,MIN(IF(CB30=0,0,BM30*CB30/(CB30+CD30)),BX30)) -> 0.4166666667 | CI30: =BM30-CH30-CJ30 -> 0.1666666667 | CJ30: =IF(BX30+BY30<=BM30,BY30,MIN(IF(CD30=0,0,BM30*CD30/(CB30+CD30)),BY30)) -> 0.4166666667 | CK30: =IF(CH30=0,0,BZ30+CB30/CH30) -> 0.3498 | CL30: =IF(BR20,IF(CH30=0,CA30*BZ30,CA30*BZ30+CC30*CB30/CH30)+CG30+IF(BU30=0,CF30*BS30*BL30*IF(BV30>1,0.27,BV30^-1/8-29*BV30^2/800+141*BV30/800)+CF30*BT30*BL30*IF(BW30>1.5,0,BW30^-1/8+2*BW30^2/27-BW30/6),IF(BV30<0.2,CF30*BS30*BL30*0.6*BV30,CF30*BS30*BL30*IF(BV30<1,(1125*BV30^3-3225*BV30^2+3075*BV30-111)/3200,0.27))),0) -> 0.007299823457 | CM30: =CK30/($BK30)-6*($BJ30/($BJ30-CK30))*(CL30/$BK30^2) -> 2.332 | CN30: =CK30/($BK30)+6*($BJ30/($BJ30-CK30))*(CL30/$BK30^2) -> 2.332 | CO30: =IF(CI30=0,CK30,BZ30) -> 0.159 | CP30: =IF(CI30=0,CL30,CA30*BZ30+CG30+IF(BU30=0,CF30*(BS30+BT30)/BM30,0)) -> 0.0042715 | CQ30: =CO30/($BK30)-6*($BJ30/($BJ30-CO30))*(CP30/$BK30^2) -> 1.06 | CR30: =CO30/($BK30)+6*($BJ30/($BJ30-CO30))*(CP30/$BK30^2) -> 1.06 | CS30: =IF(CJ30=0,0,BZ30+CD30/CJ30) -> 0.29256 | CT30: =IF(BR20,IF(CJ30=0,CA30*BZ30,CA30*BZ30+CD30*CE30/CJ30)+CG30+IF(BU30=0,CF30*BT30*BL30*IF(BW30>1,0.27,BW30^-1/8-29*BW30^2/800+141*BW30/800)+CF30*BS30*BL30*IF(BV30>1.5,0,BV30^-1/8+2*BV30^2/27-BV30/6),IF(BW30<0.2,CF30*BT30*BL30*0.6*BW30,CF30*BT30*BL30*IF(BW30<1,(1125*BW30^3-3225*BW30^2+3075*BW30-111)/3200,0.27))),0) -> 0.006387257438 | CU30: =CS30/($BK30)-6*($BJ30/($BJ30-CS30))*(CT30/$BK30^2) -> 1.9504 | CV30: =CS30/($BK30)+6*($BJ30/($BJ30-CS30))*(CT30/$BK30^2) -> 1.9504
K31: A | L31: Med maksimal vind | N31: =INDEX(Laste,ROW()-30+9*(2-Makro!$B$2),1) -> 6 | O31: =INDEX(Laste,ROW()-30+9*(2-Makro!$B$2),2) -> 150 | P31: =INDEX(Laste,ROW()-30+9*(2-Makro!$B$2),3) -> 3 | Q31: 12 | R31: 15 | S31: 0.94 | AK31: 1500 | AL31: 800 | AM31: 5500 | AN31: 1000 | AO31: =AO16 -> TRUE | AP31: FALSE | AR31: FALSE | AT31: FALSE | AV31: TRUE | AX31: TRUE | AZ31: FALSE | BB31: TRUE | BD31: TRUE | BI31: B | BJ31: 0 | BK31: 0.15 | BL31: 3 | BM31: 1 | BN31: 0 | BO31: 0 | BP31: 2.5 | BQ31: 2.5 | BR31: TRUE | BS31: 0.5 | BT31: 0.35 | BU31: 0 | BV31: 0.3333333333 | BW31: 0.3333333333 | BX31: 0.4166666667 | BY31: 0.4166666667 | BZ31: 0.162 | CA31: 0.01561728395 | CB31: 0.081 | CC31: 0.01561728395 | CD31: 0.0567 | CE31: 0.01561728395 | CF31: 0.00094 | CG31: 0.0010575 | CH31: 0.4166666667 | CI31: 0.1666666667 | CJ31: 0.4166666667 | CK31: 0.3564 | CL31: 0.007552823457 | CM31: 2.376 | CN31: 2.376 | CO31: 0.162 | CP31: 0.0043865 | CQ31: 1.08 | CR31: 1.08 | CS31: 0.29808 | CT31: 0.006598857438 | CU31: 1.9872 | CV31: 1.9872
K32: B | N32: =INDEX(Laste,ROW()-30+9*(2-Makro!$B$2),1) -> 9 | O32: =INDEX(Laste,ROW()-30+9*(2-Makro!$B$2),2) -> 150 | P32: =INDEX(Laste,ROW()-30+9*(2-Makro!$B$2),3) -> 3 | Q32: 13 | R32: 16 | S32: =S31 -> 0.94 | AK32: 500 | AL32: 150 | AO32: =AO17 -> TRUE | AP32: =IF(AND(AP29=$AO29,AP30=$AO30,AP31=$AO31),AP28,1000) -> 1000 | AR32: =IF(AND(AR29=$AO29,AR30=$AO30,AR31=$AO31),AR28,1000) -> 1000 | AT32: =IF(AND(AT29=$AO29,AT30=$AO30,AT31=$AO31),AT28,1000) -> 1000 | AV32: =IF(AND(AV29=$AO29,AV30=$AO30,AV31=$AO31),AV28,1000) -> 4 | AX32: =IF(AND(AX29=$AO29,AX30=$AO30,AX31=$AO31),AX28,1000) -> 1000 | AZ32: =IF(AND(AZ29=$AO29,AZ30=$AO30,AZ31=$AO31),AZ28,1000) -> 1000 | BB32: =IF(AND(BB29=$AO29,BB30=$AO30,BB31=$AO31),BB28,1000) -> 1000 | BD32: =IF(AND(BD29=$AO29,BD30=$AO30,BD31=$AO31),BD28,1000) -> 1000 | BI32: C | BJ32: 0 | BK32: 0.15 | BL32: 3 | BM32: 1 | BN32: 0 | BO32: 0 | BP32: 2.5 | BQ32: 2.5 | BR32: TRUE | BS32: 0.5 | BT32: 0.35 | BU32: 0 | BV32: 0.3333333333 | BW32: 0.3333333333 | BX32: 0.4166666667 | BY32: 0.4166666667 | BZ32: 0.202 | CA32: 0.0154950495 | CB32: 0.101 | CC32: 0.0154950495 | CD32: 0.0707 | CE32: 0.0154950495 | CF32: 0.00094 | CG32: 0.0010575 | CH32: 0.4166666667 | CI32: 0.1666666667 | CJ32: 0.4166666667 | CK32: 0.4444 | CL32: 0.008872823457 | CM32: 2.962666667 | CN32: 2.962666667 | CO32: 0.202 | CP32: 0.0049865 | CQ32: 1.346666667 | CR32: 1.346666667 | CS32: 0.37168 | CT32: 0.007702857438 | CU32: 2.477866667 | CV32: 2.477866667
K33: C | N33: =INDEX(Laste,ROW()-30+9*(2-Makro!$B$2),1) -> 9 | O33: =INDEX(Laste,ROW()-30+9*(2-Makro!$B$2),2) -> 190 | P33: =INDEX(Laste,ROW()-30+9*(2-Makro!$B$2),3) -> 3 | Q33: 13 | R33: 16 | S33: =S32 -> 0.94 | BI33: D | BJ33: 0 | BK33: 0.15 | BL33: 3 | BM33: 1 | BN33: 0 | BO33: 0 | BP33: 2.5 | BQ33: 2.5 | BR33: TRUE | BS33: 0.5 | BT33: 0.35 | BU33: 0 | BV33: 0.3333333333 | BW33: 0.3333333333 | BX33: 0.4166666667 | BY33: 0.4166666667 | BZ33: 0.209 | CA33: 0.01425039872 | CB33: 0.1045 | CC33: 0.01425039872 | CD33: 0.07315 | CE33: 0.01425039872 | CF33: 0.00094 | CG33: 0.0010575 | CH33: 0.4166666667 | CI33: 0.1666666667 | CJ33: 0.4166666667 | CK33: 0.4598 | CL33: 0.00853915679 | CM33: 3.065333333 | CN33: 3.065333333 | CO33: 0.209 | CP33: 0.004834833333 | CQ33: 1.393333333 | CR33: 1.393333333 | CS33: 0.38456 | CT33: 0.007423790772 | CU33: 2.563733333 | CV33: 2.563733333
K34: D | N34: =INDEX(Laste,ROW()-30+9*(2-Makro!$B$2),1) -> 9 | O34: =INDEX(Laste,ROW()-30+9*(2-Makro!$B$2),2) -> 190 | P34: =INDEX(Laste,ROW()-30+9*(2-Makro!$B$2),3) -> 10 | Q34: 13 | R34: 16 | S34: =S33 -> 0.94 | BI34: E | BJ34: 0 | BK34: 0.15 | BL34: 3 | BM34: 1 | BN34: 0 | BO34: 0 | BP34: 2.5 | BQ34: 2.5 | BR34: TRUE | BS34: 0.5 | BT34: 0.35 | BU34: 0 | BV34: 0.3333333333 | BW34: 0.3333333333 | BX34: 0.4166666667 | BY34: 0.4166666667 | BZ34: 0.166 | CA34: 0.01616465863 | CB34: 0.083 | CC34: 0.01616465863 | CD34: 0.0581 | CE34: 0.01616465863 | CF34: 0.00047 | CG34: 0.00052875 | CH34: 0.4166666667 | CI34: 0.1666666667 | CJ34: 0.4166666667 | CK34: 0.3652 | CL34: 0.006896745062 | CM34: 2.434666667 | CN34: 2.434666667 | CO34: 0.166 | CP34: 0.003611583333 | CQ34: 1.106666667 | CR34: 1.106666667 | CS34: 0.30544 | CT34: 0.005909162052 | CU34: 2.036266667 | CV34: 2.036266667
K35: E | L35: Med reduceret vind | N35: =INDEX(Laste,ROW()-30+9*(2-Makro!$B$2),1) -> 13 | O35: =INDEX(Laste,ROW()-30+9*(2-Makro!$B$2),2) -> 150 | P35: =INDEX(Laste,ROW()-30+9*(2-Makro!$B$2),3) -> 3 | Q35: 13 | R35: 16 | S35: 0.47 | BI35: F | BJ35: 0 | BK35: 0.15 | BL35: 3 | BM35: 1 | BN35: 0 | BO35: 0 | BP35: 2.5 | BQ35: 2.5 | BR35: TRUE | BS35: 0.5 | BT35: 0.35 | BU35: 0 | BV35: 0.3333333333 | BW35: 0.3333333333 | BX35: 0.4166666667 | BY35: 0.4166666667 | BZ35: 0.206 | CA35: 0.01593851133 | CB35: 0.103 | CC35: 0.01593851133 | CD35: 0.0721 | CE35: 0.01593851133 | CF35: 0.00047 | CG35: 0.00052875 | CH35: 0.4166666667 | CI35: 0.1666666667 | CJ35: 0.4166666667 | CK35: 0.4532 | CL35: 0.008216745062 | CM35: 3.021333333 | CN35: 3.021333333 | CO35: 0.206 | CP35: 0.004211583333 | CQ35: 1.373333333 | CR35: 1.373333333 | CS35: 0.37904 | CT35: 0.007013162052 | CU35: 2.526933333 | CV35: 2.526933333
K36: F | N36: =INDEX(Laste,ROW()-30+9*(2-Makro!$B$2),1) -> 13 | O36: =INDEX(Laste,ROW()-30+9*(2-Makro!$B$2),2) -> 190 | P36: =INDEX(Laste,ROW()-30+9*(2-Makro!$B$2),3) -> 3 | Q36: 13 | R36: 16 | S36: =S35 -> 0.47 | BI36: G | BJ36: 0 | BK36: 0.15 | BL36: 3 | BM36: 1 | BN36: 0 | BO36: 0 | BP36: 2.5 | BQ36: 2.5 | BR36: TRUE | BS36: 0.5 | BT36: 0.35 | BU36: 0 | BV36: 0.3333333333 | BW36: 0.3333333333 | BX36: 0.4166666667 | BY36: 0.4166666667 | BZ36: 0.23 | CA36: 0.01201449275 | CB36: 0.115 | CC36: 0.01201449275 | CD36: 0.0805 | CE36: 0.01201449275 | CF36: 0.00047 | CG36: 0.00052875 | CH36: 0.4166666667 | CI36: 0.1666666667 | CJ36: 0.4166666667 | CK36: 0.506 | CL36: 0.007072745062 | CM36: 3.373333333 | CN36: 3.373333333 | CO36: 0.23 | CP36: 0.003691583333 | CQ36: 1.533333333 | CR36: 1.533333333 | CS36: 0.4232 | CT36: 0.006056362052 | CU36: 2.821333333 | CV36: 2.821333333
K37: G | N37: =INDEX(Laste,ROW()-30+9*(2-Makro!$B$2),1) -> 13 | O37: =INDEX(Laste,ROW()-30+9*(2-Makro!$B$2),2) -> 190 | P37: =INDEX(Laste,ROW()-30+9*(2-Makro!$B$2),3) -> 27 | Q37: 13 | R37: 16 | S37: =S36 -> 0.47 | T37: NB: Resultaterne skal altid kontrolleres af ansvarlig statiker | AP37: x | AQ37: y | AR37: x | AS37: y | AT37: x | AU37: y | AV37: x | AW37: y | AX37: x | AY37: y | AZ37: x | BA37: y | BB37: x | BC37: y | BD37: x | BE37: y | BI37: H | BJ37: 0 | BK37: 0.15 | BL37: 3 | BM37: 1 | BN37: 0 | BO37: 0 | BP37: 2.5 | BQ37: 2.5 | BR37: TRUE | BS37: 0.5 | BT37: 0.35 | BU37: 0 | BV37: 0.3333333333 | BW37: 0.3333333333 | BX37: 0.4166666667 | BY37: 0.4166666667 | BZ37: 0.216 | CA37: 0.01589506173 | CB37: 0.108 | CC37: 0.01589506173 | CD37: 0.0756 | CE37: 0.01589506173 | CF37: 0.00047 | CG37: 0.00052875 | CH37: 0.4166666667 | CI37: 0.1666666667 | CJ37: 0.4166666667 | CK37: 0.4752 | CL37: 0.008546745062 | CM37: 3.168 | CN37: 3.168 | CO37: 0.216 | CP37: 0.004361583333 | CQ37: 1.44 | CR37: 1.44 | CS37: 0.39744 | CT37: 0.007289162052 | CU37: 2.6496 | CV37: 2.6496
K38: H | N38: =INDEX(Laste,ROW()-30+9*(2-Makro!$B$2),1) -> 13 | O38: =INDEX(Laste,ROW()-30+9*(2-Makro!$B$2),2) -> 200 | P38: =INDEX(Laste,ROW()-30+9*(2-Makro!$B$2),3) -> 3 | Q38: 13 | R38: 16 | S38: =S37 -> 0.47 | AJ38: VÆGFELT: | AK38: 1 | AP38: =AQ10 -> 0 | AQ38: =AR10 -> 0 | AR38: =AQ10 -> 0 | AS38: =AR10 -> 0 | AT38: =AR38 -> 0 | AU38: =AS38 -> 0 | AV38: =AR38 -> 0 | AW38: =AS38 -> 0 | AX38: =AR38 -> 0 | AY38: =AS38 -> 0 | AZ38: =AR38 -> 0 | BA38: =AS38 -> 0 | BB38: =AZ38 -> 0 | BC38: =BA38 -> 0 | BD38: =BB38 -> 0 | BE38: =BC38 -> 0 | BI38: I | BJ38: 0 | BK38: 0.15 | BL38: 3 | BM38: 1 | BN38: 0 | BO38: 0 | BP38: 2.5 | BQ38: 2.5 | BR38: TRUE | BS38: 0.5 | BT38: 0.35 | BU38: 0 | BV38: 0.3333333333 | BW38: 0.3333333333 | BX38: 0.4166666667 | BY38: 0.4166666667 | BZ38: 0.24 | CA38: 0.01213888889 | CB38: 0.12 | CC38: 0.01213888889 | CD38: 0.084 | CE38: 0.01213888889 | CF38: 0.00047 | CG38: 0.00052875 | CH38: 0.4166666667 | CI38: 0.1666666667 | CJ38: 0.4166666667 | CK38: 0.528 | CL38: 0.007402745062 | CM38: 3.52 | CN38: 3.52 | CO38: 0.24 | CP38: 0.003841583333 | CQ38: 1.6 | CR38: 1.6 | CS38: 0.4416 | CT38: 0.006332362052 | CU38: 2.944 | CV38: 2.944
K39: I | N39: =INDEX(Laste,ROW()-30+9*(2-Makro!$B$2),1) -> 13 | O39: =INDEX(Laste,ROW()-30+9*(2-Makro!$B$2),2) -> 200 | P39: =INDEX(Laste,ROW()-30+9*(2-Makro!$B$2),3) -> 27 | Q39: 13 | R39: 16 | S39: =S38 -> 0.47 | AP39: =AQ15 -> 7000 | AQ39: 0 | AR39: =AU10 -> 1000 | AS39: =AS38 -> 0 | AT39: 1000 | AU39: 0 | AV39: 1000 | AW39: 0 | AX39: 1000 | AY39: 0 | AZ39: =AQ11 -> 3500 | BA39: =AS39 -> 0 | BB39: =AZ39 -> 3500 | BC39: 0 | BD39: =AS10 -> 5500 | BE39: =BC39 -> 0 | BH39: Felt 4 | BJ39: =$AA$13/1000 -> 0 | BK39: =$M$18/1000 -> 0.15 | BL39: =$BE$107/1000 -> 3 | BM39: =($BE$11-$BE$10)/1000 -> 0.8 | BN39: =($BE$16-$BE$17)/1000 -> 0 | BO39: =($BE$12-$BE$13)/1000 -> 0 | BP39: =$BF$16/1000 -> 2.5 | BQ39: =$BF$13/1000 -> 3 | BR39: FALSE | BS39: =BT29 -> 0.35 | BT39: =IF(AND($AO$17,$AR$77=1),$BA$80,0) -> 0 | BU39: =BE105 -> 0 | BV39: =BE110/M16 -> 0.2666666667 | BW39: =BE112/M16 -> 0.2666666667 | BX39: =BN39+BP39/6 -> 0.4166666667 | BY39: =BO39+BQ39/6 -> 0.5
K40: Excentricitet, top (mm): | N40: 50 | O40: 15 | P40: 40 | Q40: 40 | R40: 40 | T40: Vejledning: | W40: Betonelementbyggeriers statik | AP40: 7000 | AQ40: 3000 | AR40: =AR39 -> 1000 | AS40: =AV13 -> 2500 | AT40: 1000 | AU40: 2500 | AV40: 1000 | AW40: 2500 | AX40: 1000 | AY40: 2500 | AZ40: =AZ39 -> 3500 | BA40: =AR12 -> 2500 | BB40: 3500 | BC40: 2500 | BD40: =BD39 -> 5500 | BE40: =AT13 -> 2500 | BH40: Lasttilfælde | BI40: =K31 -> A | BJ40: =BJ39 -> 0 | BK40: =BK39 -> 0.15 | BL40: =BL39 -> 3 | BM40: =BM39 -> 0.8 | BN40: =BN39 -> 0 | BO40: =BO39 -> 0 | BP40: =BP39 -> 2.5 | BQ40: =BQ39 -> 3 | BR40: =BR39 -> FALSE | BS40: =BS39 -> 0.35 | BT40: =BT39 -> 0 | BU40: =BU39 -> 0 | BV40: =BV39 -> 0.2666666667 | BW40: =BW39 -> 0.2666666667 | BX40: =BX39 -> 0.4166666667 | BY40: =BY39 -> 0.5 | BZ40: =BZ30 -> 0.159 | CA40: 0.01518867925 | CB40: =CD30 -> 0.05565 | CC40: =CE30 -> 0.01518867925 | CD40: =BA84/1000 -> 0 | CE40: =BB84/1000 ->  | CF40: =CF30 -> 0.00094 | CG40: =0.125*CF40*BL40^2 -> 0.0010575 | CH40: =IF(BX40+BY40<=BM40,BX40,MIN(IF(CB40=0,0,BM40*CB40/(CB40+CD40)),BX40)) -> 0.4166666667 | CI40: =BM40-CH40-CJ40 -> 0.3833333333 | CJ40: =IF(BX40+BY40<=BM40,BY40,MIN(IF(CD40=0,0,BM40*CD40/(CB40+CD40)),BY40)) -> 0 | CK40: =IF(CH40=0,0,BZ40+CB40/CH40) -> 0.29256 | CL40: =IF(BR30,IF(CH40=0,CA40*BZ40,CA40*BZ40+CC40*CB40/CH40)+CG40+IF(BU40=0,CF40*BS40*BL40*IF(BV40>1,0.27,BV40^-1/8-29*BV40^2/800+141*BV40/800)+CF40*BT40*BL40*IF(BW40>1.5,0,BW40^-1/8+2*BW40^2/27-BW40/6),IF(BV40<0.2,CF40*BS40*BL40*0.6*BV40,CF40*BS40*BL40*IF(BV40<1,(1125*BV40^3-3225*BV40^2+3075*BV40-111)/3200,0.27))),0) -> 0.006007600983 | CM40: =CK40/($BK40)-6*($BJ40/($BJ40-CK40))*(CL40/$BK40^2) -> 1.9504 | CN40: =CK40/($BK40)+6*($BJ40/($BJ40-CK40))*(CL40/$BK40^2) -> 1.9504 | CO40: =IF(CI40=0,CK40,BZ40) -> 0.159 | CP40: =IF(CI40=0,CL40,CA40*BZ40+CG40+IF(BU40=0,CF40*(BS40+BT40)/BM40,0)) -> 0.00388375 | CQ40: =CO40/($BK40)-6*($BJ40/($BJ40-CO40))*(CP40/$BK40^2) -> 1.06 | CR40: =CO40/($BK40)+6*($BJ40/($BJ40-CO40))*(CP40/$BK40^2) -> 1.06 | CS40: =IF(CJ40=0,0,BZ40+CD40/CJ40) -> 0 | CT40: =IF(BR30,IF(CJ40=0,CA40*BZ40,CA40*BZ40+CD40*CE40/CJ40)+CG40+IF(BU40=0,CF40*BT40*BL40*IF(BW40>1,0.27,BW40^-1/8-29*BW40^2/800+141*BW40/800)+CF40*BS40*BL40*IF(BV40>1.5,0,BV40^-1/8+2*BV40^2/27-BV40/6),IF(BW40<0.2,CF40*BT40*BL40*0.6*BW40,CF40*BT40*BL40*IF(BW40<1,(1125*BW40^3-3225*BW40^2+3075*BW40-111)/3200,0.27))),0) -> 0.003896488596 | CU40: =CS40/($BK40)-6*($BJ40/($BJ40-CS40))*(CT40/$BK40^2) ->  | CV40: =CS40/($BK40)+6*($BJ40/($BJ40-CS40))*(CT40/$BK40^2) -> 
K41: Excentricitet, eff. (mm) : | N41: =2*N40/3+$O$40/3 -> 38.33333333 | O41: =2*O40/3+$O$40/3 -> 15 | P41: =2*P40/3-$O$40/3 -> 21.66666667 | R41: =2*R40/3+$O$40/3 -> 31.66666667 | T41: Polyteknisk Forlag 2010 samt www.bef.dk | AP41: 7000 | AQ41: 3000 | AR41: =AR40-$AN$20 -> 1000 | AS41: =AS40 -> 2500 | AT41: 1000 | AU41: 2500 | AV41: 1000 | AW41: 2500 | AX41: 1000 | AY41: 2500 | AZ41: =AZ40-$AN$20 -> 3500 | BA41: =BA40 -> 2500 | BB41: 3500 | BC41: 2500 | BD41: =BD40-$AN$20 -> 5500 | BE41: =BE40 -> 2500 | BI41: B | BJ41: 0 | BK41: 0.15 | BL41: 3 | BM41: 0.8 | BN41: 0 | BO41: 0 | BP41: 2.5 | BQ41: 3 | BR41: FALSE | BS41: 0.35 | BT41: 0 | BU41: 0 | BV41: 0.2666666667 | BW41: 0.2666666667 | BX41: 0.4166666667 | BY41: 0.5 | BZ41: 0.162 | CA41: 0.01561728395 | CB41: 0.0567 | CC41: 0.01561728395 | CD41: 0 | CF41: 0.00094 | CG41: 0.0010575 | CH41: 0.4166666667 | CI41: 0.3833333333 | CJ41: 0 | CK41: 0.29808 | CL41: 0.006219200983 | CM41: 1.9872 | CN41: 1.9872 | CO41: 0.162 | CP41: 0.00399875 | CQ41: 1.08 | CR41: 1.08 | CS41: 0 | CT41: 0.004011488596
AP42: 7000 | AQ42: 3000 | AR42: =AR41 -> 1000 | AS42: =AQ42 -> 3000 | AT42: 1000 | AU42: 3000 | AV42: 1000 | AW42: 3000 | AX42: 1000 | AY42: 3000 | AZ42: =AZ41 -> 3500 | BA42: =AS42 -> 3000 | BB42: 3500 | BC42: 3000 | BD42: =BD41 -> 5500 | BE42: =BC42 -> 3000 | BI42: C | BJ42: 0 | BK42: 0.15 | BL42: 3 | BM42: 0.8 | BN42: 0 | BO42: 0 | BP42: 2.5 | BQ42: 3 | BR42: FALSE | BS42: 0.35 | BT42: 0 | BU42: 0 | BV42: 0.2666666667 | BW42: 0.2666666667 | BX42: 0.4166666667 | BY42: 0.5 | BZ42: 0.202 | CA42: 0.0154950495 | CB42: 0.0707 | CC42: 0.0154950495 | CD42: 0 | CF42: 0.00094 | CG42: 0.0010575 | CH42: 0.4166666667 | CI42: 0.3833333333 | CJ42: 0 | CK42: 0.37168 | CL42: 0.007323200983 | CM42: 2.477866667 | CN42: 2.477866667 | CO42: 0.202 | CP42: 0.00459875 | CQ42: 1.346666667 | CR42: 1.346666667 | CS42: 0 | CT42: 0.004611488596
AP43: 150 | AQ43: 3000 | AR43: =AP43 -> 150 | AS43: =AQ43 -> 3000 | AT43: 150 | AU43: 3000 | AV43: 150 | AW43: 3000 | AX43: 150 | AY43: 3000 | AZ43: =AR43 -> 150 | BA43: =AS43 -> 3000 | BB43: 150 | BC43: 3000 | BD43: =BB43 -> 150 | BE43: =BC43 -> 3000 | BI43: D | BJ43: 0 | BK43: 0.15 | BL43: 3 | BM43: 0.8 | BN43: 0 | BO43: 0 | BP43: 2.5 | BQ43: 3 | BR43: FALSE | BS43: 0.35 | BT43: 0 | BU43: 0 | BV43: 0.2666666667 | BW43: 0.2666666667 | BX43: 0.4166666667 | BY43: 0.5 | BZ43: 0.209 | CA43: 0.01425039872 | CB43: 0.07315 | CC43: 0.01425039872 | CD43: 0 | CF43: 0.00094 | CG43: 0.0010575 | CH43: 0.4166666667 | CI43: 0.3833333333 | CJ43: 0 | CK43: 0.38456 | CL43: 0.007044134317 | CM43: 2.563733333 | CN43: 2.563733333 | CO43: 0.209 | CP43: 0.004447083333 | CQ43: 1.393333333 | CR43: 1.393333333 | CS43: 0 | CT43: 0.004459821929
AP44: 150 | AQ44: 2500 | AR44: =AP44 -> 150 | AS44: =AQ44 -> 2500 | AT44: 150 | AU44: 2500 | AV44: 150 | AW44: 2500 | AX44: 150 | AY44: 2500 | AZ44: =AR44 -> 150 | BA44: =AS44 -> 2500 | BB44: 150 | BC44: 2500 | BD44: =BB44 -> 150 | BE44: =BC44 -> 2500 | BI44: E | BJ44: 0 | BK44: 0.15 | BL44: 3 | BM44: 0.8 | BN44: 0 | BO44: 0 | BP44: 2.5 | BQ44: 3 | BR44: FALSE | BS44: 0.35 | BT44: 0 | BU44: 0 | BV44: 0.2666666667 | BW44: 0.2666666667 | BX44: 0.4166666667 | BY44: 0.5 | BZ44: 0.166 | CA44: 0.01616465863 | CB44: 0.0581 | CC44: 0.01616465863 | CD44: 0 | CF44: 0.00047 | CG44: 0.00052875 | CH44: 0.4166666667 | CI44: 0.3833333333 | CJ44: 0 | CK44: 0.30544 | CL44: 0.005719333825 | CM44: 2.036266667 | CN44: 2.036266667 | CO44: 0.166 | CP44: 0.003417708333 | CQ44: 1.106666667 | CR44: 1.106666667 | CS44: 0 | CT44: 0.003424077631
AP45: 0 | AQ45: 2500 | AR45: =AP45 -> 0 | AS45: =AQ45 -> 2500 | AT45: 0 | AU45: 2500 | AV45: 0 | AW45: 2500 | AX45: 0 | AY45: 2500 | AZ45: =AR45 -> 0 | BA45: =AS45 -> 2500 | BB45: 0 | BC45: 2500 | BD45: =BB45 -> 0 | BE45: =BC45 -> 2500 | BI45: F | BJ45: 0 | BK45: 0.15 | BL45: 3 | BM45: 0.8 | BN45: 0 | BO45: 0 | BP45: 2.5 | BQ45: 3 | BR45: FALSE | BS45: 0.35 | BT45: 0 | BU45: 0 | BV45: 0.2666666667 | BW45: 0.2666666667 | BX45: 0.4166666667 | BY45: 0.5 | BZ45: 0.206 | CA45: 0.01593851133 | CB45: 0.0721 | CC45: 0.01593851133 | CD45: 0 | CF45: 0.00047 | CG45: 0.00052875 | CH45: 0.4166666667 | CI45: 0.3833333333 | CJ45: 0 | CK45: 0.37904 | CL45: 0.006823333825 | CM45: 2.526933333 | CN45: 2.526933333 | CO45: 0.206 | CP45: 0.004017708333 | CQ45: 1.373333333 | CR45: 1.373333333 | CS45: 0 | CT45: 0.004024077631
AP46: 0 | AQ46: 0 | AR46: =AP46 -> 0 | AS46: =AQ46 -> 0 | AT46: 0 | AU46: 0 | AV46: 0 | AW46: 0 | AX46: 0 | AY46: 0 | AZ46: =AR46 -> 0 | BA46: =AS46 -> 0 | BB46: 0 | BC46: 0 | BD46: =BB46 -> 0 | BE46: =BC46 -> 0 | BI46: G | BJ46: 0 | BK46: 0.15 | BL46: 3 | BM46: 0.8 | BN46: 0 | BO46: 0 | BP46: 2.5 | BQ46: 3 | BR46: FALSE | BS46: 0.35 | BT46: 0 | BU46: 0 | BV46: 0.2666666667 | BW46: 0.2666666667 | BX46: 0.4166666667 | BY46: 0.5 | BZ46: 0.23 | CA46: 0.01201449275 | CB46: 0.0805 | CC46: 0.01201449275 | CD46: 0 | CF46: 0.00047 | CG46: 0.00052875 | CH46: 0.4166666667 | CI46: 0.3833333333 | CJ46: 0 | CK46: 0.4232 | CL46: 0.005866533825 | CM46: 2.821333333 | CN46: 2.821333333 | CO46: 0.23 | CP46: 0.003497708333 | CQ46: 1.533333333 | CR46: 1.533333333 | CS46: 0 | CT46: 0.003504077631
AJ47: VÆGFELT: | AK47: 2 | AP47: 1000000 | AQ47: 1000000 | AR47: =AU11 -> 2500 | AS47: 0 | AT47: =AU11 -> 2500 | AU47: 0 | AV47: =AT47 -> 2500 | AW47: =AU47 -> 0 | AX47: =AU11 -> 2500 | AY47: 0 | AZ47: =AQ14 -> 4500 | BA47: 0 | BB47: =AZ47 -> 4500 | BC47: 0 | BD47: =AS11 -> 6200 | BE47: 0 | BI47: H | BJ47: 0 | BK47: 0.15 | BL47: 3 | BM47: 0.8 | BN47: 0 | BO47: 0 | BP47: 2.5 | BQ47: 3 | BR47: FALSE | BS47: 0.35 | BT47: 0 | BU47: 0 | BV47: 0.2666666667 | BW47: 0.2666666667 | BX47: 0.4166666667 | BY47: 0.5 | BZ47: 0.216 | CA47: 0.01589506173 | CB47: 0.0756 | CC47: 0.01589506173 | CD47: 0 | CF47: 0.00047 | CG47: 0.00052875 | CH47: 0.4166666667 | CI47: 0.3833333333 | CJ47: 0 | CK47: 0.39744 | CL47: 0.007099333825 | CM47: 2.6496 | CN47: 2.6496 | CO47: 0.216 | CP47: 0.004167708333 | CQ47: 1.44 | CR47: 1.44 | CS47: 0 | CT47: 0.004174077631
AP48: 1000000 | AQ48: 1000000 | AR48: =AQ15 -> 7000 | AS48: 0 | AT48: =AQ11 -> 3500 | AU48: =AR11 -> 0 | AV48: 3500 | AW48: 0 | AX48: =AS10 -> 5500 | AY48: 0 | AZ48: =AR48 -> 7000 | BA48: 0 | BB48: =AX48 -> 5500 | BC48: 0 | BD48: =AR48 -> 7000 | BE48: 0 | BI48: I | BJ48: 0 | BK48: 0.15 | BL48: 3 | BM48: 0.8 | BN48: 0 | BO48: 0 | BP48: 2.5 | BQ48: 3 | BR48: FALSE | BS48: 0.35 | BT48: 0 | BU48: 0 | BV48: 0.2666666667 | BW48: 0.2666666667 | BX48: 0.4166666667 | BY48: 0.5 | BZ48: 0.24 | CA48: 0.01213888889 | CB48: 0.084 | CC48: 0.01213888889 | CD48: 0 | CF48: 0.00047 | CG48: 0.00052875 | CH48: 0.4166666667 | CI48: 0.3833333333 | CJ48: 0 | CK48: 0.4416 | CL48: 0.006142533825 | CM48: 2.944 | CN48: 2.944 | CO48: 0.24 | CP48: 0.003647708333 | CQ48: 1.6 | CR48: 1.6 | CS48: 0 | CT48: 0.003654077631
AP49: 1000000 | AQ49: 1000000 | AR49: 7000 | AS49: 3000 | AT49: =AT48 -> 3500 | AU49: =AR12 -> 2500 | AV49: 3500 | AW49: 2500 | AX49: =AX48 -> 5500 | AY49: =AT13 -> 2500 | AZ49: 7000 | BA49: 3000 | BB49: 5500 | BC49: 2500 | BD49: 7000 | BE49: 3000
AP50: 1000000 | AQ50: 1000000 | AR50: 7000 | AS50: 3000 | AT50: =AT49-$AN$20 -> 3500 | AU50: =AU49 -> 2500 | AV50: 3500 | AW50: 2500 | AX50: =AX49-$AN$20 -> 5500 | AY50: =AY49 -> 2500 | AZ50: 7000 | BA50: 3000 | BB50: 5500 | BC50: 2500 | BD50: 7000 | BE50: 3000
AP51: 1000000 | AQ51: 1000000 | AR51: 7000 | AS51: 3000 | AT51: =AT50 -> 3500 | AU51: =AS51 -> 3000 | AV51: 3500 | AW51: 3000 | AX51: =AX50 -> 5500 | AY51: =AW51 -> 3000 | AZ51: 7000 | BA51: 3000 | BB51: 5500 | BC51: 3000 | BD51: 7000 | BE51: 3000
AP52: 1000000 | AQ52: 1000000 | AR52: =AR47+$AN$20 -> 2500 | AS52: =AS51 -> 3000 | AT52: =AR52 -> 2500 | AU52: =AS52 -> 3000 | AV52: 2500 | AW52: 3000 | AX52: =AR52 -> 2500 | AY52: 3000 | AZ52: =AQ13+$AN$20 -> 4500 | BA52: =BA51 -> 3000 | BB52: =AZ52 -> 4500 | BC52: 3000 | BD52: =BD47+$AN$20 -> 6200 | BE52: =BE51 -> 3000 | CM52: Venstre | CQ52: Midt | CU52: Højre | DE52: Momentbæreevne (n) | DG52: Momentbæreevne (n) | DI52: Momentbæreevne (n) | DK52: Brud
AP53: 1000000 | AQ53: 1000000 | AR53: =AR52 -> 2500 | AS53: =AV12 -> 2500 | AT53: =AR53 -> 2500 | AU53: =AS53 -> 2500 | AV53: 2500 | AW53: 2500 | AX53: 2500 | AY53: 2500 | AZ53: =AZ52 -> 4500 | BA53: =AR13 -> 2500 | BB53: 4500 | BC53: 2500 | BD53: =BD52 -> 6200 | BE53: =AT12 -> 2500 | CM53: n-s1 | CN53: m-s1 | CO53: n (kN/m) | CP53: m (kNm/m) | CQ53: n-s0 | CR53: m-s0 | CS53: n (kN/m) | CT53: m (kNm/m) | CU53: n-s2 | CV53: m-s2 | CW53: n (kN/m) | CX53: m (kNm/m) | DE53: Opslagsværdi | DF53: bæreevne | DG53: Opslagsværdi | DH53: bæreevne | DI53: Opslagsværdi | DJ53: bæreevne | DK53: 1 = ja
AP54: 1000000 | AQ54: 1000000 | AR54: =AR53-$AN$20 -> 2500 | AS54: =AS53 -> 2500 | AT54: =AR54 -> 2500 | AU54: =AS54 -> 2500 | AV54: 2500 | AW54: 2500 | AX54: 2500 | AY54: 2500 | AZ54: =AZ53-$AN$20 -> 4500 | BA54: =BA53 -> 2500 | BB54: 4500 | BC54: 2500 | BD54: =BD53-$AN$20 -> 6200 | BE54: =BE53 -> 2500 | CK54: FELT #1: | DK54: =MAX(DK55:DK63) ->  | DL54: =IF(MAX(DK55:DK63)=0,"",CK54&"Last "&DL55&DL56&DL57&DL58&DL59&DL60&DL61&DL62&DL63) -> 
AP55: 1000000 | AQ55: 1000000 | AR55: =AR47 -> 2500 | AS55: =AS47 -> 0 | AT55: =AR55 -> 2500 | AU55: =AS55 -> 0 | AV55: 2500 | AW55: 0 | AX55: 2500 | AY55: 0 | AZ55: =AZ47 -> 4500 | BA55: =BA47 -> 0 | BB55: 4500 | BC55: 0 | BD55: =BD47 -> 6200 | BE55: =BE47 -> 0 | CJ55: TRUE | CK55: Lasttilfælde | CL55: A, | CM55: =CK10*1000 -> 159 | CN55: =CL10 -> 0.004165532407 | CO55: =IF($CK$56=TRUE,IF($CJ55=TRUE,CM55,-10),-10) -> 159 | CP55: =IF($CK$56=TRUE,IF($CJ55=TRUE,CN55*1000,-10),-10) -> 4.165532407 | CQ55: =CO10*1000 -> 159 | CR55: =CP10 -> 0.0041775 | CS55: =IF($CK$56=TRUE,IF($CJ55=TRUE,CQ55,-10),-10) -> 159 | CT55: =IF($CK$56=TRUE,IF($CJ55=TRUE,CR55*1000,-10),-10) -> 4.1775 | CU55: =CS10*1000 -> 445.2 | CV55: =CT10 -> 0.0087283625 | CW55: =IF($CK$56=TRUE,IF($CJ55=TRUE,CU55,-10),-10) -> 445.2 | CX55: =IF($CK$56=TRUE,IF($CJ55=TRUE,CV55*1000,-10),-10) -> 8.7283625 | CZ55: =MAX(CO55,CS55,CW55) -> 445.2 | DA55: =CZ55-CO55 -> 286.2 | DB55: =CS55-CZ55 -> -286.2 | DC55: =CW55-CZ55 -> 0 | DD55: =IF(DA55=0,CP55,IF(DB55=0,CT55,IF(DC55=0,CX55,"FEJL"))) -> 8.7283625 | DE55: =MATCH(VLOOKUP(CM55,$B$109:$C$130,1),$B$109:$B$130,0) -> 1 | DF55: =INDEX($B$109:$C$130,DE55,2,1) +(INDEX($B$109:$C$130,DE55+1,2,1)-INDEX($B$109:$C$130,DE55,2,1)) *(CM55-INDEX($B$109:$C$130,DE55,1,1)) /(INDEX($B$109:$C$130,DE55+1,1,1)-INDEX($B$109:$C$130,DE55,1,1)) ->  | DG55: =MATCH(VLOOKUP(CQ55,$B$109:$C$130,1),$B$109:$B$130,0) -> 1 | DH55: =INDEX($B$109:$C$130,DG55,2,1) +(INDEX($B$109:$C$130,DG55+1,2,1)-INDEX($B$109:$C$130,DG55,2,1)) *(CQ55-INDEX($B$109:$C$130,DG55,1,1)) /(INDEX($B$109:$C$130,DG55+1,1,1)-INDEX($B$109:$C$130,DG55,1,1)) ->  | DI55: =MATCH(VLOOKUP(CU55,$B$109:$C$130,1),$B$109:$B$130,0) -> 1 | DJ55: =INDEX($B$109:$C$130,DI55,2,1) +(INDEX($B$109:$C$130,DI55+1,2,1)-INDEX($B$109:$C$130,DI55,2,1)) *(CU55-INDEX($B$109:$C$130,DI55,1,1)) /(INDEX($B$109:$C$130,DI55+1,1,1)-INDEX($B$109:$C$130,DI55,1,1)) ->  | DK55: =IF(DF55<CN55*1000,1,IF(DH55<CR55*1000,1,IF(DJ55<CV55*1000,1,0))) ->  | DL55: =IF(DK55=0,"",CL55) -> 
AJ56: VÆGFELT: | AK56: 3 | AP56: 1000000 | AQ56: 1000000 | AR56: 1000000 | AS56: 1000000 | AT56: =AZ47 -> 4500 | AU56: =BA47 -> 0 | AV56: =BB47 -> 4500 | AW56: =BC47 -> 0 | AX56: =BD47 -> 6200 | AY56: =BE47 -> 0 | AZ56: 1000000 | BA56: 1000000 | BB56: =AX56 -> 6200 | BC56: =AY56 -> 0 | BD56: 1000000 | BE56: 1000000 | CJ56: TRUE | CK56: =IF(Makro!B1=1,TRUE,IF(Makro!B1=5,TRUE,FALSE)) -> TRUE | CL56: B, | CM56: 162 | CN56: 0.004280532407 | CO56: 162 | CP56: 4.280532407 | CQ56: 162 | CR56: 0.0042925 | CS56: 162 | CT56: 4.2925 | CU56: 453.6 | CV56: 0.0090503625 | CW56: 453.6 | CX56: 9.0503625 | CZ56: 453.6 | DA56: 291.6 | DB56: -291.6 | DC56: 0 | DD56: 9.0503625 | DE56: 1 | DF56: =INDEX($B$109:$C$130,DE56,2,1) +(INDEX($B$109:$C$130,DE56+1,2,1)-INDEX($B$109:$C$130,DE56,2,1)) *(CM56-INDEX($B$109:$C$130,DE56,1,1)) /(INDEX($B$109:$C$130,DE56+1,1,1)-INDEX($B$109:$C$130,DE56,1,1)) ->  | DG56: 1 | DI56: 1
AP57: 1000000 | AQ57: 1000000 | AR57: 1000000 | AS57: 1000000 | AT57: 7000 | AU57: 0 | AV57: 5500 | AW57: 0 | AX57: 7000 | AY57: 0 | AZ57: 1000000 | BA57: 1000000 | BB57: 7000 | BC57: 0 | BD57: 1000000 | BE57: 1000000 | CJ57: TRUE | CL57: C, | CM57: 202 | CN57: 0.004880532407 | CO57: 202 | CP57: 4.880532407 | CQ57: 202 | CR57: 0.0048925 | CS57: 202 | CT57: 4.8925 | CU57: 565.6 | CV57: 0.0107303625 | CW57: 565.6 | CX57: 10.7303625 | CZ57: 565.6 | DA57: 363.6 | DB57: -363.6 | DC57: 0 | DD57: 10.7303625 | DE57: 1 | DG57: 1 | DI57: 1
AP58: 1000000 | AQ58: 1000000 | AR58: 1000000 | AS58: 1000000 | AT58: 7000 | AU58: 3000 | AV58: 5500 | AW58: 2500 | AX58: 7000 | AY58: 3000 | AZ58: 1000000 | BA58: 1000000 | BB58: 7000 | BC58: 3000 | BD58: 1000000 | BE58: 1000000 | CJ58: TRUE | CL58: D, | CM58: 209 | CN58: 0.004728865741 | CO58: 209 | CP58: 4.728865741 | CQ58: 209 | CR58: 0.004740833333 | CS58: 209 | CT58: 4.740833333 | CU58: 585.2 | CV58: 0.01030569583 | CW58: 585.2 | CX58: 10.30569583 | CZ58: 585.2 | DA58: 376.2 | DB58: -376.2 | DC58: 0 | DD58: 10.30569583 | DE58: 1 | DG58: 1 | DI58: 1
AP59: 1000000 | AQ59: 1000000 | AR59: 1000000 | AS59: 1000000 | AT59: 7000 | AU59: 3000 | AV59: 5500 | AW59: 2500 | AX59: 7000 | AY59: 3000 | AZ59: 1000000 | BA59: 1000000 | BB59: 7000 | BC59: 3000 | BD59: 1000000 | BE59: 1000000 | CJ59: TRUE | CL59: E, | CM59: 166 | CN59: 0.003558599537 | CO59: 166 | CP59: 3.558599537 | CQ59: 166 | CR59: 0.003564583333 | CS59: 166 | CT59: 3.564583333 | CU59: 464.8 | CV59: 0.008496514583 | CW59: 464.8 | CX59: 8.496514583 | CZ59: 464.8 | DA59: 298.8 | DB59: -298.8 | DC59: 0 | DD59: 8.496514583 | DE59: 1 | DG59: 1 | DI59: 1 | DM59: 1
AP60: 1000000 | AQ60: 1000000 | AR60: 1000000 | AS60: 1000000 | AT60: 7000 | AU60: 3000 | AV60: 5500 | AW60: 3000 | AX60: 7000 | AY60: 3000 | AZ60: 1000000 | BA60: 1000000 | BB60: 7000 | BC60: 3000 | BD60: 1000000 | BE60: 1000000 | CJ60: TRUE | CL60: F, | CM60: 206 | CN60: 0.004158599537 | CO60: 206 | CP60: 4.158599537 | CQ60: 206 | CR60: 0.004164583333 | CS60: 206 | CT60: 4.164583333 | CU60: 576.8 | CV60: 0.01017651458 | CW60: 576.8 | CX60: 10.17651458 | CZ60: 576.8 | DA60: 370.8 | DB60: -370.8 | DC60: 0 | DD60: 10.17651458 | DE60: 1 | DG60: 1 | DI60: 1
AP61: 1000000 | AQ61: 1000000 | AR61: 1000000 | AS61: 1000000 | AT61: 4500 | AU61: 3000 | AV61: 4500 | AW61: 3000 | AX61: 6200 | AY61: 3000 | AZ61: 1000000 | BA61: 1000000 | BB61: 6200 | BC61: 3000 | BD61: 1000000 | BE61: 1000000 | CJ61: TRUE | CL61: G, | CM61: 230 | CN61: 0.003638599537 | CO61: 230 | CP61: 3.638599537 | CQ61: 230 | CR61: 0.003644583333 | CS61: 230 | CT61: 3.644583333 | CU61: 644 | CV61: 0.008720514583 | CW61: 644 | CX61: 8.720514583 | CZ61: 644 | DA61: 414 | DB61: -414 | DC61: 0 | DD61: 8.720514583 | DE61: 1 | DG61: 1 | DI61: 1
AP62: 1000000 | AQ62: 1000000 | AR62: 1000000 | AS62: 1000000 | AT62: 4500 | AU62: 2500 | AV62: 4500 | AW62: 2500 | AX62: 6200 | AY62: 2500 | AZ62: 1000000 | BA62: 1000000 | BB62: 6200 | BC62: 2500 | BD62: 1000000 | BE62: 1000000 | CJ62: TRUE | CL62: H, | CM62: 216 | CN62: 0.004308599537 | CO62: 216 | CP62: 4.308599537 | CQ62: 216 | CR62: 0.004314583333 | CS62: 216 | CT62: 4.314583333 | CU62: 604.8 | CV62: 0.01059651458 | CW62: 604.8 | CX62: 10.59651458 | CZ62: 604.8 | DA62: 388.8 | DB62: -388.8 | DC62: 0 | DD62: 10.59651458 | DE62: 1 | DG62: 1 | DI62: 1
AP63: 1000000 | AQ63: 1000000 | AR63: 1000000 | AS63: 1000000 | AT63: 4500 | AU63: 2500 | AV63: 4500 | AW63: 2500 | AX63: 6200 | AY63: 2500 | AZ63: 1000000 | BA63: 1000000 | BB63: 6200 | BC63: 2500 | BD63: 1000000 | BE63: 1000000 | CJ63: TRUE | CL63: I, | CM63: 240 | CN63: 0.003788599537 | CO63: 240 | CP63: 3.788599537 | CQ63: 240 | CR63: 0.003794583333 | CS63: 240 | CT63: 3.794583333 | CU63: 672 | CV63: 0.009140514583 | CW63: 672 | CX63: 9.140514583 | CZ63: 672 | DA63: 432 | DB63: -432 | DC63: 0 | DD63: 9.140514583 | DE63: 1 | DG63: 1 | DI63: 1
AP64: 1000000 | AQ64: 1000000 | AR64: 1000000 | AS64: 1000000 | AT64: 4500 | AU64: 0 | AV64: 4500 | AW64: 0 | AX64: 6200 | AY64: 0 | AZ64: 1000000 | BA64: 1000000 | BB64: 6200 | BC64: 0 | BD64: 1000000 | BE64: 1000000 | CK64: FELT #2: | DK64: =MAX(DK65:DK73) ->  | DL64: =IF(MAX(DK65:DK73)=0,"",CK64&"Last "&DL65&DL66&DL67&DL68&DL69&DL70&DL71&DL72&DL73) -> 
AJ65: VÆGFELT: | AK65: 4 | AP65: 1000000 | AQ65: 1000000 | AR65: 1000000 | AS65: 1000000 | AT65: 1000000 | AU65: 1000000 | AV65: =AX56 -> 6200 | AW65: =AY56 -> 0 | AX65: 1000000 | AY65: 1000000 | AZ65: 1000000 | BA65: 1000000 | BB65: 1000000 | BC65: 1000000 | BD65: 1000000 | BE65: 1000000 | CJ65: =CJ55 -> TRUE | CK65: Lasttilfælde | CL65: A, | CM65: =CK20*1000 -> 445.2 | CN65: =CL20 -> 0.009190384105 | CO65: =IF($CK$66=TRUE,IF($CJ65=TRUE,CM65,-10),-10) -> 445.2 | CP65: =IF($CK$66=TRUE,IF(CJ65=TRUE,CN65*1000,-10),-10) -> 9.190384105 | CQ65: =CO20*1000 -> 159 | CR65: =CP20 -> 0.0046475 | CS65: =IF($CK$66=TRUE,IF($CJ65=TRUE,CQ65,-10),-10) -> 159 | CT65: =IF($CK$66=TRUE,IF($CJ65=TRUE,CR65*1000,-10),-10) -> 4.6475 | CU65: =CS20*1000 -> 349.8 | CV65: =CT20 -> 0.007669440741 | CW65: =IF($CK$66=TRUE,IF($CJ65=TRUE,CU65,-10),-10) -> 349.8 | CX65: =IF($CK$66=TRUE,IF($CJ65=TRUE,CV65*1000,-10),-10) -> 7.669440741 | CZ65: =MAX(CO65,CS65,CW65) -> 445.2 | DA65: =CZ65-CO65 -> 0 | DB65: =CS65-CZ65 -> -286.2 | DC65: =CW65-CZ65 -> -95.4 | DD65: =IF(DA65=0,CP65,IF(DB65=0,CT65,IF(DC65=0,CX65,"FEJL"))) -> 9.190384105 | DE65: =MATCH(VLOOKUP(CM65,$B$109:$C$130,1),$B$109:$B$130,0) -> 1 | DF65: =INDEX($B$109:$C$130,DE65,2,1) +(INDEX($B$109:$C$130,DE65+1,2,1)-INDEX($B$109:$C$130,DE65,2,1)) *(CM65-INDEX($B$109:$C$130,DE65,1,1)) /(INDEX($B$109:$C$130,DE65+1,1,1)-INDEX($B$109:$C$130,DE65,1,1)) ->  | DG65: =MATCH(VLOOKUP(CQ65,$B$109:$C$130,1),$B$109:$B$130,0) -> 1 | DH65: =INDEX($B$109:$C$130,DG65,2,1) +(INDEX($B$109:$C$130,DG65+1,2,1)-INDEX($B$109:$C$130,DG65,2,1)) *(CQ65-INDEX($B$109:$C$130,DG65,1,1)) /(INDEX($B$109:$C$130,DG65+1,1,1)-INDEX($B$109:$C$130,DG65,1,1)) ->  | DI65: =MATCH(VLOOKUP(CU65,$B$109:$C$130,1),$B$109:$B$130,0) -> 1 | DJ65: =INDEX($B$109:$C$130,DI65,2,1) +(INDEX($B$109:$C$130,DI65+1,2,1)-INDEX($B$109:$C$130,DI65,2,1)) *(CU65-INDEX($B$109:$C$130,DI65,1,1)) /(INDEX($B$109:$C$130,DI65+1,1,1)-INDEX($B$109:$C$130,DI65,1,1)) ->  | DK65: =IF(DF65<CN65*1000,1,IF(DH65<CR65*1000,1,IF(DJ65<CV65*1000,1,0))) ->  | DL65: =IF(DK65=0,"",CL65) -> 
AP66: 1000000 | AQ66: 1000000 | AR66: 1000000 | AS66: 1000000 | AT66: 1000000 | AU66: 1000000 | AV66: 7000 | AW66: 0 | AX66: 1000000 | AY66: 1000000 | AZ66: 1000000 | BA66: 1000000 | BB66: 1000000 | BC66: 1000000 | BD66: 1000000 | BE66: 1000000 | CJ66: TRUE | CK66: =IF(Makro!B1=2,TRUE,IF(Makro!B1=5,TRUE,FALSE)) -> TRUE | CL66: B, | CM66: 453.6 | CN66: 0.009512384105 | CO66: 453.6 | CP66: 9.512384105 | CQ66: 162 | CR66: 0.0047625 | CS66: 162 | CT66: 4.7625 | CU66: 356.4 | CV66: 0.007922440741 | CW66: 356.4 | CX66: 7.922440741 | CZ66: 453.6 | DA66: 0 | DB66: -291.6 | DC66: -97.2 | DD66: 9.512384105 | DE66: 1 | DG66: 1 | DI66: 1
AP67: 1000000 | AQ67: 1000000 | AR67: 1000000 | AS67: 1000000 | AT67: 1000000 | AU67: 1000000 | AV67: 7000 | AW67: 3000 | AX67: 1000000 | AY67: 1000000 | AZ67: 1000000 | BA67: 1000000 | BB67: 1000000 | BC67: 1000000 | BD67: 1000000 | BE67: 1000000 | CJ67: TRUE | CL67: C, | CM67: 565.6 | CN67: 0.0111923841 | CO67: 565.6 | CP67: 11.1923841 | CQ67: 202 | CR67: 0.0053625 | CS67: 202 | CT67: 5.3625 | CU67: 444.4 | CV67: 0.009242440741 | CW67: 444.4 | CX67: 9.242440741 | CZ67: 565.6 | DA67: 0 | DB67: -363.6 | DC67: -121.2 | DD67: 11.1923841 | DE67: 1 | DG67: 1 | DI67: 1
AP68: 1000000 | AQ68: 1000000 | AR68: 1000000 | AS68: 1000000 | AT68: 1000000 | AU68: 1000000 | AV68: 7000 | AW68: 3000 | AX68: 1000000 | AY68: 1000000 | AZ68: 1000000 | BA68: 1000000 | BB68: 1000000 | BC68: 1000000 | BD68: 1000000 | BE68: 1000000 | CJ68: TRUE | CL68: D, | CM68: 585.2 | CN68: 0.01076771744 | CO68: 585.2 | CP68: 10.76771744 | CQ68: 209 | CR68: 0.005210833333 | CS68: 209 | CT68: 5.210833333 | CU68: 459.8 | CV68: 0.008908774074 | CW68: 459.8 | CX68: 8.908774074 | CZ68: 585.2 | DA68: 0 | DB68: -376.2 | DC68: -125.4 | DD68: 10.76771744 | DE68: 1 | DG68: 1 | DI68: 1
AP69: 1000000 | AQ69: 1000000 | AR69: 1000000 | AS69: 1000000 | AT69: 1000000 | AU69: 1000000 | AV69: 7000 | AW69: 3000 | AX69: 1000000 | AY69: 1000000 | AZ69: 1000000 | BA69: 1000000 | BB69: 1000000 | BC69: 1000000 | BD69: 1000000 | BE69: 1000000 | CJ69: TRUE | CL69: E, | CM69: 464.8 | CN69: 0.008727525386 | CO69: 464.8 | CP69: 8.727525386 | CQ69: 166 | CR69: 0.003799583333 | CS69: 166 | CT69: 3.799583333 | CU69: 365.2 | CV69: 0.007081553704 | CW69: 365.2 | CX69: 7.081553704 | CZ69: 464.8 | DA69: 0 | DB69: -298.8 | DC69: -99.6 | DD69: 8.727525386 | DE69: 1 | DG69: 1 | DI69: 1
AP70: 1000000 | AQ70: 1000000 | AR70: 1000000 | AS70: 1000000 | AT70: 1000000 | AU70: 1000000 | AV70: 6200 | AW70: 3000 | AX70: 1000000 | AY70: 1000000 | AZ70: 1000000 | BA70: 1000000 | BB70: 1000000 | BC70: 1000000 | BD70: 1000000 | BE70: 1000000 | CJ70: TRUE | CL70: F, | CM70: 576.8 | CN70: 0.01040752539 | CO70: 576.8 | CP70: 10.40752539 | CQ70: 206 | CR70: 0.004399583333 | CS70: 206 | CT70: 4.399583333 | CU70: 453.2 | CV70: 0.008401553704 | CW70: 453.2 | CX70: 8.401553704 | CZ70: 576.8 | DA70: 0 | DB70: -370.8 | DC70: -123.6 | DD70: 10.40752539 | DE70: 1 | DG70: 1 | DI70: 1
AP71: 1000000 | AQ71: 1000000 | AR71: 1000000 | AS71: 1000000 | AT71: 1000000 | AU71: 1000000 | AV71: 6200 | AW71: 2500 | AX71: 1000000 | AY71: 1000000 | AZ71: 1000000 | BA71: 1000000 | BB71: 1000000 | BC71: 1000000 | BD71: 1000000 | BE71: 1000000 | CJ71: TRUE | CL71: G, | CM71: 644 | CN71: 0.008951525386 | CO71: 644 | CP71: 8.951525386 | CQ71: 230 | CR71: 0.003879583333 | CS71: 230 | CT71: 3.879583333 | CU71: 506 | CV71: 0.007257553704 | CW71: 506 | CX71: 7.257553704 | CZ71: 644 | DA71: 0 | DB71: -414 | DC71: -138 | DD71: 8.951525386 | DE71: 1 | DG71: 1 | DI71: 1
AP72: 1000000 | AQ72: 1000000 | AR72: 1000000 | AS72: 1000000 | AT72: 1000000 | AU72: 1000000 | AV72: 6200 | AW72: 2500 | AX72: 1000000 | AY72: 1000000 | AZ72: 1000000 | BA72: 1000000 | BB72: 1000000 | BC72: 1000000 | BD72: 1000000 | BE72: 1000000 | CJ72: TRUE | CL72: H, | CM72: 604.8 | CN72: 0.01082752539 | CO72: 604.8 | CP72: 10.82752539 | CQ72: 216 | CR72: 0.004549583333 | CS72: 216 | CT72: 4.549583333 | CU72: 475.2 | CV72: 0.008731553704 | CW72: 475.2 | CX72: 8.731553704 | CZ72: 604.8 | DA72: 0 | DB72: -388.8 | DC72: -129.6 | DD72: 10.82752539 | DE72: 1 | DG72: 1 | DI72: 1
AP73: 1000000 | AQ73: 1000000 | AR73: 1000000 | AS73: 1000000 | AT73: 1000000 | AU73: 1000000 | AV73: 6200 | AW73: 0 | AX73: 1000000 | AY73: 1000000 | AZ73: 1000000 | BA73: 1000000 | BB73: 1000000 | BC73: 1000000 | BD73: 1000000 | BE73: 1000000 | CJ73: TRUE | CL73: I, | CM73: 672 | CN73: 0.009371525386 | CO73: 672 | CP73: 9.371525386 | CQ73: 240 | CR73: 0.004029583333 | CS73: 240 | CT73: 4.029583333 | CU73: 528 | CV73: 0.007587553704 | CW73: 528 | CX73: 7.587553704 | CZ73: 672 | DA73: 0 | DB73: -432 | DC73: -144 | DD73: 9.371525386 | DE73: 1 | DG73: 1 | DI73: 1
CK74: FELT #3: | DK74: =MAX(DK75:DK83) ->  | DL74: =IF(MAX(DK75:DK83)=0,"",CK74&"Last "&DL75&DL76&DL77&DL78&DL79&DL80&DL81&DL82&DL83) -> 
CJ75: =CJ65 -> TRUE | CK75: Lasttilfælde | CL75: A, | CM75: =CK30*1000 -> 349.8 | CN75: =CL30 -> 0.007299823457 | CO75: =IF($CK$76=TRUE,IF($CJ75=TRUE,CM75,-10),-10) -> 349.8 | CP75: =IF($CK$76=TRUE,IF(CJ75=TRUE,CN75*1000,-10),-10) -> 7.299823457 | CQ75: =CO30*1000 -> 159 | CR75: =CP30 -> 0.0042715 | CS75: =IF($CK$76=TRUE,IF($CJ75=TRUE,CQ75,-10),-10) -> 159 | CT75: =IF($CK$76=TRUE,IF($CJ75=TRUE,CR75*1000,-10),-10) -> 4.2715 | CU75: =CS30*1000 -> 292.56 | CV75: =CT30 -> 0.006387257438 | CW75: =IF($CK$76=TRUE,IF($CJ75=TRUE,CU75,-10),-10) -> 292.56 | CX75: =IF($CK$76=TRUE,IF($CJ75=TRUE,CV75*1000,-10),-10) -> 6.387257438 | CZ75: =MAX(CO75,CS75,CW75) -> 349.8 | DA75: =CZ75-CO75 -> 0 | DB75: =CS75-CZ75 -> -190.8 | DC75: =CW75-CZ75 -> -57.24 | DD75: =IF(DA75=0,CP75,IF(DB75=0,CT75,IF(DC75=0,CX75,"FEJL"))) -> 7.299823457 | DE75: =MATCH(VLOOKUP(CM75,$B$109:$C$130,1),$B$109:$B$130,0) -> 1 | DF75: =INDEX($B$109:$C$130,DE75,2,1) +(INDEX($B$109:$C$130,DE75+1,2,1)-INDEX($B$109:$C$130,DE75,2,1)) *(CM75-INDEX($B$109:$C$130,DE75,1,1)) /(INDEX($B$109:$C$130,DE75+1,1,1)-INDEX($B$109:$C$130,DE75,1,1)) ->  | DG75: =MATCH(VLOOKUP(CQ75,$B$109:$C$130,1),$B$109:$B$130,0) -> 1 | DH75: =INDEX($B$109:$C$130,DG75,2,1) +(INDEX($B$109:$C$130,DG75+1,2,1)-INDEX($B$109:$C$130,DG75,2,1)) *(CQ75-INDEX($B$109:$C$130,DG75,1,1)) /(INDEX($B$109:$C$130,DG75+1,1,1)-INDEX($B$109:$C$130,DG75,1,1)) ->  | DI75: =MATCH(VLOOKUP(CU75,$B$109:$C$130,1),$B$109:$B$130,0) -> 1 | DJ75: =INDEX($B$109:$C$130,DI75,2,1) +(INDEX($B$109:$C$130,DI75+1,2,1)-INDEX($B$109:$C$130,DI75,2,1)) *(CU75-INDEX($B$109:$C$130,DI75,1,1)) /(INDEX($B$109:$C$130,DI75+1,1,1)-INDEX($B$109:$C$130,DI75,1,1)) ->  | DK75: =IF(DF75<CN75*1000,1,IF(DH75<CR75*1000,1,IF(DJ75<CV75*1000,1,0))) ->  | DL75: =IF(DK75=0,"",CL75) -> 
AJ76: B = | AK76: 1 | AO76: Vægoverligger | AQ76: Bjælke A | AR76: =Makro!A3 -> 1 | BG76: Interne overliggere | BM76: Afskalningsbrud | BQ76: Vederlagstryk | CJ76: TRUE | CK76: =IF(Makro!B1=3,TRUE,IF(Makro!B1=5,TRUE,FALSE)) -> TRUE | CL76: B, | CM76: 356.4 | CN76: 0.007552823457 | CO76: 356.4 | CP76: 7.552823457 | CQ76: 162 | CR76: 0.0043865 | CS76: 162 | CT76: 4.3865 | CU76: 298.08 | CV76: 0.006598857438 | CW76: 298.08 | CX76: 6.598857438 | CZ76: 356.4 | DA76: 0 | DB76: -194.4 | DC76: -58.32 | DD76: 7.552823457 | DE76: 1 | DG76: 1 | DI76: 1
AJ77: N1 (kN) | AK77: N0 (kN) | AL77: N2 (kN) | AO77: Separat bjælke | AQ77: Bjælke B | AR77: =Makro!A4 -> 1 | BG77: Vægtykkelse, t [mm] | BI77: =M18 -> 150 | BJ77: Væg 1-2 | BK77: Væg 2-3 | BL77: Væg 3-4 | CJ77: TRUE | CL77: C, | CM77: 444.4 | CN77: 0.008872823457 | CO77: 444.4 | CP77: 8.872823457 | CQ77: 202 | CR77: 0.0049865 | CS77: 202 | CT77: 4.9865 | CU77: 371.68 | CV77: 0.007702857438 | CW77: 371.68 | CX77: 7.702857438 | CZ77: 444.4 | DA77: 0 | DB77: -242.4 | DC77: -72.72 | DD77: 8.872823457 | DE77: 1 | DG77: 1 | DI77: 1
AJ78: =AK76*S25 -> 3 | AK78: =AK76*R25 -> 150 | AL78: =AK76*Q25 -> 6 | BG78: Vederlagsdybder [mm] | BI78: =AH20 -> 0 | CJ78: TRUE | CL78: D, | CM78: 459.8 | CN78: 0.00853915679 | CO78: 459.8 | CP78: 8.53915679 | CQ78: 209 | CR78: 0.004834833333 | CS78: 209 | CT78: 4.834833333 | CU78: 384.56 | CV78: 0.007423790772 | CW78: 384.56 | CX78: 7.423790772 | CZ78: 459.8 | DA78: 0 | DB78: -250.8 | DC78: -75.24 | DD78: 8.53915679 | DE78: 1 | DG78: 1 | DI78: 1
AJ79: =AK76*P25 -> 10 | AK79: =AK76*R25 -> 150 | AL79: =AK76*Q25 -> 6 | AS79: LA (m) | BA79: LB (m) | BJ79: L (m) | BK79: L (m) | BL79: L (m) | CJ79: TRUE | CL79: E, | CM79: 365.2 | CN79: 0.006896745062 | CO79: 365.2 | CP79: 6.896745062 | CQ79: 166 | CR79: 0.003611583333 | CS79: 166 | CT79: 3.611583333 | CU79: 305.44 | CV79: 0.005909162052 | CW79: 305.44 | CX79: 5.909162052 | CZ79: 365.2 | DA79: 0 | DB79: -199.2 | DC79: -59.76 | DD79: 6.896745062 | DE79: 1 | DG79: 1 | DI79: 1
AJ80: =AK76*P25 -> 10 | AK80: =AK76*(O25+MAX(AM47,AN47)) -> 190 | AL80: =AK76*Q25 -> 6 | AS80: =$Q$27/2 -> 0 | BA80: =$R$27/2 -> 0 | BG80: ftld | BH80: =AA9 -> 0 | BI80: MPa | BJ80: =(Q16+2*AH20)/1000 -> 1.5 | BK80: =(Q17+2*AH20)/1000 -> 1 | BL80: =(Q18+2*AH20)/1000 -> 0.7 | CJ80: TRUE | CL80: F, | CM80: 453.2 | CN80: 0.008216745062 | CO80: 453.2 | CP80: 8.216745062 | CQ80: 206 | CR80: 0.004211583333 | CS80: 206 | CT80: 4.211583333 | CU80: 379.04 | CV80: 0.007013162052 | CW80: 379.04 | CX80: 7.013162052 | CZ80: 453.2 | DA80: 0 | DB80: -247.2 | DC80: -74.16 | DD80: 8.216745062 | DE80: 1 | DG80: 1 | DI80: 1
AJ81: =AK76*P25 -> 10 | AK81: =AK76*(O25+MAX(AM47,AN47)) -> 190 | AL81: =AK76*N25 -> 9 | BG81: fcd | BH81: =AA8 -> 0 | BI81: MPa | CJ81: TRUE | CL81: G, | CM81: 506 | CN81: 0.007072745062 | CO81: 506 | CP81: 7.072745062 | CQ81: 230 | CR81: 0.003691583333 | CS81: 230 | CT81: 3.691583333 | CU81: 423.2 | CV81: 0.006056362052 | CW81: 423.2 | CX81: 6.056362052 | CZ81: 506 | DA81: 0 | DB81: -276 | DC81: -82.8 | DD81: 7.072745062 | DE81: 1 | DG81: 1 | DI81: 1
AJ82: =AK76*M25 -> 27 | AK82: =AK76*R25 -> 150 | AL82: =AK76*Q25 -> 6 | AS82: NA | AT82: exc | AU82: NA-o | BA82: NB | BB82: exc | BC82: NB-o | BG82: NB | BH82: exc | BI82: beff | BJ82: NB | BK82: NB | BL82: NB | BM82: bæreevne | BQ82: bæreevne | CJ82: TRUE | CL82: H, | CM82: 475.2 | CN82: 0.008546745062 | CO82: 475.2 | CP82: 8.546745062 | CQ82: 216 | CR82: 0.004361583333 | CS82: 216 | CT82: 4.361583333 | CU82: 397.44 | CV82: 0.007289162052 | CW82: 397.44 | CX82: 7.289162052 | CZ82: 475.2 | DA82: 0 | DB82: -259.2 | DC82: -77.76 | DD82: 8.546745062 | DE82: 1 | DG82: 1 | DI82: 1
AJ83: =AK76*M25 -> 27 | AK83: =AK76*(O25+MAX(AM47,AN47)) -> 190 | AL83: =AK76*Q25 -> 6 | AS83: (kN) | AT83: (mm) | BA83: (kN) | BB83: (mm) | BG83: (kN/m) | BH83: (mm) | BI83: (mm) | BJ83: kN | BK83: kN | BL83: kN | BM83: kN | BQ83: kN | CJ83: TRUE | CL83: I, | CM83: 528 | CN83: 0.007402745062 | CO83: 528 | CP83: 7.402745062 | CQ83: 240 | CR83: 0.003841583333 | CS83: 240 | CT83: 3.841583333 | CU83: 441.6 | CV83: 0.006332362052 | CW83: 441.6 | CX83: 6.332362052 | CZ83: 528 | DA83: 0 | DB83: -288 | DC83: -86.4 | DD83: 7.402745062 | DE83: 1 | DG83: 1 | DI83: 1
AJ84: =AK76*M25 -> 27 | AK84: =AK76*(O25+MAX(AM47,AN47)) -> 190 | AL84: =AK76*K25 -> 13 | AS84: =IF($AO$13,IF($AR$76=1,($N31+$O31+$P31)*AS$80,$Q31),0) -> 0 | AT84: =IF($AR$76=1,IF($AO$13,IF(AS84=0,0,($N$41*$N31+$O$41*$O31-$P$41*$P31)/($AS84/$AS$80)),0),$Q$41) -> 0 | AU84: =IF($AO$13,($N31+$O31+$P31)*AS$80,0) -> 0 | BA84: =IF($AO$17,IF($AR$77=1,($N31+$O31+$P31)*BA$80,$R31)) -> 0 | BB84: =IF($AR$77=1,IF($AO$17,($N$41*$N31+$O$41*$O31-$P$41*$P31)/(BA84/$BA$80),0),$R$41) ->  | BC84: =IF($AO$17,($N31+$O31+$P31)*BA$80,0) -> 0 | BG84: =N31+O31+P31 -> 159 | BH84: =(N31*$N$40+O31*$O$40+P31*$P$40)/BG84 -> 16.79245283 | BI84: =$BI$77-2*BH84 -> 116.4150943 | BJ84: =$BG84*BJ$80*0.5 -> 119.25 | BK84: 79.5 | BL84: 55.65 | BM84: =5/4*$BI$78*BI84*$BH$80*10^-3 -> 0 | BN84: =IF(BJ84>$BM84,"Brud","OK") -> Brud | BO84: =IF(BK84>$BM84,"Brud","OK") -> Brud | BP84: =IF(BL84>$BM84,"Brud","OK") -> Brud | BQ84: =0.8*BI84*$BI$78*$BH$81*10^-3 -> 0 | BR84: =IF(BJ84>$BQ84,"Brud","OK") -> Brud | BS84: =IF(BK84>$BQ84,"Brud","OK") -> Brud | BT84: =IF(BL84>$BQ84,"Brud","OK") -> Brud | CK84: FELT #4: | DK84: =MAX(DK85:DK93) ->  | DL84: =IF(MAX(DK85:DK93)=0,"",CK84&"Last "&DL85&DL86&DL87&DL88&DL89&DL90&DL91&DL92&DL93) -> 
AJ85: =AK76*M25 -> 27 | AK85: =AK76*(L25+MAX(AL47,AO47)) -> 200 | AL85: =AK76*Q25 -> 6 | AS85: 0 | AT85: 0 | AU85: 0 | BA85: 0 | BC85: 0 | BG85: 162 | BH85: 17.40740741 | BI85: 115.1851852 | BJ85: 121.5 | BK85: 81 | BL85: 56.7 | BM85: 0 | BN85: Brud | BO85: Brud | BP85: Brud | BQ85: 0 | BR85: Brud | BS85: Brud | BT85: Brud | CJ85: =CJ75 -> TRUE | CK85: Lasttilfælde | CL85: A, | CM85: =CK40*1000 -> 292.56 | CN85: =CL40 -> 0.006007600983 | CO85: =IF($CK$86=TRUE,IF($CJ85=TRUE,CM85,-10),-10) -> 292.56 | CP85: =IF($CK$86=TRUE,IF(CJ85=TRUE,CN85*1000,-10),-10) -> 6.007600983 | CQ85: =CO40*1000 -> 159 | CR85: =CP40 -> 0.00388375 | CS85: =IF($CK$86=TRUE,IF($CJ85=TRUE,CQ85,-10),-10) -> 159 | CT85: =IF($CK$86=TRUE,IF($CJ85=TRUE,CR85*1000,-10),-10) -> 3.88375 | CU85: =CS40*1000 -> 0 | CV85: =CT40 -> 0.003896488596 | CW85: =IF($CK$86=TRUE,IF($CJ85=TRUE,CU85,-10),-10) -> 0 | CX85: =IF($CK$86=TRUE,IF($CJ85=TRUE,CV85*1000,-10),-10) -> 3.896488596 | CZ85: =MAX(CO85,CS85,CW85) -> 292.56 | DA85: =CZ85-CO85 -> 0 | DB85: =CS85-CZ85 -> -133.56 | DC85: =CW85-CZ85 -> -292.56 | DD85: =IF(DA85=0,CP85,IF(DB85=0,CT85,IF(DC85=0,CX85,"FEJL"))) -> 6.007600983 | DE85: =MATCH(VLOOKUP(CM85,$B$109:$C$130,1),$B$109:$B$130,0) -> 1 | DF85: =INDEX($B$109:$C$130,DE85,2,1) +(INDEX($B$109:$C$130,DE85+1,2,1)-INDEX($B$109:$C$130,DE85,2,1)) *(CM85-INDEX($B$109:$C$130,DE85,1,1)) /(INDEX($B$109:$C$130,DE85+1,1,1)-INDEX($B$109:$C$130,DE85,1,1)) ->  | DG85: =MATCH(VLOOKUP(CQ85,$B$109:$C$130,1),$B$109:$B$130,0) -> 1 | DH85: =INDEX($B$109:$C$130,DG85,2,1) +(INDEX($B$109:$C$130,DG85+1,2,1)-INDEX($B$109:$C$130,DG85,2,1)) *(CQ85-INDEX($B$109:$C$130,DG85,1,1)) /(INDEX($B$109:$C$130,DG85+1,1,1)-INDEX($B$109:$C$130,DG85,1,1)) ->  | DI85: =MATCH(VLOOKUP(CU85,$B$109:$C$130,1),$B$109:$B$130,0) -> 1 | DJ85: =INDEX($B$109:$C$130,DI85,2,1) +(INDEX($B$109:$C$130,DI85+1,2,1)-INDEX($B$109:$C$130,DI85,2,1)) *(CU85-INDEX($B$109:$C$130,DI85,1,1)) /(INDEX($B$109:$C$130,DI85+1,1,1)-INDEX($B$109:$C$130,DI85,1,1)) ->  | DK85: =IF(DF85<CN85*1000,1,IF(DH85<CR85*1000,1,IF(DJ85<CV85*1000,1,0))) ->  | DL85: =IF(DK85=0,"",CL85) -> 
AJ86: =AK76*M25 -> 27 | AK86: =AK76*(L25+MAX(AL47,AO47)) -> 200 | AL86: =AK76*K25 -> 13 | AS86: 0 | AT86: 0 | AU86: 0 | BA86: 0 | BC86: 0 | BG86: 202 | BH86: 16.93069307 | BI86: 116.1386139 | BJ86: 151.5 | BK86: 101 | BL86: 70.7 | BM86: 0 | BN86: Brud | BO86: Brud | BP86: Brud | BQ86: 0 | BR86: Brud | BS86: Brud | BT86: Brud | CJ86: TRUE | CK86: =IF(Makro!B1=4,TRUE,IF(Makro!B1=5,TRUE,FALSE)) -> TRUE | CL86: B, | CM86: 298.08 | CN86: 0.006219200983 | CO86: 298.08 | CP86: 6.219200983 | CQ86: 162 | CR86: 0.00399875 | CS86: 162 | CT86: 3.99875 | CU86: 0 | CV86: 0.004011488596 | CW86: 0 | CX86: 4.011488596 | CZ86: 298.08 | DA86: 0 | DB86: -136.08 | DC86: -298.08 | DD86: 6.219200983 | DE86: 1 | DG86: 1 | DI86: 1
AJ87: =AK76*Q25 -> 6 | AK87: =AK76*R25 -> 150 | AL87: =AK76*S25 -> 3 | AS87: 0 | AT87: 0 | AU87: 0 | BA87: 0 | BC87: 0 | BG87: 209 | BH87: 17.70334928 | BI87: 114.5933014 | BJ87: 156.75 | BK87: 104.5 | BL87: 73.15 | BM87: 0 | BN87: Brud | BO87: Brud | BP87: Brud | BQ87: 0 | BR87: Brud | BS87: Brud | BT87: Brud | CJ87: TRUE | CL87: C, | CM87: 371.68 | CN87: 0.007323200983 | CO87: 371.68 | CP87: 7.323200983 | CQ87: 202 | CR87: 0.00459875 | CS87: 202 | CT87: 4.59875 | CU87: 0 | CV87: 0.004611488596 | CW87: 0 | CX87: 4.611488596 | CZ87: 371.68 | DA87: 0 | DB87: -169.68 | DC87: -371.68 | DD87: 7.323200983 | DE87: 1 | DG87: 1 | DI87: 1
AJ88: =AK76*N25 -> 9 | AK88: =AK76*R25 -> 150 | AL88: =AK76*S25 -> 3 | AS88: 0 | AT88: 0 | AU88: 0 | BA88: 0 | BC88: 0 | BG88: 166 | BH88: 18.19277108 | BI88: 113.6144578 | BJ88: 124.5 | BK88: 83 | BL88: 58.1 | BM88: 0 | BN88: Brud | BO88: Brud | BP88: Brud | BQ88: 0 | BR88: Brud | BS88: Brud | BT88: Brud | CJ88: TRUE | CL88: D, | CM88: 384.56 | CN88: 0.007044134317 | CO88: 384.56 | CP88: 7.044134317 | CQ88: 209 | CR88: 0.004447083333 | CS88: 209 | CT88: 4.447083333 | CU88: 0 | CV88: 0.004459821929 | CW88: 0 | CX88: 4.459821929 | CZ88: 384.56 | DA88: 0 | DB88: -175.56 | DC88: -384.56 | DD88: 7.044134317 | DE88: 1 | DG88: 1 | DI88: 1
AJ89: =AK76*N25 -> 9 | AK89: =AK76*(O25+MAX(AM47,AN47)) -> 190 | AL89: =AK76*S25 -> 3 | AS89: 0 | AT89: 0 | AU89: 0 | BA89: 0 | BC89: 0 | BG89: 206 | BH89: 17.57281553 | BI89: 114.8543689 | BJ89: 154.5 | BK89: 103 | BL89: 72.1 | BM89: 0 | BN89: Brud | BO89: Brud | BP89: Brud | BQ89: 0 | BR89: Brud | BS89: Brud | BT89: Brud | CJ89: TRUE | CL89: E, | CM89: 305.44 | CN89: 0.005719333825 | CO89: 305.44 | CP89: 5.719333825 | CQ89: 166 | CR89: 0.003417708333 | CS89: 166 | CT89: 3.417708333 | CU89: 0 | CV89: 0.003424077631 | CW89: 0 | CX89: 3.424077631 | CZ89: 305.44 | DA89: 0 | DB89: -139.44 | DC89: -305.44 | DD89: 5.719333825 | DE89: 1 | DG89: 1 | DI89: 1
AJ90: =AK76*N25 -> 9 | AK90: =AK76*(O25+MAX(AM47,AN47)) -> 190 | AL90: =AK76*P25 -> 10 | AS90: 0 | AT90: 0 | AU90: 0 | BA90: 0 | BC90: 0 | BG90: 230 | BH90: 19.91304348 | BI90: 110.173913 | BJ90: 172.5 | BK90: 115 | BL90: 80.5 | BM90: 0 | BN90: Brud | BO90: Brud | BP90: Brud | BQ90: 0 | BR90: Brud | BS90: Brud | BT90: Brud | CJ90: TRUE | CL90: F, | CM90: 379.04 | CN90: 0.006823333825 | CO90: 379.04 | CP90: 6.823333825 | CQ90: 206 | CR90: 0.004017708333 | CS90: 206 | CT90: 4.017708333 | CU90: 0 | CV90: 0.004024077631 | CW90: 0 | CX90: 4.024077631 | CZ90: 379.04 | DA90: 0 | DB90: -173.04 | DC90: -379.04 | DD90: 6.823333825 | DE90: 1 | DG90: 1 | DI90: 1
AJ91: =AK76*K25 -> 13 | AK91: =AK76*R25 -> 150 | AL91: =AK76*S25 -> 3 | AS91: 0 | AT91: 0 | AU91: 0 | BA91: 0 | BC91: 0 | BG91: 216 | BH91: 17.4537037 | BI91: 115.0925926 | BJ91: 162 | BK91: 108 | BL91: 75.6 | BM91: 0 | BN91: Brud | BO91: Brud | BP91: Brud | BQ91: 0 | BR91: Brud | BS91: Brud | BT91: Brud | CJ91: TRUE | CL91: G, | CM91: 423.2 | CN91: 0.005866533825 | CO91: 423.2 | CP91: 5.866533825 | CQ91: 230 | CR91: 0.003497708333 | CS91: 230 | CT91: 3.497708333 | CU91: 0 | CV91: 0.003504077631 | CW91: 0 | CX91: 3.504077631 | CZ91: 423.2 | DA91: 0 | DB91: -193.2 | DC91: -423.2 | DD91: 5.866533825 | DE91: 1 | DG91: 1 | DI91: 1
AJ92: =AK76*K25 -> 13 | AK92: =AK76*(O25+MAX(AM47,AN47)) -> 190 | AL92: =AK76*S25 -> 3 | AS92: 0 | AT92: 0 | AU92: 0 | BA92: 0 | BC92: 0 | BG92: 240 | BH92: 19.70833333 | BI92: 110.5833333 | BJ92: 180 | BK92: 120 | BL92: 84 | BM92: 0 | BN92: Brud | BO92: Brud | BP92: Brud | BQ92: 0 | BR92: Brud | BS92: Brud | BT92: Brud | CJ92: TRUE | CL92: H, | CM92: 397.44 | CN92: 0.007099333825 | CO92: 397.44 | CP92: 7.099333825 | CQ92: 216 | CR92: 0.004167708333 | CS92: 216 | CT92: 4.167708333 | CU92: 0 | CV92: 0.004174077631 | CW92: 0 | CX92: 4.174077631 | CZ92: 397.44 | DA92: 0 | DB92: -181.44 | DC92: -397.44 | DD92: 7.099333825 | DE92: 1 | DG92: 1 | DI92: 1
AJ93: =AK76*K25 -> 13 | AK93: =AK76*(O25+MAX(AM47,AN47)) -> 190 | AL93: =AK76*M25 -> 27 | BM93: Brud | BN93: =COUNTIF(BN84:BN92,"Brud") -> 9 | BO93: =COUNTIF(BO84:BO92,"Brud") -> 9 | BP93: =COUNTIF(BP84:BP92,"Brud") -> 9 | BQ93: Brud | BR93: =COUNTIF(BR84:BR92,"Brud") -> 9 | BS93: =COUNTIF(BS84:BS92,"Brud") -> 9 | BT93: =COUNTIF(BT84:BT92,"Brud") -> 9 | CJ93: TRUE | CL93: I, | CM93: 441.6 | CN93: 0.006142533825 | CO93: 441.6 | CP93: 6.142533825 | CQ93: 240 | CR93: 0.003647708333 | CS93: 240 | CT93: 3.647708333 | CU93: 0 | CV93: 0.003654077631 | CW93: 0 | CX93: 3.654077631 | CZ93: 441.6 | DA93: 0 | DB93: -201.6 | DC93: -441.6 | DD93: 6.142533825 | DE93: 1 | DG93: 1 | DI93: 1
AJ94: =AK76*K25 -> 13 | AK94: =AK76*(L25+MAX(AL47,AO47)) -> 200 | AL94: =AK76*S25 -> 3 | BM94: Eksist. | BN94: =AO14 -> TRUE | BO94: =AO15 -> TRUE | BP94: =AO16 -> TRUE | BQ94: Eksist. | BR94: =AO14 -> TRUE | BS94: =AO15 -> TRUE | BT94: =AO16 -> TRUE
AJ95: =AK76*K25 -> 13 | AK95: =AK76*(L25+MAX(AL47,AO47)) -> 200 | AL95: =AK76*M25 -> 27 | BM95: Besked: | BN95: =IF(OR(AND(BN94,BN93>0),AND(BO94,BO93>0),AND(BP94,BP93>0)),"(intern overligger)","") -> (intern overligger) | BQ95: Besked: | BR95: =IF(OR(AND(BR94,BR93>0),AND(BS94,BS93>0),AND(BT94,BT93>0)),"(intern overligger)","") -> (intern overligger)
BG97: Eksterne overliggere | BM97: Afskalningsbrud | BQ97: Vederlagstryk
AJ98: Brudlasttilfælde | AT98: Tværvæg | AV98: Tværvæg | AX98: Felt 1 | AZ98: Felt 2 | BB98: Felt 3 | BD98: Felt 4 | BG98: Vægtykkelse, t [mm] | BI98: =M18 -> 150 | BJ98: Bjælke A | BK98: Bjælke B | BM98: Bjælke A | BO98: Bjælke B | BQ98: Bjælke A | BS98: Bjælke B
AK99: 1 | AT99: 1 | AV99: 2 | AX99: tv 1 | AY99: =IF(AND($AT$101>=AY10,$AT$101<=AY11),TRUE,FALSE) -> FALSE | AZ99: tv 1 | BA99: =IF(AND($AT$101>=BA10,$AT$101<=BA11),TRUE,FALSE) -> FALSE | BB99: tv 1 | BC99: =IF(AND($AT$101>=BC10,$AT$101<=BC11),TRUE,FALSE) -> FALSE | BD99: tv 1 | BE99: =IF(AND($AT$101>=BE10,$AT$101<=BE11),TRUE,FALSE) -> FALSE | BG99: Vederlagsdybder [mm] | BI99: =Q15 -> 150
AK100: 2 | AT100: x | AU100: y | AV100: x | AW100: y | AX100: tv2 | AY100: =IF(AND($AV$101>=AY10,$AV$101<=AY11),TRUE,FALSE) -> FALSE | AZ100: tv2 | BA100: =IF(AND($AV$101>=BA10,$AV$101<=BA11),TRUE,FALSE) -> FALSE | BB100: tv2 | BC100: =IF(AND($AV$101>=BC10,$AV$101<=BC11),TRUE,FALSE) -> FALSE | BD100: tv2 | BE100: =IF(AND($AV$101>=BE10,$AV$101<=BE11),TRUE,FALSE) -> FALSE | BG100: Vederlagsdybder [mm] | BI100: =Q19 -> 0 | BJ100: L (m) | BK100: L (m)
AT101: =IF(AT103,AM2,1000000) -> 1000000 | AU101: 0 | AV101: =IF(AV103,AM3,1000000) -> 1000000 | AW101: 0 | AX101: b-tv1 | AY101: =IF(AY99,MAX($AT$101-AY10,IF(AY100,$AV$101,AY11)-$AT$101),IF(AY100,0,AY11-AY10)) -> 1000 | AZ101: b-tv1 | BA101: =IF(BA99,MAX($AT$101-BA10,IF(BA100,$AV$101,BA11)-$AT$101),IF(BA100,0,BA11-BA10)) -> 1000 | BB101: b-tv1 | BC101: =IF(BC99,MAX($AT$101-BC10,IF(BC100,$AV$101,BC11)-$AT$101),IF(BC100,0,BC11-BC10)) -> 1000 | BD101: b-tv1 | BE101: =IF(BE99,MAX($AT$101-BE10,IF(BE100,$AV$101,BE11)-$AT$101),IF(BE100,0,BE11-BE10)) -> 800 | BG101: ftld | BH101: =AA9 -> 0 | BI101: MPa | BJ101: =Q27 -> 0 | BK101: =R27 -> 0
AT102: =AT101 -> 1000000 | AU102: =$AK$10 -> 3000 | AV102: =AV101 -> 1000000 | AW102: =$AK$10 -> 3000 | AX102: b-tv2 | AY102: =IF(AY100,MAX($AV$101-IF(AY99,$AT$101,AY10),AY11-$AV$101),IF(AY99,0,AY11-AY10)) -> 1000 | AZ102: b-tv2 | BA102: =IF(BA100,MAX($AV$101-IF(BA99,$AT$101,BA10),BA11-$AV$101),IF(BA99,0,BA11-BA10)) -> 1000 | BB102: b-tv2 | BC102: =IF(BC100,MAX($AV$101-IF(BC99,$AT$101,BC10),BC11-$AV$101),IF(BC99,0,BC11-BC10)) -> 1000 | BD102: b-tv2 | BE102: =IF(BE100,MAX($AV$101-IF(BE99,$AT$101,BE10),BE11-$AV$101),IF(BE99,0,BE11-BE10)) -> 800 | BG102: fcd | BH102: =AA8 -> 0 | BI102: MPa
AJ103: Grafvisning | AT103: FALSE | AV103: FALSE | AX103: beff | AY103: =MAX(AY101:AY102,0.5*AY111,0.01) -> 1000 | AZ103: beff | BA103: =MAX(BA101:BA102,0.5*BA111,0.01) -> 1000 | BB103: beff | BC103: =MAX(BC101:BC102,0.5*BC111,0.01) -> 1000 | BD103: beff | BE103: =MAX(BE101:BE102,0.5*BE111,0.01) -> 800 | BG103: NB | BH103: exc | BI103: beff | BJ103: NB | BK103: NB | BM103: bæreevne | BO103: bæreevne | BQ103: bæreevne | BS103: bæreevne
AJ104: Felt #1 | AK104: 1 | AX104: H | AY104: =$AK$10 -> 3000 | AZ104: H | BA104: =$AK$10 -> 3000 | BB104: H | BC104: =$AK$10 -> 3000 | BD104: H | BE104: =$AK$10 -> 3000 | BG104: (kN/m) | BH104: (mm) | BI104: (mm) | BJ104: kN | BK104: kN | BM104: kN | BO104: kN | BQ104: kN | BS104: kN
AJ105: Felt #2 | AK105: 2 | AN105: Minimumsarmering | AX105: Tilf. | AY105: =IF(AY99<>AY100,1,IF(AND(AY99,AY100),2,0)) -> 0 | AZ105: Tilf. | BA105: =IF(BA99<>BA100,1,IF(AND(BA99,BA100),2,0)) -> 0 | BB105: Tilf. | BC105: =IF(BC99<>BC100,1,IF(AND(BC99,BC100),2,0)) -> 0 | BD105: Tilf. | BE105: =IF(BE99<>BE100,1,IF(AND(BE99,BE100),2,0)) -> 0 | BG105: =N31+O31+P31 -> 159 | BH105: =(N31*$N$40+O31*$O$40+P31*$P$40)/BG84 -> 16.79245283 | BI105: =$BI$98-2*BH105 -> 116.4150943 | BJ105: =IF(BJ$101=0,Q31,$BG105*BJ$101*0.5) -> 12 | BK105: 15 | BM105: =5/4*$BI$99*BI105*$BH$101*10^-3 -> 0 | BN105: =IF(BJ105>$BM105,"Brud","OK") -> Brud | BO105: =5/4*$BI$100*BI105*$BH$101*10^-3 -> 0 | BP105: =IF(BK105>$BO105,"Brud","OK") -> Brud | BQ105: =0.8*BI105*$BI$99*$BH$102*10^-3 -> 0 | BR105: =IF(BJ105>$BQ105,"Brud","OK") -> Brud | BS105: =0.8*BI105*$BI$100*$BH$102*10^-3 -> 0 | BT105: =IF(BL105>$BQ105,"Brud","OK") -> OK
AJ106: Felt #3 | AK106: 3 | AO106: Maks N | AP106: =MAX(AO120:AO128)*1000 -> 225000 | AQ106: N | AY106: =IF(AY105=0,1,IF(AY105=1,1/(1+(AY104/(3*AY103))^2),IF(AY103>=AY104,1/(1+(AY104/AY103)^2),AY103/(2*AY104)))) -> 1 | BA106: =IF(BA105=0,1,IF(BA105=1,1/(1+(BA104/(3*BA103))^2),IF(BA103>=BA104,1/(1+(BA104/BA103)^2),BA103/(2*BA104)))) -> 1 | BC106: =IF(BC105=0,1,IF(BC105=1,1/(1+(BC104/(3*BC103))^2),IF(BC103>=BC104,1/(1+(BC104/BC103)^2),BC103/(2*BC104)))) -> 1 | BE106: =IF(BE105=0,1,IF(BE105=1,1/(1+(BE104/(3*BE103))^2),IF(BE103>=BE104,1/(1+(BE104/BE103)^2),BE103/(2*BE104)))) -> 1 | BG106: =N32+O32+P32 -> 162 | BH106: =(N32*$N$40+O32*$O$40+P32*$P$40)/BG85 -> 17.40740741 | BI106: =$BI$98-2*BH106 -> 115.1851852 | BJ106: 13 | BK106: 16 | BM106: =5/4*$BI$99*BI106*$BH$101*10^-3 -> 0 | BN106: =IF(BJ106>$BM106,"Brud","OK") -> Brud | BO106: =5/4*$BI$100*BI106*$BH$101*10^-3 -> 0 | BP106: =IF(BK106>$BO106,"Brud","OK") -> Brud | BQ106: =0.8*BI106*$BI$99*$BH$102*10^-3 -> 0 | BR106: =IF(BJ106>$BQ106,"Brud","OK") -> Brud | BS106: =0.8*BI106*$BI$100*$BH$102*10^-3 -> 0 | BT106: =IF(BL106>$BQ106,"Brud","OK") -> OK
B107: Bæreevnekurve | AJ107: Felt #4 | AK107: 4 | AO107: Ac | AP107: =$M$18*1000 -> 150000 | AQ107: mm2 | AX107: Ls | AY107: =AY106*AY104 -> 3000 | BA107: =BA106*BA104 -> 3000 | BC107: =BC106*BC104 -> 3000 | BE107: =BE106*BE104 -> 3000 | BG107: =N33+O33+P33 -> 202 | BH107: =(N33*$N$40+O33*$O$40+P33*$P$40)/BG86 -> 16.93069307 | BI107: =$BI$98-2*BH107 -> 116.1386139 | BJ107: 13 | BK107: 16 | BM107: =5/4*$BI$99*BI107*$BH$101*10^-3 -> 0 | BN107: =IF(BJ107>$BM107,"Brud","OK") -> Brud | BO107: =5/4*$BI$100*BI107*$BH$101*10^-3 -> 0 | BP107: =IF(BK107>$BO107,"Brud","OK") -> Brud | BQ107: =0.8*BI107*$BI$99*$BH$102*10^-3 -> 0 | BR107: =IF(BJ107>$BQ107,"Brud","OK") -> Brud | BS107: =0.8*BI107*$BI$100*$BH$102*10^-3 -> 0 | BT107: =IF(BL107>$BQ107,"Brud","OK") -> OK
B108: n | C108: m | AJ108: Alle Felter | AK108: 5 | AO108: Asmin | AP108: =ROUND(0.002*AP107,0) -> 300 | AQ108: mm2 | AR108: Asmax | AS108: =ROUND(MAX(0.04*AP107,0.1*AP106/(L9/L11)),0) -> 6000 | AX108: B | AY108: =AY11-AY10 -> 1000 | BA108: =BA11-BA10 -> 1000 | BC108: =BC11-BC10 -> 1000 | BE108: =BE11-BE10 -> 800 | BG108: =N34+O34+P34 -> 209 | BH108: =(N34*$N$40+O34*$O$40+P34*$P$40)/BG87 -> 17.70334928 | BI108: =$BI$98-2*BH108 -> 114.5933014 | BJ108: 13 | BK108: 16 | BM108: =5/4*$BI$99*BI108*$BH$101*10^-3 -> 0 | BN108: =IF(BJ108>$BM108,"Brud","OK") -> Brud | BO108: =5/4*$BI$100*BI108*$BH$101*10^-3 -> 0 | BP108: =IF(BK108>$BO108,"Brud","OK") -> Brud | BQ108: =0.8*BI108*$BI$99*$BH$102*10^-3 -> 0 | BR108: =IF(BJ108>$BQ108,"Brud","OK") -> Brud | BS108: =0.8*BI108*$BI$100*$BH$102*10^-3 -> 0 | BT108: =IF(BL108>$BQ108,"Brud","OK") -> OK
B109: 0 | C109: =C110 -> 0 | AO109: ½ Asmin | AP109: =ROUND(AP108/2,0) -> 150 | AQ109: mm2 | AR109: ½ Asmax | AS109: =AS108*0.5 -> 3000
B110: =IF(Kold!$AO$5=-1,Sheet3!M10*1000,0) -> 0 | C110: =IF(Kold!$AO$5=-1,Sheet3!N10*1000,0) -> 0 | AJ110: Trykarmering | AK110: =N9^2*N10*PI()/4 -> 335.270768 | AL110: mm^2 | AX110: b_v | AY110: =MAX(IF(AY99,MIN($AT$101,IF(AY100,$AV$101,1000000))-AY10,0),IF(AY100,MIN(IF(AY99,$AT$101,1000000),$AV$101)-AY10,0),IF(OR(AY99,AY100),0,AY108)) -> 1000 | BA110: =MAX(IF(BA99,MIN($AT$101,IF(BA100,$AV$101,1000000))-BA10,0),IF(BA100,MIN(IF(BA99,$AT$101,1000000),$AV$101)-BA10,0),IF(OR(BA99,BA100),0,BA108)) -> 1000 | BC110: =MAX(IF(BC99,MIN($AT$101,IF(BC100,$AV$101,1000000))-BC10,0),IF(BC100,MIN(IF(BC99,$AT$101,1000000),$AV$101)-BC10,0),IF(OR(BC99,BC100),0,BC108)) -> 1000 | BE110: =MAX(IF(BE99,MIN($AT$101,IF(BE100,$AV$101,1000000))-BE10,0),IF(BE100,MIN(IF(BE99,$AT$101,1000000),$AV$101)-BE10,0),IF(OR(BE99,BE100),0,BE108)) -> 800 | BG110: =N35+O35+P35 -> 166 | BH110: =(N35*$N$40+O35*$O$40+P35*$P$40)/BG88 -> 18.19277108 | BI110: =$BI$98-2*BH110 -> 113.6144578 | BJ110: =IF(BJ$101=0,Q35,$BG110*BJ$101*0.5) -> 13 | BK110: 16 | BM110: =5/4*$BI$99*BI110*$BH$101*10^-3 -> 0 | BN110: =IF(BJ110>$BM110,"Brud","OK") -> Brud | BO110: =5/4*$BI$100*BI110*$BH$101*10^-3 -> 0 | BP110: =IF(BK110>$BO110,"Brud","OK") -> Brud | BQ110: =0.8*BI110*$BI$99*$BH$102*10^-3 -> 0 | BR110: =IF(BJ110>$BQ110,"Brud","OK") -> Brud | BS110: =0.8*BI110*$BI$100*$BH$102*10^-3 -> 0 | BT110: =IF(BL110>$BQ110,"Brud","OK") -> OK
B111: =IF(Kold!$AO$5=-1,Sheet3!M11*1000,0) -> 0 | C111: =IF(Kold!$AO$5=-1,Sheet3!N11*1000,0) -> 0 | AJ111: Trækarmering | AK111: =N12^2*N13*PI()/4 -> 335.270768 | AL111: mm^2 | AX111: b_m | AY111: =IF(AY110+AY112<AY108,AY108-AY110-AY112,AY108) -> 1000 | BA111: =IF(BA110+BA112<BA108,BA108-BA110-BA112,BA108) -> 1000 | BC111: =IF(BC110+BC112<BC108,BC108-BC110-BC112,BC108) -> 1000 | BE111: =IF(BE110+BE112<BE108,BE108-BE110-BE112,BE108) -> 800 | BG111: =N36+O36+P36 -> 206 | BH111: =(N36*$N$40+O36*$O$40+P36*$P$40)/BG89 -> 17.57281553 | BI111: =$BI$98-2*BH111 -> 114.8543689 | BJ111: 13 | BK111: 16 | BM111: =5/4*$BI$99*BI111*$BH$101*10^-3 -> 0 | BN111: =IF(BJ111>$BM111,"Brud","OK") -> Brud | BO111: =5/4*$BI$100*BI111*$BH$101*10^-3 -> 0 | BP111: =IF(BK111>$BO111,"Brud","OK") -> Brud | BQ111: =0.8*BI111*$BI$99*$BH$102*10^-3 -> 0 | BR111: =IF(BJ111>$BQ111,"Brud","OK") -> Brud | BS111: =0.8*BI111*$BI$100*$BH$102*10^-3 -> 0 | BT111: =IF(BL111>$BQ111,"Brud","OK") -> OK
B112: =IF(Kold!$AO$5=-1,Sheet3!M12*1000,0) -> 0 | C112: =IF(Kold!$AO$5=-1,Sheet3!N12*1000,0) -> 0 | AX112: b_h | AY112: =MAX(IF(AY99,AY11-MAX($AT$101,IF(AY100,$AV$101,0)),0),IF(AY100,AY11-MAX(IF(AY99,$AT$101,0),$AV$101),0),IF(OR(AY99,AY100),0,AY108)) -> 1000 | BA112: =MAX(IF(BA99,BA11-MAX($AT$101,IF(BA100,$AV$101,0)),0),IF(BA100,BA11-MAX(IF(BA99,$AT$101,0),$AV$101),0),IF(OR(BA99,BA100),0,BA108)) -> 1000 | BC112: =MAX(IF(BC99,BC11-MAX($AT$101,IF(BC100,$AV$101,0)),0),IF(BC100,BC11-MAX(IF(BC99,$AT$101,0),$AV$101),0),IF(OR(BC99,BC100),0,BC108)) -> 1000 | BE112: =MAX(IF(BE99,BE11-MAX($AT$101,IF(BE100,$AV$101,0)),0),IF(BE100,BE11-MAX(IF(BE99,$AT$101,0),$AV$101),0),IF(OR(BE99,BE100),0,BE108)) -> 800 | BG112: =N37+O37+P37 -> 230 | BH112: =(N37*$N$40+O37*$O$40+P37*$P$40)/BG90 -> 19.91304348 | BI112: =$BI$98-2*BH112 -> 110.173913 | BJ112: 13 | BK112: 16 | BM112: =5/4*$BI$99*BI112*$BH$101*10^-3 -> 0 | BN112: =IF(BJ112>$BM112,"Brud","OK") -> Brud | BO112: =5/4*$BI$100*BI112*$BH$101*10^-3 -> 0 | BP112: =IF(BK112>$BO112,"Brud","OK") -> Brud | BQ112: =0.8*BI112*$BI$99*$BH$102*10^-3 -> 0 | BR112: =IF(BJ112>$BQ112,"Brud","OK") -> Brud | BS112: =0.8*BI112*$BI$100*$BH$102*10^-3 -> 0 | BT112: =IF(BL112>$BQ112,"Brud","OK") -> OK
B113: =IF(Kold!$AO$5=-1,Sheet3!M13*1000,0) -> 0 | C113: =IF(Kold!$AO$5=-1,Sheet3!N13*1000,0) -> 0 | AX113: ks | AY113: =1/(1+12*($L$8/($L$13*PI()^2))*(AY107/($M$18))^2) -> 0.7549223614 | BA113: =1/(1+12*($L$8/($L$13*PI()^2))*(BA107/($M$18))^2) -> 0.7549223614 | BC113: =1/(1+12*($L$8/($L$13*PI()^2))*(BC107/($M$18))^2) -> 0.7549223614 | BE113: =1/(1+12*($L$8/($L$13*PI()^2))*(BE107/($M$18))^2) -> 0.7549223614 | BG113: =N38+O38+P38 -> 216 | BH113: =(N38*$N$40+O38*$O$40+P38*$P$40)/BG91 -> 17.4537037 | BI113: =$BI$98-2*BH113 -> 115.0925926 | BJ113: 13 | BK113: 16 | BM113: =5/4*$BI$99*BI113*$BH$101*10^-3 -> 0 | BN113: =IF(BJ113>$BM113,"Brud","OK") -> Brud | BO113: =5/4*$BI$100*BI113*$BH$101*10^-3 -> 0 | BP113: =IF(BK113>$BO113,"Brud","OK") -> Brud | BQ113: =0.8*BI113*$BI$99*$BH$102*10^-3 -> 0 | BR113: =IF(BJ113>$BQ113,"Brud","OK") -> Brud | BS113: =0.8*BI113*$BI$100*$BH$102*10^-3 -> 0 | BT113: =IF(BL113>$BQ113,"Brud","OK") -> OK
B114: =IF(Kold!$AO$5=-1,Sheet3!M14*1000,0) -> 0 | C114: =IF(Kold!$AO$5=-1,Sheet3!N14*1000,0) -> 0 | AJ114: Fejltabel | AL114: =IF(MAX(AL115:AL145)=0,TRUE,FALSE) ->  | AN114: Bredder | AX114: NCR | AY114: =AY113*$AA$8*($M$18-2*$AA$11) -> 0 | BA114: =BA113*$AA$8*($M$18-2*$AA$11) -> 0 | BC114: =BC113*$AA$8*($M$18-2*$AA$11) -> 0 | BE114: =BE113*$AA$8*($M$18-2*$AA$11) -> 0 | BG114: =N39+O39+P39 -> 240 | BH114: =(N39*$N$40+O39*$O$40+P39*$P$40)/BG92 -> 19.70833333 | BI114: =$BI$98-2*BH114 -> 110.5833333 | BJ114: 13 | BK114: 16 | BM114: =5/4*$BI$99*BI114*$BH$101*10^-3 -> 0 | BN114: =IF(BJ114>$BM114,"Brud","OK") -> Brud | BO114: =5/4*$BI$100*BI114*$BH$101*10^-3 -> 0 | BP114: =IF(BK114>$BO114,"Brud","OK") -> Brud | BQ114: =0.8*BI114*$BI$99*$BH$102*10^-3 -> 0 | BR114: =IF(BJ114>$BQ114,"Brud","OK") -> Brud | BS114: =0.8*BI114*$BI$100*$BH$102*10^-3 -> 0 | BT114: =IF(BL114>$BQ114,"Brud","OK") -> OK
B115: =IF(Kold!$AO$5=-1,Sheet3!M15*1000,0) -> 0 | C115: =IF(Kold!$AO$5=-1,Sheet3!N15*1000,0) -> 0 | AJ115: Programmet modtager ikke negative inddata. | AK115: =IF(AL115=0,"",AJ115) ->  | AL115: =IF(MIN(L10:L11,P15:S19,K25:S25,Q27:R27,Q31:R40,N40:P40,S31,S35)<0,1,0) -> 0 | AN115: b1 = | AO115: =AY11-AY10 -> 1000 | BM115: Brud | BN115: =COUNTIF(BN105:BN114,"Brud") -> 9 | BP115: =COUNTIF(BP105:BP114,"Brud") -> 9 | BQ115: Brud | BR115: =COUNTIF(BR105:BR114,"Brud") -> 9 | BT115: =COUNTIF(BT105:BT114,"Brud") -> 0
B116: =IF(Kold!$AO$5=-1,Sheet3!M16*1000,0) -> 0 | C116: =IF(Kold!$AO$5=-1,Sheet3!N16*1000,0) -> 0 | AN116: b2 = | AO116: =BA11-BA10 -> 1000 | BM116: Eksist. | BN116: =AO13 -> TRUE | BP116: =AO17 -> TRUE | BQ116: Eksist. | BR116: =AO13 -> TRUE | BT116: =AO17 -> TRUE
B117: =IF(Kold!$AO$5=-1,Sheet3!M17*1000,0) -> 0 | C117: =IF(Kold!$AO$5=-1,Sheet3!N17*1000,0) -> 0 | AJ117: Partialkoefficienter skal være mellem 1 og 2. | AK117: =IF(AL117=0,"",AJ117) ->  | AL117: =IF(OR(L10<1,L11<1,L10>2,L11>2),1,0) -> 0 | AN117: b3 = | AO117: =BC11-BC10 -> 1000 | BM117: Besked: | BN117: =IF(AND(BN116,BN115>0),"(Bjælke A)","") -> (Bjælke A) | BP117: =IF(AND(BP116,BP115>0),"(Bjælke B)","") -> (Bjælke B) | BQ117: Besked: | BR117: =IF(AND(BR116,BR115>0),"(Bjælke A)","") -> (Bjælke A) | BT117: =IF(AND(BT116,BT115>0),"(Bjælke B)","") -> 
B118: =IF(Kold!$AO$5=-1,Sheet3!M18*1000,0) -> 0 | C118: =IF(Kold!$AO$5=-1,Sheet3!N18*1000,0) -> 0 | AJ118: Geometrikonflikt. | AK118: =IF(AL118=0,"",AJ118) ->  | AL118: =IF(OR(AY14<AY15,BA14<BA15,BC14<BC15,BE14<BE15),1,0) -> 0 | AN118: b4 = | AO118: =BE11-BE10 -> 800
B119: =IF(Kold!$AO$5=-1,Sheet3!M19*1000,0) -> 0 | C119: =IF(Kold!$AO$5=-1,Sheet3!N19*1000,0) -> 0 | AJ119: Geometrikonflikt. | AK119: =IF(AL119=0,"",AJ119) ->  | AL119: =IF(OR(BA10<AY14,BC10<BA14,BE10<BC14),1,0) -> 0
B120: =IF(Kold!$AO$5=-1,Sheet3!M20*1000,0) -> 0 | C120: =IF(Kold!$AO$5=-1,Sheet3!N20*1000,0) -> 0 | AJ120: Overligger under 200 mm. | AK120: =IF(AL120=0,"",AJ120) ->  | AL120: =IF(MAX(AR12,AT12,AV12)>AK10-200,1,0) -> 0 | AN120: A | AO120: 159 | AP120: kN
B121: =IF(Kold!$AO$5=-1,Sheet3!M21*1000,0) -> 0 | C121: =IF(Kold!$AO$5=-1,Sheet3!N21*1000,0) -> 0 | AJ121: Lodret bæreevne overskredet: | AK121: =IF(AL121=0,"",AJ121) ->  | AL121: =IF(MAX(AL122:AL125)=0,0,1) ->  | AN121: B | AO121: 162 | AP121: kN
B122: =IF(Kold!$AO$5=-1,Sheet3!M22*1000,0) -> 0 | C122: =IF(Kold!$AO$5=-1,Sheet3!N22*1000,0) -> 0 | AJ122: Vægfeltet skal beregnes som søjle. | AK122: =IF(AL122=0,"",DL54&AJ122) ->  | AL122: =IF(DK54=0,0,1) ->  | AN122: C | AO122: 202 | AP122: kN
B123: =IF(Kold!$AO$5=-1,Sheet3!M23*1000,0) -> 0 | C123: =IF(Kold!$AO$5=-1,Sheet3!N23*1000,0) -> 0 | AJ123: Vægfeltet skal beregnes som søjle. | AK123: =IF(AL123=0,"",DL64&AJ123) ->  | AL123: =IF(DK64=0,0,1) ->  | AN123: D | AO123: 209 | AP123: kN
B124: =IF(Kold!$AO$5=-1,Sheet3!M24*1000,0) -> 0 | C124: =IF(Kold!$AO$5=-1,Sheet3!N24*1000,0) -> 0 | AJ124: Vægfeltet skal beregnes som søjle. | AK124: =IF(AL124=0,"",DL74&AJ124) ->  | AL124: =IF(DK74=0,0,1) ->  | AN124: E | AO124: 163 | AP124: kN
B125: =IF(Kold!$AO$5=-1,Sheet3!M25*1000,0) -> 0 | C125: =IF(Kold!$AO$5=-1,Sheet3!N25*1000,0) -> 0 | AJ125: Vægfeltet skal beregnes som søjle. | AK125: =IF(AL125=0,"",DL84&AJ125) ->  | AL125: =IF(DK84=0,0,1) ->  | AN125: F | AO125: 203 | AP125: kN
B126: =IF(Kold!$AO$5=-1,Sheet3!M26*1000,0) -> 0 | C126: =IF(Kold!$AO$5=-1,Sheet3!N26*1000,0) -> 0 | AK126: =IF(AL126=0,"",AJ126) ->  | AN126: G | AO126: 215 | AP126: kN
B127: =IF(Kold!$AO$5=-1,Sheet3!M27*1000,0) -> 0 | C127: =IF(Kold!$AO$5=-1,Sheet3!N27*1000,0) -> 0 | AJ127: f_yk højst 600 MPa | AK127: =IF(AL127=1,AJ127&" ! ","") ->  | AL127: =IF(L9>600,1,0) -> 0 | AN127: H | AO127: 213 | AP127: kN
B128: =IF(Kold!$AO$5=-1,Sheet3!M28*1000,0) -> 0 | C128: =IF(Kold!$AO$5=-1,Sheet3!N28*1000,0) -> 0 | AN128: I | AO128: 225 | AP128: kN
B129: =B128 -> 0 | C129: =IF(Kold!$AO$5=-1,0.1,0) -> 0 | AJ129: Resttværsnit meget spinkelt | AL129: =IF(AH24<0.25*Kold!S12/1000,1,0) -> 0
B130: =IF(Kold!$AO$5=-1,S12,0) -> 0 | C130: 0 | AN130: Søjlelængde
AJ131: Reducerede laste skal være mindre end maksimallaste | AL131: =IF(K25<N25,1,IF(L25<O25,1,IF(M25<P25,1,0))) -> 0 | AN131: =IF(Makro!B4=1,"0,5·H",IF(Makro!B4=2,"0,7·H","1,0·H")) -> 0,7·H | AO131: 2
AJ132: Minimal laste skal være mindre end reducerede laste | AL132: =IF(N25<Q25,1,IF(O25<R25,1,IF(P25<S25,1,0))) -> 0 | AO132: 0,5·H
AO133: 0,7·H
AO134: 1,0·H
AN135: =IF(Makro!B4=1,0.5,IF(Makro!B4=2,0.7,1))*M16 -> 2100
AJ139: Vægfelt 1 skal beregnes som søjle, da b er mindre end 4 t | AK139: =IF(AL139=1,AJ139&" ! ","") ->  | AL139: =IF(AO115=0,0,IF($M$18>AO115/4,1,0)) -> 0
AJ140: Vægfelt 2 skal beregnes som søjle, da b er mindre end 4 t | AK140: =IF(AL140=1,AJ140&" ! ","") ->  | AL140: =IF(AO116=0,0,IF($M$18>AO116/4,1,0)) -> 0 | AN140: 2
AJ141: Vægfelt 3 skal beregnes som søjle, da b er mindre end 4 t | AK141: =IF(AL141=1,AJ141&" ! ","") ->  | AL141: =IF(AO117=0,0,IF($M$18>AO117/4,1,0)) -> 0 | AN141: Tilslag: Kvartsholdigt
AJ142: Vægfelt 4 skal beregnes som søjle, da b er mindre end 4 t | AK142: =IF(AL142=1,AJ142&" ! ","") ->  | AL142: =IF(AO118=0,0,IF($M$18>AO118/4,1,0)) -> 0 | AN142: Tilslag: Søsand / granit
AK143: =IF(AL143=0,"",AJ143) -> 
AK144: =IF(AL144=0,"",AJ144) -> 
AN145: Tillægsexc fra svækket rand | AR145: =0.5*(AS155-AS156)*M153/1000 -> 0
AN146: uterminsk, revnet tværsnit | AR146: =1.1*Firsidig!X34*(AN135/1000)^2/(800000*(AS149-AS152)/1000)+IF(OR(Makro!B3=10,AN178=1),0,AH14/1000) -> 0.001011473951 | AS146: m
AN147: uterminsk, urevnet tværsnit | AR147: =IF( 1.1*Firsidig!V13*(AN135/1000)^2/(800000*AS149/1000)+IF(OR(Makro!B3=10,AN178=1),0,AH14/1000)>AR146, 1.1*Firsidig!V13*(AN135/1000)^2/(800000*AS149/1000)+IF(OR(Makro!B3=10,AN178=1),0,AH14/1000),AR146) -> 0.001011473951 | AS147: m
AN149: 2 | AR149: h | AS149: =M18-AS155*S8-S8*AS156 -> 132.0089997
AN150: Stål: Varmvalset | AR150: b | AS150: 1000
AN151: Stål: Bratkølet | AR151: ac | AS151: =M15-S8*AS155 -> 22.00899967
AN152: Stål: Kolddeformeret | AR152: at | AS152: =M15-S8*AS156 -> 40
AN153: =IF(Makro!B8=1,"Q",IF(Makro!B8=2,"AC","C")) -> AC
AN155: Brand, trykside | AR155: 2 | AS155: =Makro!B5-1 -> 1
AN156: Brand, trækside | AR156: 1 | AS156: =Makro!B6-1 -> 0
AN157: Brand, sider | AR157: 1 | AS157: =AR157-1 -> 0
AS159: NEJ
AS160: JA
BV162: 2
AJ163: gc | AK163: =$L$10 -> 1 | AM163: Referencelast før krybning | AP163: Mo | AR163: sc,max | AS163: sc,min | AT163: sc | AU163: st | AV163: hc | AW163: u | AX163: a | AY163: Mt | AZ163: a*fc | BA163: a*ft | BB163: B | BC163: C | BD163: D | BE163: p | BF163: q | BG163: C' | BH163: y' | BI163: b | BJ163: m | BK163: Ec | BL163: Atr | BM163: Syt | BN163: Iyt | BO163: z | BP163: Io | BQ163: sc | BR163: sm | BS163: hc | BV163: Referencelast
AJ164: ga | AK164: =$L$11 -> 1 | AP164: =AY164-AN167*AW164 -> 0.002838579565 | AR164: =IF(BH164*SQRT(4*ABS(BE164)/3)-BB164/3<=AK170,AY164/(BJ164*AK171*AK170^2),BQ164) -> 1.457455986 | AS164: =IF(BH164*SQRT(4*ABS(BE164)/3)-BB164/3<=AK170,0,BR164) -> 0 | AT164: =AX164*(AV164-AK172)*AR164/AV164 -> 4.669045214 | AU164: =AX164*(AK170-AK172-AV164)*AR164/AV164 -> 4.18537192 | AV164: =IF(BH164*SQRT(4*ABS(BE164)/3)-BB164/3<=AK170,BH164*SQRT(4*ABS(BE164)/3)-BB164/3,BS164) -> 0.07691187799 | AW164: =0.1*(AR164/(AV164*BK164))*AK176^2 -> 0.00056921253 | AX164: =AK173 -> 6.675132725 | AY164: =IF(AN170>0,AN170+AK170*AN167/20,0)+0.000000000001 -> 0.002870575001 | AZ164: =AX164*AK174/(AK170*AK171) -> 0.01491984584 | BA164: =AX164*AK175/(AK170*AK171) -> 0.01491984584 | BB164: =-6*AK170*(0.25-0.5*AY164/(AK170*AN169)) -> -0.07179371993 | BC164: =-6*AK170*(AZ164*(0.5*AK170-AK172)-BA164*(0.5*AK170-AK172)-(AZ164+BA164)*AK170*AY164/(AK170*AN169)) -> 0.001371488448 | BD164: =6*AK170*((AZ164*AK172-BA164*(AK170-AK172))*(0.5*AK170-AK172)-(AZ164*AK172+BA164*(AK170-AK172))*AY164/AN169) -> -0.0001357598937 | BE164: =(3*BC164-BB164^2)/3 -> -0.0003466242924 | BF164: =(9*BC164*BB164-27*BD164-2*BB164^3)/27 -> 0.00013034952 | BG164: =0.5*BF164*(3/ABS(BE164))^(3/2) -> 52.4774627 | BH164: =IF(BE164>0,SINH(ASINH(BG164)/3),IF(BG164>=1,COSH(ACOSH(BG164)/3),IF(BG164<=-1,-COSH(ACOSH(ABS(BG164))/3),COS(ACOS(BG164)/3)))) -> 2.464440389 | BI164: =AV164/AK170 -> 0.5127458533 | BJ164: =0.5*BI164*(0.5-BI164/3)+AZ164*(0.5-AK172/AK170)*(BI164-AK172/AK170)/BI164+BA164*(0.5-AK172/AK170)*(1-AK172/AK170-BI164)/BI164 -> 0.08753685352 | BK164: =IF(BH164*SQRT(4*ABS(BE164)/3)-BB164/3<=AK170,AK169*(1-AK168*AR164/AK167),AK169*(1-AK168*AR164/AK167-(1-AK168)*BR164/AK167)) -> 29961.95105 | BL164: =(1+AZ164+BA164)*AK170*AK171 -> 0.1544759538 | BM164: =0.5*(AK170-AK172)*(BA164-AZ164)*AK170*AK171 -> 0 | BN164: =AK171*AK170^3/12+(0.5*AK170-AK172)^2*(AZ164+BA164)*AK171*AK170 -> 0.0002867330433 | BO164: =BM164/BL164 -> 0 | BP164: =BN164-BL164*BO164^2 -> 0.0002867330433 | BQ164: =AN169/BL164+(AY164+BO164*AN169)*(0.5*AK170+BO164)/BP164 -> 1.114724076 | BR164: =AN169/BL164+(AY164+BO164*AN169)*(-0.5*AK170+BO164)/BP164 -> -0.3869732694 | BS164: =AN169*BP164/((AY164+AN169*BO164)*BL164)+(0.5*AK170+BO164) -> 0.1113464121 | BV164: A | BW164: 29.1 | BX164: 0.4978
AJ165: fck | AK165: =$L$8 -> 20 | AL165: MPa | AP165: =AY165-AN167*AW165 -> 0.00245982364 | AQ165: =AW165/AW164 -> 0.6617130144 | AR165: =IF(BH165*SQRT(4*ABS(BE165)/3)-BB165/3<=AK170,AY165/(BJ165*AK171*AK170^2),BQ165) -> 1.176099723 | AS165: =IF(BH165*SQRT(4*ABS(BE165)/3)-BB165/3<=AK170,0,BR165) -> 0 | AT165: =AX165*(AV165-AK172)*AR165/AV165 -> 4.502574293 | AU165: =AX165*(AK170-AK172-AV165)*AR165/AV165 -> 1.356508759 | AV165: =IF(BH165*SQRT(4*ABS(BE165)/3)-BB165/3<=AK170,BH165*SQRT(4*ABS(BE165)/3)-BB165/3,BS165) -> 0.09379343452 | AW165: =0.1*(AR165/(AV165*BK165))*AK176^2 -> 0.0003766553391 | AX165: =AK173 -> 6.675132725 | AY165: =AN170+AW164*AN167 -> 0.002480995436 | AZ165: =AX165*AK174/(AK170*AK171) -> 0.01491984584 | BA165: =AX165*AK175/(AK170*AK171) -> 0.01491984584 | BB165: =-6*AK170*(0.25-0.5*AY165/(AK170*AN169)) -> -0.09258608239 | BC165: =-6*AK170*(AZ165*(0.5*AK170-AK172)-BA165*(0.5*AK170-AK172)-(AZ165+BA165)*AK170*AY165/(AK170*AN169)) -> 0.001185357142 | BD165: =6*AK170*((AZ165*AK172-BA165*(AK170-AK172))*(0.5*AK170-AK172)-(AZ165*AK172+BA165*(AK170-AK172))*AY165/AN169) -> -0.0001218000457 | BE165: =(3*BC165-BB165^2)/3 -> -0.001672037075 | BF165: =(9*BC165*BB165-27*BD165-2*BB165^3)/27 -> 0.0001440075069 | BG165: =0.5*BF165*(3/ABS(BE165))^(3/2) -> 5.472278147 | BH165: =IF(BE165>0,SINH(ASINH(BG165)/3),IF(BG165>=1,COSH(ACOSH(BG165)/3),IF(BG165<=-1,-COSH(ACOSH(ABS(BG165))/3),COS(ACOS(BG165)/3)))) -> 1.332831113 | BI165: =AV165/AK170 -> 0.6252895634 | BJ165: =0.5*BI165*(0.5-BI165/3)+AZ165*(0.5-AK172/AK170)*(BI165-AK172/AK170)/BI165+BA165*(0.5-AK172/AK170)*(1-AK172/AK170-BI165)/BI165 -> 0.09375604947 | BK165: =IF(BH165*SQRT(4*ABS(BE165)/3)-BB165/3<=AK170,AK169*(1-AK168*AR165/AK167),AK169*(1-AK168*AR165/AK167-(1-AK168)*BR165/AK167)) -> 29961.95105 | BL165: =(1+AZ165+BA165)*AK170*AK171 -> 0.1544759538 | BM165: =0.5*(AK170-AK172)*(BA165-AZ165)*AK170*AK171 -> 0 | BN165: =AK171*AK170^3/12+(0.5*AK170-AK172)^2*(AZ165+BA165)*AK171*AK170 -> 0.0002867330433 | BO165: =BM165/BL165 -> 0 | BP165: =BN165-BL165*BO165^2 -> 0.0002867330433 | BQ165: =AN169/BL165+(AY165+BO165*AN169)*(0.5*AK170+BO165)/BP165 -> 1.012822785 | BR165: =AN169/BL165+(AY165+BO165*AN169)*(-0.5*AK170+BO165)/BP165 -> -0.2850719782 | BS165: =AN169*BP165/((AY165+AN169*BO165)*BL165)+(0.5*AK170+BO165) -> 0.1170537258 | BV165: B | BW165: 56.2 | BX165: 2.449
AJ166: Es | AK166: 200000 | AL166: MPa | AM166: Max_N | AN166: =(AK170*AK171+AK173*(AK174+AK175))*AK167/(1+(12*(AK167/AK169)/PI()^2)*(AK176/AK170)^2) -> 2.332347036 | AP166: =AY166-AN167*AW166 -> 0.002449233857 | AQ166: =AW166/AW165 -> 0.9889543252 | AR166: =IF(BH166*SQRT(4*ABS(BE166)/3)-BB166/3<=AK170,AY166/(BJ166*AK171*AK170^2),BQ166) -> 1.16941073 | AS166: =IF(BH166*SQRT(4*ABS(BE166)/3)-BB166/3<=AK170,0,BR166) -> 0 | AT166: =AX166*(AV166-AK172)*AR166/AV166 -> 4.494905817 | AU166: =AX166*(AK170-AK172-AV166)*AR166/AV166 -> 1.29945971 | AV166: =IF(BH166*SQRT(4*ABS(BE166)/3)-BB166/3<=AK170,BH166*SQRT(4*ABS(BE166)/3)-BB166/3,BS166) -> 0.0943016152 | AW166: =0.1*(AR166/(AV166*BK166))*AK176^2 -> 0.0003724949267 | AX166: =AK173 -> 6.675132725 | AY166: =AN170+AW165*AN167 -> 0.002470171797 | AZ166: =AX166*AK174/(AK170*AK171) -> 0.01491984584 | BA166: =AX166*AK175/(AK170*AK171) -> 0.01491984584 | BB166: =-6*AK170*(0.25-0.5*AY166/(AK170*AN169)) -> -0.09316375396 | BC166: =-6*AK170*(AZ166*(0.5*AK170-AK172)-BA166*(0.5*AK170-AK172)-(AZ166+BA166)*AK170*AY166/(AK170*AN169)) -> 0.00118018588 | BD166: =6*AK170*((AZ166*AK172-BA166*(AK170-AK172))*(0.5*AK170-AK172)-(AZ166*AK172+BA166*(AK170-AK172))*AY166/AN169) -> -0.0001214122011 | BE166: =(3*BC166-BB166^2)/3 -> -0.001712975804 | BF166: =(9*BC166*BB166-27*BD166-2*BB166^3)/27 -> 0.0001446593084 | BG166: =0.5*BF166*(3/ABS(BE166))^(3/2) -> 5.301166293 | BH166: 1.323412272 | BI166: =AV166/AK170 -> 0.6286774347 | BJ166: =0.5*BI166*(0.5-BI166/3)+AZ166*(0.5-AK172/AK170)*(BI166-AK172/AK170)/BI166+BA166*(0.5-AK172/AK170)*(1-AK172/AK170-BI166)/BI166 -> 0.0938809696 | BK166: =IF(BH166*SQRT(4*ABS(BE166)/3)-BB166/3<=AK170,AK169*(1-AK168*AR166/AK167),AK169*(1-AK168*AR166/AK167-(1-AK168)*BR166/AK167)) -> 29961.95105 | BL166: =(1+AZ166+BA166)*AK170*AK171 -> 0.1544759538 | BM166: =0.5*(AK170-AK172)*(BA166-AZ166)*AK170*AK171 -> 0 | BN166: =AK171*AK170^3/12+(0.5*AK170-AK172)^2*(AZ166+BA166)*AK171*AK170 -> 0.0002867330433 | BO166: 0 | BP166: 0.0002867330433 | BQ166: =AN169/BL166+(AY166+BO166*AN169)*(0.5*AK170+BO166)/BP166 -> 1.009991675 | BR166: =AN169/BL166+(AY166+BO166*AN169)*(-0.5*AK170+BO166)/BP166 -> -0.2822408675 | BS166: =AN169*BP166/((AY166+AN169*BO166)*BL166)+(0.5*AK170+BO166) -> 0.1172379941 | BV166: C | BW166: 359.2 | BX166: 8.509
AJ167: fcd | AK167: =AK165/AK163 -> 20 | AL167: MPa | AM167: Nd | AN167: =INDEX(BV164:BX173,Makro!B3,2)/1000+0.00001 -> 0.05621 | AO167: MN | AP167: =AY167-AN167*AW167 -> 0.002449005018 | AQ167: 0.9997603549 | AR167: =IF(BH167*SQRT(4*ABS(BE167)/3)-BB167/3<=AK170,AY167/(BJ167*AK171*AK170^2),BQ167) -> 1.16926685 | AS167: =IF(BH167*SQRT(4*ABS(BE167)/3)-BB167/3<=AK170,0,BR167) -> 0 | AT167: =AX167*(AV167-AK172)*AR167/AV167 -> 4.494738882 | AU167: =AX167*(AK170-AK172-AV167)*AR167/AV167 -> 1.298238053 | AV167: =IF(BH167*SQRT(4*ABS(BE167)/3)-BB167/3<=AK170,BH167*SQRT(4*ABS(BE167)/3)-BB167/3,BS167) -> 0.09431261427 | AW167: =0.1*(AR167/(AV167*BK167))*AK176^2 -> 0.0003724056601 | AX167: =AK173 -> 6.675132725 | AY167: =AN170+AW166*AN167 -> 0.00246993794 | AZ167: =AX167*AK174/(AK170*AK171) -> 0.01491984584 | BA167: =AX167*AK175/(AK170*AK171) -> 0.01491984584 | BB167: =-6*AK170*(0.25-0.5*AY167/(AK170*AN169)) -> -0.0931762352 | BC167: =-6*AK170*(AZ167*(0.5*AK170-AK172)-BA167*(0.5*AK170-AK172)-(AZ167+BA167)*AK170*AY167/(AK170*AN169)) -> 0.001180074149 | BD167: =6*AK170*((AZ167*AK172-BA167*(AK170-AK172))*(0.5*AK170-AK172)-(AZ167*AK172+BA167*(AK170-AK172))*AY167/AN169) -> -0.0001214038212 | BE167: -0.001713862786 | BF167: 0.0001446735654 | BG167: 5.297573582 | BH167: 1.323212831 | BI167: =AV167/AK170 -> 0.6287507618 | BJ167: =0.5*BI167*(0.5-BI167/3)+AZ167*(0.5-AK172/AK170)*(BI167-AK172/AK170)/BI167+BA167*(0.5-AK172/AK170)*(1-AK172/AK170-BI167)/BI167 -> 0.09388363275 | BK167: =IF(BH167*SQRT(4*ABS(BE167)/3)-BB167/3<=AK170,AK169*(1-AK168*AR167/AK167),AK169*(1-AK168*AR167/AK167-(1-AK168)*BR167/AK167)) -> 29961.95105 | BL167: =(1+AZ167+BA167)*AK170*AK171 -> 0.1544759538 | BM167: =0.5*(AK170-AK172)*(BA167-AZ167)*AK170*AK171 -> 0 | BN167: =AK171*AK170^3/12+(0.5*AK170-AK172)^2*(AZ167+BA167)*AK171*AK170 -> 0.0002867330433 | BO167: 0 | BP167: 0.0002867330433 | BQ167: =AN169/BL167+(AY167+BO167*AN169)*(0.5*AK170+BO167)/BP167 -> 1.009930505 | BR167: =AN169/BL167+(AY167+BO167*AN169)*(-0.5*AK170+BO167)/BP167 -> -0.2821796982 | BS167: =AN169*BP167/((AY167+AN169*BO167)*BL167)+(0.5*AK170+BO167) -> 0.1172419933 | BV167: D | BW167: 375.5 | BX167: 7.857
AJ168: k | AK168: 0 | AM168: Nf | AN168: 0 | AO168: MN | AP168: =AY168-AN167*AW168 -> 0.002449000108 | AQ168: 0.9999948577 | AR168: =IF(BH168*SQRT(4*ABS(BE168)/3)-BB168/3<=AK170,AY168/(BJ168*AK171*AK170^2),BQ168) -> 1.169263763 | AS168: =IF(BH168*SQRT(4*ABS(BE168)/3)-BB168/3<=AK170,0,BR168) -> 0 | AT168: =AX168*(AV168-AK172)*AR168/AV168 -> 4.4947353 | AU168: =AX168*(AK170-AK172-AV168)*AR168/AV168 -> 1.298211846 | AV168: =IF(BH168*SQRT(4*ABS(BE168)/3)-BB168/3<=AK170,BH168*SQRT(4*ABS(BE168)/3)-BB168/3,BS168) -> 0.09431285028 | AW168: =0.1*(AR168/(AV168*BK168))*AK176^2 -> 0.0003724037451 | AX168: =AK173 -> 6.675132725 | AY168: =AN170+AW167*AN167 -> 0.002469932922 | AZ168: =AX168*AK174/(AK170*AK171) -> 0.01491984584 | BA168: =AX168*AK175/(AK170*AK171) -> 0.01491984584 | BB168: =-6*AK170*(0.25-0.5*AY168/(AK170*AN169)) -> -0.093176503 | BC168: =-6*AK170*(AZ168*(0.5*AK170-AK172)-BA168*(0.5*AK170-AK172)-(AZ168+BA168)*AK170*AY168/(AK170*AN169)) -> 0.001180071752 | BD168: =6*AK170*((AZ168*AK172-BA168*(AK170-AK172))*(0.5*AK170-AK172)-(AZ168*AK172+BA168*(AK170-AK172))*AY168/AN169) -> -0.0001214036414 | BE168: -0.001713881819 | BF168: 0.0001446738714 | BG168: 5.297496544 | BH168: 1.323208553 | BI168: =AV168/AK170 -> 0.6287523352 | BJ168: =0.5*BI168*(0.5-BI168/3)+AZ168*(0.5-AK172/AK170)*(BI168-AK172/AK170)/BI168+BA168*(0.5-AK172/AK170)*(1-AK172/AK170-BI168)/BI168 -> 0.09388368987 | BK168: =IF(BH168*SQRT(4*ABS(BE168)/3)-BB168/3<=AK170,AK169*(1-AK168*AR168/AK167),AK169*(1-AK168*AR168/AK167-(1-AK168)*BR168/AK167)) -> 29961.95105 | BL168: =(1+AZ168+BA168)*AK170*AK171 -> 0.1544759538 | BM168: =0.5*(AK170-AK172)*(BA168-AZ168)*AK170*AK171 -> 0 | BN168: =AK171*AK170^3/12+(0.5*AK170-AK172)^2*(AZ168+BA168)*AK171*AK170 -> 0.0002867330433 | BO168: 0 | BP168: 0.0002867330433 | BQ168: =AN169/BL168+(AY168+BO168*AN169)*(0.5*AK170+BO168)/BP168 -> 1.009929193 | BR168: =AN169/BL168+(AY168+BO168*AN169)*(-0.5*AK170+BO168)/BP168 -> -0.2821783858 | BS168: =AN169*BP168/((AY168+AN169*BO168)*BL168)+(0.5*AK170+BO168) -> 0.1172420791 | BV168: E | BW168: 0 | BX168: 0.001
AJ169: Ecm | AK169: =1000*22*((AK167+8)/10)^0.3 -> 29961.95105 | AL169: MPa | AM169: N | AN169: =AN168+AN167 -> 0.05621 | AO169: MN | AP169: =AY169-AN167*AW169 -> 0.002449000002 | AQ169: 0.9999998897 | AR169: =IF(BH169*SQRT(4*ABS(BE169)/3)-BB169/3<=AK170,AY169/(BJ169*AK171*AK170^2),BQ169) -> 1.169263697 | AS169: =IF(BH169*SQRT(4*ABS(BE169)/3)-BB169/3<=AK170,0,BR169) -> 0 | AT169: =AX169*(AV169-AK172)*AR169/AV169 -> 4.494735223 | AU169: =AX169*(AK170-AK172-AV169)*AR169/AV169 -> 1.298211284 | AV169: =IF(BH169*SQRT(4*ABS(BE169)/3)-BB169/3<=AK170,BH169*SQRT(4*ABS(BE169)/3)-BB169/3,BS169) -> 0.09431285534 | AW169: =0.1*(AR169/(AV169*BK169))*AK176^2 -> 0.000372403704 | AX169: =AK173 -> 6.675132725 | AY169: =AN170+AW168*AN167 -> 0.002469932815 | AZ169: =AX169*AK174/(AK170*AK171) -> 0.01491984584 | BA169: =AX169*AK175/(AK170*AK171) -> 0.01491984584 | BB169: =-6*AK170*(0.25-0.5*AY169/(AK170*AN169)) -> -0.09317650874 | BC169: =-6*AK170*(AZ169*(0.5*AK170-AK172)-BA169*(0.5*AK170-AK172)-(AZ169+BA169)*AK170*AY169/(AK170*AN169)) -> 0.0011800717 | BD169: =6*AK170*((AZ169*AK172-BA169*(AK170-AK172))*(0.5*AK170-AK172)-(AZ169*AK172+BA169*(AK170-AK172))*AY169/AN169) -> -0.0001214036376 | BE169: =(3*BC169-BB169^2)/3 -> -0.001713882227 | BF169: =(9*BC169*BB169-27*BD169-2*BB169^3)/27 -> 0.000144673878 | BG169: =0.5*BF169*(3/ABS(BE169))^(3/2) -> 5.297494891 | BH169: =IF(BE169>0,SINH(ASINH(BG169)/3),IF(BG169>=1,COSH(ACOSH(BG169)/3),IF(BG169<=-1,-COSH(ACOSH(ABS(BG169))/3),COS(ACOS(BG169)/3)))) -> 1.323208462 | BI169: =AV169/AK170 -> 0.6287523689 | BJ169: =0.5*BI169*(0.5-BI169/3)+AZ169*(0.5-AK172/AK170)*(BI169-AK172/AK170)/BI169+BA169*(0.5-AK172/AK170)*(1-AK172/AK170-BI169)/BI169 -> 0.0938836911 | BK169: =IF(BH169*SQRT(4*ABS(BE169)/3)-BB169/3<=AK170,AK169*(1-AK168*AR169/AK167),AK169*(1-AK168*AR169/AK167-(1-AK168)*BR169/AK167)) -> 29961.95105 | BL169: =(1+AZ169+BA169)*AK170*AK171 -> 0.1544759538 | BM169: =0.5*(AK170-AK172)*(BA169-AZ169)*AK170*AK171 -> 0 | BN169: =AK171*AK170^3/12+(0.5*AK170-AK172)^2*(AZ169+BA169)*AK171*AK170 -> 0.0002867330433 | BO169: 0 | BP169: 0.0002867330433 | BQ169: =AN169/BL169+(AY169+BO169*AN169)*(0.5*AK170+BO169)/BP169 -> 1.009929165 | BR169: =AN169/BL169+(AY169+BO169*AN169)*(-0.5*AK170+BO169)/BP169 -> -0.2821783576 | BS169: =AN169*BP169/((AY169+AN169*BO169)*BL169)+(0.5*AK170+BO169) -> 0.1172420809 | BV169: F | BW169: 0 | BX169: 0.001
AJ170: h | AK170: =$M$18/1000 -> 0.15 | AL170: m | AM170: Mo | AN170: =INDEX(BV164:BX173,Makro!B3,3)/1000 -> 0.002449 | AO170: MNm | AP170: =AY170-AN167*AW170 -> 0.002449 | AQ170: 0.9999999976 | AR170: =IF(BH170*SQRT(4*ABS(BE170)/3)-BB170/3<=AK170,AY170/(BJ170*AK171*AK170^2),BQ170) -> 1.169263696 | AS170: =IF(BH170*SQRT(4*ABS(BE170)/3)-BB170/3<=AK170,0,BR170) -> 0 | AT170: =AX170*(AV170-AK172)*AR170/AV170 -> 4.494735221 | AU170: =AX170*(AK170-AK172-AV170)*AR170/AV170 -> 1.298211272 | AV170: =IF(BH170*SQRT(4*ABS(BE170)/3)-BB170/3<=AK170,BH170*SQRT(4*ABS(BE170)/3)-BB170/3,BS170) -> 0.09431285545 | AW170: =0.1*(AR170/(AV170*BK170))*AK176^2 -> 0.0003724037031 | AX170: =AK173 -> 6.675132725 | AY170: =AN170+AW169*AN167 -> 0.002469932812 | AZ170: =AX170*AK174/(AK170*AK171) -> 0.01491984584 | BA170: =AX170*AK175/(AK170*AK171) -> 0.01491984584 | BB170: =-6*AK170*(0.25-0.5*AY170/(AK170*AN169)) -> -0.09317650887 | BC170: =-6*AK170*(AZ170*(0.5*AK170-AK172)-BA170*(0.5*AK170-AK172)-(AZ170+BA170)*AK170*AY170/(AK170*AN169)) -> 0.001180071699 | BD170: =6*AK170*((AZ170*AK172-BA170*(AK170-AK172))*(0.5*AK170-AK172)-(AZ170*AK172+BA170*(AK170-AK172))*AY170/AN169) -> -0.0001214036375 | BE170: -0.001713882236 | BF170: 0.0001446738781 | BG170: 5.297494855 | BH170: 1.32320846 | BI170: =AV170/AK170 -> 0.6287523697 | BJ170: =0.5*BI170*(0.5-BI170/3)+AZ170*(0.5-AK172/AK170)*(BI170-AK172/AK170)/BI170+BA170*(0.5-AK172/AK170)*(1-AK172/AK170-BI170)/BI170 -> 0.09388369112 | BK170: =IF(BH170*SQRT(4*ABS(BE170)/3)-BB170/3<=AK170,AK169*(1-AK168*AR170/AK167),AK169*(1-AK168*AR170/AK167-(1-AK168)*BR170/AK167)) -> 29961.95105 | BL170: =(1+AZ170+BA170)*AK170*AK171 -> 0.1544759538 | BM170: =0.5*(AK170-AK172)*(BA170-AZ170)*AK170*AK171 -> 0 | BN170: =AK171*AK170^3/12+(0.5*AK170-AK172)^2*(AZ170+BA170)*AK171*AK170 -> 0.0002867330433 | BO170: 0 | BP170: 0.0002867330433 | BQ170: =AN169/BL170+(AY170+BO170*AN169)*(0.5*AK170+BO170)/BP170 -> 1.009929164 | BR170: =AN169/BL170+(AY170+BO170*AN169)*(-0.5*AK170+BO170)/BP170 -> -0.282178357 | BS170: =AN169*BP170/((AY170+AN169*BO170)*BL170)+(0.5*AK170+BO170) -> 0.117242081 | BV170: G | BW170: 0 | BX170: 0.001
AJ171: b | AK171: 1 | AL171: m | AM171: u | AN171: =AW176 -> 0.0003724037031 | AO171: m | AP171: =AY171-AN167*AW171 -> 0.002449 | AQ171: 0.9999999999 | AR171: =IF(BH171*SQRT(4*ABS(BE171)/3)-BB171/3<=AK170,AY171/(BJ171*AK171*AK170^2),BQ171) -> 1.169263696 | AS171: =IF(BH171*SQRT(4*ABS(BE171)/3)-BB171/3<=AK170,0,BR171) -> 0 | AT171: =AX171*(AV171-AK172)*AR171/AV171 -> 4.494735221 | AU171: =AX171*(AK170-AK172-AV171)*AR171/AV171 -> 1.298211271 | AV171: =IF(BH171*SQRT(4*ABS(BE171)/3)-BB171/3<=AK170,BH171*SQRT(4*ABS(BE171)/3)-BB171/3,BS171) -> 0.09431285545 | AW171: =0.1*(AR171/(AV171*BK171))*AK176^2 -> 0.0003724037031 | AX171: =AK173 -> 6.675132725 | AY171: =AN170+AW170*AN167 -> 0.002469932812 | AZ171: =AX171*AK174/(AK170*AK171) -> 0.01491984584 | BA171: =AX171*AK175/(AK170*AK171) -> 0.01491984584 | BB171: =-6*AK170*(0.25-0.5*AY171/(AK170*AN169)) -> -0.09317650887 | BC171: =-6*AK170*(AZ171*(0.5*AK170-AK172)-BA171*(0.5*AK170-AK172)-(AZ171+BA171)*AK170*AY171/(AK170*AN169)) -> 0.001180071699 | BD171: =6*AK170*((AZ171*AK172-BA171*(AK170-AK172))*(0.5*AK170-AK172)-(AZ171*AK172+BA171*(AK170-AK172))*AY171/AN169) -> -0.0001214036375 | BE171: -0.001713882236 | BF171: 0.0001446738781 | BG171: 5.297494855 | BH171: 1.32320846 | BI171: =AV171/AK170 -> 0.6287523697 | BJ171: =0.5*BI171*(0.5-BI171/3)+AZ171*(0.5-AK172/AK170)*(BI171-AK172/AK170)/BI171+BA171*(0.5-AK172/AK170)*(1-AK172/AK170-BI171)/BI171 -> 0.09388369112 | BK171: =IF(BH171*SQRT(4*ABS(BE171)/3)-BB171/3<=AK170,AK169*(1-AK168*AR171/AK167),AK169*(1-AK168*AR171/AK167-(1-AK168)*BR171/AK167)) -> 29961.95105 | BL171: =(1+AZ171+BA171)*AK170*AK171 -> 0.1544759538 | BM171: =0.5*(AK170-AK172)*(BA171-AZ171)*AK170*AK171 -> 0 | BN171: =AK171*AK170^3/12+(0.5*AK170-AK172)^2*(AZ171+BA171)*AK171*AK170 -> 0.0002867330433 | BO171: 0 | BP171: 0.0002867330433 | BQ171: =AN169/BL171+(AY171+BO171*AN169)*(0.5*AK170+BO171)/BP171 -> 1.009929164 | BR171: =AN169/BL171+(AY171+BO171*AN169)*(-0.5*AK170+BO171)/BP171 -> -0.282178357 | BS171: =AN169*BP171/((AY171+AN169*BO171)*BL171)+(0.5*AK170+BO171) -> 0.117242081 | BV171: H | BW171: 0 | BX171: 0.001
AJ172: a | AK172: =$M$15/1000 -> 0.04 | AL172: m | AM172: ec,max | AN172: =1000*AR176/BK176 -> 0.0390249518 | AO172: o/oo | AP172: =AY172-AN167*AW172 -> 0.002449 | AQ172: 1 | AR172: =IF(BH172*SQRT(4*ABS(BE172)/3)-BB172/3<=AK170,AY172/(BJ172*AK171*AK170^2),BQ172) -> 1.169263696 | AS172: =IF(BH172*SQRT(4*ABS(BE172)/3)-BB172/3<=AK170,0,BR172) -> 0 | AT172: =AX172*(AV172-AK172)*AR172/AV172 -> 4.494735221 | AU172: =AX172*(AK170-AK172-AV172)*AR172/AV172 -> 1.298211271 | AV172: =IF(BH172*SQRT(4*ABS(BE172)/3)-BB172/3<=AK170,BH172*SQRT(4*ABS(BE172)/3)-BB172/3,BS172) -> 0.09431285545 | AW172: =0.1*(AR172/(AV172*BK172))*AK176^2 -> 0.0003724037031 | AX172: =AK173 -> 6.675132725 | AY172: =AN170+AW171*AN167 -> 0.002469932812 | AZ172: =AX172*AK174/(AK170*AK171) -> 0.01491984584 | BA172: =AX172*AK175/(AK170*AK171) -> 0.01491984584 | BB172: =-6*AK170*(0.25-0.5*AY172/(AK170*AN169)) -> -0.09317650887 | BC172: =-6*AK170*(AZ172*(0.5*AK170-AK172)-BA172*(0.5*AK170-AK172)-(AZ172+BA172)*AK170*AY172/(AK170*AN169)) -> 0.001180071699 | BD172: =6*AK170*((AZ172*AK172-BA172*(AK170-AK172))*(0.5*AK170-AK172)-(AZ172*AK172+BA172*(AK170-AK172))*AY172/AN169) -> -0.0001214036375 | BE172: -0.001713882236 | BF172: 0.0001446738781 | BG172: 5.297494855 | BH172: 1.32320846 | BI172: =AV172/AK170 -> 0.6287523697 | BJ172: =0.5*BI172*(0.5-BI172/3)+AZ172*(0.5-AK172/AK170)*(BI172-AK172/AK170)/BI172+BA172*(0.5-AK172/AK170)*(1-AK172/AK170-BI172)/BI172 -> 0.09388369112 | BK172: =IF(BH172*SQRT(4*ABS(BE172)/3)-BB172/3<=AK170,AK169*(1-AK168*AR172/AK167),AK169*(1-AK168*AR172/AK167-(1-AK168)*BR172/AK167)) -> 29961.95105 | BL172: =(1+AZ172+BA172)*AK170*AK171 -> 0.1544759538 | BM172: =0.5*(AK170-AK172)*(BA172-AZ172)*AK170*AK171 -> 0 | BN172: =AK171*AK170^3/12+(0.5*AK170-AK172)^2*(AZ172+BA172)*AK171*AK170 -> 0.0002867330433 | BO172: 0 | BP172: 0.0002867330433 | BQ172: =AN169/BL172+(AY172+BO172*AN169)*(0.5*AK170+BO172)/BP172 -> 1.009929164 | BR172: =AN169/BL172+(AY172+BO172*AN169)*(-0.5*AK170+BO172)/BP172 -> -0.282178357 | BS172: =AN169*BP172/((AY172+AN169*BO172)*BL172)+(0.5*AK170+BO172) -> 0.117242081 | BV172: I | BW172: 0 | BX172: 0.001
AJ173: a | AK173: =AK166/AK169 -> 6.675132725 | AM173: ec,min | AN173: =1000*AS176/BK176 -> 0 | AO173: o/oo | AP173: =AY173-AN167*AW173 -> 0.002449 | AQ173: =AW173/AW172 -> 1 | AR173: =IF(BH173*SQRT(4*ABS(BE173)/3)-BB173/3<=AK170,AY173/(BJ173*AK171*AK170^2),BQ173) -> 1.169263696 | AS173: =IF(BH173*SQRT(4*ABS(BE173)/3)-BB173/3<=AK170,0,BR173) -> 0 | AT173: =AX173*(AV173-AK172)*AR173/AV173 -> 4.494735221 | AU173: =AX173*(AK170-AK172-AV173)*AR173/AV173 -> 1.298211271 | AV173: =IF(BH173*SQRT(4*ABS(BE173)/3)-BB173/3<=AK170,BH173*SQRT(4*ABS(BE173)/3)-BB173/3,BS173) -> 0.09431285545 | AW173: =0.1*(AR173/(AV173*BK173))*AK176^2 -> 0.0003724037031 | AX173: =AK173 -> 6.675132725 | AY173: =AN170+AW172*AN167 -> 0.002469932812 | AZ173: =AX173*AK174/(AK170*AK171) -> 0.01491984584 | BA173: =AX173*AK175/(AK170*AK171) -> 0.01491984584 | BB173: =-6*AK170*(0.25-0.5*AY173/(AK170*AN169)) -> -0.09317650887 | BC173: =-6*AK170*(AZ173*(0.5*AK170-AK172)-BA173*(0.5*AK170-AK172)-(AZ173+BA173)*AK170*AY173/(AK170*AN169)) -> 0.001180071699 | BD173: =6*AK170*((AZ173*AK172-BA173*(AK170-AK172))*(0.5*AK170-AK172)-(AZ173*AK172+BA173*(AK170-AK172))*AY173/AN169) -> -0.0001214036375 | BE173: -0.001713882236 | BF173: 0.0001446738781 | BG173: 5.297494855 | BH173: 1.32320846 | BI173: =AV173/AK170 -> 0.6287523697 | BJ173: =0.5*BI173*(0.5-BI173/3)+AZ173*(0.5-AK172/AK170)*(BI173-AK172/AK170)/BI173+BA173*(0.5-AK172/AK170)*(1-AK172/AK170-BI173)/BI173 -> 0.09388369112 | BK173: =IF(BH173*SQRT(4*ABS(BE173)/3)-BB173/3<=AK170,AK169*(1-AK168*AR173/AK167),AK169*(1-AK168*AR173/AK167-(1-AK168)*BR173/AK167)) -> 29961.95105 | BL173: =(1+AZ173+BA173)*AK170*AK171 -> 0.1544759538 | BM173: =0.5*(AK170-AK172)*(BA173-AZ173)*AK170*AK171 -> 0 | BN173: =AK171*AK170^3/12+(0.5*AK170-AK172)^2*(AZ173+BA173)*AK171*AK170 -> 0.0002867330433 | BO173: 0 | BP173: 0.0002867330433 | BQ173: =AN169/BL173+(AY173+BO173*AN169)*(0.5*AK170+BO173)/BP173 -> 1.009929164 | BR173: =AN169/BL173+(AY173+BO173*AN169)*(-0.5*AK170+BO173)/BP173 -> -0.282178357 | BS173: =AN169*BP173/((AY173+AN169*BO173)*BL173)+(0.5*AK170+BO173) -> 0.117242081 | BV173: INGEN
AJ174: Ac | AK174: =PI()/4*$N$9^2*$N$10/1000000 -> 0.000335270768 | AL174: m2 | AM174: sa,c | AN174: =AT176 -> 4.494735221 | AO174: MPa | AP174: =AY174-AN167*AW174 -> 0.002449 | AQ174: =AW174/AW173 -> 1 | AR174: =IF(BH174*SQRT(4*ABS(BE174)/3)-BB174/3<=AK170,AY174/(BJ174*AK171*AK170^2),BQ174) -> 1.169263696 | AS174: =IF(BH174*SQRT(4*ABS(BE174)/3)-BB174/3<=AK170,0,BR174) -> 0 | AT174: =AX174*(AV174-AK172)*AR174/AV174 -> 4.494735221 | AU174: =AX174*(AK170-AK172-AV174)*AR174/AV174 -> 1.298211271 | AV174: =IF(BH174*SQRT(4*ABS(BE174)/3)-BB174/3<=AK170,BH174*SQRT(4*ABS(BE174)/3)-BB174/3,BS174) -> 0.09431285545 | AW174: =0.1*(AR174/(AV174*BK174))*AK176^2 -> 0.0003724037031 | AX174: =AK173 -> 6.675132725 | AY174: =AN170+AW173*AN167 -> 0.002469932812 | AZ174: =AX174*AK174/(AK170*AK171) -> 0.01491984584 | BA174: =AX174*AK175/(AK170*AK171) -> 0.01491984584 | BB174: =-6*AK170*(0.25-0.5*AY174/(AK170*AN169)) -> -0.09317650887 | BC174: =-6*AK170*(AZ174*(0.5*AK170-AK172)-BA174*(0.5*AK170-AK172)-(AZ174+BA174)*AK170*AY174/(AK170*AN169)) -> 0.001180071699 | BD174: =6*AK170*((AZ174*AK172-BA174*(AK170-AK172))*(0.5*AK170-AK172)-(AZ174*AK172+BA174*(AK170-AK172))*AY174/AN169) -> -0.0001214036375 | BE174: -0.001713882236 | BF174: 0.0001446738781 | BG174: 5.297494855 | BH174: 1.32320846 | BI174: =AV174/AK170 -> 0.6287523697 | BJ174: =0.5*BI174*(0.5-BI174/3)+AZ174*(0.5-AK172/AK170)*(BI174-AK172/AK170)/BI174+BA174*(0.5-AK172/AK170)*(1-AK172/AK170-BI174)/BI174 -> 0.09388369112 | BK174: =IF(BH174*SQRT(4*ABS(BE174)/3)-BB174/3<=AK170,AK169*(1-AK168*AR174/AK167),AK169*(1-AK168*AR174/AK167-(1-AK168)*BR174/AK167)) -> 29961.95105 | BL174: =(1+AZ174+BA174)*AK170*AK171 -> 0.1544759538 | BM174: =0.5*(AK170-AK172)*(BA174-AZ174)*AK170*AK171 -> 0 | BN174: =AK171*AK170^3/12+(0.5*AK170-AK172)^2*(AZ174+BA174)*AK171*AK170 -> 0.0002867330433 | BO174: 0 | BP174: 0.0002867330433 | BQ174: =AN169/BL174+(AY174+BO174*AN169)*(0.5*AK170+BO174)/BP174 -> 1.009929164 | BR174: =AN169/BL174+(AY174+BO174*AN169)*(-0.5*AK170+BO174)/BP174 -> -0.282178357 | BS174: =AN169*BP174/((AY174+AN169*BO174)*BL174)+(0.5*AK170+BO174) -> 0.117242081
AJ175: At | AK175: =PI()/4*$N$12^2*$N$13/1000000 -> 0.000335270768 | AL175: m2 | AM175: sa,t | AN175: =AU176 -> 1.298211271 | AO175: MPa | AP175: =AY175-AN167*AW175 -> 0.002449 | AQ175: =AW175/AW174 -> 1 | AR175: =IF(BH175*SQRT(4*ABS(BE175)/3)-BB175/3<=AK170,AY175/(BJ175*AK171*AK170^2),BQ175) -> 1.169263696 | AS175: =IF(BH175*SQRT(4*ABS(BE175)/3)-BB175/3<=AK170,0,BR175) -> 0 | AT175: =AX175*(AV175-AK172)*AR175/AV175 -> 4.494735221 | AU175: =AX175*(AK170-AK172-AV175)*AR175/AV175 -> 1.298211271 | AV175: =IF(BH175*SQRT(4*ABS(BE175)/3)-BB175/3<=AK170,BH175*SQRT(4*ABS(BE175)/3)-BB175/3,BS175) -> 0.09431285545 | AW175: =0.1*(AR175/(AV175*BK175))*AK176^2 -> 0.0003724037031 | AX175: =AK173 -> 6.675132725 | AY175: =AN170+AW174*AN167 -> 0.002469932812 | AZ175: =AX175*AK174/(AK170*AK171) -> 0.01491984584 | BA175: =AX175*AK175/(AK170*AK171) -> 0.01491984584 | BB175: =-6*AK170*(0.25-0.5*AY175/(AK170*AN169)) -> -0.09317650887 | BC175: =-6*AK170*(AZ175*(0.5*AK170-AK172)-BA175*(0.5*AK170-AK172)-(AZ175+BA175)*AK170*AY175/(AK170*AN169)) -> 0.001180071699 | BD175: =6*AK170*((AZ175*AK172-BA175*(AK170-AK172))*(0.5*AK170-AK172)-(AZ175*AK172+BA175*(AK170-AK172))*AY175/AN169) -> -0.0001214036375 | BE175: -0.001713882236 | BF175: 0.0001446738781 | BG175: 5.297494855 | BH175: 1.32320846 | BI175: =AV175/AK170 -> 0.6287523697 | BJ175: =0.5*BI175*(0.5-BI175/3)+AZ175*(0.5-AK172/AK170)*(BI175-AK172/AK170)/BI175+BA175*(0.5-AK172/AK170)*(1-AK172/AK170-BI175)/BI175 -> 0.09388369112 | BK175: =IF(BH175*SQRT(4*ABS(BE175)/3)-BB175/3<=AK170,AK169*(1-AK168*AR175/AK167),AK169*(1-AK168*AR175/AK167-(1-AK168)*BR175/AK167)) -> 29961.95105 | BL175: =(1+AZ175+BA175)*AK170*AK171 -> 0.1544759538 | BM175: =0.5*(AK170-AK172)*(BA175-AZ175)*AK170*AK171 -> 0 | BN175: =AK171*AK170^3/12+(0.5*AK170-AK172)^2*(AZ175+BA175)*AK171*AK170 -> 0.0002867330433 | BO175: 0 | BP175: 0.0002867330433 | BQ175: =AN169/BL175+(AY175+BO175*AN169)*(0.5*AK170+BO175)/BP175 -> 1.009929164 | BR175: =AN169/BL175+(AY175+BO175*AN169)*(-0.5*AK170+BO175)/BP175 -> -0.282178357 | BS175: =AN169*BP175/((AY175+AN169*BO175)*BL175)+(0.5*AK170+BO175) -> 0.117242081
AJ176: L | AK176: =$M$16/1000 -> 3 | AL176: m | AM176: hc | AN176: =AV176 -> 0.09431285545 | AO176: m | AP176: =AY176-AN167*AW176 -> 0.002449 | AQ176: =AW176/AW175 -> 1 | AR176: =IF(BH176*SQRT(4*ABS(BE176)/3)-BB176/3<=AK170,AY176/(BJ176*AK171*AK170^2),BQ176) -> 1.169263696 | AS176: =IF(BH176*SQRT(4*ABS(BE176)/3)-BB176/3<=AK170,0,BR176) -> 0 | AT176: =AX176*(AV176-AK172)*AR176/AV176 -> 4.494735221 | AU176: =AX176*(AK170-AK172-AV176)*AR176/AV176 -> 1.298211271 | AV176: =IF(BH176*SQRT(4*ABS(BE176)/3)-BB176/3<=AK170,BH176*SQRT(4*ABS(BE176)/3)-BB176/3,BS176) -> 0.09431285545 | AW176: =0.1*(AR176/(AV176*BK176))*AK176^2 -> 0.0003724037031 | AX176: =AK173 -> 6.675132725 | AY176: =AN170+AW175*AN167 -> 0.002469932812 | AZ176: =AX176*AK174/(AK170*AK171) -> 0.01491984584 | BA176: =AX176*AK175/(AK170*AK171) -> 0.01491984584 | BB176: =-6*AK170*(0.25-0.5*AY176/(AK170*AN169)) -> -0.09317650887 | BC176: =-6*AK170*(AZ176*(0.5*AK170-AK172)-BA176*(0.5*AK170-AK172)-(AZ176+BA176)*AK170*AY176/(AK170*AN169)) -> 0.001180071699 | BD176: =6*AK170*((AZ176*AK172-BA176*(AK170-AK172))*(0.5*AK170-AK172)-(AZ176*AK172+BA176*(AK170-AK172))*AY176/AN169) -> -0.0001214036375 | BE176: -0.001713882236 | BF176: 0.0001446738781 | BG176: 5.297494855 | BH176: 1.32320846 | BI176: =AV176/AK170 -> 0.6287523697 | BJ176: =0.5*BI176*(0.5-BI176/3)+AZ176*(0.5-AK172/AK170)*(BI176-AK172/AK170)/BI176+BA176*(0.5-AK172/AK170)*(1-AK172/AK170-BI176)/BI176 -> 0.09388369112 | BK176: =IF(BH176*SQRT(4*ABS(BE176)/3)-BB176/3<=AK170,AK169*(1-AK168*AR176/AK167),AK169*(1-AK168*AR176/AK167-(1-AK168)*BR176/AK167)) -> 29961.95105 | BL176: =(1+AZ176+BA176)*AK170*AK171 -> 0.1544759538 | BM176: =0.5*(AK170-AK172)*(BA176-AZ176)*AK170*AK171 -> 0 | BN176: =AK171*AK170^3/12+(0.5*AK170-AK172)^2*(AZ176+BA176)*AK171*AK170 -> 0.0002867330433 | BO176: 0 | BP176: 0.0002867330433 | BQ176: =AN169/BL176+(AY176+BO176*AN169)*(0.5*AK170+BO176)/BP176 -> 1.009929164 | BR176: =AN169/BL176+(AY176+BO176*AN169)*(-0.5*AK170+BO176)/BP176 -> -0.282178357 | BS176: =AN169*BP176/((AY176+AN169*BO176)*BL176)+(0.5*AK170+BO176) -> 0.117242081
AJ177: gc | AK177: =$L$10 -> 1 | AM177: Referencelast efter krybning | AP177: Mo | AR177: sc,max | AS177: sc,min | AT177: sc | AU177: st | AV177: hc | AW177: u | AX177: a | AY177: Mt | AZ177: a*fc | BA177: a*ft | BB177: B | BC177: C | BD177: D | BE177: p | BF177: q | BG177: C' | BH177: y' | BI177: b | BJ177: m | BK177: Ec | BL177: Atr | BM177: Syt | BN177: Iyt | BO177: z | BP177: Io | BQ177: sc | BR177: sm | BS177: hc
AJ178: ga | AK178: =$L$11 -> 1 | AM178: Kontrol | AN178: =IF(AND(Makro!B3<10,ABS(1-AQ190)>0.01),1,0) -> 0 | AP178: =AY178-AN181*AW178 -> 0.002768417905 | AR178: =IF(BH178*SQRT(4*ABS(BE178)/3)-BB178/3<=AK184,AY178/(BJ178*AK185*AK184^2),BQ178) -> 1.28847674 | AS178: =IF(BH178*SQRT(4*ABS(BE178)/3)-BB178/3<=AK184,0,BR178) -> 0 | AT178: =AX178*(AV178-AK186)*AR178/AV178 -> 17.61877983 | AU178: =AX178*(AK184-AK186-AV178)*AR178/AV178 -> 10.65217507 | AV178: =IF(BH178*SQRT(4*ABS(BE178)/3)-BB178/3<=AK184,BH178*SQRT(4*ABS(BE178)/3)-BB178/3,BS178) -> 0.08362479416 | AW178: =0.1*(AR178/(AV178*BK178))*AK190^2 -> 0.001817418529 | AX178: =AK187 -> 26.21204571 | AY178: =IF(AN184>0,AN184+AK184*AN181/20,0)+0.000000000001 -> 0.002870575001 | AZ178: =AX178*AK188/(AK184*AK185) -> 0.05858755131 | BA178: =AX178*AK189/(AK184*AK185) -> 0.05858755131 | BB178: =-6*AK184*(0.25-0.5*AY178/(AK184*AN183)) -> -0.07179371993 | BC178: =-6*AK184*(AZ178*(0.5*AK184-AK186)-BA178*(0.5*AK184-AK186)-(AZ178+BA178)*AK184*AY178/(AK184*AN183)) -> 0.005385588477 | BD178: =6*AK184*((AZ178*AK186-BA178*(AK184-AK186))*(0.5*AK184-AK186)-(AZ178*AK186+BA178*(AK184-AK186))*AY178/AN183) -> -0.0005331046864 | BE178: =(3*BC178-BB178^2)/3 -> 0.003667475737 | BF178: =(9*BC178*BB178-27*BD178-2*BB178^3)/27 -> 0.0004316319217 | BG178: =0.5*BF178*(3/ABS(BE178))^(3/2) -> 5.049106929 | BH178: =IF(BE178>0,SINH(ASINH(BG178)/3),IF(BG178>=1,COSH(ACOSH(BG178)/3),IF(BG178<=-1,-COSH(ACOSH(ABS(BG178))/3),COS(ACOS(BG178)/3)))) -> 0.8536393861 | BI178: =AV178/AK184 -> 0.5574986277 | BJ178: =0.5*BI178*(0.5-BI178/3)+AZ178*(0.5-AK186/AK184)*(BI178-AK186/AK184)/BI178+BA178*(0.5-AK186/AK184)*(1-AK186/AK184-BI178)/BI178 -> 0.09901700762 | BK178: =IF(BH178*SQRT(4*ABS(BE178)/3)-BB178/3<=AK184,AK183*(1-AK182*AR178/AK181),AK183*(1-AK182*AR178/AK181-(1-AK182)*BR178/AK181)) -> 7630.07978 | BL178: =(1+AZ178+BA178)*AK184*AK185 -> 0.1675762654 | BM178: =0.5*(AK184-AK186)*(BA178-AZ178)*AK184*AK185 -> 0 | BN178: =AK185*AK184^3/12+(0.5*AK184-AK186)^2*(AZ178+BA178)*AK185*AK184 -> 0.0003027809251 | BO178: =BM178/BL178 -> 0 | BP178: =BN178-BL178*BO178^2 -> 0.0003027809251 | BQ178: =AN183/BL178+(AY178+BO178*AN183)*(0.5*AK184+BO178)/BP178 -> 1.046481835 | BR178: =AN183/BL178+(AY178+BO178*AN183)*(-0.5*AK184+BO178)/BP178 -> -0.3756231081 | BS178: =AN183*BP178/((AY178+AN183*BO178)*BL178)+(0.5*AK184+BO178) -> 0.1103802332
AJ179: fck | AK179: =$L$8 -> 20 | AL179: MPa | AM179: feff | AN179: =AH10 -> 2.926820153 | AP179: =AY179-AN181*AW179 -> 0.002471788549 | AQ179: =AW179/AW178 -> 0.7769264167 | AR179: =IF(BH179*SQRT(4*ABS(BE179)/3)-BB179/3<=AK184,AY179/(BJ179*AK185*AK184^2),BQ179) -> 1.119192588 | AS179: =IF(BH179*SQRT(4*ABS(BE179)/3)-BB179/3<=AK184,0,BR179) -> 0 | AT179: =AX179*(AV179-AK186)*AR179/AV179 -> 16.78521202 | AU179: =AX179*(AK184-AK186-AV179)*AR179/AV179 -> 5.179239666 | AV179: =IF(BH179*SQRT(4*ABS(BE179)/3)-BB179/3<=AK184,BH179*SQRT(4*ABS(BE179)/3)-BB179/3,BS179) -> 0.09349393002 | AW179: =0.1*(AR179/(AV179*BK179))*AK190^2 -> 0.001412000466 | AX179: =AK187 -> 26.21204571 | AY179: =AN184+AW178*AN181 -> 0.002551157096 | AZ179: =AX179*AK188/(AK184*AK185) -> 0.05858755131 | BA179: =AX179*AK189/(AK184*AK185) -> 0.05858755131 | BB179: =-6*AK184*(0.25-0.5*AY179/(AK184*AN183)) -> -0.08884146439 | BC179: =-6*AK184*(AZ179*(0.5*AK184-AK186)-BA179*(0.5*AK184-AK186)-(AZ179+BA179)*AK184*AY179/(AK184*AN183)) -> 0.004786317115 | BD179: =6*AK184*((AZ179*AK186-BA179*(AK184-AK186))*(0.5*AK184-AK186)-(AZ179*AK186+BA179*(AK184-AK186))*AY179/AN183) -> -0.0004881593343 | BE179: 0.00215538185 | BF179: 0.0003983595586 | BG179: 10.34286359 | BH179: 1.191610075 | BI179: =AV179/AK184 -> 0.6232928668 | BJ179: =0.5*BI179*(0.5-BI179/3)+AZ179*(0.5-AK186/AK184)*(BI179-AK186/AK184)/BI179+BA179*(0.5-AK186/AK184)*(1-AK186/AK184-BI179)/BI179 -> 0.101309427 | BK179: =IF(BH179*SQRT(4*ABS(BE179)/3)-BB179/3<=AK184,AK183*(1-AK182*AR179/AK181),AK183*(1-AK182*AR179/AK181-(1-AK182)*BR179/AK181)) -> 7630.07978 | BL179: =(1+AZ179+BA179)*AK184*AK185 -> 0.1675762654 | BM179: =0.5*(AK184-AK186)*(BA179-AZ179)*AK184*AK185 -> 0 | BN179: =AK185*AK184^3/12+(0.5*AK184-AK186)^2*(AZ179+BA179)*AK185*AK184 -> 0.0003027809251 | BO179: =BM179/BL179 -> 0 | BP179: =BN179-BL179*BO179^2 -> 0.0003027809251 | BQ179: =AN183/BL179+(AY179+BO179*AN183)*(0.5*AK184+BO179)/BP179 -> 0.9673607906 | BR179: =AN183/BL179+(AY179+BO179*AN183)*(-0.5*AK184+BO179)/BP179 -> -0.296502064 | BS179: =AN183*BP179/((AY179+AN183*BO179)*BL179)+(0.5*AK184+BO179) -> 0.1148100192
AJ180: Es | AK180: 200000 | AL180: MPa | AM180: Max_N | AN180: =(AK184*AK185+AK187*(AK188+AK189))*AK181/(1+(12*(AK181/AK183)/PI()^2)*(AK190/AK184)^2) -> 1.473326788 | AP180: =AY180-AN181*AW180 -> 0.002450478969 | AQ180: =AW180/AW179 -> 0.9813658027 | AR180: =IF(BH180*SQRT(4*ABS(BE180)/3)-BB180/3<=AK184,AY180/(BJ180*AK185*AK184^2),BQ180) -> 1.107733825 | AS180: =IF(BH180*SQRT(4*ABS(BE180)/3)-BB180/3<=AK184,0,BR180) -> 0 | AT180: =AX180*(AV180-AK186)*AR180/AV180 -> 16.71873437 | AU180: =AX180*(AK184-AK186-AV180)*AR180/AV180 -> 4.836427392 | AV180: =IF(BH180*SQRT(4*ABS(BE180)/3)-BB180/3<=AK184,BH180*SQRT(4*ABS(BE180)/3)-BB180/3,BS180) -> 0.09429378906 | AW180: =0.1*(AR180/(AV180*BK180))*AK190^2 -> 0.00138568897 | AX180: =AK187 -> 26.21204571 | AY180: =AN184+AW179*AN181 -> 0.002528368546 | AZ180: =AX180*AK188/(AK184*AK185) -> 0.05858755131 | BA180: =AX180*AK189/(AK184*AK185) -> 0.05858755131 | BB180: =-6*AK184*(0.25-0.5*AY180/(AK184*AN183)) -> -0.09005771858 | BC180: =-6*AK184*(AZ180*(0.5*AK184-AK186)-BA180*(0.5*AK184-AK186)-(AZ180+BA180)*AK184*AY180/(AK184*AN183)) -> 0.004743562702 | BD180: =6*AK184*((AZ180*AK186-BA180*(AK184-AK186))*(0.5*AK184-AK186)-(AZ180*AK186+BA180*(AK184-AK186))*AY180/AN183) -> -0.0004849527533 | BE180: 0.002040098477 | BF180: 0.0003966585684 | BG180: 11.18386791 | BH180: 1.232378484 | BI180: =AV180/AK184 -> 0.6286252604 | BJ180: =0.5*BI180*(0.5-BI180/3)+AZ180*(0.5-AK186/AK184)*(BI180-AK186/AK184)/BI180+BA180*(0.5-AK186/AK184)*(1-AK186/AK184-BI180)/BI180 -> 0.1014430839 | BK180: =IF(BH180*SQRT(4*ABS(BE180)/3)-BB180/3<=AK184,AK183*(1-AK182*AR180/AK181),AK183*(1-AK182*AR180/AK181-(1-AK182)*BR180/AK181)) -> 7630.07978 | BL180: =(1+AZ180+BA180)*AK184*AK185 -> 0.1675762654 | BM180: =0.5*(AK184-AK186)*(BA180-AZ180)*AK184*AK185 -> 0 | BN180: =AK185*AK184^3/12+(0.5*AK184-AK186)^2*(AZ180+BA180)*AK185*AK184 -> 0.0003027809251 | BO180: 0 | BP180: 0.0003027809251 | BQ180: =AN183/BL180+(AY180+BO180*AN183)*(0.5*AK184+BO180)/BP180 -> 0.9617159792 | BR180: =AN183/BL180+(AY180+BO180*AN183)*(-0.5*AK184+BO180)/BP180 -> -0.2908572527 | BS180: =AN183*BP180/((AY180+AN183*BO180)*BL180)+(0.5*AK184+BO180) -> 0.1151688326
AJ181: fcd | AK181: =AK179/AK177 -> 20 | AL181: MPa | AM181: Nd | AN181: =INDEX(BV164:BX173,Makro!B3,2)/1000+0.00001 -> 0.05621 | AO181: MN | AP181: =AY181-AN181*AW181 -> 0.00244909526 | AQ181: 0.9987769921 | AR181: =IF(BH181*SQRT(4*ABS(BE181)/3)-BB181/3<=AK184,AY181/(BJ181*AK185*AK184^2),BQ181) -> 1.106993424 | AS181: =IF(BH181*SQRT(4*ABS(BE181)/3)-BB181/3<=AK184,0,BR181) -> 0 | AT181: =AX181*(AV181-AK186)*AR181/AV181 -> 16.71439102 | AU181: =AX181*(AK184-AK186-AV181)*AR181/AV181 -> 4.814408606 | AV181: =IF(BH181*SQRT(4*ABS(BE181)/3)-BB181/3<=AK184,BH181*SQRT(4*ABS(BE181)/3)-BB181/3,BS181) -> 0.09434614989 | AW181: =0.1*(AR181/(AV181*BK181))*AK190^2 -> 0.001383994262 | AX181: =AK187 -> 26.21204571 | AY181: =AN184+AW180*AN181 -> 0.002526889577 | AZ181: =AX181*AK188/(AK184*AK185) -> 0.05858755131 | BA181: =AX181*AK189/(AK184*AK185) -> 0.05858755131 | BB181: =-6*AK184*(0.25-0.5*AY181/(AK184*AN183)) -> -0.09013665307 | BC181: =-6*AK184*(AZ181*(0.5*AK184-AK186)-BA181*(0.5*AK184-AK186)-(AZ181+BA181)*AK184*AY181/(AK184*AN183)) -> 0.004740787955 | BD181: =6*AK184*((AZ181*AK186-BA181*(AK184-AK186))*(0.5*AK184-AK186)-(AZ181*AK186+BA181*(AK184-AK186))*AY181/AN183) -> -0.0004847446473 | BE181: 0.002032582546 | BF181: 0.0003965514101 | BG181: 11.24291939 | BH181: 1.235155264 | BI181: =AV181/AK184 -> 0.6289743326 | BJ181: =0.5*BI181*(0.5-BI181/3)+AZ181*(0.5-AK186/AK184)*(BI181-AK186/AK184)/BI181+BA181*(0.5-AK186/AK184)*(1-AK186/AK184-BI181)/BI181 -> 0.1014515543 | BK181: =IF(BH181*SQRT(4*ABS(BE181)/3)-BB181/3<=AK184,AK183*(1-AK182*AR181/AK181),AK183*(1-AK182*AR181/AK181-(1-AK182)*BR181/AK181)) -> 7630.07978 | BL181: =(1+AZ181+BA181)*AK184*AK185 -> 0.1675762654 | BM181: =0.5*(AK184-AK186)*(BA181-AZ181)*AK184*AK185 -> 0 | BN181: =AK185*AK184^3/12+(0.5*AK184-AK186)^2*(AZ181+BA181)*AK185*AK184 -> 0.0003027809251 | BO181: 0 | BP181: 0.0003027809251 | BQ181: =AN183/BL181+(AY181+BO181*AN183)*(0.5*AK184+BO181)/BP181 -> 0.9613496329 | BR181: =AN183/BL181+(AY181+BO181*AN183)*(-0.5*AK184+BO181)/BP181 -> -0.2904909063 | BS181: =AN183*BP181/((AY181+AN183*BO181)*BL181)+(0.5*AK184+BO181) -> 0.1151923431
AJ182: k | AK182: 0 | AM182: Nf | AN182: 0 | AO182: MN | AP182: =AY182-AN181*AW182 -> 0.002449006133 | AQ182: 0.9999211694 | AR182: =IF(BH182*SQRT(4*ABS(BE182)/3)-BB182/3<=AK184,AY182/(BJ182*AK185*AK184^2),BQ182) -> 1.106945749 | AS182: =IF(BH182*SQRT(4*ABS(BE182)/3)-BB182/3<=AK184,0,BR182) -> 0 | AT182: =AX182*(AV182-AK186)*AR182/AV182 -> 16.71411115 | AU182: =AX182*(AK184-AK186-AV182)*AR182/AV182 -> 4.81299135 | AV182: =IF(BH182*SQRT(4*ABS(BE182)/3)-BB182/3<=AK184,BH182*SQRT(4*ABS(BE182)/3)-BB182/3,BS182) -> 0.0943495243 | AW182: =0.1*(AR182/(AV182*BK182))*AK190^2 -> 0.001383885161 | AX182: =AK187 -> 26.21204571 | AY182: =AN184+AW181*AN181 -> 0.002526794317 | AZ182: =AX182*AK188/(AK184*AK185) -> 0.05858755131 | BA182: =AX182*AK189/(AK184*AK185) -> 0.05858755131 | BB182: =-6*AK184*(0.25-0.5*AY182/(AK184*AN183)) -> -0.09014173719 | BC182: =-6*AK184*(AZ182*(0.5*AK184-AK186)-BA182*(0.5*AK184-AK186)-(AZ182+BA182)*AK184*AY182/(AK184*AN183)) -> 0.004740609235 | BD182: =6*AK184*((AZ182*AK186-BA182*(AK184-AK186))*(0.5*AK184-AK186)-(AZ182*AK186+BA182*(AK184-AK186))*AY182/AN183) -> -0.0004847312433 | BE182: 0.002032098307 | BF182: 0.0003965445216 | BG182: 11.24674296 | BH182: 1.23533469 | BI182: =AV182/AK184 -> 0.6289968287 | BJ182: =0.5*BI182*(0.5-BI182/3)+AZ182*(0.5-AK186/AK184)*(BI182-AK186/AK184)/BI182+BA182*(0.5-AK186/AK184)*(1-AK186/AK184-BI182)/BI182 -> 0.101452099 | BK182: =IF(BH182*SQRT(4*ABS(BE182)/3)-BB182/3<=AK184,AK183*(1-AK182*AR182/AK181),AK183*(1-AK182*AR182/AK181-(1-AK182)*BR182/AK181)) -> 7630.07978 | BL182: =(1+AZ182+BA182)*AK184*AK185 -> 0.1675762654 | BM182: =0.5*(AK184-AK186)*(BA182-AZ182)*AK184*AK185 -> 0 | BN182: =AK185*AK184^3/12+(0.5*AK184-AK186)^2*(AZ182+BA182)*AK185*AK184 -> 0.0003027809251 | BO182: 0 | BP182: 0.0003027809251 | BQ182: =AN183/BL182+(AY182+BO182*AN183)*(0.5*AK184+BO182)/BP182 -> 0.9613260367 | BR182: =AN183/BL182+(AY182+BO182*AN183)*(-0.5*AK184+BO182)/BP182 -> -0.2904673102 | BS182: =AN183*BP182/((AY182+AN183*BO182)*BL182)+(0.5*AK184+BO182) -> 0.1151938584
AJ183: Ecm | AK183: =(1000*22*((AK181+8)/10)^0.3)/(1+$AH$10*$AH$11) -> 7630.07978 | AL183: MPa | AM183: N | AN183: =AN182+AN181 -> 0.05621 | AO183: MN | AP183: =AY183-AN181*AW183 -> 0.002449000395 | AQ183: 0.9999949248 | AR183: =IF(BH183*SQRT(4*ABS(BE183)/3)-BB183/3<=AK184,AY183/(BJ183*AK185*AK184^2),BQ183) -> 1.10694268 | AS183: =IF(BH183*SQRT(4*ABS(BE183)/3)-BB183/3<=AK184,0,BR183) -> 0 | AT183: =AX183*(AV183-AK186)*AR183/AV183 -> 16.71409313 | AU183: =AX183*(AK184-AK186-AV183)*AR183/AV183 -> 4.812900114 | AV183: =IF(BH183*SQRT(4*ABS(BE183)/3)-BB183/3<=AK184,BH183*SQRT(4*ABS(BE183)/3)-BB183/3,BS183) -> 0.09434974155 | AW183: =0.1*(AR183/(AV183*BK183))*AK190^2 -> 0.001383878137 | AX183: =AK187 -> 26.21204571 | AY183: =AN184+AW182*AN181 -> 0.002526788185 | AZ183: =AX183*AK188/(AK184*AK185) -> 0.05858755131 | BA183: =AX183*AK189/(AK184*AK185) -> 0.05858755131 | BB183: =-6*AK184*(0.25-0.5*AY183/(AK184*AN183)) -> -0.0901420645 | BC183: =-6*AK184*(AZ183*(0.5*AK184-AK186)-BA183*(0.5*AK184-AK186)-(AZ183+BA183)*AK184*AY183/(AK184*AN183)) -> 0.00474059773 | BD183: =6*AK184*((AZ183*AK186-BA183*(AK184-AK186))*(0.5*AK184-AK186)-(AZ183*AK186+BA183*(AK184-AK186))*AY183/AN183) -> -0.0004847303804 | BE183: 0.002032067132 | BF183: 0.0003965440782 | BG183: 11.2469892 | BH183: 1.235346243 | BI183: =AV183/AK184 -> 0.628998277 | BJ183: =0.5*BI183*(0.5-BI183/3)+AZ183*(0.5-AK186/AK184)*(BI183-AK186/AK184)/BI183+BA183*(0.5-AK186/AK184)*(1-AK186/AK184-BI183)/BI183 -> 0.101452134 | BK183: =IF(BH183*SQRT(4*ABS(BE183)/3)-BB183/3<=AK184,AK183*(1-AK182*AR183/AK181),AK183*(1-AK182*AR183/AK181-(1-AK182)*BR183/AK181)) -> 7630.07978 | BL183: =(1+AZ183+BA183)*AK184*AK185 -> 0.1675762654 | BM183: =0.5*(AK184-AK186)*(BA183-AZ183)*AK184*AK185 -> 0 | BN183: =AK185*AK184^3/12+(0.5*AK184-AK186)^2*(AZ183+BA183)*AK185*AK184 -> 0.0003027809251 | BO183: 0 | BP183: 0.0003027809251 | BQ183: =AN183/BL183+(AY183+BO183*AN183)*(0.5*AK184+BO183)/BP183 -> 0.9613245177 | BR183: =AN183/BL183+(AY183+BO183*AN183)*(-0.5*AK184+BO183)/BP183 -> -0.2904657911 | BS183: =AN183*BP183/((AY183+AN183*BO183)*BL183)+(0.5*AK184+BO183) -> 0.1151939559
AJ184: h | AK184: =$M$18/1000 -> 0.15 | AL184: m | AM184: Mo | AN184: =INDEX(BV164:BX173,Makro!B3,3)/1000 -> 0.002449 | AO184: MNm | AP184: =AY184-AN181*AW184 -> 0.002449000025 | AQ184: 0.9999996733 | AR184: =IF(BH184*SQRT(4*ABS(BE184)/3)-BB184/3<=AK184,AY184/(BJ184*AK185*AK184^2),BQ184) -> 1.106942482 | AS184: =IF(BH184*SQRT(4*ABS(BE184)/3)-BB184/3<=AK184,0,BR184) -> 0 | AT184: =AX184*(AV184-AK186)*AR184/AV184 -> 16.71409197 | AU184: =AX184*(AK184-AK186-AV184)*AR184/AV184 -> 4.812894241 | AV184: =IF(BH184*SQRT(4*ABS(BE184)/3)-BB184/3<=AK184,BH184*SQRT(4*ABS(BE184)/3)-BB184/3,BS184) -> 0.09434975553 | AW184: =0.1*(AR184/(AV184*BK184))*AK190^2 -> 0.001383877685 | AX184: =AK187 -> 26.21204571 | AY184: =AN184+AW183*AN181 -> 0.00252678779 | AZ184: =AX184*AK188/(AK184*AK185) -> 0.05858755131 | BA184: =AX184*AK189/(AK184*AK185) -> 0.05858755131 | BB184: =-6*AK184*(0.25-0.5*AY184/(AK184*AN183)) -> -0.09014208557 | BC184: =-6*AK184*(AZ184*(0.5*AK184-AK186)-BA184*(0.5*AK184-AK186)-(AZ184+BA184)*AK184*AY184/(AK184*AN183)) -> 0.004740596989 | BD184: =6*AK184*((AZ184*AK186-BA184*(AK184-AK186))*(0.5*AK184-AK186)-(AZ184*AK186+BA184*(AK184-AK186))*AY184/AN183) -> -0.0004847303248 | BE184: 0.002032065126 | BF184: 0.0003965440497 | BG184: 11.24700505 | BH184: 1.235346987 | BI184: =AV184/AK184 -> 0.6289983702 | BJ184: =0.5*BI184*(0.5-BI184/3)+AZ184*(0.5-AK186/AK184)*(BI184-AK186/AK184)/BI184+BA184*(0.5-AK186/AK184)*(1-AK186/AK184-BI184)/BI184 -> 0.1014521363 | BK184: =IF(BH184*SQRT(4*ABS(BE184)/3)-BB184/3<=AK184,AK183*(1-AK182*AR184/AK181),AK183*(1-AK182*AR184/AK181-(1-AK182)*BR184/AK181)) -> 7630.07978 | BL184: =(1+AZ184+BA184)*AK184*AK185 -> 0.1675762654 | BM184: =0.5*(AK184-AK186)*(BA184-AZ184)*AK184*AK185 -> 0 | BN184: =AK185*AK184^3/12+(0.5*AK184-AK186)^2*(AZ184+BA184)*AK185*AK184 -> 0.0003027809251 | BO184: 0 | BP184: 0.0003027809251 | BQ184: =AN183/BL184+(AY184+BO184*AN183)*(0.5*AK184+BO184)/BP184 -> 0.9613244199 | BR184: =AN183/BL184+(AY184+BO184*AN183)*(-0.5*AK184+BO184)/BP184 -> -0.2904656933 | BS184: =AN183*BP184/((AY184+AN183*BO184)*BL184)+(0.5*AK184+BO184) -> 0.1151939622
AJ185: b | AK185: 1 | AL185: m | AM185: u | AN185: =AW190 -> 0.001383877654 | AO185: =AN185-AN171 -> 0.001011473951 | AP185: =AY185-AN181*AW185 -> 0.002449000002 | AQ185: 0.999999979 | AR185: =IF(BH185*SQRT(4*ABS(BE185)/3)-BB185/3<=AK184,AY185/(BJ185*AK185*AK184^2),BQ185) -> 1.10694247 | AS185: =IF(BH185*SQRT(4*ABS(BE185)/3)-BB185/3<=AK184,0,BR185) -> 0 | AT185: =AX185*(AV185-AK186)*AR185/AV185 -> 16.7140919 | AU185: =AX185*(AK184-AK186-AV185)*AR185/AV185 -> 4.812893863 | AV185: =IF(BH185*SQRT(4*ABS(BE185)/3)-BB185/3<=AK184,BH185*SQRT(4*ABS(BE185)/3)-BB185/3,BS185) -> 0.09434975643 | AW185: =0.1*(AR185/(AV185*BK185))*AK190^2 -> 0.001383877656 | AX185: =AK187 -> 26.21204571 | AY185: =AN184+AW184*AN181 -> 0.002526787765 | AZ185: =AX185*AK188/(AK184*AK185) -> 0.05858755131 | BA185: =AX185*AK189/(AK184*AK185) -> 0.05858755131 | BB185: =-6*AK184*(0.25-0.5*AY185/(AK184*AN183)) -> -0.09014208692 | BC185: =-6*AK184*(AZ185*(0.5*AK184-AK186)-BA185*(0.5*AK184-AK186)-(AZ185+BA185)*AK184*AY185/(AK184*AN183)) -> 0.004740596941 | BD185: =6*AK184*((AZ185*AK186-BA185*(AK184-AK186))*(0.5*AK184-AK186)-(AZ185*AK186+BA185*(AK184-AK186))*AY185/AN183) -> -0.0004847303212 | BE185: 0.002032064996 | BF185: 0.0003965440478 | BG185: 11.24700607 | BH185: 1.235347035 | BI185: =AV185/AK184 -> 0.6289983762 | BJ185: =0.5*BI185*(0.5-BI185/3)+AZ185*(0.5-AK186/AK184)*(BI185-AK186/AK184)/BI185+BA185*(0.5-AK186/AK184)*(1-AK186/AK184-BI185)/BI185 -> 0.1014521364 | BK185: =IF(BH185*SQRT(4*ABS(BE185)/3)-BB185/3<=AK184,AK183*(1-AK182*AR185/AK181),AK183*(1-AK182*AR185/AK181-(1-AK182)*BR185/AK181)) -> 7630.07978 | BL185: =(1+AZ185+BA185)*AK184*AK185 -> 0.1675762654 | BM185: =0.5*(AK184-AK186)*(BA185-AZ185)*AK184*AK185 -> 0 | BN185: =AK185*AK184^3/12+(0.5*AK184-AK186)^2*(AZ185+BA185)*AK185*AK184 -> 0.0003027809251 | BO185: 0 | BP185: 0.0003027809251 | BQ185: =AN183/BL185+(AY185+BO185*AN183)*(0.5*AK184+BO185)/BP185 -> 0.9613244136 | BR185: =AN183/BL185+(AY185+BO185*AN183)*(-0.5*AK184+BO185)/BP185 -> -0.290465687 | BS185: =AN183*BP185/((AY185+AN183*BO185)*BL185)+(0.5*AK184+BO185) -> 0.1151939626
AJ186: a | AK186: =$M$15/1000 -> 0.04 | AL186: m | AM186: ec,max | AN186: =1000*AR190/BK190 -> 0.145076133 | AO186: o/oo | AP186: =AY186-AN181*AW186 -> 0.002449 | AQ186: 0.9999999986 | AR186: =IF(BH186*SQRT(4*ABS(BE186)/3)-BB186/3<=AK184,AY186/(BJ186*AK185*AK184^2),BQ186) -> 1.106942469 | AS186: =IF(BH186*SQRT(4*ABS(BE186)/3)-BB186/3<=AK184,0,BR186) -> 0 | AT186: =AX186*(AV186-AK186)*AR186/AV186 -> 16.71409189 | AU186: =AX186*(AK184-AK186-AV186)*AR186/AV186 -> 4.812893838 | AV186: =IF(BH186*SQRT(4*ABS(BE186)/3)-BB186/3<=AK184,BH186*SQRT(4*ABS(BE186)/3)-BB186/3,BS186) -> 0.09434975649 | AW186: =0.1*(AR186/(AV186*BK186))*AK190^2 -> 0.001383877654 | AX186: =AK187 -> 26.21204571 | AY186: =AN184+AW185*AN181 -> 0.002526787763 | AZ186: =AX186*AK188/(AK184*AK185) -> 0.05858755131 | BA186: =AX186*AK189/(AK184*AK185) -> 0.05858755131 | BB186: =-6*AK184*(0.25-0.5*AY186/(AK184*AN183)) -> -0.09014208701 | BC186: =-6*AK184*(AZ186*(0.5*AK184-AK186)-BA186*(0.5*AK184-AK186)-(AZ186+BA186)*AK184*AY186/(AK184*AN183)) -> 0.004740596938 | BD186: =6*AK184*((AZ186*AK186-BA186*(AK184-AK186))*(0.5*AK184-AK186)-(AZ186*AK186+BA186*(AK184-AK186))*AY186/AN183) -> -0.000484730321 | BE186: 0.002032064988 | BF186: 0.0003965440477 | BG186: 11.24700614 | BH186: 1.235347038 | BI186: =AV186/AK184 -> 0.6289983766 | BJ186: =0.5*BI186*(0.5-BI186/3)+AZ186*(0.5-AK186/AK184)*(BI186-AK186/AK184)/BI186+BA186*(0.5-AK186/AK184)*(1-AK186/AK184-BI186)/BI186 -> 0.1014521364 | BK186: =IF(BH186*SQRT(4*ABS(BE186)/3)-BB186/3<=AK184,AK183*(1-AK182*AR186/AK181),AK183*(1-AK182*AR186/AK181-(1-AK182)*BR186/AK181)) -> 7630.07978 | BL186: =(1+AZ186+BA186)*AK184*AK185 -> 0.1675762654 | BM186: =0.5*(AK184-AK186)*(BA186-AZ186)*AK184*AK185 -> 0 | BN186: =AK185*AK184^3/12+(0.5*AK184-AK186)^2*(AZ186+BA186)*AK185*AK184 -> 0.0003027809251 | BO186: 0 | BP186: 0.0003027809251 | BQ186: =AN183/BL186+(AY186+BO186*AN183)*(0.5*AK184+BO186)/BP186 -> 0.9613244132 | BR186: =AN183/BL186+(AY186+BO186*AN183)*(-0.5*AK184+BO186)/BP186 -> -0.2904656866 | BS186: =AN183*BP186/((AY186+AN183*BO186)*BL186)+(0.5*AK184+BO186) -> 0.1151939626
AJ187: a | AK187: =AK180/AK183 -> 26.21204571 | AM187: ec,min | AN187: =1000*AS190/BK190 -> 0 | AO187: o/oo | AP187: =AY187-AN181*AW187 -> 0.002449 | AQ187: =AW187/AW186 -> 0.9999999999 | AR187: =IF(BH187*SQRT(4*ABS(BE187)/3)-BB187/3<=AK184,AY187/(BJ187*AK185*AK184^2),BQ187) -> 1.106942469 | AS187: =IF(BH187*SQRT(4*ABS(BE187)/3)-BB187/3<=AK184,0,BR187) -> 0 | AT187: =AX187*(AV187-AK186)*AR187/AV187 -> 16.71409189 | AU187: =AX187*(AK184-AK186-AV187)*AR187/AV187 -> 4.812893837 | AV187: =IF(BH187*SQRT(4*ABS(BE187)/3)-BB187/3<=AK184,BH187*SQRT(4*ABS(BE187)/3)-BB187/3,BS187) -> 0.09434975649 | AW187: =0.1*(AR187/(AV187*BK187))*AK190^2 -> 0.001383877654 | AX187: =AK187 -> 26.21204571 | AY187: =AN184+AW186*AN181 -> 0.002526787763 | AZ187: =AX187*AK188/(AK184*AK185) -> 0.05858755131 | BA187: =AX187*AK189/(AK184*AK185) -> 0.05858755131 | BB187: =-6*AK184*(0.25-0.5*AY187/(AK184*AN183)) -> -0.09014208702 | BC187: =-6*AK184*(AZ187*(0.5*AK184-AK186)-BA187*(0.5*AK184-AK186)-(AZ187+BA187)*AK184*AY187/(AK184*AN183)) -> 0.004740596938 | BD187: =6*AK184*((AZ187*AK186-BA187*(AK184-AK186))*(0.5*AK184-AK186)-(AZ187*AK186+BA187*(AK184-AK186))*AY187/AN183) -> -0.000484730321 | BE187: 0.002032064987 | BF187: 0.0003965440477 | BG187: 11.24700614 | BH187: 1.235347038 | BI187: =AV187/AK184 -> 0.6289983766 | BJ187: =0.5*BI187*(0.5-BI187/3)+AZ187*(0.5-AK186/AK184)*(BI187-AK186/AK184)/BI187+BA187*(0.5-AK186/AK184)*(1-AK186/AK184-BI187)/BI187 -> 0.1014521364 | BK187: =IF(BH187*SQRT(4*ABS(BE187)/3)-BB187/3<=AK184,AK183*(1-AK182*AR187/AK181),AK183*(1-AK182*AR187/AK181-(1-AK182)*BR187/AK181)) -> 7630.07978 | BL187: =(1+AZ187+BA187)*AK184*AK185 -> 0.1675762654 | BM187: =0.5*(AK184-AK186)*(BA187-AZ187)*AK184*AK185 -> 0 | BN187: =AK185*AK184^3/12+(0.5*AK184-AK186)^2*(AZ187+BA187)*AK185*AK184 -> 0.0003027809251 | BO187: 0 | BP187: 0.0003027809251 | BQ187: =AN183/BL187+(AY187+BO187*AN183)*(0.5*AK184+BO187)/BP187 -> 0.9613244131 | BR187: =AN183/BL187+(AY187+BO187*AN183)*(-0.5*AK184+BO187)/BP187 -> -0.2904656866 | BS187: =AN183*BP187/((AY187+AN183*BO187)*BL187)+(0.5*AK184+BO187) -> 0.1151939626
AJ188: Ac | AK188: =PI()/4*$N$9^2*$N$10/1000000 -> 0.000335270768 | AL188: m2 | AM188: sa,c | AN188: =AT190 -> 16.71409189 | AO188: MPa | AP188: =AY188-AN181*AW188 -> 0.002449 | AQ188: =AW188/AW187 -> 1 | AR188: =IF(BH188*SQRT(4*ABS(BE188)/3)-BB188/3<=AK184,AY188/(BJ188*AK185*AK184^2),BQ188) -> 1.106942469 | AS188: =IF(BH188*SQRT(4*ABS(BE188)/3)-BB188/3<=AK184,0,BR188) -> 0 | AT188: =AX188*(AV188-AK186)*AR188/AV188 -> 16.71409189 | AU188: =AX188*(AK184-AK186-AV188)*AR188/AV188 -> 4.812893837 | AV188: =IF(BH188*SQRT(4*ABS(BE188)/3)-BB188/3<=AK184,BH188*SQRT(4*ABS(BE188)/3)-BB188/3,BS188) -> 0.09434975649 | AW188: =0.1*(AR188/(AV188*BK188))*AK190^2 -> 0.001383877654 | AX188: =AK187 -> 26.21204571 | AY188: =AN184+AW187*AN181 -> 0.002526787763 | AZ188: =AX188*AK188/(AK184*AK185) -> 0.05858755131 | BA188: =AX188*AK189/(AK184*AK185) -> 0.05858755131 | BB188: =-6*AK184*(0.25-0.5*AY188/(AK184*AN183)) -> -0.09014208702 | BC188: =-6*AK184*(AZ188*(0.5*AK184-AK186)-BA188*(0.5*AK184-AK186)-(AZ188+BA188)*AK184*AY188/(AK184*AN183)) -> 0.004740596938 | BD188: =6*AK184*((AZ188*AK186-BA188*(AK184-AK186))*(0.5*AK184-AK186)-(AZ188*AK186+BA188*(AK184-AK186))*AY188/AN183) -> -0.000484730321 | BE188: 0.002032064987 | BF188: 0.0003965440477 | BG188: 11.24700614 | BH188: 1.235347038 | BI188: =AV188/AK184 -> 0.6289983766 | BJ188: =0.5*BI188*(0.5-BI188/3)+AZ188*(0.5-AK186/AK184)*(BI188-AK186/AK184)/BI188+BA188*(0.5-AK186/AK184)*(1-AK186/AK184-BI188)/BI188 -> 0.1014521364 | BK188: =IF(BH188*SQRT(4*ABS(BE188)/3)-BB188/3<=AK184,AK183*(1-AK182*AR188/AK181),AK183*(1-AK182*AR188/AK181-(1-AK182)*BR188/AK181)) -> 7630.07978 | BL188: =(1+AZ188+BA188)*AK184*AK185 -> 0.1675762654 | BM188: =0.5*(AK184-AK186)*(BA188-AZ188)*AK184*AK185 -> 0 | BN188: =AK185*AK184^3/12+(0.5*AK184-AK186)^2*(AZ188+BA188)*AK185*AK184 -> 0.0003027809251 | BO188: 0 | BP188: 0.0003027809251 | BQ188: =AN183/BL188+(AY188+BO188*AN183)*(0.5*AK184+BO188)/BP188 -> 0.9613244131 | BR188: =AN183/BL188+(AY188+BO188*AN183)*(-0.5*AK184+BO188)/BP188 -> -0.2904656866 | BS188: =AN183*BP188/((AY188+AN183*BO188)*BL188)+(0.5*AK184+BO188) -> 0.1151939626
AJ189: At | AK189: =PI()/4*$N$12^2*$N$13/1000000 -> 0.000335270768 | AL189: m2 | AM189: sa,t | AN189: =AU190 -> 4.812893837 | AO189: MPa | AP189: =AY189-AN181*AW189 -> 0.002449 | AQ189: =AW189/AW188 -> 1 | AR189: =IF(BH189*SQRT(4*ABS(BE189)/3)-BB189/3<=AK184,AY189/(BJ189*AK185*AK184^2),BQ189) -> 1.106942469 | AS189: =IF(BH189*SQRT(4*ABS(BE189)/3)-BB189/3<=AK184,0,BR189) -> 0 | AT189: =AX189*(AV189-AK186)*AR189/AV189 -> 16.71409189 | AU189: =AX189*(AK184-AK186-AV189)*AR189/AV189 -> 4.812893837 | AV189: =IF(BH189*SQRT(4*ABS(BE189)/3)-BB189/3<=AK184,BH189*SQRT(4*ABS(BE189)/3)-BB189/3,BS189) -> 0.09434975649 | AW189: =0.1*(AR189/(AV189*BK189))*AK190^2 -> 0.001383877654 | AX189: =AK187 -> 26.21204571 | AY189: =AN184+AW188*AN181 -> 0.002526787763 | AZ189: =AX189*AK188/(AK184*AK185) -> 0.05858755131 | BA189: =AX189*AK189/(AK184*AK185) -> 0.05858755131 | BB189: =-6*AK184*(0.25-0.5*AY189/(AK184*AN183)) -> -0.09014208702 | BC189: =-6*AK184*(AZ189*(0.5*AK184-AK186)-BA189*(0.5*AK184-AK186)-(AZ189+BA189)*AK184*AY189/(AK184*AN183)) -> 0.004740596938 | BD189: =6*AK184*((AZ189*AK186-BA189*(AK184-AK186))*(0.5*AK184-AK186)-(AZ189*AK186+BA189*(AK184-AK186))*AY189/AN183) -> -0.000484730321 | BE189: 0.002032064987 | BF189: 0.0003965440477 | BG189: 11.24700614 | BH189: 1.235347038 | BI189: =AV189/AK184 -> 0.6289983766 | BJ189: =0.5*BI189*(0.5-BI189/3)+AZ189*(0.5-AK186/AK184)*(BI189-AK186/AK184)/BI189+BA189*(0.5-AK186/AK184)*(1-AK186/AK184-BI189)/BI189 -> 0.1014521364 | BK189: =IF(BH189*SQRT(4*ABS(BE189)/3)-BB189/3<=AK184,AK183*(1-AK182*AR189/AK181),AK183*(1-AK182*AR189/AK181-(1-AK182)*BR189/AK181)) -> 7630.07978 | BL189: =(1+AZ189+BA189)*AK184*AK185 -> 0.1675762654 | BM189: =0.5*(AK184-AK186)*(BA189-AZ189)*AK184*AK185 -> 0 | BN189: =AK185*AK184^3/12+(0.5*AK184-AK186)^2*(AZ189+BA189)*AK185*AK184 -> 0.0003027809251 | BO189: 0 | BP189: 0.0003027809251 | BQ189: =AN183/BL189+(AY189+BO189*AN183)*(0.5*AK184+BO189)/BP189 -> 0.9613244131 | BR189: =AN183/BL189+(AY189+BO189*AN183)*(-0.5*AK184+BO189)/BP189 -> -0.2904656866 | BS189: =AN183*BP189/((AY189+AN183*BO189)*BL189)+(0.5*AK184+BO189) -> 0.1151939626
AJ190: L | AK190: =$M$16/1000 -> 3 | AL190: m | AM190: hc | AN190: =AV190 -> 0.09434975649 | AO190: m | AP190: =AY190-AN181*AW190 -> 0.002449 | AQ190: =AW190/AW189 -> 1 | AR190: =IF(BH190*SQRT(4*ABS(BE190)/3)-BB190/3<=AK184,AY190/(BJ190*AK185*AK184^2),BQ190) -> 1.106942469 | AS190: =IF(BH190*SQRT(4*ABS(BE190)/3)-BB190/3<=AK184,0,BR190) -> 0 | AT190: =AX190*(AV190-AK186)*AR190/AV190 -> 16.71409189 | AU190: =AX190*(AK184-AK186-AV190)*AR190/AV190 -> 4.812893837 | AV190: =IF(BH190*SQRT(4*ABS(BE190)/3)-BB190/3<=AK184,BH190*SQRT(4*ABS(BE190)/3)-BB190/3,BS190) -> 0.09434975649 | AW190: =0.1*(AR190/(AV190*BK190))*AK190^2 -> 0.001383877654 | AX190: =AK187 -> 26.21204571 | AY190: =AN184+AW189*AN181 -> 0.002526787763 | AZ190: =AX190*AK188/(AK184*AK185) -> 0.05858755131 | BA190: =AX190*AK189/(AK184*AK185) -> 0.05858755131 | BB190: =-6*AK184*(0.25-0.5*AY190/(AK184*AN183)) -> -0.09014208702 | BC190: =-6*AK184*(AZ190*(0.5*AK184-AK186)-BA190*(0.5*AK184-AK186)-(AZ190+BA190)*AK184*AY190/(AK184*AN183)) -> 0.004740596938 | BD190: =6*AK184*((AZ190*AK186-BA190*(AK184-AK186))*(0.5*AK184-AK186)-(AZ190*AK186+BA190*(AK184-AK186))*AY190/AN183) -> -0.000484730321 | BE190: 0.002032064987 | BF190: 0.0003965440477 | BG190: 11.24700614 | BH190: 1.235347038 | BI190: =AV190/AK184 -> 0.6289983766 | BJ190: =0.5*BI190*(0.5-BI190/3)+AZ190*(0.5-AK186/AK184)*(BI190-AK186/AK184)/BI190+BA190*(0.5-AK186/AK184)*(1-AK186/AK184-BI190)/BI190 -> 0.1014521364 | BK190: =IF(BH190*SQRT(4*ABS(BE190)/3)-BB190/3<=AK184,AK183*(1-AK182*AR190/AK181),AK183*(1-AK182*AR190/AK181-(1-AK182)*BR190/AK181)) -> 7630.07978 | BL190: =(1+AZ190+BA190)*AK184*AK185 -> 0.1675762654 | BM190: =0.5*(AK184-AK186)*(BA190-AZ190)*AK184*AK185 -> 0 | BN190: =AK185*AK184^3/12+(0.5*AK184-AK186)^2*(AZ190+BA190)*AK185*AK184 -> 0.0003027809251 | BO190: 0 | BP190: 0.0003027809251 | BQ190: =AN183/BL190+(AY190+BO190*AN183)*(0.5*AK184+BO190)/BP190 -> 0.9613244131 | BR190: =AN183/BL190+(AY190+BO190*AN183)*(-0.5*AK184+BO190)/BP190 -> -0.2904656866 | BS190: =AN183*BP190/((AY190+AN183*BO190)*BL190)+(0.5*AK184+BO190) -> 0.1151939626

Sheet Sheet3
B2: Tilstand: | C2: =Kold!$AO$5 -> 1
B4: L | C4: h | D4: b | E4: fck | F4: fcd | G4: Ecd | H4: Ac | I4: ac | J4: Esc | K4: fyd_c | L4: At | M4: at | N4: Est | O4: fyd_t | P4: Modenhed | Q4: 1+f | R4: uterm | S4: Iterationstyring | V4: Iterationsfakt.
B5: (m) | C5: (m) | D5: (m) | E5: (Mpa) | F5: (Mpa) | G5: (Mpa) | H5: (m2) | I5: (m) | J5: (Mpa) | K5: (Mpa) | L5: (m2) | M5: (m) | N5: (Mpa) | O5: (Mpa) | P5: (døgn) | R5: (m) | S5: Ncr-korr | T5: hc-step | U5: e-skift
B6: =IF(Kold!$AO$5=1,Kold!M16/1000,BRAND!AN135/1000) -> 3 | C6: =IF(Kold!$AO$5=1,Kold!M18/1000,BRAND!AS149/1000) -> 0.15 | D6: 1 | E6: =IF(Kold!$AO$5=1,Kold!L8,BRAND!L8) -> 20 | F6: =IF(Kold!$AO$5=1,Kold!L8/Kold!L10,BRAND!L8/BRAND!L10*BRAND!S9) -> 14.28571429 | G6: =1000*22*((E6+8)/10)^0.3/IF(C2=1,Kold!L10,BRAND!L10) -> 21401.39361 | H6: =PI()/4*Kold!N9^2*Kold!N10/1000000 -> 0.000335270768 | I6: =IF(Kold!$AO$5=1,Kold!M15/1000,BRAND!AS151/1000) -> 0.04 | J6: =IF(Kold!$AO$5=1,200000,200000*BRAND!S11) -> 200000 | K6: =IF(Kold!$AO$5=1,Kold!L9/Kold!L11,BRAND!L9*BRAND!S10) -> 458.3333333 | L6: =PI()/4*Kold!N12^2*Kold!N13/1000000 -> 0.000335270768 | M6: =IF(Kold!$AO$5=1,Kold!M15/1000,BRAND!AS152/1000) -> 0.04 | N6: =IF(Kold!$AO$5=1,200000,200000*BRAND!S13) -> 200000 | O6: =IF(Kold!$AO$5=1,Kold!L9/Kold!L11,BRAND!L9*BRAND!S12) -> 458.3333333 | Q6: =IF(Kold!$AO$5=1,Kold!P12,IF(OR(Makro!$B$3=10,BRAND!AQ61=1),BRAND!AH12,0))+1 -> 3.634138138 | R6: =IF(Kold!$AO$5=1,0,BRAND!AR146) -> 0 | S6: =MIN(1,15*C6/B6) -> 0.75 | T6: 0.1 | U6: -0.1 | V6: =MAX(1,IF(C2=1,0.05,0.08)*B6/C6) -> 1 | Y6: Checkpunkt | Z6: 18
M9: N | N9: M | O9: hc | P9: e0 | Q9: sac | R9: sat | U9: hc_0 | V9: 1/hc_0 | Y9: Test-fakt | Z9: hc | AA9: e0 | AB9: a' | AC9: b' | AD9: N' | AE9: tN' | AF9: t | AG9: Nc | AH9: sac | AI9: Nac | AJ9: sat | AK9: Nat | AL9: Mtot | AM9: u | AN9: N | AO9: Mo | AP9: x
L10: =IF($Z$6=29-ROW(),1,0) -> 0 | M10: =Q955 -> 0.0001 | N10: =R955 -> 0.0145926303 | O10: =C955 -> 0.04154491566 | P10: =D955 -> 0.0003825656605 | Q10: =K955 -> 10.34008965 | R10: =M955 -> 458.1685135 | S10: 1 | U10: =Y51 -> 0.04154491566 | V10: =1/U10 -> 24.0703341 | Y10: 0.5 | Z10: =$Z$15 -> 0.04433669151 | AA10: =Y10*$AA$15 -> 0.0002141812653 | AB10: =IF($C$2=1,AA10/($O$31*$O$30),2^(1/3)*$O$30/AA10) -> 0.03520610879 | AC10: =IF($C$2=1,-($O$31-2)*AA10/$O$30,3*($O$30/AA10)^2) -> -0.1190893099 | AD10: =IF($C$2=1,0.5*($O$31*AA10*$F$6/$O$30)*(1-AP10^2+(AB10-AC10)*(AC10^2*(1-AP10^2)+2*AC10*(1-AP10)+2*LN((1-AC10)/(1-AC10*AP10)))/(AC10^3)),$F$6*AC10*(LN((1-AB10+AB10^2)/(1+AB10)^2)/(6*AB10)+ATAN((2-AB10)/(AB10*3^0.5))/(AB10*3^0.5)-LN((AP10^2-AB10*AP10+AB10^2)/(AP10+AB10)^2)/(6*AB10)-ATAN((2*AP10-AB10)/(AB10*3^0.5))/(AB10*3^0.5))) -> 2.17913646 | AE10: =IF($C$2=1,($O$31*AA10*$F$6/$O$30)*(1-AP10^3-(AB10-AC10)*(-2*AC10^3*(1-AP10^3)-3*AC10^2*(1-AP10^2)-6*AC10*(1-AP10)-6*LN((1-AC10)/(1-AC10*AP10)))/(2*AC10^4))/3,$F$6*AC10*(LN((1+AB10^3)/(AB10^3+AP10^3)))/3) -> 1.434762025 | AF10: =AE10/AD10 -> 0.658408526 | AG10: =AD10*Z10*$D$6 -> 0.09661570101 | AH10: =MAX(MIN($K$6,$Q$6*$J$6*AA10*(Z10-$I$6)/Z10),-$K$6) -> 15.22678286 | AI10: =AH10*$H$6 -> 0.005105095183 | AJ10: =MIN($O$6,$Q$6*$N$6*AA10*(C$6-Z10-$M$6)/Z10) -> 230.5538537 | AK10: =AJ10*$L$6 -> 0.0772979676 | AL10: =(0.5*$C$6-Z10+AF10*Z10)*AG10+(0.5*$C$6-$I$6)*AI10+(0.5*$C$6-$M$6)*AK10 -> 0.008667036522 | AM10: =0.1*$Q$6*AA10*$B$6^2/Z10+$R$6 -> 0.01580018378 | AN10: =AG10+AI10-AK10 -> 0.02442282859 | AO10: =AL10-AM10*AN10 -> 0.008281151342 | AP10: =IF(Z10<$C$6,0,(Z10-$C$6)/Z10) -> 0
L11: 1 | M11: =Q956 -> 0.03262937956 | N11: =R956 -> 0.01518375326 | O11: =C956 -> 0.04433669151 | P11: =D956 -> 0.0004283625305 | Q11: =K956 -> 30.45356572 | R11: =M956 -> 458.3333333 | S11: 2 | U11: =Y53 -> 0.04433669151 | V11: =1/U11 -> 22.5546825 | Y11: 0.6 | Z11: =$Z$15 -> 0.04433669151 | AA11: =Y11*$AA$15 -> 0.0002570175183 | AB11: 0.04224733055 | AC11: -0.1429071719 | AD11: =IF($C$2=1,0.5*($O$31*AA11*$F$6/$O$30)*(1-AP11^2+(AB11-AC11)*(AC11^2*(1-AP11^2)+2*AC11*(1-AP11)+2*LN((1-AC11)/(1-AC11*AP11)))/(AC11^3)),$F$6*AC11*(LN((1-AB11+AB11^2)/(1+AB11)^2)/(6*AB11)+ATAN((2-AB11)/(AB11*3^0.5))/(AB11*3^0.5)-LN((AP11^2-AB11*AP11+AB11^2)/(AP11+AB11)^2)/(6*AB11)-ATAN((2*AP11-AB11)/(AB11*3^0.5))/(AB11*3^0.5))) -> 2.565623774 | AE11: =IF($C$2=1,($O$31*AA11*$F$6/$O$30)*(1-AP11^3-(AB11-AC11)*(-2*AC11^3*(1-AP11^3)-3*AC11^2*(1-AP11^2)-6*AC11*(1-AP11)-6*LN((1-AC11)/(1-AC11*AP11)))/(2*AC11^4))/3,$F$6*AC11*(LN((1+AB11^3)/(AB11^3+AP11^3)))/3) -> 1.685164522 | AF11: 0.6568244881 | AG11: 0.1137512698 | AH11: 18.27213943 | AI11: 0.00612611422 | AJ11: 276.6646245 | AK11: 0.09275756112 | AL11: 0.01026151795 | AM11: =0.1*$Q$6*AA11*$B$6^2/Z11+$R$6 -> 0.01896022054 | AN11: 0.02711982291 | AO11: 0.00974732013 | AP11: 0
L12: 0 | M12: =IF(AND(N11/M11>0.007,Q957>M11),Q957,M11) -> 0.06643809279 | N12: =IF(AND(N11/M11>0.007,Q957>M11),R957,N11) -> 0.01565272056 | O12: =IF(AND(N11/M11>0.007,Q957>M11),C957,O11) -> 0.04686581865 | P12: =IF(AND(N11/M11>0.007,Q957>M11),D957,P11) -> 0.000476963284 | Q12: =IF(AND(N11/M11>0.007,Q957>M11),K957,Q11) -> 50.78699256 | R12: =IF(AND(N11/M11>0.007,Q957>M11),M957,R11) -> 458.3333333 | S12: 3 | U12: =Y55 -> 0.04686581865 | V12: =1/U12 -> 21.33751269 | Y12: 0.7 | Z12: =$Z$15 -> 0.04433669151 | AA12: =Y12*$AA$15 -> 0.0002998537714 | AB12: 0.04928855231 | AC12: -0.1667250339 | AD12: 2.937459476 | AE12: 1.924800504 | AF12: 0.6552602749 | AG12: 0.1302372346 | AH12: 21.317496 | AI12: 0.007147133256 | AJ12: 322.7753952 | AK12: 0.1082171546 | AL12: 0.01181491618 | AM12: 0.02212025729 | AN12: 0.02916721324 | AO12: 0.01116972992 | AP12: 0
L13: 0 | M13: =IF(AND(N12/M12>0.007,Q958>M12),Q958,M12) -> 0.09483469136 | N13: =IF(AND(N12/M12>0.007,Q958>M12),R958,N12) -> 0.01595872396 | O13: =IF(AND(N12/M12>0.007,Q958>M12),C958,O12) -> 0.04917818303 | P13: =IF(AND(N12/M12>0.007,Q958>M12),D958,P12) -> 0.0005113834389 | Q13: =IF(AND(N12/M12>0.007,Q958>M12),K958,Q12) -> 69.36850284 | R13: =IF(AND(N12/M12>0.007,Q958>M12),M958,R12) -> 458.3333333 | S13: 4 | U13: =Y57 -> 0.04917818303 | V13: =1/U13^(1/3) -> 2.729454383 | Y13: 0.8 | Z13: =$Z$15 -> 0.04433669151 | AA13: =Y13*$AA$15 -> 0.0003426900244 | AB13: 0.05632977407 | AC13: -0.1905428958 | AD13: 3.29531284 | AE13: 2.154194957 | AF13: 0.6537148555 | AG13: 0.1461032688 | AH13: 24.36285257 | AI13: 0.008168152293 | AJ13: 368.886166 | AK13: 0.1236767482 | AL13: 0.01332917308 | AM13: 0.02528029405 | AN13: 0.03059467295 | AO13: 0.01255573076 | AP13: 0
L14: 0 | M14: 0.1604364834 | N14: 0.016137343 | O14: 0.05255221951 | P14: 0.0006169755471 | Q14: 107.1097095 | R14: 458.3333333 | S14: 5 | U14: =1/V14^3 -> 0.05255221951 | V14: =V13+($V$28-$V$13)/15 -> 2.669744163 | Y14: 0.9 | Z14: =$Z$15 -> 0.04433669151 | AA14: =Y14*$AA$15 -> 0.0003855262775 | AB14: 0.06337099583 | AC14: -0.2143607578 | AD14: 3.639810583 | AE14: 2.373838069 | AF14: 0.6521872539 | AG14: 0.161377159 | AH14: 27.40820915 | AI14: 0.00918917133 | AJ14: 414.9969367 | AK14: 0.1391363417 | AL14: 0.01480610427 | AM14: 0.0284403308 | AN14: 0.03142998861 | AO14: 0.01391222499 | AP14: 0
L15: 0 | M15: 0.222960043 | N15: 0.01595681576 | O15: 0.05624210071 | P15: 0.0007013325433 | Q15: 147.2095835 | R15: 458.3333333 | S15: 6 | U15: =1/V15^3 -> 0.05624210071 | V15: =V14+($V$28-$V$13)/15 -> 2.610033944 | Y15: 1 | Z15: =SUMPRODUCT(L10:L28,O10:O28) -> 0.04433669151 | AA15: =SUMPRODUCT(L10:L28,P10:P28) -> 0.0004283625305 | AB15: 0.07041221759 | AC15: -0.2381786198 | AD15: 3.971540317 | AE15: 2.584188133 | AF15: 0.6506765452 | AG15: 0.1760849579 | AH15: 30.45356572 | AI15: 0.01021019037 | AJ15: 458.3333333 | AK15: 0.1536657687 | AL15: 0.01621485365 | AM15: 0.03160036756 | AN15: 0.03262937956 | AO15: 0.01518375326 | AP15: 0
L16: 0 | M16: 0.2812639561 | N16: 0.01572626606 | O16: 0.06028566657 | P16: 0.0007606565073 | Q16: 186.0352437 | R16: 455.9188679 | S16: 7 | U16: 0.06028566657 | V16: 2.550323724 | Y16: =MIN(1.1,$O$6/ABS($AJ$15)) -> 1 | Z16: =$Z$15 -> 0.04433669151 | AA16: =Y16*$AA$15 -> 0.0004283625305 | AB16: 0.07041221759 | AC16: -0.2381786198 | AD16: 3.971540317 | AE16: 2.584188133 | AF16: 0.6506765452 | AG16: 0.1760849579 | AH16: 30.45356572 | AI16: 0.01021019037 | AJ16: 458.3333333 | AK16: 0.1536657687 | AL16: 0.01621485365 | AM16: 0.03160036756 | AN16: 0.03262937956 | AO16: 0.01518375326 | AP16: 0
L17: 0 | M17: 0.3725521106 | N17: 0.0142157876 | O17: 0.06472633014 | P17: 0.0008781986325 | Q17: 243.8388285 | R17: 446.4665219 | S17: 8 | U17: 0.06472633014 | V17: 2.490613505 | Y17: =MIN(1.2,$O$6/ABS($AJ$15)) -> 1 | Z17: =$Z$15 -> 0.04433669151 | AA17: =Y17*$AA$15 -> 0.0004283625305 | AB17: 0.07041221759 | AC17: -0.2381786198 | AD17: 3.971540317 | AE17: 2.584188133 | AF17: 0.6506765452 | AG17: 0.1760849579 | AH17: 30.45356572 | AI17: 0.01021019037 | AJ17: 458.3333333 | AK17: 0.1536657687 | AL17: 0.01621485365 | AM17: 0.03160036756 | AN17: 0.03262937956 | AO17: 0.01518375326 | AP17: 0
L18: 0 | M18: 0.4092976295 | N18: 0.01351197142 | O18: 0.0696140592 | P18: 0.0007851356376 | Q18: 242.7599837 | R18: 331.0620223 | S18: 9 | U18: 0.0696140592 | V18: 2.430903285 | Y18: =MIN(1.3,$O$6/ABS($AJ$15)) -> 1 | Z18: =$Z$15 -> 0.04433669151 | AA18: =Y18*$AA$15 -> 0.0004283625305 | AB18: 0.07041221759 | AC18: -0.2381786198 | AD18: 3.971540317 | AE18: 2.584188133 | AF18: 0.6506765452 | AG18: 0.1760849579 | AH18: 30.45356572 | AI18: 0.01021019037 | AJ18: 458.3333333 | AK18: 0.1536657687 | AL18: 0.01621485365 | AM18: 0.03160036756 | AN18: 0.03262937956 | AO18: 0.01518375326 | AP18: 0
L19: 0 | M19: 0.4387233756 | N19: 0.01320641488 | O19: 0.07500656053 | P19: 0.0007062992337 | Q19: 239.5909191 | R19: 239.5011163 | S19: 10 | U19: 0.07500656053 | V19: 2.371193066 | Y19: =MIN(1.5,$O$6/ABS($AJ$15)) -> 1 | Z19: =$Z$15 -> 0.04433669151 | AA19: =Y19*$AA$15 -> 0.0004283625305 | AB19: 0.07041221759 | AC19: -0.2381786198 | AD19: 3.971540317 | AE19: 2.584188133 | AF19: 0.6506765452 | AG19: 0.1760849579 | AH19: 30.45356572 | AI19: 0.01021019037 | AJ19: 458.3333333 | AK19: 0.1536657687 | AL19: 0.01621485365 | AM19: 0.03160036756 | AN19: 0.03262937956 | AO19: 0.01518375326 | AP19: 0
L20: 0 | M20: 0.4540122298 | N20: 0.01310182252 | O20: 0.0809707152 | P20: 0.0006227373172 | Q20: 229.0244708 | R20: 162.2724074 | S20: 11 | U20: 0.0809707152 | V20: 2.311482846 | Y20: =MIN(2,$O$6/ABS($AJ$15)) -> 1 | Z20: =$Z$15 -> 0.04433669151 | AA20: =Y20*$AA$15 -> 0.0004283625305 | AB20: 0.07041221759 | AC20: -0.2381786198 | AD20: 3.971540317 | AE20: 2.584188133 | AF20: 0.6506765452 | AG20: 0.1760849579 | AH20: 30.45356572 | AI20: 0.01021019037 | AJ20: 458.3333333 | AK20: 0.1536657687 | AL20: 0.01621485365 | AM20: 0.03160036756 | AN20: 0.03262937956 | AO20: 0.01518375326 | AP20: 0
L21: 0 | M21: 0.4861526216 | N21: 0.01292826928 | O21: 0.08758432628 | P21: 0.0005848102035 | Q21: 230.9318845 | R21: 108.7856902 | S21: 12 | U21: 0.08758432628 | V21: 2.251772627
L22: 0 | M22: 0.5313069496 | N22: 0.01272411884 | O22: 0.09493825768 | P22: 0.0005696941147 | Q22: 239.6110183 | R22: 65.69118803 | S22: 13 | U22: 0.09493825768 | V22: 2.192062408
L23: 0 | M23: 0.6032434369 | N23: 0.012354297 | O23: 0.1031390654 | P23: 0.000586298796 | Q23: 260.8707499 | R23: 28.34722297 | S23: 14 | U23: 0.1031390654 | V23: 2.132352188 | Y23: Lastpunkter | Z23: hc | AA23: e0 | AB23: a' | AC23: b' | AD23: N' | AE23: tN' | AF23: t | AG23: Nc | AH23: sac | AI23: Nac | AJ23: sat | AK23: Nat | AL23: Mtot | AM23: u | AN23: N | AO23: Mo | AP23: x
L24: 0 | M24: 0.6818928326 | N24: 0.01173645973 | O24: 0.1123122522 | P24: 0.0006029034773 | Q24: 282.1395489 | R24: -9.021677253 | S24: 15 | U24: 0.1123122522 | V24: 2.072641969 | Y24: 0.0291 | Z24: =Z25+(Z28-Z27)*(Y24-AN25)/(Y28-Y27) -> 0.04404204943 | AA24: =AA25+(AA28-AA27)*(Y24-AN25)/(Y28-Y27) -> 0.0004235291608 | AB24: =IF($C$2=1,AA24/($O$31*$O$30),2^(1/3)*$O$30/AA24) -> 0.06961773101 | AC24: =IF($C$2=1,-($O$31-2)*AA24/$O$30,3*($O$30/AA24)^2) -> -0.2354911641 | AD24: =IF($C$2=1,0.5*($O$31*AA24*$F$6/$O$30)*(1-AP24^2+(AB24-AC24)*(AC24^2*(1-AP24^2)+2*AC24*(1-AP24)+2*LN((1-AC24)/(1-AC24*AP24)))/(AC24^3)),$F$6*AC24*(LN((1-AB24+AB24^2)/(1+AB24)^2)/(6*AB24)+ATAN((2-AB24)/(AB24*3^0.5))/(AB24*3^0.5)-LN((AP24^2-AB24*AP24+AB24^2)/(AP24+AB24)^2)/(6*AB24)-ATAN((2*AP24-AB24)/(AB24*3^0.5))/(AB24*3^0.5))) -> 3.934731433 | AE24: =IF($C$2=1,($O$31*AA24*$F$6/$O$30)*(1-AP24^3-(AB24-AC24)*(-2*AC24^3*(1-AP24^3)-3*AC24^2*(1-AP24^2)-6*AC24*(1-AP24)-6*LN((1-AC24)/(1-AC24*AP24)))/(2*AC24^4))/3,$F$6*AC24*(LN((1+AB24^3)/(AB24^3+AP24^3)))/3) -> 2.560904948 | AF24: =AE24/AD24 -> 0.6508461865 | AG24: =AD24*Z24*$D$6 -> 0.1732936363 | AH24: =MAX(MIN($K$6,$Q$6*$J$6*AA24*(Z24-$I$6)/Z24),-$K$6) -> 28.25197707 | AI24: =AH24*$H$6 -> 0.009472062051 | AJ24: =MIN($O$6,$Q$6*$N$6*AA24*(C$6-Z24-$M$6)/Z24) -> 458.3333333 | AK24: =AJ24*$L$6 -> 0.1536657687 | AL24: =(0.5*$C$6-Z24+AF24*Z24)*AG24+(0.5*$C$6-$I$6)*AI24+(0.5*$C$6-$M$6)*AK24 -> 0.01604203265 | AM24: =0.1*$Q$6*AA24*$B$6^2/Z24+$R$6 -> 0.03145283078 | AN24: =AG24+AI24-AK24 -> 0.02909992966 | AO24: =AL24-AM24*AN24 -> 0.01512675749 | AP24: =IF(Z24<$C$6,0,(Z24-$C$6)/Z24) -> 0
L25: 0 | M25: 0.8026271635 | N25: 0.01035308304 | O25: 0.122606318 | P25: 0.0006550381735 | Q25: 320.773477 | R25: -48.95233877 | S25: 16 | U25: 0.122606318 | V25: 2.012931749 | Y25: 1 | Z25: =Z27+(Z28-Z27)*(Y24*Y24/AN26-Y27)/(Y28-Y27) -> 0.04404229047 | AA25: =AA27+(AA28-AA27)*(Y24*Y24/AN26-Y27)/(Y28-Y27) -> 0.0004235331148 | AB25: 0.06961838095 | AC25: -0.2354933626 | AD25: 3.934761609 | AE25: 2.560924041 | AF25: 0.6508460476 | AG25: 0.1732959137 | AH25: 28.25377094 | AI25: 0.009472663481 | AJ25: 458.3333333 | AK25: 0.1536657687 | AL25: 0.01604217384 | AM25: 0.03145295229 | AN25: 0.02910280851 | AO25: 0.0151268046 | AP25: 0
L26: 0 | M26: 0.9985254317 | N26: 0.006871440403 | O26: 0.1341978295 | P26: 0.0007682865135 | Q26: 391.9674838 | R26: -100.6898185 | S26: 17 | U26: 0.1341978295 | V26: 1.95322153 | Y26: =VLOOKUP(Y24,Resultat,7) -> 1 | Z26: =Z27+(Z28-Z27)*(Y24-Y27)/(Y28-Y27) -> 0.04403378882 | AA26: =AA27+(AA28-AA27)*(Y24-Y27)/(Y28-Y27) -> 0.0004233936519 | AB26: 0.06959545671 | AC26: -0.2354158183 | AD26: 3.933697207 | AE26: 2.560250547 | AF26: 0.6508509455 | AG26: 0.1732155921 | AH26: 28.19050604 | AI26: 0.009451452609 | AJ26: 458.3333333 | AK26: 0.1536657687 | AL26: 0.01603719402 | AM26: 0.03144866598 | AN26: 0.02900127604 | AO26: 0.01512514258 | AP26: 0
L27: 0 | M27: 0.9985254317 | N27: 0.006871440403 | O27: 0.1341978295 | P27: 0.0007682865135 | Q27: 391.9674838 | R27: -100.6898185 | S27: 18 | U27: 0.1472978098 | V27: 1.89351131 | Y27: =INDEX(Resultat,Y26,1) -> 0.0001 | Z27: =INDEX(Resultat,Y26,3) -> 0.04154491566 | AA27: =INDEX(Resultat,Y26,4) -> 0.0003825656605 | AB27: 0.06288434355 | AC27: -0.2127145922 | AD27: 3.616417971 | AE27: 2.358961524 | AF27: 0.6522922799 | AG27: 0.1502437796 | AH27: 10.34008965 | AI27: 0.003466729799 | AJ27: 458.1685135 | AK27: 0.1536105094 | AL27: 0.01459564214 | AM27: 0.0301184102 | AN27: 0.0001 | AO27: 0.0145926303 | AP27: 0
L28: 0 | M28: 0.9985254317 | N28: 0.006871440403 | O28: 0.1341978295 | P28: 0.0007682865135 | Q28: 391.9674838 | R28: -100.6898185 | S28: 19 | U28: =Y82 -> 0.1621598447 | V28: =1/U28^(1/3) -> 1.833801091 | Y28: =INDEX(Resultat,Y26+1,1) -> 0.03262937956 | Z28: =INDEX(Resultat,Y26+1,3) -> 0.04433669151 | AA28: =INDEX(Resultat,Y26+1,4) -> 0.0004283625305 | AB28: 0.07041221759 | AC28: -0.2381786198 | AD28: 3.971540317 | AE28: 2.584188133 | AF28: 0.6506765452 | AG28: 0.1760849579 | AH28: 30.45356572 | AI28: 0.01021019037 | AJ28: 458.3333333 | AK28: 0.1536657687 | AL28: 0.01621485365 | AM28: 0.03160036756 | AN28: 0.03262937956 | AO28: 0.01518375326 | AP28: 0
M29: emax | O29: =IF(C2=1,0.0028,Firsidig!G21) -> 0.0028 | P29: Konv.krit: | Q29: =IF(Y81<0.6*C6,1.003,1.001) -> 1.001 | U29: N_max | V29: =AP82 -> 1.263953044 | Y29: 0.0562 | Z29: =Z30+(Z33-Z32)*(Y29-AN30)/(Y33-Y32) -> 0.04611303662 | AA29: =AA30+(AA33-AA32)*(Y29-AN30)/(Y33-Y32) -> 0.000462497513 | AB29: 0.07602316543 | AC29: -0.2571583915 | AD29: 4.22711447 | AE29: 2.745444109 | AF29: 0.6494842116 | AG29: 0.1949250843 | AH29: 44.56296756 | AI29: 0.01494066036 | AJ29: 458.3333333 | AK29: 0.1536657687 | AL29: 0.01736996449 | AM29: 0.03280421279 | AN29: 0.05619997604 | AO29: 0.01552636852 | AP29: 0
M30: e1 | O30: =IF(C2=1,0.7*(E6+8)^0.31/1000,Firsidig!F21) -> 0.001966604505 | P30: Vælg checkpunkt: | U30: e | V30: =Z82 -> 0.0008235156366 | Y30: 1 | Z30: =Z32+(Z33-Z32)*(Y29*Y29/AN31-Y32)/(Y33-Y32) -> 0.04611321221 | AA30: =AA32+(AA33-AA32)*(Y29*Y29/AN31-Y32)/(Y33-Y32) -> 0.0004625008872 | AB30: 0.07602372006 | AC30: -0.2571602676 | AD30: 4.227139359 | AE30: 2.745459777 | AF30: 0.6494840942 | AG30: 0.1949269743 | AH30: 44.56440299 | AI30: 0.01494114162 | AJ30: 458.3333333 | AK30: 0.1536657687 | AL30: 0.01737007948 | AM30: 0.03280432721 | AN30: 0.05620234722 | AO30: 0.01552639929 | AP30: 0
M31: k | O31: =1.05*G6*O30/F6 -> 3.093473666 | P31: Stepmax: | Q31: =IF(Y81<0.6*C6,0.025,0.06)*0.5*(0.0024+O30)/(0.0024*V6) -> 0.05458255631 | Y31: =VLOOKUP(Y29,Resultat,7) -> 2 | Z31: =Z32+(Z33-Z32)*(Y29-Y32)/(Y33-Y32) -> 0.04609993803 | AA31: =AA32+(AA33-AA32)*(Y29-Y32)/(Y33-Y32) -> 0.0004622458051 | AB31: 0.07598179086 | AC31: -0.2570184365 | AD31: 4.225257631 | AE31: 2.744275117 | AF31: 0.6494929676 | AG31: 0.1947841149 | AH31: 44.45590817 | AI31: 0.01490476648 | AJ31: 458.3333333 | AK31: 0.1536657687 | AL31: 0.01736138696 | AM31: 0.03279567529 | AN31: 0.05602311272 | AO31: 0.01552407115 | AP31: 0
Y32: =INDEX(Resultat,Y31,1) -> 0.03262937956 | Z32: =INDEX(Resultat,Y31,3) -> 0.04433669151 | AA32: =INDEX(Resultat,Y31,4) -> 0.0004283625305 | AB32: 0.07041221759 | AC32: -0.2381786198 | AD32: 3.971540317 | AE32: 2.584188133 | AF32: 0.6506765452 | AG32: 0.1760849579 | AH32: 30.45356572 | AI32: 0.01021019037 | AJ32: 458.3333333 | AK32: 0.1536657687 | AL32: 0.01621485365 | AM32: 0.03160036756 | AN32: 0.03262937956 | AO32: 0.01518375326 | AP32: 0
Y33: =INDEX(Resultat,Y31+1,1) -> 0.06643809279 | Z33: =INDEX(Resultat,Y31+1,3) -> 0.04686581865 | AA33: =INDEX(Resultat,Y31+1,4) -> 0.000476963284 | AB33: 0.0784009808 | AC33: -0.2652016658 | AD33: 4.333146701 | AE33: 2.812133721 | AF33: 0.6489818866 | AG33: 0.2030764675 | AH33: 50.78699256 | AI33: 0.017027394 | AJ33: 458.3333333 | AK33: 0.1536657687 | AL33: 0.0178642353 | AM33: 0.0332868487 | AN33: 0.06643809279 | AO33: 0.01565272056 | AP33: 0
B34: hc/hcm | C34: hc | D34: e0 | E34: a' | F34: b' | G34: N' | H34: tN' | I34: t | J34: Nc | K34: sac | L34: Nac | M34: sat | N34: Nat | O34: Mtot | P34: u | Q34: N | R34: Mo | S34: a'' | T34: b'' | U34: c'' | W34: x | Y34: 0.3592 | Z34: =Z35+(Z38-Z37)*(Y34-AN35)/(Y38-Y37) -> 0.06409595619 | AA34: =AA35+(AA38-AA37)*(Y34-AN35)/(Y38-Y37) -> 0.0008615129518 | AB34: 0.1416114461 | AC34: -0.4790194081 | AD34: 6.718504016 | AE34: 4.274115134 | AF34: 0.6361706601 | AG34: 0.430628939 | AH34: 235.40017 | AI34: 0.07892279577 | AJ34: 448.4495088 | AK34: 0.1503520112 | AL34: 0.03027952636 | AM34: 0.04396176506 | AN34: 0.3591997236 | AO34: 0.01448847251 | AP34: 0
B35: =C35/$Y$81 -> 0.2560455877 | C35: =U10 -> 0.04154491566 | D35: =Z51 -> 0.0003825656605 | E35: =IF($C$2=1,D35/($O$31*$O$30),2^(1/3)*$O$30/D35) -> 0.06288434355 | F35: =IF($C$2=1,-($O$31-2)*D35/$O$30,3*($O$30/D35)^2) -> -0.2127145922 | G35: =IF($C$2=1,0.5*($O$31*D35*$F$6/$O$30)*(1-W35^2+(E35-F35)*(F35^2*(1-W35^2)+2*F35*(1-W35)+2*LN((1-F35)/(1-F35*W35)))/(F35^3)),$F$6*F35*(LN((1-E35+E35^2)/(1+E35)^2)/(6*E35)+ATAN((2-E35)/(E35*3^0.5))/(E35*3^0.5)-LN((W35^2-E35*W35+E35^2)/(W35+E35)^2)/(6*E35)-ATAN((2*W35-E35)/(E35*3^0.5))/(E35*3^0.5))) -> 3.616417971 | H35: =IF($C$2=1,($O$31*D35*$F$6/$O$30)*(1-W35^3-(E35-F35)*(-2*F35^3*(1-W35^3)-3*F35^2*(1-W35^2)-6*F35*(1-W35)-6*LN((1-F35)/(1-F35*W35)))/(2*F35^4))/3,$F$6*F35*(LN((1+E35^3)/(E35^3+W35^3)))/3) -> 2.358961524 | I35: =H35/G35 -> 0.6522922799 | J35: =G35*C35*$D$6 -> 0.1502437796 | K35: =MAX(MIN($K$6,$Q$6*$J$6*D35*(C35-$I$6)/C35),-$K$6) -> 10.34008965 | L35: =K35*$H$6 -> 0.003466729799 | M35: =MIN($O$6,$Q$6*$N$6*D35*(C$6-C35-$M$6)/C35) -> 458.1685135 | N35: =M35*$L$6 -> 0.1536105094 | O35: =(0.5*$C$6-C35+I35*C35)*J35+(0.5*$C$6-$I$6)*L35+(0.5*$C$6-$M$6)*N35 -> 0.01459564214 | P35: =0.1*$Q$6*D35*$B$6^2/C35+$R$6 -> 0.0301184102 | Q35: =(J35+L35-N35) -> 0.0001 | R35: =O35-P35*Q35 -> 0.0145926303 | W35: =IF(C35<$C$6,0,(C35-$C$6)/C35) -> 0 | Y35: 1 | Z35: =Z37+(Z38-Z37)*(Y34*Y34/AN36-Y37)/(Y38-Y37) -> 0.06409647999 | AA35: =AA37+(AA38-AA37)*(Y34*Y34/AN36-Y37)/(Y38-Y37) -> 0.0008615268166 | AB35: 0.1416137252 | AC35: -0.4790271171 | AD35: 6.718576714 | AE35: 4.274158386 | AF35: 0.636170214 | AG35: 0.4306371179 | AH35: 235.4071518 | AI35: 0.07892513658 | AJ35: 448.4479439 | AK35: 0.1503514865 | AL35: 0.03027991823 | AM35: 0.04396211329 | AN35: 0.3592107679 | AO35: 0.01448825376 | AP35: 0
B36: =C36/$Y$81 -> 0.2732515895 | C36: =U11 -> 0.04433669151 | D36: =Z53 -> 0.000426247469 | E36: 0.07006455373 | F36: =IF($C$2=1,-($O$31-2)*D36/$O$30,3*($O$30/D36)^2) -> -0.2370026009 | G36: =IF($C$2=1,0.5*($O$31*D36*$F$6/$O$30)*(1-W36^2+(E36-F36)*(F36^2*(1-W36^2)+2*F36*(1-W36)+2*LN((1-F36)/(1-F36*W36)))/(F36^3)),$F$6*F36*(LN((1-E36+E36^2)/(1+E36)^2)/(6*E36)+ATAN((2-E36)/(E36*3^0.5))/(E36*3^0.5)-LN((W36^2-E36*W36+E36^2)/(W36+E36)^2)/(6*E36)-ATAN((2*W36-E36)/(E36*3^0.5))/(E36*3^0.5))) -> 3.95545209 | H36: =IF($C$2=1,($O$31*D36*$F$6/$O$30)*(1-W36^3-(E36-F36)*(-2*F36^3*(1-W36^3)-3*F36^2*(1-W36^2)-6*F36*(1-W36)-6*LN((1-F36)/(1-F36*W36)))/(2*F36^4))/3,$F$6*F36*(LN((1+E36^3)/(E36^3+W36^3)))/3) -> 2.574013431 | I36: =H36/G36 -> 0.6507507543 | J36: =G36*C36*$D$6 -> 0.1753716591 | K36: =MAX(MIN($K$6,$Q$6*$J$6*D36*(C36-$I$6)/C36),-$K$6) -> 30.30319971 | L36: 0.01015977704 | M36: =MIN($O$6,$Q$6*$N$6*D36*(C$6-C36-$M$6)/C36) -> 458.3333333 | N36: 0.1536657687 | O36: =(0.5*$C$6-C36+I36*C36)*J36+(0.5*$C$6-$I$6)*L36+(0.5*$C$6-$M$6)*N36 -> 0.01617121624 | P36: =0.1*$Q$6*D36*$B$6^2/C36+$R$6 -> 0.03144433916 | Q36: =(J36+L36-N36) -> 0.03186566746 | R36: =O36-P36*Q36 -> 0.01516922139 | S36: =((R36-R35)*(Q36-Q37)-(R36-R37)*(Q36-Q35))/((Q36^2-Q35^2)*(Q36-Q37)-(Q36^2-Q37^2)*(Q36-Q35)) -> -0.06138086916 | T36: =-(S36*(Q36^2-Q35^2)-(R36-R35))/(Q36-Q35) -> 0.02011347265 | U36: =R36-S36*Q36^2-T36*Q36 -> 0.01459061957 | V36: =S36*Q35^2+T36*Q35+U36 -> 0.0145926303 | W36: =IF(C36<$C$6,0,(C36-$C$6)/C36) -> 0 | Y36: =VLOOKUP(Y34,Resultat,7) -> 7 | Z36: =Z37+(Z38-Z37)*(Y34-Y37)/(Y38-Y37) -> 0.06407682384 | AA36: =AA37+(AA38-AA37)*(Y34-Y37)/(Y38-Y37) -> 0.0008610065284 | AB36: 0.1415282026 | AC36: -0.4787378259 | AD36: 6.715848055 | AE36: 4.27253491 | AF36: 0.6361869529 | AG36: 0.4303302128 | AH36: 235.145185 | AI36: 0.07883730676 | AJ36: 448.506573 | AK36: 0.1503711432 | AL36: 0.03026521044 | AM36: 0.04394904158 | AN36: 0.3587963764 | AO36: 0.01449645358 | AP36: 0
B37: 0.2888388601 | C37: 0.04686581865 | D37: =Z55 -> 0.0004722763655 | E37: 0.0776305672 | F37: -0.2625956401 | G37: 4.298938349 | H37: 2.790631972 | I37: 0.6491444505 | J37: 0.201473265 | K37: 50.28793006 | L37: 0.01686007293 | M37: 458.3333333 | N37: 0.1536657687 | O37: 0.01776604773 | P37: =0.1*$Q$6*D37*$B$6^2/C37+$R$6 -> 0.03295975278 | Q37: 0.06466756929 | R37: =O37-P37*Q37 -> 0.01563462063 | S37: -0.06036813375 | T37: 0.02001571002 | U37: 0.01459270649 | V37: 0.01516922139 | W37: 0 | Y37: =INDEX(Resultat,Y36,1) -> 0.2812639561 | Z37: =INDEX(Resultat,Y36,3) -> 0.06028566657 | AA37: =INDEX(Resultat,Y36,4) -> 0.0007606565073 | AB37: 0.1250331383 | AC37: -0.4229410934 | AD37: 6.166441663 | AE37: 3.943080749 | AF37: 0.6394418312 | AG37: 0.371748046 | AH37: 186.0352437 | AI37: 0.06237217904 | AJ37: 455.9188679 | AK37: 0.152856269 | AL37: 0.02733360162 | AM37: 0.0412684786 | AN37: 0.2812639561 | AO37: 0.01572626606 | AP37: 0
B38: 0.3030901996 | C38: 0.04917818303 | D38: =Z57 -> 0.0005170664866 | E38: 0.0849929566 | F38: -0.287499894 | G38: 4.620222369 | H38: 2.992047645 | I38: 0.6475981904 | J38: 0.2272141413 | K38: 70.13940093 | L38: 0.02351569082 | M38: 458.3333333 | N38: 0.1536657687 | O38: 0.01930468139 | P38: 0.03438886577 | Q38: 0.09706406345 | R38: 0.01596675834 | S38: -0.2581281079 | T38: 0.05199975353 | U38: 0.01335138749 | V38: 0.01563462063 | W38: 0 | Y38: =INDEX(Resultat,Y36+1,1) -> 0.3725521106 | Z38: =INDEX(Resultat,Y36+1,3) -> 0.06472633014 | AA38: =INDEX(Resultat,Y36+1,4) -> 0.0008781986325 | AB38: 0.1443541598 | AC38: -0.4882969991 | AD38: 6.805379697 | AE38: 4.325734464 | AF38: 0.6356345503 | AG38: 0.440487253 | AH38: 243.8388285 | AI38: 0.08175203128 | AJ38: 446.4665219 | AK38: 0.1496871737 | AL38: 0.03074844787 | AM38: 0.04437677252 | AN38: 0.3725521106 | AO38: 0.0142157876 | AP38: 0
B39: 0.3238847334 | C39: 0.05255221951 | D39: =D38+($D$53-$D$38)/15 -> 0.00053749643 | E39: 0.08835113457 | F39: -0.2988593743 | G39: 4.76267814 | H39: 3.080967713 | I39: 0.6468981574 | J39: 0.2502893071 | K39: 93.31177989 | L39: 0.03128471211 | M39: 427.0603016 | N39: 0.1431808353 | O39: 0.02023355234 | P39: 0.03345249095 | Q39: 0.1383931839 | R39: 0.01560395561 | S39: -0.02007454433 | T39: -0.004051683261 | U39: 0.01654916214 | V39: 0.01596675834 | W39: 0 | Y39: 0.3592 | Z39: =Z40+(Z43-Z42)*(Y39-AN40)/(Y43-Y42) -> 0.06409595619 | AA39: =AA40+(AA43-AA42)*(Y39-AN40)/(Y43-Y42) -> 0.0008615129518 | AB39: 0.1416114461 | AC39: -0.4790194081 | AD39: 6.718504016 | AE39: 4.274115134 | AF39: 0.6361706601 | AG39: 0.430628939 | AH39: 235.40017 | AI39: 0.07892279577 | AJ39: 448.4495088 | AK39: 0.1503520112 | AL39: 0.03027952636 | AM39: 0.04396176506 | AN39: 0.3591997236 | AO39: 0.01448847251 | AP39: 0
B40: 0.3466258507 | C40: 0.05624210071 | D40: =D39+($D$53-$D$38)/15 -> 0.0005579263733 | E40: 0.09170931255 | F40: -0.3102188545 | G40: 4.902642425 | H40: 3.168093915 | I40: 0.6462013013 | J40: 0.275734909 | K40: 117.1086524 | L40: 0.03926310782 | M40: 387.604735 | N40: 0.1299525372 | O40: 0.02111598719 | P40: 0.03244586061 | Q40: 0.1850454797 | R40: 0.01511202735 | S40: 0.0129638041 | T40: -0.01473756252 | U40: 0.0173952423 | V40: 0.01560395561 | W40: 0 | Y40: 1 | Z40: =Z42+(Z43-Z42)*(Y39*Y39/AN41-Y42)/(Y43-Y42) -> 0.06409647999 | AA40: =AA42+(AA43-AA42)*(Y39*Y39/AN41-Y42)/(Y43-Y42) -> 0.0008615268166 | AB40: 0.1416137252 | AC40: -0.4790271171 | AD40: 6.718576714 | AE40: 4.274158386 | AF40: 0.636170214 | AG40: 0.4306371179 | AH40: 235.4071518 | AI40: 0.07892513658 | AJ40: 448.4479439 | AK40: 0.1503514865 | AL40: 0.03027991823 | AM40: 0.04396211329 | AN40: 0.3592107679 | AO40: 0.01448825376 | AP40: 0
B41: 0.371546763 | C41: 0.06028566657 | D41: 0.0005783563166 | E41: 0.09506749052 | F41: -0.3215783348 | G41: 5.040164214 | H41: 3.253464008 | I41: 0.645507541 | J41: 0.3038496593 | K41: 141.449731 | L41: 0.04742395994 | M41: 346.6526015 | N41: 0.1162224839 | O41: 0.02202283537 | P41: 0.03137800709 | Q41: 0.2350511353 | R41: 0.01464739918 | S41: 0.01116328389 | T41: -0.01398117007 | U41: 0.01731692841 | V41: =S41*Q40^2+T41*Q40+U41 -> 0.01511202735 | W41: 0 | Y41: =VLOOKUP(Y39,Resultat,7) -> 7 | Z41: =Z42+(Z43-Z42)*(Y39-Y42)/(Y43-Y42) -> 0.06407682384 | AA41: =AA42+(AA43-AA42)*(Y39-Y42)/(Y43-Y42) -> 0.0008610065284 | AB41: 0.1415282026 | AC41: -0.4787378259 | AD41: 6.715848055 | AE41: 4.27253491 | AF41: 0.6361869529 | AG41: 0.4303302128 | AH41: 235.145185 | AI41: 0.07883730676 | AJ41: 448.506573 | AK41: 0.1503711432 | AL41: 0.03026521044 | AM41: 0.04394904158 | AN41: 0.3587963764 | AO41: 0.01449645358 | AP41: 0
B42: 0.3989150293 | C42: 0.06472633014 | D42: 0.0005987862599 | E42: 0.0984256685 | F42: -0.332937815 | G42: 5.175291144 | H42: 3.337114661 | I42: 0.6448167975 | J42: 0.3349776032 | K42: 166.257763 | L42: 0.05574136789 | M42: 304.4163461 | N42: 0.1020619021 | O42: 0.02294539833 | P42: 0.0302576213 | Q42: 0.2886570689 | R42: 0.01421132206 | S42: 0.008677037301 | T42: -0.01267910234 | U42: 0.01714823863 | V42: =S42*Q41^2+T42*Q41+U42 -> 0.01464739918 | W42: 0 | Y42: =INDEX(Resultat,Y41,1) -> 0.2812639561 | Z42: =INDEX(Resultat,Y41,3) -> 0.06028566657 | AA42: =INDEX(Resultat,Y41,4) -> 0.0007606565073 | AB42: 0.1250331383 | AC42: -0.4229410934 | AD42: 6.166441663 | AE42: 3.943080749 | AF42: 0.6394418312 | AG42: 0.371748046 | AH42: 186.0352437 | AI42: 0.06237217904 | AJ42: 455.9188679 | AK42: 0.152856269 | AL42: 0.02733360162 | AM42: 0.0412684786 | AN42: 0.2812639561 | AO42: 0.01572626606 | AP42: 0
B43: 0.4290386061 | C43: 0.0696140592 | D43: 0.0006192162033 | E43: 0.1017838465 | F43: -0.3442972953 | G43: 5.308069548 | H43: 3.419081494 | I43: 0.6441289934 | J43: 0.3695162677 | K43: 191.4585305 | L43: 0.06419044855 | M43: 261.1000682 | N43: 0.08753922039 | O43: 0.02387000092 | P43: 0.02909305277 | Q43: 0.3461674959 | R43: 0.0137989317 | S43: 0.005642889113 | T43: -0.01075295054 | U43: 0.01684505534 | V43: 0.01421132206 | W43: 0 | Y43: =INDEX(Resultat,Y41+1,1) -> 0.3725521106 | Z43: =INDEX(Resultat,Y41+1,3) -> 0.06472633014 | AA43: =INDEX(Resultat,Y41+1,4) -> 0.0008781986325 | AB43: 0.1443541598 | AC43: -0.4882969991 | AD43: 6.805379697 | AE43: 4.325734464 | AF43: 0.6356345503 | AG43: 0.440487253 | AH43: 243.8388285 | AI43: 0.08175203128 | AJ43: 446.4665219 | AK43: 0.1496871737 | AL43: 0.03074844787 | AM43: 0.04437677252 | AN43: 0.3725521106 | AO43: 0.0142157876 | AP43: 0
B44: 0.4622731464 | C44: 0.07500656053 | D44: 0.0006396461466 | E44: 0.1051420244 | F44: -0.3556567755 | G44: 5.438544498 | H44: 3.499399114 | I44: 0.643444053 | J44: 0.4079265171 | K44: 216.9808501 | L44: 0.07274733625 | M44: 216.8995219 | N44: 0.07272006929 | O44: 0.02477624684 | P44: 0.02789230963 | Q44: 0.4079537841 | R44: 0.01339747358 | S44: 0.002182784171 | T44: -0.008143611768 | U44: 0.01635641814 | V44: 0.0137989317 | W44: 0
B45: 0.499030845 | C45: 0.0809707152 | D45: 0.0006600760899 | E45: 0.1085002024 | F45: -0.3670162558 | G45: 5.566759855 | H45: 3.578101154 | I45: 0.6427619022 | J45: 0.4507445268 | K45: 242.7565733 | L45: 0.08138918276 | M45: 172.0021159 | N45: 0.05766728148 | O45: 0.02563465878 | P45: 0.02666305859 | Q45: 0.4744664281 | R45: 0.01298393261 | S45: -0.001590148807 | T45: -0.004814299449 | U45: 0.01562612782 | V45: 0.01339747358 | W45: 0
B46: 0.5397912102 | C46: 0.08758432628 | D46: 0.0006805060333 | E46: 0.1118583804 | F46: -0.378375736 | G46: 5.692758303 | H46: 3.655220305 | I46: 0.6420824687 | J46: 0.4985964007 | K46: 268.7205861 | L46: 0.09009415728 | M46: 126.5869132 | N46: 0.04244089161 | O46: 0.02640347382 | P46: 0.02541262496 | Q46: 0.5462496663 | R46: 0.01252183592 | S46: -0.005567998711 | T46: -0.0007540440309 | U46: 0.01459516011 | V46: 0.01298393261 | W46: 0 | Y46: hc | Z46: e0 | AA46: a' | AB46: b' | AC46: N' | AD46: tN' | AE46: t' | AF46: Nc | AG46: sac | AH46: Nac | AI46: sat | AJ46: Nat | AK46: Mtot | AL46: N | AM46: u | AN46: Mo | AP46: N | AQ46: A | AR46: B1 | AS46: B2 | AT46: B3 | AU46: C1 | AV46: C2 | AW46: x
B47: 0.5851142457 | C47: 0.09493825768 | D47: 0.0007009359766 | E47: 0.1152165584 | F47: -0.3897352163 | G47: 5.816581399 | H47: 3.730788355 | I47: 0.6414056813 | J47: 0.5522161036 | K47: 294.8108094 | L47: 0.09884144649 | M47: 80.82463175 | N47: 0.02709813636 | O47: 0.02702427152 | P47: 0.02414799265 | Q47: 0.6239594138 | R47: 0.01195690419 | S47: -0.009647010671 | T47: 0.004019252802 | U47: 0.01320487937 | V47: 0.01252183592 | W47: 0 | AW47: 0
